Workbook

Sheet Information
A1: =Main!A1 -> ERA, GDS Tariff Model, Draft Decision, April 2024
A3: Prior to using this model
B4: The Excel VBA macro must be enabled prior to opening this model to allow the use of macro to perform computation.
B5: (File -> Option -> Trust Centre -> Trust Centre Setting -> Macro Setting)
B6: Solver Add-in must also be installed and switched on. (File -> Option -> Add-in -> Go -> Solver Ad-in)
A8: Annual update of Trailing Average DRP
B9: For each year prior to the variation year (of tariff variation) there will be an annual update of the Trailing Average DRP.
B10: Update of Annual DRP is entered at Input worksheet, Cells(AE12:AI12).
B11: After entry of the annual update, click on the [Calculate X-Factor] button. Trailing Averaged DRP is calculated in the WACC sheet.
B12: The X-Factor for the variation year and the revised tariffs at 31-Dec-2023 $ will be computed.
B13: Apply the tariff variation mechanism based on the ERA approved document:
B14: "ERA - GDS AA6 Access Arrangement.pdf", ?????? 2024 at Annexure B
A16: Cost Pass Through Entries
B17: Cost Pass Through related to capital expenditure can be entered at Input worksheet, Cells(AE438:AI451).
B18: Cost Pass Through related to operating expenditure can be entered at Input worksheet, Cells(AE475:AI490).
B19: After all entries of the Cost Pass Through and annual update of Trailing Average DRP, click on the [Calculate X-Factor] button .
A21: Color codes:
B22: Number | C22: ===> Hard coded data
B23: Number | C23: ===> Number or texts that are linked to other sheet
B24: Number | C24: ===> Contains formula that is not consistent with the others in the same row
B25: -Number | C25: ===> Excel formatting for negative number
A27: Tariff model method: Principles
B28: End of year cashflow assumption
B29: Unless otherwise stated all real dollars are in real $ December 2023
A31: Depreciation
B32: For AA1 period depreciation began in the year of acquisition but the ERA has modified the asset life in subsequent AA periods to
B33: assume asset depreciation began in the year after acquisition effectively adding one year to asset life for capex 2000 to 2004
B34: For all subsequent AA periods depreciation began in the year after acquisition
B35: Regulatory depreciation is rolled forward on forecast basis
B36: ICB tax assets as at 30 June 2000 (not 1 Jan 2000)
A38: Tax Depreciation
B39: Tax Depreciation is in nominal straight line.
A41: Taxation
B42: Revenue is based on cost of service or unsmoothed revenue
A44: Other
B45: Input data from 2024 onwards are forecast.
A47: Tariff Variation
B48: Tariff Variation for the following year tariff is performed in October
B49: The Annual Debt Risk Premium updated at Input sheet, Cells(AI12:AN12). The Trailing Average DRP is calculated at Input sheet, Row 13
B50: The September CPI is updated at Input sheet, Cells(AI35:AN35).
B51: After completing entries for relevant year, click on the [Calculate X-Factor] button .
A53: Worksheets
B55: Worksheet | C55: Description
B56: Main | C56: Summary of outputs
B57: WACC | C57: Contains the relevant parameters related to computing the WACC
B58: Input | C58: Contains general inputs of assumptions, capital expenditures, operating expenditures, UAFG expense, approved depreciations
B59: CoS | C59: Computations of total revenue building block (cost of service), inflationary gain and Credit Foncier Check
B60: Price_path_AA5 | C60: Contains the macro to calculate the price path necessary to equate in NPV terms the cost of service and expected tariff revenue
B61: B3 Tariff rebalance | C61: Illustrates the calculation of B3 rebalanced in 2024
B62: Load_Tariffs | C62: Contains inputs of gas volumes, customer connections and other relevant information required to compute the reference tariffs
B63: Revenue | C63: Contains calculation of tariffs and revenue
B64: Working_Capital | C64: Contains calculation of working capital
B65: Tax_CoRE | C65: Contains calculation of tax, imputation credit and cost of raising equity
B66: 2019 Capex NGR 77(2)(a) | C66: Asset roll forward adjustment calculation for 2019
B67: Asset | C67: Contains regulatory asset base. Includes initial capital base, capital expenditure account, Vines and Westnet. Computations in Real 31-Dec-2019 $m
B68: Tax_Asset | C68: Contains tax asset base. Includes Initial Capital Base per E&Y less commercial meters, capital expenditure account, Vines and Westnet. Computations in nominal $m
B69: SolverSheet | C69: Contains inputs, target outputs and settings for Solver to compute the X-Factor and tariffs after the annual update of Trailing Average DRP
B70: TariffVariation | C70: Tariff Variation sheet produces the tariff published for 2025 and performs checks on the annual tariffs proposed by ATCO for 2026 to 2029
B71: AncillaryServices | C71: This sheet performs checks on the ancillary services proposed by ATCO for 2025 to 2029

Sheet Main
A1: ERA, GDS Tariff Model, Draft Decision, April 2024
A2: Main Summary
A3: Ref | C3: =COLUMN() -> 3 | D3: =COLUMN() -> 4 | E3: =COLUMN() -> 5 | F3: =COLUMN() -> 6 | G3: =COLUMN() -> 7 | H3: =COLUMN() -> 8
A4: WACC
A5: =ROW() -> 5 | E5: ="Real at "&Input!$G$51 -> Real at 31/12/2023 | F5: Nominal
A6: =ROW() -> 6 | D6: Post-tax WACC | E6: =WACC!$AF$38 -> 0.04705053166 | F6: =WACC!$AF$37 -> 0.0733315
A7: =ROW() -> 7
A8: Closing Regulated Asset Base
A9: =ROW() -> 9 | E9: December 2024 | F9: December 2025
A10: =ROW() -> 10 | D10: Closing Asset Value [Real $m 30/6/2023] | E10: =Asset!$AI$24 -> 1583.79054 | F10: =Asset!$AN$24 -> 1616.084863
A11: =ROW() -> 11
A12: Revenue Building Block
A13: =ROW() -> 13 | C13: =Input!$G$51&" [m$]" -> 31/12/2023 [m$] | E13: Real Calculation | F13: Nominal Calculation | G13: Real % | H13: Nominal % | S13: Instruction:
A14: =ROW() -> 14 | C14: PV of Cost of Service | S14: (1) Macro must be enabled
A15: =ROW() -> 15 | D15: Operating Expenditure | E15: =CoS!$F70 -> 384.2694007 | F15: =CoS!$F43 -> 398.871638 | G15: =E15/E$24 -> 0.3322408248 | H15: 0.3448659762 | S15: (2) Update the annual DRP and Sep CPI in the Input sheet
A16: =ROW() -> 16 | D16: Return on Asset | E16: =CoS!$F73 -> 330.4481817 | F16: =CoS!$F47 -> 521.5074536 | G16: 0.2857067886 | H16: 0.4508973814 | S16: (3) Click the "Calculate X-Factor" button to recalculate the model
A17: =ROW() -> 17 | D17: Depreciation | E17: =CoS!$F71 -> 322.1398854 | F17: =CoS!$F44 -> 334.3812011 | G17: 0.2785234032 | H17: 0.2891072926 | S17: Solver is used to calculate X-Factor, Cost of Raising Equity and tariffs so that Delta=0
A18: =ROW() -> 18 | D18: Inflationary Gain | F18: =CoS!$F45 -> -178.502241 | H18: =F18/F$24 -> -0.1543337348 | S18: (4) The future tariff change will be identical to the latest calculated X-Factor
A19: =ROW() -> 19 | D19: Accelerated depreciation | E19: =CoS!$F72 -> 77.09918542 | F19: =CoS!$F46 -> 80.02895446 | G19: =E19/E$24 -> 0.06666025686 | H19: =F19/F$24 -> 0.06919334662 | S19: (5) The output will be a new tariff starting 1 January of the following year
A20: =ROW() -> 20 | D20: Tax | E20: =CoS!$F75 -> 64.13260315 | F20: =CoS!$F49 -> 66.56964207 | G20: =E20/E$24 -> 0.05544929919 | H20: =F20/F$24 -> 0.05755637255
A21: =ROW() -> 21 | D21: Imputation Credits | E21: =CoS!$F76 -> -32.06630157 | F21: =CoS!$F50 -> -33.28482103 | G21: =E21/E$24 -> -0.02772464959 | H21: =F21/F$24 -> -0.02877818628
A22: =ROW() -> 22 | D22: Return on Working Capital | E22: =CoS!$F74 -> 10.57603 | F22: =CoS!$F48 -> 10.97791914 | G22: =E22/E$24 -> 0.009144076849 | H22: =F22/F$24 -> 0.009491551769 | U22: Recalculate for years: | V22: =Recalc_From_Year&" to 2029" -> 2025 to 2029
D23: 31 December 2024 dollars | F23: =SUM(F15:F22) -> 1200.549746
A24: =ROW() -> 24 | D24: Cost of Service (Total Revenue Required) December 2023 Dollars | E24: =SUM(E15:E22) -> 1156.598985 | F24: =F23/(1+Input!AI43) -> 1156.598985 | G24: =E24/E$24 -> 1 | H24: =F24/F$24 -> 1 | V24: ="X-Factor_"&Input!AJ$6 -> X-Factor_2025 | W24: ="X-Factor_"&Input!AK$6 -> X-Factor_2026 | X24: ="X-Factor_"&Input!AL$6 -> X-Factor_2027 | Y24: ="X-Factor_"&Input!AM$6 -> X-Factor_2028 | Z24: ="X-Factor_"&Input!AN$6 -> X-Factor_2029
A25: =ROW() -> 25 | U25: X-Factor (Real) = | V25: =SolverSheet!I12 -> 0 | W25: =SolverSheet!J12 -> 0 | X25: =SolverSheet!K12 -> 0 | Y25: =SolverSheet!L12 -> 0 | Z25: =SolverSheet!M12 -> 0
A26: =ROW() -> 26
A27: =ROW() -> 27 | U27: Delta = | V27: =CoS!$F$53 -> 0
A28: PV of Forecast Revenue
A29: =ROW() -> 29 | C29: =Input!$G$51&" [m$]" -> 31/12/2023 [m$] | E29: Real Calculation | F29: Nominal Calculation | G29: % of Total Forecast Revenue
A30: =ROW() -> 30 | D30: A1 | E30: =Revenue!$F$133 -> 43.7447623 | F30: =Revenue!$F$224 -> 45.40706327 | G30: =E30/$E$39 -> 0.03782189408
A31: =ROW() -> 31 | D31: A2 | E31: =Revenue!$F$134 -> 33.62484222 | F31: =Revenue!$F$225 -> 34.90258622 | G31: 0.02907217125
A32: =ROW() -> 32 | D32: B1 | E32: =Revenue!$F$135 -> 72.37986095 | F32: =Revenue!$F$226 -> 75.13029567 | G32: 0.06257991335
A33: =ROW() -> 33 | D33: B2 | E33: =Revenue!$F$136 -> 59.62366881 | F33: =Revenue!$F$227 -> 61.88936822 | G33: 0.05155085929
A34: =ROW() -> 34 | D34: B3 | E34: =Revenue!$F$137 -> 927.8445095 | F34: =Revenue!$F$228 -> 963.1026009 | G34: 0.8022180237
D35: Total Tariff Revenue $ December 2024 | F35: =SUM(F30:F34) -> 1180.431914
A36: =ROW() -> 36 | D36: Total Tariff Revenue $ December 2023 | E36: =SUM(E30:E34) -> 1137.217644 | F36: =F35/(1+Input!AI43) -> 1137.217644 | G36: 0.9832428617 | I36: =F36/E36 -> 1
A37: =ROW() -> 37 | D37: Revenue from Prudent Discounts | E37: =Revenue!F$139 -> 0 | F37: =Revenue!F$230 -> 0 | G37: 0
A38: =ROW() -> 38 | D38: Revenue from Ancillary Services $ December 2023 | E38: =Revenue!$F$140 -> 19.38128832 | F38: =Revenue!$F$231/(1+Input!AI43) -> 19.38128832 | G38: 0.01675713835
A39: =ROW() -> 39 | D39: Total Forecast Revenue | E39: =SUM(E36:E38) -> 1156.598932 | F39: =SUM(F36:F38) -> 1156.598932 | G39: 1
A40: =ROW() -> 40
A41: =ROW() -> 41 | D41: Check: PV CoS = PV Tot. Fore. Rev. (Rounded to 0 decimal place) | E41: =IF(ROUND(E24-E39,0)=0,"OK","Wrong") -> OK | F41: =IF(ROUND(F24-F39,0)=0,"OK","Wrong") -> OK
A42: =ROW() -> 42
A43: =ROW() -> 43
A44: Tariffs | M44: CHECK only - Remove from publication
A45: =ROW() -> 45 | O45: Year on Year increase
A46: =ROW() -> 46 | D46: ="Charging parameter (" & Input!$G$51&" $)" -> Charging parameter (31/12/2023 $) | E46: Units real $ | F46: 2020 | G46: 2021 | H46: 2022 | I46: 2023 | J46: 2024 | M46: 2020 | N46: 2021 | O46: 2022 | P46: 2023 | Q46: 2024
A47: =ROW() -> 47 | D47: Reference tariff A1
A48: =ROW() -> 48 | D48: Standing charge | E48: $/year | F48: =Price_path_AA6!G121 -> 55031.29 | G48: =Price_path_AA6!H121 -> 56682.23 | H48: =Price_path_AA6!I121 -> 58382.7 | I48: =Price_path_AA6!J121 -> 60134.18 | J48: =Price_path_AA6!K121 -> 61938.21 | M48: =#REF! ->  | N48: =#REF! ->  | O48: =#REF! ->  | P48: =#REF! ->  | Q48: =#REF! -> 
A49: =ROW() -> 49 | D49: Demand charge
A50: =ROW() -> 50 | D50: First 10 km | E50: $/GJ km | F50: =Price_path_AA6!G123 -> 231.94 | G50: =Price_path_AA6!H123 -> 238.9 | H50: =Price_path_AA6!I123 -> 246.07 | I50: =Price_path_AA6!J123 -> 253.45 | J50: =Price_path_AA6!K123 -> 261.05 | M50: =#REF! ->  | N50: =#REF! ->  | O50: =#REF! ->  | P50: =#REF! ->  | Q50: =#REF! -> 
A51: =ROW() -> 51 | D51: Distance > 10 km | E51: $/GJ km | F51: =Price_path_AA6!G124 -> 122.09 | G51: =Price_path_AA6!H124 -> 125.75 | H51: =Price_path_AA6!I124 -> 129.52 | I51: =Price_path_AA6!J124 -> 133.41 | J51: =Price_path_AA6!K124 -> 137.41 | M51: =#REF! ->  | N51: =#REF! ->  | O51: =#REF! ->  | P51: =#REF! ->  | Q51: =#REF! -> 
A52: =ROW() -> 52 | D52: Usage charge
A53: =ROW() -> 53 | D53: First 10 km | E53: $/GJ km | F53: =Price_path_AA6!G126 -> 0.04906 | G53: =Price_path_AA6!H126 -> 0.05053 | H53: =Price_path_AA6!I126 -> 0.05205 | I53: =Price_path_AA6!J126 -> 0.05361 | J53: =Price_path_AA6!K126 -> 0.05522 | M53: =#REF! ->  | N53: =#REF! ->  | O53: =#REF! ->  | P53: =#REF! ->  | Q53: =#REF! -> 
A54: =ROW() -> 54 | D54: Distance > 10 km | E54: $/GJ km | F54: =Price_path_AA6!G127 -> 0.02471 | G54: =Price_path_AA6!H127 -> 0.02545 | H54: =Price_path_AA6!I127 -> 0.02621 | I54: =Price_path_AA6!J127 -> 0.027 | J54: =Price_path_AA6!K127 -> 0.02781 | M54: =#REF! ->  | N54: =#REF! ->  | O54: =#REF! ->  | P54: =#REF! ->  | Q54: =#REF! -> 
A55: =ROW() -> 55 | D55: Reference tariff A2
A56: =ROW() -> 56 | D56: Standing charge | E56: $/Year | F56: =Price_path_AA6!G129 -> 30434.34 | G56: =Price_path_AA6!H129 -> 31347.37 | H56: =Price_path_AA6!I129 -> 32287.79 | I56: =Price_path_AA6!J129 -> 33256.42 | J56: =Price_path_AA6!K129 -> 34254.11 | M56: =#REF! ->  | N56: =#REF! ->  | O56: =#REF! ->  | P56: =#REF! ->  | Q56: =#REF! -> 
A57: =ROW() -> 57 | D57: First 10 TJ | E57: $/GJ | F57: =Price_path_AA6!G130 -> 2.96 | G57: =Price_path_AA6!H130 -> 3.05 | H57: =Price_path_AA6!I130 -> 3.14 | I57: =Price_path_AA6!J130 -> 3.23 | J57: =Price_path_AA6!K130 -> 3.33 | M57: =#REF! ->  | N57: =#REF! ->  | O57: =#REF! ->  | P57: =#REF! ->  | Q57: =#REF! -> 
A58: =ROW() -> 58 | D58: Volume > 10 TJ | E58: $/GJ | F58: =Price_path_AA6!G131 -> 1.57 | G58: =Price_path_AA6!H131 -> 1.62 | H58: =Price_path_AA6!I131 -> 1.67 | I58: =Price_path_AA6!J131 -> 1.72 | J58: =Price_path_AA6!K131 -> 1.77 | M58: =#REF! ->  | N58: =#REF! ->  | O58: =#REF! ->  | P58: =#REF! ->  | Q58: =#REF! -> 
A59: =ROW() -> 59 | D59: Reference tariff B1
A60: =ROW() -> 60 | D60: Standing charge | E60: $/Year | F60: =Price_path_AA6!G133 -> 1536.85 | G60: =Price_path_AA6!H133 -> 1582.96 | H60: =Price_path_AA6!I133 -> 1630.45 | I60: =Price_path_AA6!J133 -> 1679.36 | J60: =Price_path_AA6!K133 -> 1729.74 | M60: =#REF! ->  | N60: =#REF! ->  | O60: =#REF! ->  | P60: =#REF! ->  | Q60: =#REF! -> 
A61: =ROW() -> 61 | D61: First 5 TJ | E61: $/GJ | F61: =Price_path_AA6!G134 -> 5.84 | G61: =Price_path_AA6!H134 -> 6.02 | H61: =Price_path_AA6!I134 -> 6.2 | I61: =Price_path_AA6!J134 -> 6.39 | J61: =Price_path_AA6!K134 -> 6.58 | M61: =#REF! ->  | N61: =#REF! ->  | O61: =#REF! ->  | P61: =#REF! ->  | Q61: =#REF! -> 
A62: =ROW() -> 62 | D62: Volume > 5 TJ | E62: $/GJ | F62: =Price_path_AA6!G135 -> 5.03 | G62: =Price_path_AA6!H135 -> 5.18 | H62: =Price_path_AA6!I135 -> 5.34 | I62: =Price_path_AA6!J135 -> 5.5 | J62: =Price_path_AA6!K135 -> 5.67 | M62: =#REF! ->  | N62: =#REF! ->  | O62: =#REF! ->  | P62: =#REF! ->  | Q62: =#REF! -> 
A63: =ROW() -> 63 | D63: Reference tariff B2
A64: =ROW() -> 64 | D64: Standing charge | E64: $/Year | F64: =Price_path_AA6!G137 -> 386.34 | G64: =Price_path_AA6!H137 -> 397.93 | H64: =Price_path_AA6!I137 -> 409.87 | I64: =Price_path_AA6!J137 -> 422.17 | J64: =Price_path_AA6!K137 -> 434.84 | M64: =#REF! ->  | N64: =#REF! ->  | O64: =#REF! ->  | P64: =#REF! ->  | Q64: =#REF! -> 
A65: =ROW() -> 65 | D65: First 100 GJ | E65: $/GJ | F65: =Price_path_AA6!G138 -> 6.87 | G65: =Price_path_AA6!H138 -> 7.08 | H65: =Price_path_AA6!I138 -> 7.29 | I65: =Price_path_AA6!J138 -> 7.51 | J65: =Price_path_AA6!K138 -> 7.74 | M65: =#REF! ->  | N65: =#REF! ->  | O65: =#REF! ->  | P65: =#REF! ->  | Q65: =#REF! -> 
A66: =ROW() -> 66 | D66: Volume > 100 GJ | E66: $/GJ | F66: =Price_path_AA6!G139 -> 5.42 | G66: =Price_path_AA6!H139 -> 5.58 | H66: =Price_path_AA6!I139 -> 5.75 | I66: =Price_path_AA6!J139 -> 5.92 | J66: =Price_path_AA6!K139 -> 6.1 | M66: =#REF! ->  | N66: =#REF! ->  | O66: =#REF! ->  | P66: =#REF! ->  | Q66: =#REF! -> 
A67: =ROW() -> 67 | D67: Reference tariff B3
A68: =ROW() -> 68 | D68: Standing charge | E68: $/Year | F68: =Price_path_AA6!G141 -> 177.71 | G68: =Price_path_AA6!H141 -> 183.04 | H68: =Price_path_AA6!I141 -> 188.53 | I68: =Price_path_AA6!J141 -> 194.19 | J68: =Price_path_AA6!K141 -> 200.02 | M68: =#REF! ->  | N68: =#REF! ->  | O68: =#REF! ->  | P68: =#REF! ->  | Q68: =#REF! -> 
A69: =ROW() -> 69 | D69: First 9.855 GJ | E69: $/GJ | F69: =Price_path_AA6!G143 -> 6.45 | G69: =Price_path_AA6!H143 -> 6.64 | H69: =Price_path_AA6!I143 -> 6.84 | I69: =Price_path_AA6!J143 -> 7.05 | J69: =Price_path_AA6!K143 -> 7.26 | M69: =#REF! ->  | N69: =#REF! ->  | O69: =#REF! ->  | P69: =#REF! ->  | Q69: =#REF! -> 
A70: =ROW() -> 70 | D70: Volume > 9.855 GJ | E70: $/GJ | F70: =Price_path_AA6!G144 -> 5.59 | G70: =Price_path_AA6!H144 -> 5.76 | H70: =Price_path_AA6!I144 -> 5.93 | I70: =Price_path_AA6!J144 -> 6.11 | J70: =Price_path_AA6!K144 -> 6.29 | M70: =#REF! ->  | N70: =#REF! ->  | O70: =#REF! ->  | P70: =#REF! ->  | Q70: =#REF! -> 

Sheet WACC
A1: =Main!A1 -> ERA, GDS Tariff Model, Draft Decision, April 2024
A2: Determination of the Weighted Average Cost of Capital (WACC)
A3: Ref | B3: =COLUMN() -> 2 | C3: =COLUMN() -> 3 | E3: =COLUMN() -> 5 | G3: =COLUMN() -> 7 | H3: =COLUMN() -> 8 | I3: =COLUMN() -> 9 | J3: =COLUMN() -> 10 | K3: =COLUMN() -> 11 | M3: =COLUMN() -> 13 | O3: =COLUMN() -> 15 | P3: =COLUMN() -> 16 | Q3: =COLUMN() -> 17 | S3: =COLUMN() -> 19 | U3: =COLUMN() -> 21 | V3: =COLUMN() -> 22 | W3: =COLUMN() -> 23 | AA3: =COLUMN() -> 27 | AB3: =COLUMN() -> 28 | AC3: =COLUMN() -> 29 | AD3: =COLUMN() -> 30 | AE3: =COLUMN() -> 31 | AF3: =COLUMN() -> 32 | AG3: =COLUMN() -> 33 | AH3: =COLUMN() -> 34 | AI3: =COLUMN() -> 35 | AJ3: =COLUMN() -> 36
A4: =ROW() -> 4 | E4: OffGAR | G4: ERA | H4: ERA | I4: ERA | J4: ERA | K4: ERA | M4: WAGN | O4: ERA | Q4: WAGN | S4: ERA | U4: ERA | V4: ERA | W4: ERA | X4: ERA | Y4: ERA | Z4: ERA | AA4: ERA | AB4: ERA | AC4: ERA | AD4: ERA | AE4: ERA | AF4: ERA | AG4: ERA | AH4: ERA | AI4: ERA | AJ4: ERA
A5: =ROW() -> 5 | E5: FD1 | G5: FD2 - Lo | H5: FD 2 - Hi | I5: FD 2 Lo + Range*10% | J5: FD 2 Hi - Range*10% | K5: FD 2 | M5: AA3 | O5: AA3 DD 3 | Q5: AA3 Post DD3 | S5: AA3 FD | U5: AA4 Jul - Dec 2014 | V5: AA4 2015 | W5: AA4 2016 | X5: AA4 2017 | Y5: AA4 2018 | Z5: AA4 2019 | AA5: AA5 2020 | AB5: AA5 2021 | AC5: AA5 2022 | AD5: AA5 2023 | AE5: AA5 2024 | AF5: AA6 2025 | AG5: AA6 2026 | AH5: AA6 2027 | AI5: AA6 2028 | AJ5: AA6 2029
A6: =ROW() -> 6 | G6: 2005-06-30 | H6: =G6 -> 2005-06-30 | I6: 2005-06-30 | J6: 2005-06-30 | K6: 2005-06-30 | O6: 2010-07-30 | S6: 2012-06-28 | U6: 2015-04-02 | V6: 2015-06-12 | W6: 2016-09-30 | X6: 2017-09-30 | Y6: 2018-09-30 | Z6: 2019-09-30 | AA6: 2018-11-30 | AB6: 2020-09-30 | AC6: 2021-09-30 | AD6: 2022-09-30 | AE6: 2023-09-30 | AF6: 2024-02-14 | AG6: 2025-09-30 | AH6: 2026-09-30 | AI6: 2027-09-30 | AJ6: 2028-09-30
C7: Return on Debt
A8: =ROW() -> 8 | C8: Debt: Nominal Risk Free Rate (DRfn) | E8: 0.0627 | G8: 0.0515 | H8: =G8 -> 0.0515 | I8: =H8 -> 0.0515 | J8: =I8 -> 0.0515 | K8: =J8 -> 0.0515 | M8: 0.0559 | O8: 0.0516 | S8: 0.0561 | U8: 0.0196 | V8: =U8 -> 0.0196 | W8: 0.0196 | X8: 0.0196 | Y8: 0.0196 | Z8: 0.0196
A9: =ROW() -> 9 | C9: Debt: Real Risk Free Rate (DRfr) | E9: =(1+E8)/(1+E28)-1 -> 0.03395602257 | G9: 0.0258 | H9: 0.0258 | I9: 0.0258 | J9: 0.0258 | K9: 0.0258 | M9: =(1+M8)/(1+M28)-1 -> 0.03044793598 | O9: =(1+O8)/(1+O28)-1 -> 0.02495126706 | S9: =(1+S8)/(1+S28)-1 -> 0.02933723197 | U9: =(1+U8)/(1+U28)-1 -> 0.0005888125613 | V9: 0.0005888125613 | W9: 0.0005888125613 | X9: 0.0005888125613 | Y9: 0.0005888125613 | Z9: 0.001173493976
A10: =ROW() -> 10 | C10: Cost of Debt; 5 year Interest Rate Swap Spread | U10: 0.00471 | V10: =U10 -> 0.00471 | W10: 0.00471 | X10: =W10 -> 0.00471 | Y10: =X10 -> 0.00471 | Z10: =Y10 -> 0.00471 | AA10: 0.00961 | AB10: =AA10 -> 0.00961 | AC10: =AB10 -> 0.00961 | AD10: =AC10 -> 0.00961 | AE10: =AD10 -> 0.00961 | AF10: 0.04179 | AG10: =AF10 -> 0.04179 | AH10: =AG10 -> 0.04179 | AI10: =AH10 -> 0.04179 | AJ10: =AI10 -> 0.04179
A11: =ROW() -> 11 | C11: Cost of Debt; Debt Risk Premium (Drp) | G11: 0.0123 | H11: 0.0133 | M11: 0.045 | O11: 0.03293 | S11: 0.02893 | U11: 0.02429 | V11: 0.02502 | W11: =W42 -> 0.02467 | X11: =X42 -> 0.02326 | Y11: =Y42 -> 0.01689 | Z11: =Z42 -> 0.01663 | AA11: 0.02273 | AB11: =AB42 -> 0.02243 | AC11: 0.02082 | AD11: 0.01997 | AE11: 0.01964 | AF11: 0.01936 | AG11: 0.01936 | AH11: 0.01936 | AI11: 0.01936 | AJ11: 0.01936
A12: =ROW() -> 12 | C12: Cost of Debt; Debt Issuing Cost (Disc) | G12: 0.0008 | H12: 0.00125 | M12: 0.00228 | O12: 0.00125 | S12: 0.00125 | U12: 0.00125 | V12: =U12 -> 0.00125 | W12: 0.00125 | X12: 0.00125 | Y12: 0.00125 | Z12: 0.00125 | AA12: 0.001 | AB12: =AA12 -> 0.001 | AC12: 0.001 | AD12: =AC12 -> 0.001 | AE12: =AD12 -> 0.001 | AF12: 0.00165 | AG12: =AF12 -> 0.00165 | AH12: =AG12 -> 0.00165 | AI12: =AH12 -> 0.00165 | AJ12: =AI12 -> 0.00165
A13: =ROW() -> 13 | C13: Cost of Debt; Hedging Cost | U13: 0.00114 | V13: 0.00114 | W13: 0.00114 | X13: 0.00114 | Y13: 0.00114 | Z13: 0.00114 | AA13: 0.00114 | AB13: 0.00114 | AC13: 0.00114 | AD13: 0.00114 | AE13: 0.00114 | AF13: 0.00123 | AG13: 0.00123 | AH13: 0.00123 | AI13: 0.00123 | AJ13: 0.00123
A14: =ROW() -> 14 | C14: Cost of Debt; Risk Margin (Rm) -- Nominal Return on Debt (DPn) | E14: 0.012 | G14: =G11+G12+G13+G10 -> 0.0131 | H14: =H11+H12+H13+H10 -> 0.01455 | M14: =M11+M12+M13+M10 -> 0.04728 | O14: =O11+O12+O13+O10 -> 0.03418 | S14: =S11+S12+S13+S10 -> 0.03018 | U14: =U11+U12+U13+U10 -> 0.03139 | V14: 0.03212 | W14: 0.03177 | X14: 0.03036 | Y14: 0.02399 | Z14: 0.02373 | AA14: 0.03448 | AB14: 0.03418 | AC14: 0.03257 | AD14: 0.03172 | AE14: 0.03139 | AF14: =AF11+AF12+AF13+AF10 -> 0.06403 | AG14: 0.06403 | AH14: 0.06403 | AI14: 0.06403 | AJ14: 0.06403
A15: =ROW() -> 15 | C15: Nominal Cost of Debt (DPn) | E15: =E8+E14 -> 0.0747 | G15: =G8+G14 -> 0.0646 | M15: =M8+M14 -> 0.10318 | O15: =O8+O14 -> 0.08578 | S15: =S8+S14 -> 0.08628 | U15: =U8+U14 -> 0.05099 | V15: 0.05172 | W15: 0.05137 | X15: 0.04996 | Y15: 0.04359 | Z15: 0.04333 | AA15: =AA14 -> 0.03448 | AB15: 0.03418 | AC15: 0.03257 | AD15: 0.03172 | AE15: 0.03139 | AF15: =AF14 -> 0.06403 | AG15: 0.06403 | AH15: 0.06403 | AI15: 0.06403 | AJ15: 0.06403
A16: =ROW() -> 16
A17: =ROW() -> 17 | C17: Return on Equity
A18: =ROW() -> 18 | C18: Equity: Nominal Risk Free Rate (ERfn) | E18: =E8 -> 0.0627 | G18: =G8 -> 0.0515 | H18: =H8 -> 0.0515 | I18: =I8 -> 0.0515 | M18: =M8 -> 0.0559 | O18: =O8 -> 0.0516 | S18: =S8 -> 0.0561 | U18: 0.0196 | V18: =U18 -> 0.0196 | W18: 0.0196 | X18: 0.0196 | Y18: 0.0196 | Z18: 0.0196 | AA18: 0.0082 | AB18: =AA18 -> 0.0082 | AC18: 0.0082 | AD18: =AC18 -> 0.0082 | AE18: =AD18 -> 0.0082 | AF18: 0.042 | AG18: =AF18 -> 0.042 | AH18: =AG18 -> 0.042 | AI18: =AH18 -> 0.042 | AJ18: =AI18 -> 0.042
A19: =ROW() -> 19 | C19: Australian Market Risk Premium (Rp) | E19: 0.06 | G19: 0.05 | H19: 0.06 | M19: 0.08 | O19: 0.06 | S19: 0.06 | U19: =7.6%-0.1% -> 0.075 | V19: =U19 -> 0.075 | W19: 0.075 | X19: 0.075 | Y19: 0.075 | Z19: 0.075 | AA19: 0.06 | AB19: =AA19 -> 0.06 | AC19: 0.06 | AD19: 0.06 | AE19: 0.06 | AF19: 0.061 | AG19: 0.061 | AH19: 0.061 | AI19: 0.061 | AJ19: 0.061
A20: =ROW() -> 20 | C20: Equity Beta (Be) | E20: 1.075 | G20: 0.8 | H20: 1 | O20: 0.8 | S20: 0.8 | U20: 0.7 | V20: =U20 -> 0.7 | W20: =V20 -> 0.7 | X20: =W20 -> 0.7 | Y20: =X20 -> 0.7 | Z20: =Y20 -> 0.7 | AA20: 0.7 | AB20: 0.7 | AC20: 0.7 | AD20: 0.7 | AE20: 0.7 | AF20: 0.7 | AG20: 0.7 | AH20: 0.7 | AI20: 0.7 | AJ20: 0.7
A21: =ROW() -> 21 | C21: Nominal Pre Tax Cost of Equity (EPn) | E21: =E22/(1-E29*(1-E30)) -> 0.1508896797 | G21: =G22/(1-G29*(1-G30)) -> 0.1039772727 | H21: =H22/(1-H29*(1-H30)) -> 0.1411392405 | O21: =O22/(1-O29*(1-O30)) -> 0.1131818182 | S21: =S22/(1-S29*(1-S30)) -> 0.1343225806 | U21: =U22/(1-U29*(1-U30)) -> 0.09303225806 | V21: 0.09303225806 | W21: 0.09303225806 | X21: 0.09303225806 | Y21: 0.09303225806 | Z21: 0.09303225806 | AA21: 0.05905882353 | AB21: 0.05905882353 | AC21: 0.05905882353 | AD21: 0.05905882353 | AE21: 0.05905882353 | AF21: =AF22/(1-AF29*(1-AF30)) -> 0.09964705882 | AG21: 0.09964705882 | AH21: 0.09964705882 | AI21: 0.09964705882 | AJ21: 0.09964705882
A22: =ROW() -> 22 | C22: Nominal After Tax Cost of Equity (EAn) -- Nominal return on Equity | E22: =E18+(E19*E20) -> 0.1272 | G22: =G18+(G19*G20) -> 0.0915 | H22: =H18+(H19*H20) -> 0.1115 | O22: =O18+(O19*O20) -> 0.0996 | S22: =S18+(S19*S20) -> 0.1041 | U22: =U18+(U19*U20) -> 0.0721 | V22: 0.0721 | W22: 0.0721 | X22: 0.0721 | Y22: 0.0721 | Z22: 0.0721 | AA22: 0.0502 | AB22: 0.0502 | AC22: 0.0502 | AD22: 0.0502 | AE22: 0.0502 | AF22: =AF18+(AF19*AF20) -> 0.0847 | AG22: 0.0847 | AH22: 0.0847 | AI22: 0.0847 | AJ22: 0.0847
A23: =ROW() -> 23
A24: =ROW() -> 24 | C24: Other Parameter
A25: =ROW() -> 25 | C25: Debt Proportion (D) | E25: 0.6 | G25: 0.6 | H25: =G25 -> 0.6 | I25: =H25 -> 0.6 | J25: =I25 -> 0.6 | K25: =J25 -> 0.6 | M25: =G25 -> 0.6 | O25: 0.6 | S25: 0.6 | U25: 0.6 | V25: =U25 -> 0.6 | W25: 0.6 | X25: 0.6 | Y25: 0.6 | Z25: 0.6 | AA25: 0.55 | AB25: =AA25 -> 0.55 | AC25: 0.55 | AD25: =AC25 -> 0.55 | AE25: =AD25 -> 0.55 | AF25: 0.55 | AG25: =AF25 -> 0.55 | AH25: =AG25 -> 0.55 | AI25: =AH25 -> 0.55 | AJ25: =AI25 -> 0.55
A26: =ROW() -> 26 | C26: Equity Proportion (E) | E26: =1-E25 -> 0.4 | G26: =1-G25 -> 0.4 | H26: =1-H25 -> 0.4 | I26: =1-I25 -> 0.4 | J26: =1-J25 -> 0.4 | K26: =1-K25 -> 0.4 | M26: =1-M25 -> 0.4 | O26: =1-O25 -> 0.4 | S26: =1-S25 -> 0.4 | U26: =1-U25 -> 0.4 | V26: =1-V25 -> 0.4 | W26: =1-W25 -> 0.4 | X26: =1-X25 -> 0.4 | Y26: =1-Y25 -> 0.4 | Z26: =1-Z25 -> 0.4 | AA26: =1-AA25 -> 0.45 | AB26: =1-AB25 -> 0.45 | AC26: =1-AC25 -> 0.45 | AD26: 0.45 | AE26: 0.45 | AF26: =1-AF25 -> 0.45 | AG26: =1-AG25 -> 0.45 | AH26: =1-AH25 -> 0.45 | AI26: 0.45 | AJ26: 0.45
A27: =ROW() -> 27 | C27: Equity: Real Risk Free Rate (ERfr) | E27: =(1+E18)/(1+E28)-1 -> 0.03395602257 | G27: =G9 -> 0.0258 | H27: =H9 -> 0.0258 | I27: =I9 -> 0.0258 | M27: =(1+M18)/(1+M28)-1 -> 0.03044793598 | O27: =(1+O18)/(1+O28)-1 -> 0.02495126706 | S27: =(1+S18)/(1+S28)-1 -> 0.02933723197 | U27: =(1+U18)/(1+U28)-1 -> 0.0005888125613 | V27: 0.0005888125613 | W27: 0.0005888125613 | X27: 0.0005888125613 | Y27: 0.0005888125613 | Z27: 0.001173493976 | AA27: -0.003163931184 | AB27: -0.003163931184 | AC27: -0.003163931184 | AD27: -0.003163931184 | AE27: -0.003163931184 | AF27: =(1+AF18)/(1+AF28)-1 -> 0.01648619647 | AG27: 0.01648619647 | AH27: 0.01648619647 | AI27: 0.01648619647 | AJ27: 0.01648619647
A28: =ROW() -> 28 | C28: Inflation Rate for WACC (I) | E28: 0.0278 | G28: =(1+G8)/(1+G9)-1 -> 0.02505361669 | H28: =(1+H8)/(1+H9)-1 -> 0.02505361669 | I28: =(1+I8)/(1+I9)-1 -> 0.02505361669 | J28: =(1+J8)/(1+J9)-1 -> 0.02505361669 | K28: =(1+K8)/(1+K9)-1 -> 0.02505361669 | M28: 0.0247 | O28: 0.026 | Q28: 0.026 | S28: 0.026 | U28: 0.019 | V28: =U28 -> 0.019 | W28: =V28 -> 0.019 | X28: =W28 -> 0.019 | Y28: =X28 -> 0.019 | Z28: =Input!AD43 -> 0.01840490798 | AA28: 0.0114 | AB28: =AA28 -> 0.0114 | AC28: =AB28 -> 0.0114 | AD28: =AC28 -> 0.0114 | AE28: =AD28 -> 0.0114 | AF28: 0.0251 | AG28: =AF28 -> 0.0251 | AH28: =AG28 -> 0.0251 | AI28: =AH28 -> 0.0251 | AJ28: =AI28 -> 0.0251
A29: =ROW() -> 29 | C29: Corporate Tax Rate (T) | E29: 0.314 | G29: 0.3 | H29: 0.3 | I29: 0.3 | J29: 0.3 | K29: 0.3 | M29: 0.3 | O29: 0.3 | S29: 0.3 | U29: 0.3 | V29: =U29 -> 0.3 | W29: 0.3 | X29: 0.3 | Y29: 0.3 | Z29: 0.3 | AA29: 0.3 | AB29: =AA29 -> 0.3 | AC29: 0.3 | AD29: =AC29 -> 0.3 | AE29: =AD29 -> 0.3 | AF29: 0.3 | AG29: =AF29 -> 0.3 | AH29: =AG29 -> 0.3 | AI29: =AH29 -> 0.3 | AJ29: =AI29 -> 0.3
A30: =ROW() -> 30 | C30: Franking Credit (g) | E30: 0.5 | G30: 0.6 | H30: 0.3 | M30: 0.2 | O30: 0.6 | S30: 0.25 | U30: =40%*0 + 25% -> 0.25 | V30: 0.25 | W30: 0.25 | X30: 0.25 | Y30: 0.25 | Z30: 0.25 | AA30: 0.5 | AB30: 0.5 | AC30: 0.5 | AD30: 0.5 | AE30: 0.5 | AF30: 0.5 | AG30: 0.5 | AH30: 0.5 | AI30: 0.5 | AJ30: 0.5
A31: =ROW() -> 31 | C31: Imputation Adj (G) | E31: =(1-E29)/(1-E29*(1-E30)) -> 0.8137603796 | G31: =(1-G29)/(1-G29*(1-G30)) -> 0.7954545455 | H31: =(1-H29)/(1-H29*(1-H30)) -> 0.8860759494 | M31: =(1-M29)/(1-M29*(1-M30)) -> 0.9210526316 | O31: =(1-O29)/(1-O29*(1-O30)) -> 0.7954545455 | S31: =(1-S29)/(1-S29*(1-S30)) -> 0.9032258065 | U31: =(1-U29)/(1-U29*(1-U30)) -> 0.9032258065 | V31: =(1-V29)/(1-V29*(1-V30)) -> 0.9032258065 | W31: 0.9032258065 | X31: 0.9032258065 | Y31: 0.9032258065 | Z31: 0.9032258065 | AA31: =(1-AA29)/(1-AA29*(1-AA30)) -> 0.8235294118 | AB31: 0.8235294118 | AC31: 0.8235294118 | AD31: 0.8235294118 | AE31: 0.8235294118 | AF31: =(1-AF29)/(1-AF29*(1-AF30)) -> 0.8235294118 | AG31: 0.8235294118 | AH31: 0.8235294118 | AI31: 0.8235294118 | AJ31: 0.8235294118
A32: =ROW() -> 32
A33: =ROW() -> 33 | C33: WACC; Pre-tax Officer (Market Practise or Forward Transformation)
A34: =ROW() -> 34 | C34: Nominal Pre Tax WACC (WPn) | E34: =E21*E26+E15*E25 -> 0.1051758719 | G34: =G21*G26+G15*G25 -> 0.08035090909 | H34: =H21*H26+H15*H25 -> 0.0564556962 | I34: =G34+(H34-G34)*0.1 -> 0.0779613878 | J34: =H34-(H34-G34)*0.1 -> 0.05884521749 | K34: =(1+K35)*(1+K28)-1 -> 0.0945522519 | M34: =(1+M35)*(1+M28)-1 -> 0.1384417 | O34: =O21*O26+O15*O25 -> 0.09674072727 | S34: =S21*S26+S15*S25 -> 0.1054970323 | U34: =U21*U26+U15*U25 -> 0.06780690323 | V34: 0.06824490323 | W34: 0.06803490323 | X34: 0.06718890323 | Y34: 0.06336690323 | Z34: 0.06321090323 | AA34: 0.04554047059 | AB34: 0.04537547059 | AC34: 0.04448997059 | AD34: 0.04402247059 | AE34: 0.04384097059 | AF34: =AF21*AF26+AF15*AF25 -> 0.08005767647 | AG34: 0.08005767647 | AH34: 0.08005767647 | AI34: 0.08005767647 | AJ34: 0.08005767647
A35: =ROW() -> 35 | C35: Real Pre Tax WACC (WPr) | E35: =(1+E34)/(1+E28)-1 -> 0.07528300436 | G35: =(1+G34)/(1+G28)-1 -> 0.05394575611 | H35: =(1+H34)/(1+H28)-1 -> 0.03063457267 | I35: =(1+I34)/(1+I28)-1 -> 0.05161463776 | J35: =(1+J34)/(1+J28)-1 -> 0.03296569102 | K35: 0.0678 | M35: 0.111 | O35: =(1+O34)/(1+O28)-1 -> 0.06894807726 | Q35: 0.096 | S35: =(1+S34)/(1+S28)-1 -> 0.07748248758 | U35: =(1+U34)/(1+U28)-1 -> 0.04789686283 | V35: 0.048326696 | W35: 0.04812061161 | X35: 0.04729038589 | Y35: 0.04353964988 | Z35: 0.04399624835 | AA35: 0.03375565611 | AB35: 0.03359251591 | AC35: 0.03271699682 | AD35: 0.03225476625 | AE35: 0.03207531203 | AF35: =(1+AF34)/(1+AF28)-1 -> 0.0536120149 | AG35: 0.0536120149 | AH35: 0.0536120149 | AI35: 0.0536120149 | AJ35: 0.0536120149
A36: =ROW() -> 36 | C36: WACC: Vanilla
A37: =ROW() -> 37 | C37: Nominal After Tax WACC | E37: =E25*E15+E26*E22 -> 0.0957 | G37: =G25*G15+G26*G22 -> 0.07536 | H37: =H25*H15+H26*H22 -> 0.0446 | O37: =O25*O15+O26*O22 -> 0.091308 | S37: =S25*S15+S26*S22 -> 0.093408 | U37: =U25*U15+U26*U22 -> 0.059434 | V37: 0.059872 | W37: 0.059662 | X37: 0.058816 | Y37: 0.054994 | Z37: 0.054838 | AA37: 0.041554 | AB37: 0.041389 | AC37: 0.0405035 | AD37: 0.040036 | AE37: 0.0398545 | AF37: =AF25*AF15+AF26*AF22 -> 0.0733315 | AG37: 0.0733315 | AH37: 0.0733315 | AI37: 0.0733315 | AJ37: 0.0733315
A38: =ROW() -> 38 | C38: Real After Tax WACC | E38: =(1+E37)/(1+E28)-1 -> 0.06606343647 | G38: =(1+G37)/(1+G28)-1 -> 0.04907683119 | H38: =(1+H37)/(1+H28)-1 -> 0.01906864479 | O38: =(1+O37)/(1+O28)-1 -> 0.06365302144 | S38: =(1+S37)/(1+S28)-1 -> 0.06569980507 | U38: =(1+U37)/(1+U28)-1 -> 0.03968007851 | V38: 0.04010991168 | W38: 0.03990382728 | X38: 0.03907360157 | Y38: 0.03532286555 | Z38: 0.03577466265 | AA38: 0.02981411904 | AB38: 0.02965097884 | AC38: 0.02877545976 | AD38: 0.02831322919 | AE38: 0.02813377497 | AF38: =(1+AF37)/(1+AF28)-1 -> 0.04705053166 | AG38: 0.04705053166 | AH38: 0.04705053166 | AI38: 0.04705053166 | AJ38: 0.04705053166
A39: =ROW() -> 39
A40: =ROW() -> 40 | C40: Cost of Debt; Debt Risk Premium (Drp)
A41: =ROW() -> 41 | C41: Trailing Average DRP | U41: =U11 -> 0.02429 | V41: =V11 -> 0.02502 | W41: =IF(Input!AA12="","",Input!AA12) -> 0.02467 | X41: =IF(Input!AB12="","",Input!AB12) -> 0.02326 | Y41: =IF(Input!AC12="","",Input!AC12) -> 0.01689 | Z41: =IF(Input!AD12="","",Input!AD12) -> 0.01663 | AA41: =IF(Input!AE13="","",Input!AE13) -> 0.02273 | AB41: =IF(Input!AF13="","",Input!AF13) -> 0.02243 | AC41: =IF(Input!AG13="","",Input!AG13) -> 0.02082 | AD41: =IF(Input!AH13="","",Input!AH13) -> 0.01997 | AE41: =IF(Input!AI13="","",Input!AI13) -> 0.01964 | AF41: =IF(Input!AJ13="","",Input!AJ13) -> 0.01936 | AG41: =IF(Input!AK13="","",Input!AK13) ->  | AH41: =IF(Input!AL13="","",Input!AL13) ->  | AI41: =IF(Input!AM13="","",Input!AM13) ->  | AJ41: =IF(Input!AN13="","",Input!AN13) -> 
A42: =ROW() -> 42 | C42: Modelled DRP | U42: =IF(U41="",T42,U41) -> 0.02429 | V42: =IF(V41="",U42,V41) -> 0.02502 | W42: 0.02467 | X42: 0.02326 | Y42: 0.01689 | Z42: 0.01663 | AA42: 0.02273 | AB42: 0.02243 | AC42: 0.02082 | AD42: 0.01997 | AE42: 0.01964 | AF42: =IF(AF41="",AE42,AF41) -> 0.01936 | AG42: =IF(AG41="",AF42,AG41) -> 0.01936 | AH42: =IF(AH41="",AG42,AH41) -> 0.01936 | AI42: =IF(AI41="",AH42,AI41) -> 0.01936 | AJ42: =IF(AJ41="",AI42,AJ41) -> 0.01936
A43: =ROW() -> 43 | W43: If change these then change the Recalc_From_Date
A44: =ROW() -> 44
A45: =ROW() -> 45 | C45: Annual Update of Debt Risk Premium | U45: 2014 | V45: =U45+1 -> 2015 | W45: =V45+1 -> 2016 | X45: 2017 | Y45: =X45+1 -> 2018 | Z45: 2019 | AA45: 2020 | AB45: 2021 | AC45: 2022 | AD45: =AC45+1 -> 2023 | AE45: 2024 | AF45: =AE45+1 -> 2025 | AG45: =AF45+1 -> 2026 | AH45: =AG45+1 -> 2027 | AI45: =AH45+1 -> 2028 | AJ45: =AI45+1 -> 2029
A46: =ROW() -> 46 | C46: Trailing Average DRP | V46: =IF(V58="","",ROUND(AVERAGE(V49:V58),5)) -> 0.02502 | W46: =IF(W59="","",ROUND(AVERAGE(W50:W59),5)) -> 0.02676 | X46: =IF(X60="","",ROUND(AVERAGE(X51:X60),5)) -> 0.02785 | Y46: =IF(Y61="","",ROUND(AVERAGE(Y52:Y61),5)) -> 0.02605 | Z46: =IF(Z62="","",ROUND(AVERAGE(Z53:Z62),5)) -> 0.02309 | AA46: =IF(AA63="","",ROUND(AVERAGE(AA54:AA63),5)) -> 0.02273 | AB46: =IF(AB64="","",ROUND(AVERAGE(AB55:AB64),5)) -> 0.02243 | AC46: =IF(AC65="","",ROUND(AVERAGE(AC56:AC65),5)) -> 0.02082 | AD46: =IF(AD66="","",ROUND(AVERAGE(AD57:AD66),5)) -> 0.01997 | AE46: =IF(AE67="","",ROUND(AVERAGE(AE58:AE67),5)) -> 0.01964 | AF46: =IF(AF68="","",ROUND(AVERAGE(AF59:AF68),5)) -> 0.01936 | AG46: =IF(AG69="","",ROUND(AVERAGE(AG60:AG69),5)) ->  | AH46: =IF(AH70="","",ROUND(AVERAGE(AH61:AH70),5)) ->  | AI46: =IF(AI71="","",ROUND(AVERAGE(AI62:AI71),5)) ->  | AJ46: =IF(AJ72="","",ROUND(AVERAGE(AJ63:AJ72),5)) -> 
A47: =ROW() -> 47 | Q47: =49-16.46 -> 32.54
A48: =ROW() -> 48 | C48: Annual Debt Risk Premium, Year | U48: 2014 | V48: =U48+1 -> 2015 | W48: =V48+1 -> 2016 | X48: 2017 | Y48: 2018 | Z48: 2019 | AA48: 2020 | AB48: 2021 | AC48: 2022 | AD48: 2023 | AE48: 2024 | AF48: =AE48+1 -> 2025 | AG48: =AF48+1 -> 2026 | AH48: =AG48+1 -> 2027 | AI48: =AH48+1 -> 2028 | AJ48: =AI48+1 -> 2029
A49: =ROW() -> 49 | C49: 2006 | U49: 0.00724 | V49: =U49 -> 0.00724
A50: =ROW() -> 50 | C50: =C49+1 -> 2007 | U50: 0.01241 | V50: =U50 -> 0.01241 | W50: 0.01241
A51: =ROW() -> 51 | C51: =C50+1 -> 2008 | U51: 0.03489 | V51: 0.03489 | W51: 0.03489 | X51: =W51 -> 0.03489
A52: =ROW() -> 52 | C52: 2009 | U52: 0.04624 | V52: 0.04624 | W52: 0.04624 | X52: 0.04624 | Y52: =X52 -> 0.04624
A53: =ROW() -> 53 | C53: 2010 | U53: 0.02127 | V53: 0.02127 | W53: 0.02127 | X53: 0.02127 | Y53: 0.02127 | Z53: =Y53 -> 0.02127
A54: =ROW() -> 54 | C54: 2011 | U54: 0.02371 | V54: 0.02371 | W54: 0.02371 | X54: 0.02371 | Y54: 0.02371 | Z54: 0.02371 | AA54: =Z54 -> 0.02371
A55: =ROW() -> 55 | C55: 2012 | U55: 0.03172 | V55: 0.03172 | W55: 0.03172 | X55: 0.03172 | Y55: 0.03172 | Z55: 0.03172 | AA55: 0.03172 | AB55: =AA55 -> 0.03172
A56: =ROW() -> 56 | C56: 2013 | U56: 0.03068 | V56: 0.03068 | W56: 0.03068 | X56: 0.03068 | Y56: 0.03068 | Z56: 0.03068 | AA56: 0.03068 | AB56: 0.03068 | AC56: =AB56 -> 0.03068
A57: =ROW() -> 57 | C57: 2014 | U57: 0.0225 | V57: 0.0225 | W57: 0.0225 | X57: 0.0225 | Y57: 0.0225 | Z57: 0.0225 | AA57: 0.0225 | AB57: 0.0225 | AC57: 0.0225 | AD57: =AC57 -> 0.0225
A58: =ROW() -> 58 | C58: 2015 | V58: 0.01953 | W58: =V58 -> 0.01953 | X58: 0.01953 | Y58: 0.01953 | Z58: 0.01953 | AA58: 0.01953 | AB58: 0.01953 | AC58: 0.01953 | AD58: 0.01953 | AE58: =AD58 -> 0.01953
A59: =ROW() -> 59 | C59: 2016 | W59: 0.02467 | X59: 0.02467 | Y59: 0.02467 | Z59: 0.02467 | AA59: 0.02467 | AB59: 0.02467 | AC59: 0.02467 | AD59: 0.02467 | AE59: 0.02467 | AF59: =AE59 -> 0.02467
A60: =ROW() -> 60 | C60: 2017 | X60: 0.02326 | Y60: 0.02326 | Z60: 0.02326 | AA60: 0.02326 | AB60: 0.02326 | AC60: 0.02326 | AD60: 0.02326 | AE60: 0.02326 | AF60: =AE60 -> 0.02326 | AG60: =AF60 -> 0.02326
A61: =ROW() -> 61 | C61: 2018 | Y61: 0.01689 | Z61: 0.01689 | AA61: 0.01689 | AB61: 0.01689 | AC61: 0.01689 | AD61: 0.01689 | AE61: 0.01689 | AF61: 0.01689 | AG61: 0.01689 | AH61: =AG61 -> 0.01689
A62: =ROW() -> 62 | C62: 2019 | Z62: 0.01663 | AA62: 0.01663 | AB62: 0.01663 | AC62: 0.01663 | AD62: 0.01663 | AE62: 0.01663 | AF62: 0.01663 | AG62: 0.01663 | AH62: 0.01663 | AI62: =AH62 -> 0.01663
A63: =ROW() -> 63 | C63: 2020 | AA63: =IF(Input!AE$12="","",Input!AE$12) -> 0.0177 | AB63: 0.0177 | AC63: 0.0177 | AD63: 0.0177 | AE63: 0.0177 | AF63: 0.0177 | AG63: 0.0177 | AH63: 0.0177 | AI63: 0.0177 | AJ63: =AI63 -> 0.0177
A64: =ROW() -> 64 | C64: 2021 | AB64: =IF(Input!AF$12="","",Input!AF$12) -> 0.02075 | AC64: 0.02075 | AD64: 0.02075 | AE64: 0.02075 | AF64: 0.02075 | AG64: 0.02075 | AH64: 0.02075 | AI64: 0.02075 | AJ64: 0.02075
A65: =ROW() -> 65 | C65: 2022 | AC65: =IF(Input!AG$12="","",Input!AG$12) -> 0.01562 | AD65: 0.01562 | AE65: 0.01562 | AF65: 0.01562 | AG65: 0.01562 | AH65: 0.01562 | AI65: 0.01562 | AJ65: 0.01562
A66: =ROW() -> 66 | C66: 2023 | AD66: =IF(Input!AH$12="","",Input!AH$12) -> 0.02215 | AE66: 0.02215 | AF66: 0.02215 | AG66: 0.02215 | AH66: 0.02215 | AI66: 0.02215 | AJ66: 0.02215
A67: =ROW() -> 67 | C67: 2024 | AE67: =IF(Input!AI$12="","",Input!AI$12) -> 0.01924 | AF67: 0.01924 | AG67: 0.01924 | AH67: 0.01924 | AI67: 0.01924 | AJ67: 0.01924
C68: 2025 | AF68: =IF(Input!AJ$12="","",Input!AJ$12) -> 0.01668 | AG68: 0.01668 | AH68: 0.01668 | AI68: 0.01668 | AJ68: 0.01668
C69: 2026 | AG69: =IF(Input!AK$12="","",Input!AK$12) -> 
C70: 2027 | AH70: =IF(Input!AL$12="","",Input!AL$12) -> 
C71: 2028 | AI71: =IF(Input!AM$12="","",Input!AM$12) -> 
C72: 2029 | AJ72: =IF(Input!AN$12="","",Input!AN$12) -> 

Sheet Input
A1: =Main!A1 -> ERA, GDS Tariff Model, Draft Decision, April 2024
A2: Inputs
A3: Ref | C3: =COLUMN() -> 3 | D3: =COLUMN() -> 4 | E3: =COLUMN() -> 5 | F3: =COLUMN() -> 6 | G3: =COLUMN() -> 7 | H3: =COLUMN() -> 8 | I3: =COLUMN() -> 9 | J3: =COLUMN() -> 10 | K3: =COLUMN() -> 11 | L3: =COLUMN() -> 12 | M3: =COLUMN() -> 13 | N3: =COLUMN() -> 14 | O3: =COLUMN() -> 15 | P3: =COLUMN() -> 16 | Q3: =COLUMN() -> 17 | R3: =COLUMN() -> 18 | S3: =COLUMN() -> 19 | T3: =COLUMN() -> 20 | U3: =COLUMN() -> 21 | V3: =COLUMN() -> 22 | W3: =COLUMN() -> 23 | X3: =COLUMN() -> 24 | Y3: =COLUMN() -> 25 | Z3: =COLUMN() -> 26 | AA3: =COLUMN() -> 27 | AB3: =COLUMN() -> 28 | AC3: =COLUMN() -> 29 | AD3: =COLUMN() -> 30 | AE3: =COLUMN() -> 31 | AF3: =COLUMN() -> 32 | AG3: =COLUMN() -> 33 | AH3: =COLUMN() -> 34 | AI3: =COLUMN() -> 35 | AJ3: =COLUMN() -> 36 | AK3: =COLUMN() -> 37 | AL3: =COLUMN() -> 38 | AM3: =COLUMN() -> 39 | AN3: =COLUMN() -> 40
A4: =ROW() -> 4 | J4: Year ending 31 December | O4: Year ending 31 December | T4: Year Ending 30 June | Y4: Year Ending 31 December | AG4: Year Ending 31 December | AL4: Year Ending 31 December
A5: Regulatory Period | J5: 1 | K5: 1 | L5: 1 | M5: 1 | N5: 1 | O5: 2 | P5: 2 | Q5: 2 | R5: 2 | S5: 2 | T5: 3 | U5: 3 | V5: 3 | W5: 3 | X5: 3 | Y5: 4 | Z5: 4 | AA5: 4 | AB5: 4 | AC5: 4 | AD5: 4 | AE5: 5 | AF5: 5 | AG5: 5 | AH5: 5 | AI5: 5 | AJ5: 6 | AK5: 6 | AL5: 6 | AM5: 6 | AN5: 6
A6: Year ending | I6: 1999 | J6: 2000 | K6: 2001 | L6: 2002 | M6: 2003 | N6: 2004 | O6: 2005 | P6: 2006 | Q6: 2007 | R6: 2008 | S6: =1+R6 -> 2009 | T6: =1+S6 -> 2010 | U6: =T6+1 -> 2011 | V6: =U6+1 -> 2012 | W6: =V6+1 -> 2013 | X6: =W6+1 -> 2014 | Y6: 2014 | Z6: =Y6+1 -> 2015 | AA6: 2016 | AB6: 2017 | AC6: 2018 | AD6: 2019 | AE6: 2020 | AF6: 2021 | AG6: 2022 | AH6: 2023 | AI6: 2024 | AJ6: =AI6+1 -> 2025 | AK6: =AJ6+1 -> 2026 | AL6: =AK6+1 -> 2027 | AM6: =AL6+1 -> 2028 | AN6: =AM6+1 -> 2029
A7: Months | I7: 1 to 12 | J7: 1 to 12 | K7: 1 to 12 | L7: 1 to 12 | M7: 1 to 12 | N7: 1 to 12 | O7: 1 to 12 | P7: 1 to 12 | Q7: 1 to 12 | R7: 1 to 12 | S7: 1 to 12 | T7: 1 to 6 | U7: 7 to 6 | V7: 7 to 6 | W7: 7 to 6 | X7: 7 to 6 | Y7: 7 to 12 | Z7: 1 to 12 | AA7: 1 to 12 | AB7: 1 to 12 | AC7: 1 to 12 | AD7: 1 to 12 | AE7: 1 to 12 | AF7: 1 to 12 | AG7: 1 to 12 | AH7: 1 to 12 | AI7: 1 to 12 | AJ7: 1 to 12 | AK7: 1 to 12 | AL7: 1 to 12 | AM7: 1 to 12 | AN7: 1 to 12
A8: Days | I8: 365 | J8: =DATEVALUE("31/12/"&J6)-DATEVALUE("31/12/"&I6) -> 366 | K8: 365 | L8: 365 | M8: 365 | N8: 366 | O8: 365 | P8: 365 | Q8: 365 | R8: 366 | S8: 365 | T8: =DATEVALUE("30/6/"&T6)-DATEVALUE("31/12/"&S6) -> 181 | U8: =DATEVALUE("31/12/"&U6)-DATEVALUE("31/12/"&T6) -> 365 | V8: 366 | W8: 365 | X8: 365 | Y8: =DATEVALUE("31/12/"&Y6)-DATEVALUE("30/6/"&X6) -> 184 | Z8: =DATEVALUE("31/12/"&Z6)-DATEVALUE("31/12/"&Y6) -> 365 | AA8: 366 | AB8: 365 | AC8: 365 | AD8: 365 | AE8: 366 | AF8: 365 | AG8: 365 | AH8: 365 | AI8: 366 | AJ8: =DATEVALUE("31/12/"&AJ6)-DATEVALUE("31/12/"&AI6) -> 365 | AK8: =DATEVALUE("31/12/"&AK6)-DATEVALUE("31/12/"&AJ6) -> 365 | AL8: 365 | AM8: 366 | AN8: 365
A9: Year portion | I9: 1 | J9: =I9 -> 1 | K9: =J9 -> 1 | L9: 1 | M9: 1 | N9: 1 | O9: 1 | P9: 1 | Q9: 1 | R9: 1 | S9: 1 | T9: =T8/365 -> 0.495890411 | U9: 1 | V9: =U9 -> 1 | W9: =V9 -> 1 | X9: 1 | Y9: =Y8/365 -> 0.504109589 | Z9: 1 | AA9: =Z9 -> 1 | AB9: =AA9 -> 1 | AC9: 1 | AD9: 1 | AE9: 1 | AF9: =AE9 -> 1 | AG9: =AF9 -> 1 | AH9: =AG9 -> 1 | AI9: =AH9 -> 1 | AJ9: 1 | AK9: =AJ9 -> 1 | AL9: =AK9 -> 1 | AM9: =AL9 -> 1 | AN9: =AM9 -> 1
A10: General Inputs
A11: =ROW() -> 11 | C11: Tariff Recalculation | F11: =IF(ISNUMBER($AN$12),$AN$6,IF(ISNUMBER($AM$12),$AM$6,IF(ISNUMBER($AL$12),$AL$6,IF(ISNUMBER($AK$12),$AK$6,$AJ$6)))) -> 2025 | G11: =AN6 -> 2029
A12: =ROW() -> 12 | C12: Annual DRP | Y12: =WACC!U41 -> 0.02429 | Z12: 0.01953 | AA12: 0.02467 | AB12: 0.02326 | AC12: 0.01689 | AD12: 0.01663 | AE12: 0.0177 | AF12: 0.02075 | AG12: 0.01562 | AH12: 0.02215 | AI12: 0.01924 | AJ12: 0.01668
A13: =ROW() -> 13 | C13: Trailing Average DRP (10 year ave, modelled) | Y13: =WACC!U11 -> 0.02429 | Z13: =WACC!V11 -> 0.02502 | AA13: =WACC!W11 -> 0.02467 | AB13: =WACC!X11 -> 0.02326 | AC13: =WACC!Y11 -> 0.01689 | AD13: =WACC!Z11 -> 0.01663 | AE13: =IF(WACC!AA46="","",WACC!AA46) -> 0.02273 | AF13: =IF(WACC!AB46="","",WACC!AB46) -> 0.02243 | AG13: =IF(WACC!AC46="","",WACC!AC46) -> 0.02082 | AH13: =IF(WACC!AD46="","",WACC!AD46) -> 0.01997 | AI13: =IF(WACC!AE46="","",WACC!AE46) -> 0.01964 | AJ13: =IF(WACC!AF46="","",WACC!AF46) -> 0.01936 | AK13: =IF(WACC!AG46="","",WACC!AG46) ->  | AL13: =IF(WACC!AH46="","",WACC!AH46) ->  | AM13: =IF(WACC!AI46="","",WACC!AI46) ->  | AN13: =IF(WACC!AJ46="","",WACC!AJ46) -> 
A14: =ROW() -> 14 | C14: X-Factor (Real) | AJ14: =X_F_1 -> 0 | AK14: =X_F_2 -> 0 | AL14: =X_F_3 -> 0 | AM14: =X_F_4 -> 0 | AN14: =X_F_5 -> 0
A15: =ROW() -> 15
A16: =ROW() -> 16
A17: 8 Cities Inflation
A18: =ROW() -> 18 | I18: Actual | J18: Actual | K18: Actual | L18: Actual | M18: Actual | N18: Actual | O18: Actual | P18: Actual | Q18: Actual | R18: Actual | S18: Actual | T18: Actual | U18: Actual | V18: Actual | W18: Actual | X18: Actual | Y18: Actual | Z18: Actual | AA18: Actual | AB18: Actual | AC18: Actual | AD18: Forecast | AE18: Forecast | AF18: Forecast | AG18: Forecast | AH18: Forecast | AI18: Forecast | AJ18: Forecast | AK18: Forecast | AL18: Forecast | AM18: Forecast | AN18: Forecast
A19: =ROW() -> 19 | C19: Actual June and Forecast Inflation | I19: 1999-06-30 | J19: 2000-06-30 | K19: 2001-06-30 | L19: 2002-06-30 | M19: 2003-06-30 | N19: 2004-06-30 | O19: 2005-06-30 | P19: 2006-06-30 | Q19: 2007-06-30 | R19: 2008-06-30 | S19: 2009-06-30 | T19: 2010-06-30 | U19: 2011-06-30 | V19: 2012-06-30 | W19: 2013-06-30 | X19: 2014-06-30 | Y19: =X19 -> 2014-06-30 | Z19: 2015-06-30 | AA19: 2016-06-30 | AB19: 2017-06-30 | AC19: 2018-06-30 | AD19: 2019-06-30 | AE19: 2020-06-30 | AF19: 2021-06-30 | AG19: 2022-06-30 | AH19: 2023-06-30 | AI19: 2024-06-30 | AJ19: 2025-06-30 | AK19: 2026-06-30 | AL19: 2027-06-30 | AM19: 2028-06-30 | AN19: 2029-06-30
A20: =ROW() -> 20 | D20: June CPI All Groups, 8 Capital Cities - (Pre-2012 index) | I20: =J20/(1+J21) -> 122.3 | J20: 126.2 | K20: 133.8 | L20: 137.6 | M20: 141.3 | N20: 144.8 | O20: 148.4 | P20: 154.3 | Q20: 157.5 | R20: 164.6 | S20: 167 | T20: 172.1 | U20: 178.3 | V20: 180.4 | AC20: 113 | AD20: 114.8
A21: =ROW() -> 21 | D21: June inflation All Groups, 8 Capital Cities - (Pre-2012 index) | J21: 0.03188879804 | K21: 0.06022187005 | L21: 0.02840059791 | M21: 0.02688953488 | N21: 0.02476999292 | O21: 0.02486187845 | P21: 0.0397574124 | Q21: 0.02073882048 | R21: 0.04507936508 | S21: 0.01458080194 | T21: =T20/S20-1 -> 0.03053892216 | U21: =U20/T20-1 -> 0.03602556653 | V21: =V20/U20-1 -> 0.01177790241
A22: =ROW() -> 22 | D22: June CPI All Groups, 8 Capital Cities - published Mar-2014 | I22: =J22/(1+J21) -> 68.03058637 | J22: 70.2 | K22: 74.5 | L22: 76.6 | M22: 78.6 | N22: 80.6 | O22: 82.6 | P22: 85.9 | Q22: 87.7 | R22: 91.6 | S22: 92.9 | T22: 95.8 | U22: 99.2 | V22: 100.4 | W22: 102.8 | X22: 105.9 | Y22: =X22 -> 105.9 | Z22: 107.5 | AA22: 108.6 | AB22: 110.7 | AC22: 113 | AD22: 114.8 | AE22: =AC22*(1+AE23) -> 114.2882 | AF22: =AE22*(1+AF23) -> 115.5910855 | AG22: =AF22*(1+AG23) -> 116.9088239 | AH22: =AG22*(1+AH23) -> 118.2415844 | AI22: =AH22*(1+AI23) -> 119.5895385 | AJ22: =AH22*(1+AJ23) -> 121.2094482 | AK22: =AJ22*(1+AK23) -> 124.2518054 | AL22: =AK22*(1+AL23) -> 127.3705257 | AM22: =AL22*(1+AM23) -> 130.5675259 | AN22: =AM22*(1+AN23) -> 133.8447708
A23: =ROW() -> 23 | D23: June inflation All Groups, 8 Capital Cities - (Sep-2012 base index) | J23: =J22/I22-1 -> 0.03188879804 | K23: =K22/J22-1 -> 0.06125356125 | L23: =L22/K22-1 -> 0.02818791946 | M23: =M22/L22-1 -> 0.02610966057 | N23: =N22/M22-1 -> 0.02544529262 | O23: =O22/N22-1 -> 0.02481389578 | P23: =P22/O22-1 -> 0.03995157385 | Q23: =Q22/P22-1 -> 0.02095459837 | R23: =R22/Q22-1 -> 0.04446978335 | S23: 0.01419213974 | T23: 0.03121636168 | U23: =U22/T22-1 -> 0.03549060543 | V23: 0.01209677419 | W23: =W22/V22-1 -> 0.02390438247 | X23: 0.03015564202 | Y23: =X23 -> 0.03015564202 | Z23: =Z22/Y22-1 -> 0.01510859301 | AA23: =AA22/Z22-1 -> 0.01023255814 | AB23: =AB22/AA22-1 -> 0.01933701657 | AC23: =AC22/AB22-1 -> 0.02077687444 | AD23: 0.01592920354 | AE23: =WACC!AA$28 -> 0.0114 | AF23: =WACC!AB$28 -> 0.0114 | AG23: =WACC!AC$28 -> 0.0114 | AH23: =WACC!AD$28 -> 0.0114 | AI23: =WACC!AE$28 -> 0.0114 | AJ23: =WACC!AF$28 -> 0.0251 | AK23: =WACC!AG$28 -> 0.0251 | AL23: =WACC!AH$28 -> 0.0251 | AM23: =WACC!AI$28 -> 0.0251 | AN23: =WACC!AJ$28 -> 0.0251
A24: =ROW() -> 24
A25: =ROW() -> 25
A26: =ROW() -> 26
A27: =ROW() -> 27
A28: =ROW() -> 28
A29: =ROW() -> 29 | C29: Trimmed Mean: Actual September and Forecast Inflation (ABS source: 640106, series ID: A3604509L) | AD29: Actual | AE29: Actual
A30: =ROW() -> 30 | D30: September CPI All Groups, 8 Capital Cities | AD30: 116.1027 | AE30: 117.4875
A31: =ROW() -> 31 | D31: September inflation All Groups, 8 Capital Cities | AE31: =AE30/AD30-1 -> 0.0119273712
A32: =ROW() -> 32
A33: =ROW() -> 33 | W33: Actual | X33: Actual | Y33: Actual | Z33: Actual | AA33: Actual | AB33: Actual | AC33: Actual | AD33: Actual | AE33: Actual | AF33: Actual | AG33: Actual | AH33: Actual | AI33: Actual | AJ33: Actual | AK33: Actual | AL33: Actual | AM33: Actual | AN33: =AM33 -> Actual
A34: =ROW() -> 34 | C34: Cumulative inflation index and inflation used in tariff variation calculations | W34: 2013-09-30 | X34: 2014-09-30 | Y34: 2014-09-30 | Z34: 2015-09-30 | AA34: 2016-09-30 | AB34: 2017-09-30 | AC34: 2018-09-30 | AD34: 2019-09-30 | AE34: 2020-09-30 | AF34: 2021-09-30 | AG34: 2022-09-30 | AH34: 2023-09-30 | AI34: 2024-09-30 | AJ34: 2025-09-30 | AK34: 2026-09-30 | AL34: 2027-09-30 | AM34: 2028-09-30 | AN34: 2029-09-30
A35: =ROW() -> 35 | D35: September CPI All Groups, 8 Capital Cities | W35: 104 | X35: 106.4035952 | Y35: =X35 -> 106.4035952 | Z35: 108 | AA35: 109.4 | AB35: 111.4 | AC35: 113.5 | AD35: 115.4 | AE35: 116.2 | AF35: 119.7 | AG35: 128.4 | AH35: 135.3
A36: =ROW() -> 36 | D36: September inflation All Groups, 8 Capital Cities | X36: =X35/W35-1 -> 0.02311149251 | Y36: =X36 -> 0.02311149251 | Z36: =Z35/Y35-1 -> 0.01500329736 | AA36: =AA35/Z35-1 -> 0.01296296296 | AB36: =AB35/AA35-1 -> 0.01828153565 | AC36: 0.01885098743 | AD36: =AD35/AC35-1 -> 0.01674008811 | AE36: =AE35/AD35-1 -> 0.006932409012 | AF36: =IF(AF35="","",AF35/AE35-1) -> 0.03012048193 | AG36: 0.07268170426 | AH36: 0.05373831776 | AJ36: =IF(AJ35="","",AJ35/AI35-1) ->  | AK36: =IF(AK35="","",AK35/AJ35-1) ->  | AL36: =IF(AL35="","",AL35/AK35-1) ->  | AM36: =IF(AM35="","",AM35/AL35-1) ->  | AN36: =IF(AN35="","",AN35/AM35-1) -> 
A37: =ROW() -> 37
A38: =ROW() -> 38 | I38: Actual | J38: Actual | K38: Actual | L38: Actual | M38: Actual | N38: Actual | O38: Actual | P38: Actual | Q38: Actual | R38: Actual | S38: Actual | T38: Actual | U38: Actual | V38: Actual | W38: Actual | X38: Actual | Y38: Actual | Z38: Actual | AA38: Actual | AB38: Actual | AC38: Actual | AD38: Actual | AE38: Actual | AF38: Actual | AG38: Actual | AH38: Forecast | AI38: Forecast | AJ38: Forecast | AK38: Forecast | AL38: Forecast | AM38: Forecast | AN38: Forecast
A39: =ROW() -> 39 | C39: Actual December and Forecast Inflation | I39: 1999-12-31 | J39: 2000-12-31 | K39: 2001-12-31 | L39: 2002-12-31 | M39: 2003-12-31 | N39: 2004-12-31 | O39: 2005-12-31 | P39: 2006-12-31 | Q39: 2007-12-31 | R39: 2008-12-31 | S39: 2009-12-31 | T39: 2010-12-31 | U39: 2011-12-31 | V39: 2012-12-31 | W39: 2013-12-31 | X39: 2014-12-31 | Y39: =X39 -> 2014-12-31 | Z39: 2015-12-31 | AA39: 2016-12-31 | AB39: 2017-12-31 | AC39: 2018-12-31 | AD39: 2019-12-31 | AE39: 2020-12-31 | AF39: 2021-12-31 | AG39: 2022-12-31 | AH39: 2023-12-31 | AI39: 2024-12-31 | AJ39: 2025-12-31 | AK39: 2026-12-31 | AL39: 2027-12-31 | AM39: 2028-12-31 | AN39: 2029-12-31
A40: =ROW() -> 40 | D40: December CPI All Groups, 8 Capital Cities - (Pre-2012 index) | I40: 124.1 | J40: 131.3 | K40: 135.4 | L40: 139.5 | M40: 142.8 | N40: 146.5 | O40: 150.6 | P40: 155.5 | Q40: 160.1 | R40: 166 | S40: 169.5 | T40: 174 | U40: 179.4
A41: =ROW() -> 41 | D41: December inflation All Groups, 8 Capital Cities - (Pre-2012 index) | J41: 0.05801772764 | K41: 0.03122619954 | L41: 0.03028064993 | M41: 0.02365591398 | N41: 0.02591036415 | O41: 0.02798634812 | P41: 0.03253652058 | Q41: 0.02958199357 | R41: 0.03685196752 | S41: 0.02108433735 | T41: =T40/S40-1 -> 0.02654867257 | U41: =U40/T40-1 -> 0.03103448276
A42: =ROW() -> 42 | D42: December CPI All Groups, 8 Capital Cities | I42: 69.1 | J42: 73.1 | K42: 75.4 | L42: 77.6 | M42: 79.5 | N42: 81.5 | O42: 83.8 | P42: 86.6 | Q42: 89.1 | R42: 92.4 | S42: 94.3 | T42: 96.9 | U42: 99.8 | V42: 102 | W42: 104.8 | X42: 106.6 | Y42: =X42 -> 106.6 | Z42: 108.4 | AA42: 110 | AB42: 112.1 | AC42: 114.1 | AD42: 116.2 | AE42: 117.2 | AF42: 121.3 | AG42: 130.8 | AH42: 136.1 | AI42: =AH42*(1+AI43) -> 141.2718 | AJ42: =AI42*(1+AJ43) -> 144.8177222 | AK42: =AJ42*(1+AK43) -> 148.452647 | AL42: =AK42*(1+AL43) -> 152.1788084 | AM42: =AL42*(1+AM43) -> 155.9984965 | AN42: =AM42*(1+AN43) -> 159.9140588
A43: =ROW() -> 43 | D43: December inflation All Groups , 8 Capital Cities - (Sep-2012 base index) | J43: =J42/I42-1 -> 0.05788712012 | K43: 0.03146374829 | L43: 0.02917771883 | M43: 0.02448453608 | N43: 0.0251572327 | O43: 0.0282208589 | P43: 0.03341288783 | Q43: 0.02886836028 | R43: 0.03703703704 | S43: 0.02056277056 | T43: =T42/S42-1 -> 0.02757158006 | U43: 0.02992776058 | V43: =V42/U42-1 -> 0.02204408818 | W43: =W42/V42-1 -> 0.02745098039 | X43: =(X42/W42-1) -> 0.01717557252 | Y43: =X43*1+(Y42/W42-1)*0 -> 0.01717557252 | Z43: =Z42/Y42-1 -> 0.01688555347 | AA43: =AA42/Z42-1 -> 0.0147601476 | AB43: =AB42/AA42-1 -> 0.01909090909 | AC43: 0.0178412132 | AD43: =AD42/AC42-1 -> 0.01840490798 | AE43: =AE42/AD42-1 -> 0.008605851979 | AF43: =AF42/AE42-1 -> 0.03498293515 | AG43: =AG42/AF42-1 -> 0.07831821929 | AH43: 0.04051987768 | AI43: 0.038 | AJ43: =WACC!AF$28 -> 0.0251 | AK43: =WACC!AG$28 -> 0.0251 | AL43: =WACC!AH$28 -> 0.0251 | AM43: =WACC!AI$28 -> 0.0251 | AN43: =WACC!AJ$28 -> 0.0251
A44: =ROW() -> 44
A45: =ROW() -> 45 | C45: Modelled Inflation
A46: =ROW() -> 46 | D46: Selected CPI period | F46: Base period: | G46: =AH46 -> 2023-12-31 | I46: =I39 -> 1999-12-31 | J46: 2000-12-31 | K46: 2001-12-31 | L46: 2002-12-31 | M46: 2003-12-31 | N46: 2004-12-31 | O46: 2005-12-31 | P46: 2006-12-31 | Q46: 2007-12-31 | R46: 2008-12-31 | S46: 2009-12-31 | T46: =T19 -> 2010-06-30 | U46: =U19 -> 2011-06-30 | V46: =V19 -> 2012-06-30 | W46: =W19 -> 2013-06-30 | X46: =X19 -> 2014-06-30 | Y46: =Y39 -> 2014-12-31 | Z46: 2015-12-31 | AA46: 2016-12-31 | AB46: 2017-12-31 | AC46: 2018-12-31 | AD46: 2019-12-31 | AE46: =AE39 -> 2020-12-31 | AF46: 2021-12-31 | AG46: 2022-12-31 | AH46: 2023-12-31 | AI46: 2024-12-31 | AJ46: =AJ39 -> 2025-12-31 | AK46: 2026-12-31 | AL46: 2027-12-31 | AM46: 2028-12-31 | AN46: 2029-12-31
A47: =ROW() -> 47 | D47: CPI | F47: Base CPI: | G47: =HLOOKUP($G$46,$I$46:$AN$47,2,FALSE) -> 136.1 | I47: =J47/(J48+1) -> 69.06674058 | J47: 73.07383592 | K47: 75.3556541 | L47: 77.63747228 | M47: 79.47405765 | N47: 81.53325942 | O47: 83.81507761 | P47: 86.5421286 | Q47: 89.10221729 | R47: 92.38580931 | S47: 94.33370288 | T47: 95.78070953 | U47: 99.23126386 | V47: =V22 -> 100.4 | W47: =W22 -> 102.8 | X47: =X22 -> 105.9 | Y47: =Y42 -> 106.6 | Z47: 108.4 | AA47: 110 | AB47: 112.1 | AC47: 114.1 | AD47: 116.2 | AE47: =AE42 -> 117.2 | AF47: 121.3 | AG47: 130.8 | AH47: 136.1 | AI47: 141.2718 | AJ47: =AJ42 -> 144.8177222 | AK47: 148.452647 | AL47: 152.1788084 | AM47: 155.9984965 | AN47: 159.9140588
A48: =ROW() -> 48 | D48: Inflation | J48: =J$41 -> 0.05801772764 | K48: =K$41 -> 0.03122619954 | L48: 0.03028064993 | M48: 0.02365591398 | N48: 0.02591036415 | O48: 0.02798634812 | P48: 0.03253652058 | Q48: 0.02958199357 | R48: 0.03685196752 | S48: 0.02108433735 | T48: =T$20/S$40-1 -> 0.01533923304 | U48: =U$21 -> 0.03602556653 | V48: =V$21 -> 0.01177790241 | W48: =W47/V47-1 -> 0.02390438247 | X48: 0.03015564202 | Y48: 0.006610009443 | Z48: 0.01688555347 | AA48: 0.0147601476 | AB48: 0.01909090909 | AC48: 0.0178412132 | AD48: 0.01840490798 | AE48: =AE47/AD47-1 -> 0.008605851979 | AF48: =AF47/AE47-1 -> 0.03498293515 | AG48: =AG47/AF47-1 -> 0.07831821929 | AH48: =AH47/AG47-1 -> 0.04051987768 | AI48: =AI47/AH47-1 -> 0.038 | AJ48: =AJ47/AI47-1 -> 0.0251 | AK48: =AK47/AJ47-1 -> 0.0251 | AL48: =AL47/AK47-1 -> 0.0251 | AM48: =AM47/AL47-1 -> 0.0251 | AN48: =AN47/AM47-1 -> 0.0251
A49: Financial Parameters
A50: =ROW() -> 50 | C50: Inflation factor | I50: =HLOOKUP($G$46,$I$46:$AN$47,2,FALSE) -> 136.1 | L50: Actual 1 | Q50: Actual 2 | V50: Actual 3 | AA50: Actual 4 | AD50: Forecast | AG50: Forecast | AL50: Forecast
A51: =ROW() -> 51 | D51: ="Inflation Factor (convert to real "&$G$51&" $)" -> Inflation Factor (convert to real 31/12/2023 $) | F51: Real $ at | G51: =TEXT($G$46,"dd/mm/yyyy") -> 31/12/2023 | I51: =$G$47/I$47 -> 1.970557737 | J51: =$G$47/J$47 -> 1.862499734 | K51: 1.806102032 | L51: 1.753019463 | M51: 1.712508509 | N51: 1.669257441 | O51: 1.62381285 | P51: 1.57264447 | Q51: 1.527459183 | R51: 1.473169971 | S51: 1.442750532 | T51: 1.420954184 | U51: 1.371543551 | V51: 1.355577689 | W51: 1.323929961 | X51: 1.285174693 | Y51: 1.27673546 | Z51: 1.255535055 | AA51: 1.237272727 | AB51: 1.214094558 | AC51: 1.192813322 | AD51: 1.171256454 | AE51: 1.161262799 | AF51: 1.122011542 | AG51: 1.040519878 | AH51: 1 | AI51: 0.9633911368 | AJ51: 0.939802104 | AK51: 0.9167906585 | AL51: 0.8943426578 | AM51: 0.8724443057 | AN51: 0.8510821439
A52: =ROW() -> 52 | D52: ="Inflation Factor (convert " &$G$51& " $ to nominal $)" -> Inflation Factor (convert 31/12/2023 $ to nominal $) | I52: =1/I51 -> 0.5074705406 | J52: 0.5369128282 | K52: 0.5536785753 | L52: 0.5704443224 | M52: 0.5839387043 | N52: 0.5990687687 | O52: 0.6158345158 | P52: 0.6358716282 | Q52: 0.6546819787 | R52: 0.6788082977 | S52: 0.6931205208 | T52: =1/T51 -> 0.703752458 | U52: =1/U51 -> 0.729105539 | V52: 0.7376928729 | W52: 0.7553269655 | X52: 0.778104335 | Y52: 0.783247612 | Z52: 0.7964731815 | AA52: 0.8082292432 | AB52: 0.8236590742 | AC52: 0.8383541514 | AD52: 0.8537839824 | AE52: =1/AE51 -> 0.8611315209 | AF52: 0.8912564291 | AG52: 0.9610580456 | AH52: 1 | AI52: 1.038 | AJ52: =1/AJ51 -> 1.0640538 | AK52: 1.09076155 | AL52: 1.118139665 | AM52: 1.146204971 | AN52: 1.174974716
A53: =ROW() -> 53 | C53: Real Pre-tax WACC | L53: Approved 1 | Q53: Approved 2 | V53: Actual 3 | AA53: Actual 4 | AD53: Forecast | AG53: Forecast | AL53: Forecast
A54: =ROW() -> 54 | D54: WACC | J54: =WACC!E35 -> 0.07528300436 | K54: =J54 -> 0.07528300436 | L54: =K54 -> 0.07528300436 | M54: =L54 -> 0.07528300436 | N54: =M54 -> 0.07528300436 | O54: =WACC!K35 -> 0.0678 | P54: =O54 -> 0.0678 | Q54: =P54 -> 0.0678 | R54: =Q54 -> 0.0678 | S54: =R54 -> 0.0678 | T54: =(1+U54)^(T$8/365)-1 -> 0.03770024064 | U54: =WACC!$S$35 -> 0.07748248758 | V54: =U54 -> 0.07748248758 | W54: =V54 -> 0.07748248758 | X54: =W54 -> 0.07748248758
A55: =ROW() -> 55 | D55: Discounting Factor | J55: =K55*(1+J54) -> 1.868846251 | K55: 1.738004082 | L55: 1.61632247 | M55: 1.503160065 | N55: 1.397920416 | O55: 1.300048834 | P55: 1.217502186 | Q55: 1.14019684 | R55: 1.0678 | S55: 1 | T55: =S55/(1+T54) -> 0.9636694306 | U55: =T55/(1+U54) -> 0.8943713162 | V55: =U55/(1+V54) -> 0.8300564756 | W55: =V55/(1+W54) -> 0.7703665583 | X55: =W55/(1+X54) -> 0.714968983
A56: =ROW() -> 56 | C56: Real Post Tax WACC
A57: =ROW() -> 57 | D57: WACC | T57: =(1+U57)^(T$8/365)-1 -> 0.03205745465 | U57: =WACC!$S$38 -> 0.06569980507 | V57: =U57 -> 0.06569980507 | W57: =V57 -> 0.06569980507 | X57: =W57 -> 0.06569980507 | Y57: =(1+WACC!U$38)^Y$9-1 -> 0.0198101078 | Z57: =WACC!V$38 -> 0.04010991168 | AA57: =WACC!W$38 -> 0.03990382728 | AB57: =WACC!X$38 -> 0.03907360157 | AC57: =WACC!Y$38 -> 0.03532286555 | AD57: =WACC!Z$38 -> 0.03577466265 | AE57: =WACC!AA$38 -> 0.02981411904 | AF57: =WACC!AB$38 -> 0.02965097884 | AG57: =WACC!AC$38 -> 0.02877545976 | AH57: =WACC!AD$38 -> 0.02831322919 | AI57: =WACC!AE$38 -> 0.02813377497 | AJ57: =WACC!AF$38 -> 0.04705053166 | AK57: =WACC!AG$38 -> 0.04705053166 | AL57: =WACC!AH$38 -> 0.04705053166 | AM57: =WACC!AI$38 -> 0.04705053166 | AN57: =WACC!AJ$38 -> 0.04705053166
A58: =ROW() -> 58 | D58: Discounting Factor | T58: =1/(1+T57) -> 0.9689383043 | U58: =T58/(1+U57) -> 0.9092037923 | V58: =U58/(1+V57) -> 0.8531518801 | W58: =V58/(1+W57) -> 0.8005555374 | X58: =W58/(1+X57) -> 0.7512017301 | Y58: =1/(1+Y57) -> 0.9805747093 | Z58: =Y58/(1+Z57) -> 0.9427606624 | AA58: =Z58/(1+AA57) -> 0.9065844722 | AB58: =AA58/(1+AB57) -> 0.8724930273 | AC58: =AB58/(1+AC57) -> 0.8427255461 | AD58: =AC58/(1+AD57) -> 0.8136186147 | AE58: =1/(1+AE57) -> 0.9710490287 | AF58: =AE58/(1+AF57) -> 0.943085617 | AG58: =AF58/(1+AG57) -> 0.916706953 | AH58: =AG58/(1+AH57) -> 0.8914666533 | AI58: 0.8670726271 | AJ58: =1/(1+AJ57) -> 0.9550637431 | AK58: =IF(AK$46=$G$46,1,AJ58/(1+AK57)) -> 0.9121467534 | AL58: 0.8711582926 | AM58: 0.8320116998 | AN58: 0.7946242083
A59: =ROW() -> 59 | C59: Nominal Post Tax WACC
A60: =ROW() -> 60 | D60: WACC | T60: =(1+U60)^(T$8/365)-1 -> 0.04527784254 | U60: =WACC!$S$37 -> 0.093408 | V60: =U60 -> 0.093408 | W60: =V60 -> 0.093408 | X60: =W60 -> 0.093408 | Y60: =(1+WACC!U$37)^Y$9-1 -> 0.02953234787 | Z60: =WACC!V$37 -> 0.059872 | AA60: =WACC!W$37 -> 0.059662 | AB60: =WACC!X$37 -> 0.058816 | AC60: =WACC!Y$37 -> 0.054994 | AD60: =WACC!Z$37 -> 0.054838 | AE60: =WACC!AA$37 -> 0.041554 | AF60: =WACC!AB$37 -> 0.041389 | AG60: =WACC!AC$37 -> 0.0405035 | AH60: =WACC!AD$37 -> 0.040036 | AI60: =WACC!AE$37 -> 0.0398545 | AJ60: =WACC!AF$37 -> 0.0733315 | AK60: =WACC!AG$37 -> 0.0733315 | AL60: =WACC!AH$37 -> 0.0733315 | AM60: =WACC!AI$37 -> 0.0733315 | AN60: =WACC!AJ$37 -> 0.0733315
A61: =ROW() -> 61 | D61: Discounting Factor | T61: =1/(1+T60) -> 0.9566834379 | U61: =T61/(1+U60) -> 0.8749555865 | V61: =U61/(1+V60) -> 0.8002096075 | W61: =V61/(1+W60) -> 0.7318490513 | X61: =W61/(1+X60) -> 0.6693284221 | Y61: =1/(1+Y60) -> 0.9713147936 | Z61: =Y61/(1+Z60) -> 0.9164453761 | AA61: =Z61/(1+AA60) -> 0.8648468814 | AB61: =AA61/(1+AB60) -> 0.8168056409 | AC61: =AB61/(1+AC60) -> 0.7742277595 | AD61: =AC61/(1+AD60) -> 0.7339778804 | AE61: =1/(1+AE60) -> 0.9601038448 | AF61: =AE61/(1+AF60) -> 0.9219454448 | AG61: =AF61/(1+AG60) -> 0.8860570337 | AH61: =AG61/(1+AH60) -> 0.8519484265 | AI61: 0.819295802 | AJ61: =1/(1+AJ60) -> 0.93167861 | AK61: =IF(AK$46=$G$46,1,AJ61/(1+AK60)) -> 0.8680250324 | AL61: 0.8087203556 | AM61: 0.7534674568 | AN61: 0.7019895128
A62: =ROW() -> 62
A63: Assets Life
A64: =ROW() -> 64 | J64: 1999-2013/14 | Y64: Capex from Jun-2014 onwards | Z64: Capex from 2020 onwards | AB64: Capex up to Dec-2007 | AC64: Capex from 2008 Onwards | AD64: Capex from 2020 Onwards
A65: =ROW() -> 65 | C65: Asset Life for new Capex (years) | J65: Economic Life | Y65: Economic Life | Z65: Economic Life | AB65: Tax Asset Life | AC65: Tax Asset Life | AD65: Tax Asset Life
A66: =ROW() -> 66 | D66: High Pressure Mains - Steel | J66: 120 | Y66: 80 | Z66: =Y66 -> 80 | AB66: 20 | AC66: 20 | AD66: 20
A67: =ROW() -> 67 | D67: High Pressure Mains - PE | J67: 120 | Y67: 60 | Z67: =Y67 -> 60 | AB67: 20 | AC67: 20 | AD67: 20
A68: =ROW() -> 68 | D68: Medium Pressure Mains | J68: 60 | Y68: 60 | Z68: 60 | AB68: 20 | AC68: 20 | AD68: 20
A69: =ROW() -> 69 | D69: Medium / Low Pressure Mains | J69: 60 | Y69: 60 | Z69: 60 | AB69: 20 | AC69: 20 | AD69: 20
A70: =ROW() -> 70 | D70: Low Pressure Mains | J70: 60 | Y70: 60 | Z70: 60 | AB70: 20 | AC70: 20 | AD70: 20
A71: =ROW() -> 71 | D71: Regulators | J71: 40 | Y71: 40 | Z71: 40 | AB71: 40 | AC71: 40 | AD71: 20
A72: =ROW() -> 72 | D72: Secondary Gate Stations | J72: 40 | Y72: 40 | Z72: 40 | AB72: 40 | AC72: 40 | AD72: 20
A73: =ROW() -> 73 | D73: Buildings | J73: 40 | Y73: 40 | Z73: 40 | AB73: 40 | AC73: 40 | AD73: 40
A74: =ROW() -> 74 | D74: Meter and Services Pipes | J74: 25 | Y74: 25 | Z74: 25 | AB74: 25 | AC74: 15 | AD74: 15
A75: =ROW() -> 75 | D75: Equipment & Vehicles | J75: 10 | Y75: 10 | Z75: 10 | AB75: 10 | AC75: 10 | AD75: 10
A76: =ROW() -> 76 | D76: Vehicle | J76: 10 | Y76: 10 | Z76: =Y76 -> 10 | AB76: 10 | AC76: 10 | AD76: 10
A77: =ROW() -> 77 | D77: Information Technology | J77: 5 | Y77: 5 | Z77: 5 | AB77: 4 | AC77: 4 | AD77: 5
A78: =ROW() -> 78 | D78: Telemetry and Monitoring | J78: 10 | Y78: 10 | Z78: 10 | AB78: 10 | AC78: 10 | AD78: 10
A79: =ROW() -> 79 | D79: FRC | J79: 5 | Y79: 5 | Z79: 5 | AB79: 4 | AC79: 4 | AD79: 4
A80: =ROW() -> 80 | D80: Land | J80: 0 | Y80: 0 | Z80: 0 | AB80: 0 | AC80: 0 | AD80: 0
A81: =ROW() -> 81 | D81: Equity Raising Cost | J81: =SUMPRODUCT($J$66:$J$79,Asset!$Y$55:$Y$68)/SUM(Asset!$Y$55:$Y$68) -> 65.84277447 | Y81: =J81 -> 65.84277447 | Z81: =SUMPRODUCT($Z$66:$Z$79,Asset!$AE$55:$AE$68)/SUM(Asset!$AE$55:$AE$68) -> 53.71504507 | AB81: 5 | AC81: 5 | AD81: 5
A82: Initial Capital Base | N82: ICB as at 31/12/2004 | S82: ICB as at 31/12/2009 | Y82: ICB as at 31/12/2023
A83: =ROW() -> 83 | C83: Initial Capital Base | F83: Life 31/12/98 | G83: E&Y Tax Asset Life 31/12/1998 | I83: Initial Value at 1999 m$ 31/12/99 | M83: ="Initial Value at 1999 m$ 31/12/04" -> Initial Value at 1999 m$ 31/12/04 | N83: WDV in 2004 m$ 31/12/04 | O83: Over depreciation correction | R83: ="Initial Value at 1999 m$ 31/12/09" -> Initial Value at 1999 m$ 31/12/09 | S83: WDV in 2004 m$ 31/12/09 | T83: Over depreciation correction | W83: ="Initial Value at 1999 $m "&$G$51 -> Initial Value at 1999 $m 31/12/2023 | X83: ="WDV in 2004 $m "&$G$51 -> WDV in 2004 $m 31/12/2023
A84: =ROW() -> 84 | D84: High Pressure Mains - Steel | F84: 106 | G84: 106 | I84: 149.0525001 | M84: =I84*$I$51/$N$51 -> 175.9564163 | N84: 167.7680127 | O84: 0 | R84: =M84*$N$51/$S$51 -> 203.5809732 | S84: 194.1070181 | T84: =O84*$N$51 -> 0 | W84: =R84*($G$47/S$47) -> 293.7165573 | X84: =N84*$N$51 -> 280.0480036 | Y84: =O84*$N$51 -> 0
A85: =ROW() -> 85 | D85: High Pressure Mains - PE | F85: 106 | M85: =I85*$I$51/$N$51 -> 0 | R85: =M85*$N$51/$S$51 -> 0 | T85: =O85*$N$51 -> 0 | W85: =R85*($G$47/S$47) -> 0 | X85: 0 | Y85: 0
A86: =ROW() -> 86 | D86: Medium Pressure Mains | F86: 51 | G86: 51 | I86: 176.9970506 | M86: 208.944947 | N86: 188.6930491 | O86: 0 | R86: 241.7485905 | S86: 218.3172139 | T86: =O86*$N$51 -> 0 | W86: 348.7829075 | X86: 314.9772764 | Y86: 0
A87: =ROW() -> 87 | D87: Medium / Low Pressure Mains | F87: 41 | G87: 41 | I87: 96.15873274 | M87: 113.5153453 | N87: 99.14965429 | O87: 0 | R87: 131.336867 | S87: 114.7158116 | T87: =O87*$N$51 -> 0 | W87: 189.4863348 | X87: 165.5062982 | Y87: 0
A88: =ROW() -> 88 | D88: Low Pressure Mains | F88: 33 | G88: 33 | I88: 27.7917523 | M88: 32.80815239 | N88: 27.64155259 | O88: -0.5911241171 | R88: 37.95892035 | S88: 31.98118201 | T88: -0.683928586 | W88: 54.76525251 | X88: 46.14086735 | Y88: -0.9867383311
A89: =ROW() -> 89 | D89: Regulators | F89: 28 | G89: 28 | I89: 9.716025086 | M89: 11.4697637 | N89: 9.535022566 | O89: 0 | R89: 13.27047745 | S89: 11.03198857 | T89: 0 | W89: 19.1459884 | X89: 15.91640737 | Y89: 0
A90: =ROW() -> 90 | D90: Secondary Gate Stations | F90: 25 | G90: 25 | I90: 1.972158078 | M90: 2.328131817 | N90: 1.837078987 | O90: -0.04208879663 | R90: 2.693640566 | S90: 2.125494118 | T90: -0.04869659406 | W90: 3.886251359 | X90: 3.066557769 | Y90: -0.07025703697
A91: =ROW() -> 91 | D91: Buildings | F91: 24 | G91: 24 | I91: 1.739642739 | M91: 2.053647553 | N91: 1.601656344 | O91: 0 | R91: 2.376063209 | S91: 1.853110923 | T91: 0 | W91: 3.428066459 | X91: 2.67357677 | Y91: 0
A92: =ROW() -> 92 | D92: Meter and Services Pipes | F92: 11 | G92: 11 | I92: 52.79515012 | M92: 62.32465345 | N92: 35.72045608 | O92: 0 | R92: 72.10941132 | S92: 41.32844578 | T92: 0 | W92: 104.0358915 | X92: 59.62663712 | Y92: 0
A93: =ROW() -> 93 | D93: Equipment & Vehicles | F93: 11 | G93: 6 | I93: 15.06392605 | M93: 17.78295863 | N93: 2.494216868 | O93: -5.384402837 | R93: 20.57482245 | S93: 2.885800404 | T93: -6.229735706 | W93: 29.68433602 | X93: 4.163490067 | Y93: -8.987954503
A94: =ROW() -> 94 | D94: Vehicle | F94: 11 | M94: 0 | R94: 0 | S94: 0 | T94: =O94*$N$51 -> 0 | W94: 0 | X94: 0 | Y94: 0
A95: =ROW() -> 95 | D95: Information Technology | F95: 6 | I95: 0 | M95: 0 | N95: 0 | O95: 0 | R95: 0 | S95: 0 | T95: 0 | W95: 0 | X95: 0 | Y95: 0
A96: =ROW() -> 96 | D96: Telemetry and Monitoring | F96: 0 | I96: 0 | M96: =I96*$I$51/$N$51 -> 0 | N96: 0 | O96: 0 | R96: =M96*$N$51/$S$51 -> 0 | S96: 0 | T96: 0 | W96: 0 | X96: =N96*$N$51 -> 0 | Y96: =O96*$N$51 -> 0
A97: =ROW() -> 97 | D97: FRC | F97: 6 | I97: 0 | M97: 0 | N97: 0 | O97: 0 | R97: 0 | S97: 0 | T97: 0 | W97: 0 | X97: 0 | Y97: 0
A98: =ROW() -> 98 | D98: Land | F98: 0 | I98: 4.470241902 | M98: =I98*$I$51/$N$51 -> 5.277118764 | N98: 5.277118764 | O98: 0 | R98: =M98*$N$51/$S$51 -> 6.105608399 | S98: 6.105608399 | T98: 0 | W98: 8.808869765 | X98: =N98*$N$51 -> 8.808869765 | Y98: =O98*$N$51 -> 0
A99: =ROW() -> 99 | D99: Equity Raising Cost | F99: 0 | M99: 0 | O99: 0 | R99: 0 | T99: 0 | W99: 0 | X99: 0 | Y99: 0
A100: =ROW() -> 100 | D100: Total | I100: =SUM(I84:I99) -> 535.7571798 | M100: =SUM(M84:M99) -> 632.4611349 | N100: =SUM(N84:N99) -> 539.7178184 | O100: =SUM(O84:O99) -> -6.017615751 | R100: =SUM(R84:R99) -> 731.7553745 | S100: =SUM(S84:S99) -> 624.4516738 | T100: =SUM(T84:T99) -> -6.962360886 | W100: =SUM(W84:W99) -> 1055.740456 | X100: =SUM(X84:X99) -> 900.9279845 | Y100: =SUM(Y84:Y99) -> -10.04494987
A101: =ROW() -> 101
A102: Vines, New Assets
A103: =ROW() -> 103 | C103: CAPEX | P103: Life at 31/12/09 | Q103: Tax Asset Life at 31/12/09 | R103: m$ 31/12/09 | S103: ="m$ "&TEXT($G$51,"d/m/yy") -> m$ 31/12/23
A104: =ROW() -> 104 | D104: High Pressure Mains - Steel | P104: 0 | Q104: 0 | R104: 0 | S104: =R104*$S$51 -> 0
A105: =ROW() -> 105 | D105: High Pressure Mains - PE | P105: 0 | Q105: 0 | R105: 0 | S105: =R105*$S$51 -> 0
A106: =ROW() -> 106 | D106: Medium Pressure Mains | P106: 0 | Q106: 0 | R106: 0 | S106: 0
A107: =ROW() -> 107 | D107: Medium / Low Pressure Mains | P107: 50.34 | Q107: =$AC69-($J69-P107)-1 -> 9.34 | R107: 0.426991 | S107: 0.6160414923
A108: =ROW() -> 108 | D108: Low Pressure Mains | P108: 0 | Q108: 0 | R108: 0 | S108: 0
A109: =ROW() -> 109 | D109: Regulators | P109: 0 | Q109: 0 | R109: 0 | S109: 0
A110: =ROW() -> 110 | D110: Secondary Gate Stations | P110: 0 | Q110: 0 | R110: 0 | S110: 0
A111: =ROW() -> 111 | D111: Buildings | P111: 0 | Q111: 0 | R111: 0 | S111: 0
A112: =ROW() -> 112 | D112: Meter and Services Pipes | P112: 15.34 | Q112: =$AC74-($J74-P112)-1 -> 4.34 | R112: 0.152832 | S112: 0.2204984493
A113: =ROW() -> 113 | D113: Equipment & Vehicles | P113: 0 | Q113: 0 | R113: 0 | S113: 0
A114: =ROW() -> 114 | D114: Vehicle | P114: 0 | Q114: 0 | S114: 0
A115: =ROW() -> 115 | D115: Information Technology | P115: 0 | Q115: 0 | R115: 0 | S115: 0
A116: =ROW() -> 116 | D116: Telemetry and Monitoring | P116: 0 | Q116: 0 | R116: 0 | S116: =R116*$S$51 -> 0
A117: =ROW() -> 117 | D117: FRC | P117: 0 | Q117: 0 | R117: 0 | S117: 0
A118: =ROW() -> 118 | D118: Land | P118: 0 | Q118: 0 | R118: 0 | S118: 0
A119: =ROW() -> 119 | D119: Equity Raising Cost | P119: 0 | Q119: 0 | R119: 0 | S119: 0
A120: =ROW() -> 120 | D120: Total | R120: =SUM(R104:R119) -> 0.579823 | S120: =SUM(S104:S119) -> 0.8365399416 | X120: =SUM(X104:X119) -> 0
A121: West Net Energy, New Assets
A122: =ROW() -> 122 | C122: CAPEX | R122: Life 30/06/10 | S122: Tax Asset Life at 30/6/10 | T122: m$ 30/6/10 | U122: ="m$ "&TEXT($G$51,"d/m/yy") -> m$ 31/12/23
A123: =ROW() -> 123 | D123: High Pressure Mains - Steel | R123: 0 | S123: 0 | T123: 0
A124: =ROW() -> 124 | D124: High Pressure Mains - PE | R124: 0 | S124: 0 | T124: 0
A125: =ROW() -> 125 | D125: Medium Pressure Mains | R125: 0 | S125: 0 | T125: 0
A126: =ROW() -> 126 | D126: Medium / Low Pressure Mains | R126: 0 | S126: 0 | T126: 0
A127: =ROW() -> 127 | D127: Low Pressure Mains | R127: 0 | S127: 0 | T127: 0
A128: =ROW() -> 128 | D128: Regulators | R128: 0 | S128: 0 | T128: 0
A129: =ROW() -> 129 | D129: Secondary Gate Stations | R129: 0 | S129: 0 | T129: 0
A130: =ROW() -> 130 | D130: Buildings | R130: 35.09881279 | S130: =$AC73-($J73-R130)-0.5 -> 34.59881279 | T130: =0.0130522132542073 -> 0.01305221325 | U130: =T130*$T$51 -> 0.01854659704
A131: =ROW() -> 131 | D131: Meter and Services Pipes | R131: 0 | S131: 0 | T131: 0
A132: =ROW() -> 132 | D132: Equipment & Vehicles | R132: 6.536661454 | S132: =$AC75-($J75-R132)-0.5 -> 6.036661454 | T132: =2.88462274182994 -> 2.884622742 | U132: =T132*$T$51 -> 4.098916755
A133: =ROW() -> 133 | D133: Vehicle | R133: 0 | S133: 0 | T133: 0
A134: =ROW() -> 134 | D134: Information Technology | R134: 4.021920327 | S134: =$AC77-($J77-R134)-0.5 -> 2.521920327 | T134: =0.104081321679867 -> 0.1040813217 | U134: =T134*$T$51 -> 0.1478947896
A135: =ROW() -> 135 | D135: Telemetry and Monitoring | R135: 0 | S135: 0 | T135: 0
A136: =ROW() -> 136 | D136: FRC | R136: 0 | S136: 0 | T136: 0
A137: =ROW() -> 137 | D137: Land | R137: 0 | S137: 0 | T137: 0
A138: =ROW() -> 138 | D138: Equity Raising Cost | R138: 0 | S138: 0 | T138: 0
A139: =ROW() -> 139 | D139: Total | T139: =SUM(T123:T138) -> 3.001756277 | U139: =SUM(U123:U138) -> 4.265358142 | Y139: =SUM(Y123:Y138) -> 0
A140: Redundant Assets (ICB) and accelerated depreciation
A141: =ROW() -> 141 | C141: Redundant Assets and accelerated depreciation | O141: Actual 2 [m$ 30/6/2014] | T141: Actual 3 [m$ 30/6/2014] | Z141: Actual 4 [m$ 31/12/2019] | AD141: Forecast [m$ 31/12/2019] | AG141: Forecast 5 [m$ 31/12/2019] | AL141: Forecast 5 [m$ 31/12/2023]
A142: =ROW() -> 142 | D142: High Pressure Mains - Steel | O142: 0 | P142: 0 | Q142: 0 | R142: 0 | S142: 0 | T142: 0 | U142: 0 | V142: 0 | W142: 0 | X142: 0 | Y142: 0 | Z142: 0 | AA142: 0 | AB142: 0 | AC142: 0 | AD142: 0 | AE142: 0 | AF142: 0 | AG142: 0 | AH142: 0 | AI142: 0 | AJ142: 24.87 | AK142: 17.03 | AL142: 16.49 | AM142: 14.19 | AN142: 14.65
A143: =ROW() -> 143 | D143: High Pressure Mains - PE | O143: 0 | P143: 0 | Q143: 0 | R143: 0 | S143: 0 | T143: 0 | U143: 0 | V143: 0 | W143: 0 | X143: 0 | Y143: 0 | Z143: 0 | AA143: 0 | AB143: 0 | AC143: 0 | AD143: 0 | AE143: 0 | AF143: 0 | AG143: 0 | AH143: 0 | AI143: 0 | AJ143: 0 | AK143: 0 | AL143: 0 | AM143: 0 | AN143: 0
A144: =ROW() -> 144 | D144: Medium Pressure Mains | O144: 0 | P144: 0 | Q144: 0 | R144: 0 | S144: 0 | T144: 0 | U144: 0 | V144: 0 | W144: 0 | X144: 0 | Y144: 0 | Z144: 0 | AA144: 0 | AB144: 0 | AC144: 0 | AD144: 0 | AE144: 0 | AF144: 0 | AG144: 0 | AH144: 0 | AI144: 0 | AJ144: 0 | AK144: 0 | AL144: 0 | AM144: 0 | AN144: 0
A145: =ROW() -> 145 | D145: Medium / Low Pressure Mains | O145: 0 | P145: 0 | Q145: 0 | R145: 0 | S145: 0 | T145: 0 | U145: 0 | V145: 0 | W145: 0 | X145: 0 | Y145: 0 | Z145: 0 | AA145: 0 | AB145: 0 | AC145: 0 | AD145: 0 | AE145: 0 | AF145: 0 | AG145: 0 | AH145: 0 | AI145: 0 | AJ145: 0 | AK145: 0 | AL145: 0 | AM145: 0 | AN145: 0
A146: =ROW() -> 146 | D146: Low Pressure Mains | O146: 0 | P146: 0 | Q146: 0 | R146: 0 | S146: 0 | T146: 0 | U146: 0 | V146: 0 | W146: 0 | X146: 0 | Y146: 0 | Z146: 0 | AA146: 0 | AB146: 0 | AC146: 0 | AD146: 0 | AE146: 0 | AF146: 0 | AG146: 0 | AH146: 0 | AI146: 0 | AJ146: 0 | AK146: 0 | AL146: 0 | AM146: 0 | AN146: 0
A147: =ROW() -> 147 | D147: Regulators | O147: 0 | P147: 0 | Q147: 0 | R147: 0 | S147: 0 | T147: 0 | U147: 0 | V147: 0 | W147: 0 | X147: 0 | Y147: 0 | Z147: 0 | AA147: 0 | AB147: 0 | AC147: 0 | AD147: 0 | AE147: 0 | AF147: 0 | AG147: 0 | AH147: 0 | AI147: 0 | AJ147: 0 | AK147: 0 | AL147: 0 | AM147: 0 | AN147: 0
A148: =ROW() -> 148 | D148: Secondary Gate Stations | O148: 0 | P148: 0 | Q148: 0 | R148: 0 | S148: 0 | T148: 0 | U148: 0 | V148: 0 | W148: 0 | X148: 0 | Y148: 0 | Z148: 0 | AA148: 0 | AB148: 0 | AC148: 0 | AD148: 0 | AE148: 0 | AF148: 0 | AG148: 0 | AH148: 0 | AI148: 0 | AJ148: 0 | AK148: 0 | AL148: 0 | AM148: 0 | AN148: 0
A149: =ROW() -> 149 | D149: Buildings | O149: 0 | P149: 0 | Q149: 0 | R149: 0 | S149: 0 | T149: 0 | U149: 0 | V149: 0 | W149: 0 | X149: 0 | Y149: 0 | Z149: 0 | AA149: 0 | AB149: 0 | AC149: 0 | AD149: 0 | AE149: 0 | AF149: 0 | AG149: 0 | AH149: 0 | AI149: 0 | AJ149: 0 | AK149: 0 | AL149: 0 | AM149: 0 | AN149: 0
A150: =ROW() -> 150 | D150: Meter and Services Pipes | O150: 0 | P150: 0 | Q150: 0 | R150: 0 | S150: 0 | T150: 0 | U150: 0 | V150: 0 | W150: 0 | X150: 0 | Y150: 0 | Z150: 0 | AA150: 0 | AB150: 0 | AC150: 0 | AD150: 0 | AE150: 0 | AF150: 0 | AG150: 0 | AH150: 0 | AI150: 0 | AJ150: 0 | AK150: 0 | AL150: 0 | AM150: 0 | AN150: 0
A151: =ROW() -> 151 | D151: Equipment & Vehicles | O151: 0 | P151: 0 | Q151: 0 | R151: 0 | S151: 0 | T151: 0 | U151: 0 | V151: 0 | W151: 0 | X151: 0 | Y151: 0 | Z151: 0 | AA151: 0 | AB151: 0 | AC151: 0 | AD151: 0 | AE151: 0 | AF151: 0 | AG151: 0 | AH151: 0 | AI151: 0 | AJ151: 0 | AK151: 0 | AL151: 0 | AM151: 0 | AN151: 0
A152: =ROW() -> 152 | D152: Vehicle | O152: 0 | P152: 0 | Q152: 0 | R152: 0 | S152: 0 | T152: 0 | U152: 0 | V152: 0 | W152: 0 | X152: 0 | Y152: 0 | Z152: 0 | AA152: 0 | AB152: 0 | AC152: 0 | AD152: 0 | AE152: 0 | AF152: 0 | AG152: 0 | AH152: 0 | AI152: 0 | AJ152: 0 | AK152: 0 | AL152: 0 | AM152: 0 | AN152: 0
A153: =ROW() -> 153 | D153: Information Technology | O153: 0 | P153: 0 | Q153: 0 | R153: 0 | S153: 0 | T153: 0 | U153: 0 | V153: 0 | W153: 0 | X153: 0 | Y153: 0 | Z153: 0 | AA153: 0 | AB153: 0 | AC153: 0 | AD153: 0 | AE153: 0 | AF153: 0 | AG153: 0 | AH153: 0 | AI153: 0 | AJ153: 0 | AK153: 0 | AL153: 0 | AM153: 0 | AN153: 0
A154: =ROW() -> 154 | D154: Telemetry and Monitoring
A155: =ROW() -> 155 | D155: FRC | O155: 0 | P155: 0 | Q155: 0 | R155: 0 | S155: 0 | T155: 0 | U155: 0 | V155: 0 | W155: 0 | X155: 0 | Y155: 0 | Z155: 0 | AA155: 0 | AB155: 0 | AC155: 0 | AD155: 0 | AE155: 0 | AF155: 0 | AG155: 0 | AH155: 0 | AI155: 0 | AJ155: 0 | AK155: 0 | AL155: 0 | AM155: 0 | AN155: 0
A156: =ROW() -> 156 | D156: Land | O156: 0 | P156: 0 | Q156: 0 | R156: 0 | S156: 0 | T156: 0 | U156: 0 | V156: 0 | W156: 0 | X156: 0 | Y156: 0 | Z156: 0 | AA156: 0 | AB156: 0 | AC156: 0 | AD156: 0 | AE156: 0 | AF156: 0 | AG156: 0 | AH156: 0 | AI156: 0 | AJ156: 0 | AK156: 0 | AL156: 0 | AM156: 0 | AN156: 0
A157: =ROW() -> 157 | D157: Equity Raising Cost | O157: 0 | P157: 0 | Q157: 0 | R157: 0 | S157: 0 | T157: 0 | U157: 0 | V157: 0 | W157: 0 | X157: 0 | Y157: 0 | Z157: 0 | AA157: 0 | AB157: 0 | AC157: 0 | AD157: 0 | AE157: 0 | AF157: 0 | AG157: 0 | AH157: 0 | AI157: 0 | AJ157: 0 | AK157: 0 | AL157: 0 | AM157: 0 | AN157: 0
A158: =ROW() -> 158 | D158: Total | O158: =SUM(O142:O157) -> 0 | P158: 0 | Q158: 0 | R158: 0 | S158: 0 | T158: 0 | U158: 0 | V158: 0 | W158: 0 | X158: 0 | Y158: 0 | Z158: 0 | AA158: 0 | AB158: 0 | AC158: 0 | AD158: 0 | AE158: 0 | AF158: 0 | AG158: 0 | AH158: 0 | AI158: 0 | AJ158: 24.87 | AK158: 17.03 | AL158: 16.49 | AM158: 14.19 | AN158: 14.65
A159: =ROW() -> 159 | C159: Redundant Assets and accelerated depreciation | AL159: ="Forecast 5 [m$ "&$G$51&"]" -> Forecast 5 [m$ 31/12/2023]
A160: =ROW() -> 160 | D160: High Pressure Mains - Steel | AJ160: =AJ142*$AH$51 -> 24.87 | AK160: =AK142*$AH$51 -> 17.03 | AL160: 16.49 | AM160: 14.19 | AN160: 14.65
A161: =ROW() -> 161 | D161: High Pressure Mains - PE | AJ161: =AJ143*$AH$51 -> 0 | AK161: 0 | AL161: 0 | AM161: 0 | AN161: 0
A162: =ROW() -> 162 | D162: Medium Pressure Mains | AJ162: =AJ144*$AH$51 -> 0 | AK162: 0 | AL162: 0 | AM162: 0 | AN162: 0
A163: =ROW() -> 163 | D163: Medium / Low Pressure Mains | AJ163: =AJ145*$AH$51 -> 0 | AK163: 0 | AL163: 0 | AM163: 0 | AN163: 0
A164: =ROW() -> 164 | D164: Low Pressure Mains | AJ164: =AJ146*$AH$51 -> 0 | AK164: 0 | AL164: 0 | AM164: 0 | AN164: 0
A165: =ROW() -> 165 | D165: Regulators | AJ165: =AJ147*$AH$51 -> 0 | AK165: 0 | AL165: 0 | AM165: 0 | AN165: 0
A166: =ROW() -> 166 | D166: Secondary Gate Stations | AJ166: =AJ148*$AH$51 -> 0 | AK166: 0 | AL166: 0 | AM166: 0 | AN166: 0
A167: =ROW() -> 167 | D167: Buildings | AJ167: =AJ149*$AH$51 -> 0 | AK167: 0 | AL167: 0 | AM167: 0 | AN167: 0
A168: =ROW() -> 168 | D168: Meter and Services Pipes | AJ168: =AJ150*$AH$51 -> 0 | AK168: 0 | AL168: 0 | AM168: 0 | AN168: 0
A169: =ROW() -> 169 | D169: Equipment & Vehicles | AJ169: =AJ151*$AH$51 -> 0 | AK169: 0 | AL169: 0 | AM169: 0 | AN169: 0
A170: =ROW() -> 170 | D170: Vehicle | AJ170: =AJ152*$AH$51 -> 0 | AK170: 0 | AL170: 0 | AM170: 0 | AN170: 0
A171: =ROW() -> 171 | D171: Information Technology | AJ171: =AJ153*$AH$51 -> 0 | AK171: 0 | AL171: 0 | AM171: 0 | AN171: 0
A172: =ROW() -> 172 | D172: Telemetry and Monitoring | AJ172: =AJ154*$AH$51 -> 0 | AK172: 0 | AL172: 0 | AM172: 0 | AN172: 0
A173: =ROW() -> 173 | D173: FRC | AJ173: =AJ155*$AH$51 -> 0 | AK173: 0 | AL173: 0 | AM173: 0 | AN173: 0
A174: =ROW() -> 174 | D174: Land | AJ174: =AJ156*$AH$51 -> 0 | AK174: 0 | AL174: 0 | AM174: 0 | AN174: 0
A175: =ROW() -> 175 | D175: Equity Raising Cost | AJ175: =AJ157*$AH$51 -> 0 | AK175: 0 | AL175: 0 | AM175: 0 | AN175: 0
A176: =ROW() -> 176 | D176: Total | O176: =SUM(O160:O175) -> 0 | P176: =SUM(P160:P175) -> 0 | Q176: =SUM(Q160:Q175) -> 0 | R176: =SUM(R160:R175) -> 0 | S176: =SUM(S160:S175) -> 0 | T176: =SUM(T160:T175) -> 0 | U176: =SUM(U160:U175) -> 0 | V176: =SUM(V160:V175) -> 0 | W176: =SUM(W160:W175) -> 0 | X176: =SUM(X160:X175) -> 0 | Y176: =SUM(Y160:Y175) -> 0 | Z176: =SUM(Z160:Z175) -> 0 | AA176: =SUM(AA160:AA175) -> 0 | AB176: =SUM(AB160:AB175) -> 0 | AC176: =SUM(AC160:AC175) -> 0 | AD176: =SUM(AD160:AD175) -> 0 | AE176: =SUM(AE160:AE175) -> 0 | AF176: =SUM(AF160:AF175) -> 0 | AG176: =SUM(AG160:AG175) -> 0 | AH176: =SUM(AH160:AH175) -> 0 | AI176: =SUM(AI160:AI175) -> 0 | AJ176: 24.87 | AK176: 17.03 | AL176: 16.49 | AM176: 14.19 | AN176: 14.65
A177: Asset Disposal (ICB)
A178: =ROW() -> 178 | N178: WAGN Inflation from 2005 to 2009 OD to 31/12/09 | O178: 1.159945318 | P178: 1.10770235 | Q178: 1.074050633 | R178: 1.027861902 | S178: 1.013739546
A179: =ROW() -> 179 | C179: Asset Disposal (ICB) | N179: Using Perth Inflation and (Estim Dec)/(Actual Jun) Adjustment for 2005-2009 | O179: WAGN Actual 2 [m$ 31/12/2009] | T179: Actual 3 [m$ 30/6/2014] | Z179: Actual 4 [m$ 31/12/2019] | AD179: Forecast [m$ 31/12/2019] | AG179: Forecast 5 [m$ 31/12/2019] | AL179: Forecast 5 [m$ 31/12/2023]
A180: =ROW() -> 180 | D180: High Pressure Mains - Steel | O180: 0 | P180: 0 | Q180: 0 | R180: 0 | S180: 0 | T180: 0 | U180: 0 | V180: 0 | W180: 0 | X180: 0 | Y180: 0 | Z180: 0 | AA180: 0 | AB180: 0 | AC180: 0 | AD180: 0 | AE180: 0 | AF180: 0 | AG180: 0 | AH180: 0 | AI180: 0 | AJ180: 0 | AK180: 0 | AL180: 0 | AM180: 0 | AN180: 0
A181: =ROW() -> 181 | D181: High Pressure Mains - PE | O181: 0 | P181: 0 | Q181: 0 | R181: 0 | S181: 0 | T181: 0 | U181: 0 | V181: 0 | W181: 0 | X181: 0 | Y181: 0 | Z181: 0 | AA181: 0 | AB181: 0 | AC181: 0 | AD181: 0 | AE181: 0 | AF181: 0 | AG181: 0 | AH181: 0 | AI181: 0 | AJ181: 0 | AK181: 0 | AL181: 0 | AM181: 0 | AN181: 0
A182: =ROW() -> 182 | D182: Medium Pressure Mains | O182: 0 | P182: 0 | Q182: 0 | R182: 0 | S182: 0 | T182: 0 | U182: 0 | V182: 0 | W182: 0 | X182: 0 | Y182: 0 | Z182: 0 | AA182: 0 | AB182: 0 | AC182: 0 | AD182: 0 | AE182: 0 | AF182: 0 | AG182: 0 | AH182: 0 | AI182: 0 | AJ182: 0 | AK182: 0 | AL182: 0 | AM182: 0 | AN182: 0
A183: =ROW() -> 183 | D183: Medium / Low Pressure Mains | O183: 0 | P183: 0 | Q183: 0 | R183: 0 | S183: 0 | T183: 0 | U183: 0 | V183: 0 | W183: 0 | X183: 0 | Y183: 0 | Z183: 0 | AA183: 0 | AB183: 0 | AC183: 0 | AD183: 0 | AE183: 0 | AF183: 0 | AG183: 0 | AH183: 0 | AI183: 0 | AJ183: 0 | AK183: 0 | AL183: 0 | AM183: 0 | AN183: 0
A184: =ROW() -> 184 | D184: Low Pressure Mains | O184: 0 | P184: 0 | Q184: 0 | R184: 0 | S184: 0 | T184: 0 | U184: 0 | V184: 0 | W184: 0 | X184: 0 | Y184: 0 | Z184: 0 | AA184: 0 | AB184: 0 | AC184: 0 | AD184: 0 | AE184: 0 | AF184: 0 | AG184: 0 | AH184: 0 | AI184: 0 | AJ184: 0 | AK184: 0 | AL184: 0 | AM184: 0 | AN184: 0
A185: =ROW() -> 185 | D185: Regulators | O185: 0 | P185: 0 | Q185: 0 | R185: 0 | S185: 0 | T185: 0 | U185: 0 | V185: 0 | W185: 0 | X185: 0 | Y185: 0 | Z185: 0 | AA185: 0 | AB185: 0 | AC185: 0 | AD185: 0 | AE185: 0 | AF185: 0 | AG185: 0 | AH185: 0 | AI185: 0 | AJ185: 0 | AK185: 0 | AL185: 0 | AM185: 0 | AN185: 0
A186: =ROW() -> 186 | D186: Secondary Gate Stations | O186: 0 | P186: 0 | Q186: 0 | R186: 0 | S186: 0 | T186: 0 | U186: 0 | V186: 0 | W186: 0 | X186: 0 | Y186: 0 | Z186: 0 | AA186: 0 | AB186: 0 | AC186: 0 | AD186: 0 | AE186: 0 | AF186: 0 | AG186: 0 | AH186: 0 | AI186: 0 | AJ186: 0 | AK186: 0 | AL186: 0 | AM186: 0 | AN186: 0
A187: =ROW() -> 187 | D187: Buildings | O187: 0 | P187: 0 | Q187: 0 | R187: 0 | S187: 1.042 | T187: 0 | U187: 0 | V187: 0 | W187: 0 | X187: 0 | Y187: 0 | Z187: 0 | AA187: 0 | AB187: 0 | AC187: 0 | AD187: 0 | AE187: 0 | AF187: 0 | AG187: 0 | AH187: 0 | AI187: 0 | AJ187: 0 | AK187: 0 | AL187: 0 | AM187: 0 | AN187: 0
A188: =ROW() -> 188 | D188: Meter and Services Pipes | O188: 0 | P188: 0 | Q188: 0 | R188: 0 | S188: 0 | T188: 0 | U188: 0 | V188: 0 | W188: 0 | X188: 0 | Y188: 0 | Z188: 0 | AA188: 0 | AB188: 0 | AC188: 0 | AD188: 0 | AE188: 0 | AF188: 0 | AG188: 0 | AH188: 0 | AI188: 0 | AJ188: 0 | AK188: 0 | AL188: 0 | AM188: 0 | AN188: 0
A189: =ROW() -> 189 | D189: Equipment & Vehicles | O189: 0 | P189: 0 | Q189: 0 | R189: 0 | S189: 0 | T189: 0 | U189: 0 | V189: 0 | W189: 0 | X189: 0 | Y189: 0 | Z189: 0 | AA189: 0 | AB189: 0 | AC189: 0 | AD189: 0 | AE189: 0 | AF189: 0 | AG189: 0 | AH189: 0 | AI189: 0 | AJ189: 0 | AK189: 0 | AL189: 0 | AM189: 0 | AN189: 0
A190: =ROW() -> 190 | D190: Vehicle | O190: 0 | P190: 0 | Q190: 0 | R190: 0 | S190: 0 | T190: 0 | U190: 0 | V190: 0 | W190: 0 | X190: 0 | Y190: 0 | Z190: 0 | AA190: 0 | AB190: 0 | AC190: 0 | AD190: 0 | AE190: 0 | AF190: 0 | AG190: 0 | AH190: 0 | AI190: 0 | AJ190: 0 | AK190: 0 | AL190: 0 | AM190: 0 | AN190: 0
A191: =ROW() -> 191 | D191: Information Technology | O191: 0 | P191: 0 | Q191: 0 | R191: 0 | S191: 0 | T191: 0 | U191: 0 | V191: 0 | W191: 0 | X191: 0 | Y191: 0 | Z191: 0 | AA191: 0 | AB191: 0 | AC191: 0 | AD191: 0 | AE191: 0 | AF191: 0 | AG191: 0 | AH191: 0 | AI191: 0 | AJ191: 0 | AK191: 0 | AL191: 0 | AM191: 0 | AN191: 0
A192: =ROW() -> 192 | D192: Telemetry and Monitoring
A193: =ROW() -> 193 | D193: FRC | O193: 0 | P193: 0 | Q193: 0 | R193: 0 | S193: 0 | T193: 0 | U193: 0 | V193: 0 | W193: 0 | X193: 0 | Y193: 0 | Z193: 0 | AA193: 0 | AB193: 0 | AC193: 0 | AD193: 0 | AE193: 0 | AF193: 0 | AG193: 0 | AH193: 0 | AI193: 0 | AJ193: 0 | AK193: 0 | AL193: 0 | AM193: 0 | AN193: 0
A194: =ROW() -> 194 | D194: Land | O194: 0 | P194: 0 | Q194: 0 | R194: 0 | S194: 3.428 | T194: 0 | U194: 0 | V194: 0 | W194: 0 | X194: 0 | Y194: 0 | Z194: 0 | AA194: 0 | AB194: 0 | AC194: 0 | AD194: 0 | AE194: 0 | AF194: 0 | AG194: 0 | AH194: 0 | AI194: 0 | AJ194: 0 | AK194: 0 | AL194: 0 | AM194: 0 | AN194: 0
A195: =ROW() -> 195 | D195: Equity Raising Cost | O195: 0 | P195: 0 | Q195: 0 | R195: 0 | S195: 0 | T195: 0 | U195: 0 | V195: 0 | W195: 0 | X195: 0 | Y195: 0 | Z195: 0 | AA195: 0 | AB195: 0 | AC195: 0 | AD195: 0 | AE195: 0 | AF195: 0 | AG195: 0 | AH195: 0 | AI195: 0 | AJ195: 0 | AK195: 0 | AL195: 0 | AM195: 0 | AN195: 0
A196: =ROW() -> 196 | D196: Total | O196: =SUM(O180:O195) -> 0 | P196: 0 | Q196: 0 | R196: 0 | S196: 4.47 | T196: 0 | U196: 0 | V196: 0 | W196: 0 | X196: 0 | Y196: 0 | Z196: 0 | AA196: 0 | AB196: 0 | AC196: 0 | AD196: 0 | AE196: 0 | AF196: 0 | AG196: 0 | AH196: 0 | AI196: 0 | AJ196: 0 | AK196: 0 | AL196: 0 | AM196: 0 | AN196: 0
A197: =ROW() -> 197 | C197: Asset Disposal (ICB) | O197: ="Actual 2 [m$ "&$G$51&"]" -> Actual 2 [m$ 31/12/2023] | T197: ="Actual 3 [m$ "&$G$51&"]" -> Actual 3 [m$ 31/12/2023] | Z197: Actual 4 [m$ 31/12/2019] | AD197: Forecast [m$ 31/12/2019] | AG197: ="Forecast 5 [m$ "&$G$51&"]" -> Forecast 5 [m$ 31/12/2023] | AL197: ="Forecast 5 [m$ "&$G$51&"]" -> Forecast 5 [m$ 31/12/2023]
A198: =ROW() -> 198 | D198: High Pressure Mains - Steel | O198: =O180/$S$178*$S$51 -> 0 | P198: 0 | Q198: 0 | R198: 0 | S198: 0 | T198: =T180*$X$51 -> 0 | U198: 0 | V198: 0 | W198: 0 | X198: 0 | Y198: 0 | Z198: 0 | AA198: 0 | AB198: 0 | AC198: 0 | AD198: 0 | AE198: 0 | AF198: 0 | AG198: 0 | AH198: 0 | AI198: 0 | AJ198: =AJ180*$AH$51 -> 0 | AK198: =AK180*$AH$51 -> 0 | AL198: 0 | AM198: 0 | AN198: 0
A199: =ROW() -> 199 | D199: High Pressure Mains - PE | O199: 0 | P199: 0 | Q199: 0 | R199: 0 | S199: 0 | T199: =T181*$X$51 -> 0 | U199: 0 | V199: 0 | W199: 0 | X199: 0 | Y199: 0 | Z199: 0 | AA199: 0 | AB199: 0 | AC199: 0 | AD199: 0 | AE199: 0 | AF199: 0 | AG199: 0 | AH199: 0 | AI199: 0 | AJ199: =AJ181*$AH$51 -> 0 | AK199: 0 | AL199: 0 | AM199: 0 | AN199: 0
A200: =ROW() -> 200 | D200: Medium Pressure Mains | O200: 0 | P200: 0 | Q200: 0 | R200: 0 | S200: 0 | T200: =T182*$X$51 -> 0 | U200: 0 | V200: 0 | W200: 0 | X200: 0 | Y200: 0 | Z200: 0 | AA200: 0 | AB200: 0 | AC200: 0 | AD200: 0 | AE200: 0 | AF200: 0 | AG200: 0 | AH200: 0 | AI200: 0 | AJ200: =AJ182*$AH$51 -> 0 | AK200: 0 | AL200: 0 | AM200: 0 | AN200: 0
... 1630 more rows

Sheet CoS
A1: =Main!A1 -> ERA, GDS Tariff Model, Draft Decision, April 2024
A2: Building Block of Total Revenue Required
A3: Ref | C3: =COLUMN() -> 3 | D3: =COLUMN() -> 4 | E3: =COLUMN() -> 5 | F3: =COLUMN() -> 6 | G3: =COLUMN() -> 7 | H3: =COLUMN() -> 8 | I3: =COLUMN() -> 9 | J3: =COLUMN() -> 10 | K3: =COLUMN() -> 11 | L3: =COLUMN() -> 12 | M3: =COLUMN() -> 13 | N3: =COLUMN() -> 14 | O3: =COLUMN() -> 15 | P3: =COLUMN() -> 16 | Q3: =COLUMN() -> 17 | R3: =COLUMN() -> 18 | S3: =COLUMN() -> 19 | T3: =COLUMN() -> 20 | U3: =COLUMN() -> 21 | V3: =COLUMN() -> 22 | W3: =COLUMN() -> 23 | X3: =COLUMN() -> 24 | Y3: =COLUMN() -> 25 | Z3: =COLUMN() -> 26 | AA3: =COLUMN() -> 27 | AB3: =COLUMN() -> 28 | AC3: =COLUMN() -> 29 | AD3: =COLUMN() -> 30 | AE3: =COLUMN() -> 31 | AF3: =COLUMN() -> 32 | AG3: =COLUMN() -> 33 | AH3: =COLUMN() -> 34 | AI3: =COLUMN() -> 35 | AJ3: =COLUMN() -> 36 | AK3: =COLUMN() -> 37 | AL3: =COLUMN() -> 38 | AM3: =COLUMN() -> 39 | AN3: =COLUMN() -> 40
A4: Regulatory Period | J4: 1 | K4: 1 | L4: 1 | M4: 1 | N4: 1 | O4: 2 | P4: 2 | Q4: 2 | R4: 2 | S4: 2 | T4: 3 | U4: 3 | V4: 3 | W4: 3 | X4: 3 | Y4: 4 | Z4: 4 | AA4: 4 | AB4: 4 | AC4: 4 | AD4: 4 | AE4: 5 | AF4: 5 | AG4: 5 | AH4: 5 | AI4: 5 | AJ4: 5 | AK4: 5 | AL4: 5 | AM4: 5 | AN4: 5
A5: Year ending | I5: 1999 | J5: 2000 | K5: 2001 | L5: 2002 | M5: 2003 | N5: 2004 | O5: 2005 | P5: 2006 | Q5: 2007 | R5: 2008 | S5: =1+R5 -> 2009 | T5: =1+S5 -> 2010 | U5: =T5+1 -> 2011 | V5: =U5+1 -> 2012 | W5: =V5+1 -> 2013 | X5: =W5+1 -> 2014 | Y5: 2014 | Z5: =Y5+1 -> 2015 | AA5: =Z5+1 -> 2016 | AB5: 2017 | AC5: 2018 | AD5: 2019 | AE5: 2020 | AF5: 2021 | AG5: 2022 | AH5: 2023 | AI5: 2024 | AJ5: =AI5+1 -> 2025 | AK5: =AJ5+1 -> 2026 | AL5: =AK5+1 -> 2027 | AM5: =AL5+1 -> 2028 | AN5: =AM5+1 -> 2029
A6: Months | I6: 1 to 12 | J6: 1 to 12 | K6: 1 to 12 | L6: 1 to 12 | M6: 1 to 12 | N6: 1 to 12 | O6: 1 to 12 | P6: 1 to 12 | Q6: 1 to 12 | R6: 1 to 12 | S6: 1 to 12 | T6: 1 to 6 | U6: 7 to 6 | V6: 7 to 6 | W6: 7 to 6 | X6: 7 to 6 | Y6: 7 to 12 | Z6: 1 to 12 | AA6: 1 to 12 | AB6: 1 to 12 | AC6: 1 to 12 | AD6: 1 to 12 | AE6: 1 to 12 | AF6: 1 to 12 | AG6: 1 to 12 | AH6: 1 to 12 | AI6: 1 to 12 | AJ6: 1 to 12 | AK6: 1 to 12 | AL6: 1 to 12 | AM6: 1 to 12 | AN6: 1 to 12
A7: Days | I7: =Input!I$8 -> 365 | J7: =Input!J$8 -> 366 | K7: =Input!K$8 -> 365 | L7: =Input!L$8 -> 365 | M7: =Input!M$8 -> 365 | N7: =Input!N$8 -> 366 | O7: =Input!O$8 -> 365 | P7: =Input!P$8 -> 365 | Q7: =Input!Q$8 -> 365 | R7: =Input!R$8 -> 366 | S7: =Input!S$8 -> 365 | T7: =Input!T$8 -> 181 | U7: =Input!U$8 -> 365 | V7: =Input!V$8 -> 366 | W7: =Input!W$8 -> 365 | X7: =Input!X$8 -> 365 | Y7: =Input!Y$8 -> 184 | Z7: =Input!Z$8 -> 365 | AA7: =Input!AA$8 -> 366 | AB7: =Input!AB$8 -> 365 | AC7: =Input!AC$8 -> 365 | AD7: =Input!AD$8 -> 365 | AE7: =Input!AE$8 -> 366 | AF7: =Input!AF$8 -> 365 | AG7: =Input!AG$8 -> 365 | AH7: =Input!AH$8 -> 365 | AI7: =Input!AI$8 -> 366 | AJ7: =Input!AJ$8 -> 365 | AK7: =Input!AK$8 -> 365 | AL7: =Input!AL$8 -> 365 | AM7: =Input!AM$8 -> 366 | AN7: =Input!AN$8 -> 365
A8: Year portion | I8: =Input!I$9 -> 1 | J8: =Input!J$9 -> 1 | K8: =Input!K$9 -> 1 | L8: =Input!L$9 -> 1 | M8: =Input!M$9 -> 1 | N8: =Input!N$9 -> 1 | O8: =Input!O$9 -> 1 | P8: =Input!P$9 -> 1 | Q8: =Input!Q$9 -> 1 | R8: =Input!R$9 -> 1 | S8: =Input!S$9 -> 1 | T8: =Input!T$9 -> 0.495890411 | U8: =Input!U$9 -> 1 | V8: =Input!V$9 -> 1 | W8: =Input!W$9 -> 1 | X8: =Input!X$9 -> 1 | Y8: =Input!Y$9 -> 0.504109589 | Z8: =Input!Z$9 -> 1 | AA8: =Input!AA$9 -> 1 | AB8: =Input!AB$9 -> 1 | AC8: =Input!AC$9 -> 1 | AD8: =Input!AD$9 -> 1 | AE8: =Input!AE$9 -> 1 | AF8: =Input!AF$9 -> 1 | AG8: =Input!AG$9 -> 1 | AH8: =Input!AH$9 -> 1 | AI8: =Input!AI$9 -> 1 | AJ8: =Input!AJ$9 -> 1 | AK8: =Input!AK$9 -> 1 | AL8: =Input!AL$9 -> 1 | AM8: =Input!AM$9 -> 1 | AN8: =Input!AN$9 -> 1
A9: Financial Parameters
A10: =ROW() -> 10 | C10: Modelled Inflation | J10: Actual 1 | O10: Actual 2 | T10: Actual 3 | AD10: Forecast | AG10: Forecast 5 | AL10: Forecast 6
A11: =ROW() -> 11 | D11: Inflation | J11: =Input!J$48 -> 0.05801772764 | K11: =Input!K$48 -> 0.03122619954 | L11: =Input!L$48 -> 0.03028064993 | M11: =Input!M$48 -> 0.02365591398 | N11: =Input!N$48 -> 0.02591036415 | O11: =Input!O$48 -> 0.02798634812 | P11: =Input!P$48 -> 0.03253652058 | Q11: =Input!Q$48 -> 0.02958199357 | R11: =Input!R$48 -> 0.03685196752 | S11: =Input!S$48 -> 0.02108433735 | T11: =Load_Tariffs!T14 -> 0.01533923304 | U11: =Load_Tariffs!W14 -> 0.03602556653 | V11: =Load_Tariffs!X14 -> 0.01177790241 | W11: =Load_Tariffs!Y14 -> 0.02390438247 | X11: =Load_Tariffs!Z14 -> 0.03015564202 | Y11: =Load_Tariffs!AA14 -> 0.006610009443 | Z11: =Load_Tariffs!AD14 -> 0.01688555347 | AA11: =Load_Tariffs!AE14 -> 0.0147601476 | AB11: =Load_Tariffs!AF14 -> 0.01909090909 | AC11: =Load_Tariffs!AG14 -> 0.0178412132 | AD11: =Load_Tariffs!AH14 -> 0.01840490798 | AE11: =Load_Tariffs!AI14 -> 0.008605851979 | AF11: =Load_Tariffs!AJ14 -> 0.03498293515 | AG11: =Load_Tariffs!AK14 -> 0.07831821929 | AH11: =Load_Tariffs!AL14 -> 0.04051987768 | AI11: =Load_Tariffs!AM14 -> 0.038 | AJ11: =Load_Tariffs!AN14 -> 0.0251 | AK11: =Load_Tariffs!AO14 -> 0.0251 | AL11: =Load_Tariffs!AP14 -> 0.0251 | AM11: =Load_Tariffs!AQ14 -> 0.0251 | AN11: =Load_Tariffs!AR14 -> 0.0251
A12: =ROW() -> 12 | D12: Inflation Factor (convert to nominal $) | J12: =Input!J$52 -> 0.5369128282 | K12: =Input!K$52 -> 0.5536785753 | L12: =Input!L$52 -> 0.5704443224 | M12: =Input!M$52 -> 0.5839387043 | N12: =Input!N$52 -> 0.5990687687 | O12: =Input!O$52 -> 0.6158345158 | P12: =Input!P$52 -> 0.6358716282 | Q12: =Input!Q$52 -> 0.6546819787 | R12: =Input!R$52 -> 0.6788082977 | S12: =Input!S$52 -> 0.6931205208 | T12: =Load_Tariffs!T17 -> 0.703752458 | U12: =Load_Tariffs!W17 -> 0.729105539 | V12: =Load_Tariffs!X17 -> 0.7376928729 | W12: =Load_Tariffs!Y17 -> 0.7553269655 | X12: =Load_Tariffs!Z17 -> 0.778104335 | Y12: =Load_Tariffs!AA17 -> 0.783247612 | Z12: =Load_Tariffs!AD17 -> 0.7964731815 | AA12: =Load_Tariffs!AE17 -> 0.8082292432 | AB12: =Load_Tariffs!AF17 -> 0.8236590742 | AC12: =Load_Tariffs!AG17 -> 0.8383541514 | AD12: =Load_Tariffs!AH17 -> 0.8537839824 | AE12: =Load_Tariffs!AI17 -> 0.8611315209 | AF12: =Load_Tariffs!AJ17 -> 0.8912564291 | AG12: =Load_Tariffs!AK17 -> 0.9610580456 | AH12: =Load_Tariffs!AL17 -> 1 | AI12: =Load_Tariffs!AM17 -> 1.038 | AJ12: =Load_Tariffs!AN17 -> 1.0640538 | AK12: =Load_Tariffs!AO17 -> 1.09076155 | AL12: =Load_Tariffs!AP17 -> 1.118139665 | AM12: =Load_Tariffs!AQ17 -> 1.146204971 | AN12: =Load_Tariffs!AR17 -> 1.174974716
A13: =ROW() -> 13 | C13: Real Post Tax WACC
A14: =ROW() -> 14 | D14: WACC | T14: =Revenue!T16 -> 0.04527784254 | U14: =Revenue!W16 -> 0.06569980507 | V14: =Revenue!X16 -> 0.06569980507 | W14: =Revenue!Y16 -> 0.06569980507 | X14: =Revenue!Z16 -> 0.06569980507 | Y14: =Revenue!AA16 -> 0.0198101078 | Z14: =Revenue!AD16 -> 0.04010991168 | AA14: =Revenue!AE16 -> 0.03990382728 | AB14: =Revenue!AF16 -> 0.03907360157 | AC14: =Revenue!AG16 -> 0.03532286555 | AD14: =Revenue!AH16 -> 0.03577466265 | AE14: =Revenue!AI16 -> 0.02981411904 | AF14: =Revenue!AJ16 -> 0.02965097884 | AG14: =Revenue!AK16 -> 0.02877545976 | AH14: =Revenue!AL16 -> 0.02831322919 | AI14: =Revenue!AM16 -> 0.02813377497 | AJ14: =Revenue!AN16 -> 0.04705053166 | AK14: =Revenue!AO16 -> 0.04705053166 | AL14: =Revenue!AP16 -> 0.04705053166 | AM14: =Revenue!AQ16 -> 0.04705053166 | AN14: =Revenue!AR16 -> 0.04705053166
A15: =ROW() -> 15 | D15: Discounting Factor | T15: =Revenue!T17 -> 0.9566834379 | U15: =Revenue!W17 -> 0.8977044318 | V15: =Revenue!X17 -> 0.8423614488 | W15: =Revenue!Y17 -> 0.7904303302 | X15: =Revenue!Z17 -> 0.7417007364 | Y15: =Revenue!AA17 -> 0.9805747093 | Z15: =Revenue!AD17 -> 0.9427606624 | AA15: =Revenue!AE17 -> 0.9065844722 | AB15: =Revenue!AF17 -> 0.8724930273 | AC15: =Revenue!AG17 -> 0.8427255461 | AD15: =Revenue!AH17 -> 0.8136186147 | AE15: =Revenue!AI17 -> 0.7900635655 | AF15: =Revenue!AJ17 -> 0.7673120132 | AG15: =Revenue!AK17 -> 0.7458498411 | AH15: =Revenue!AL17 -> 0.8914666533 | AI15: =Revenue!AM17 -> 0.8670726271 | AJ15: =Revenue!AN17 -> 0.9550637431 | AK15: =Revenue!AO17 -> 0.9121467534 | AL15: =Revenue!AP17 -> 0.8711582926 | AM15: =Revenue!AQ17 -> 0.8320116998 | AN15: =Revenue!AR17 -> 0.7946242083
A16: =ROW() -> 16 | C16: Nominal Post Tax WACC
A17: =ROW() -> 17 | D17: WACC | T17: =Revenue!T19 -> 0.04527784254 | U17: =Revenue!W19 -> 0.093408 | V17: =Revenue!X19 -> 0.093408 | W17: =Revenue!Y19 -> 0.093408 | X17: =Revenue!Z19 -> 0.093408 | Y17: =Revenue!AA19 -> 0.02953234787 | Z17: =Revenue!AD19 -> 0.059872 | AA17: =Revenue!AE19 -> 0.059662 | AB17: =Revenue!AF19 -> 0.058816 | AC17: =Revenue!AG19 -> 0.054994 | AD17: =Revenue!AH19 -> 0.054838 | AE17: =Revenue!AI19 -> 0.041554 | AF17: =Revenue!AJ19 -> 0.041389 | AG17: =Revenue!AK19 -> 0.0405035 | AH17: =Revenue!AL19 -> 0.040036 | AI17: =Revenue!AM19 -> 0.0398545 | AJ17: =Revenue!AN19 -> 0.0733315 | AK17: =Revenue!AO19 -> 0.0733315 | AL17: =Revenue!AP19 -> 0.0733315 | AM17: =Revenue!AQ19 -> 0.0733315 | AN17: =Revenue!AR19 -> 0.0733315
A18: =ROW() -> 18 | D18: Discounting Factor | T18: =Revenue!T20 -> 0.9566834379 | U18: =Revenue!W20 -> 0.8749555865 | V18: =Revenue!X20 -> 0.8002096075 | W18: =Revenue!Y20 -> 0.7318490513 | X18: =Revenue!Z20 -> 0.6693284221 | Y18: =Revenue!AA20 -> 0.9713147936 | Z18: =Revenue!AD20 -> 0.9164453761 | AA18: =Revenue!AE20 -> 0.8648468814 | AB18: =Revenue!AF20 -> 0.8168056409 | AC18: =Revenue!AG20 -> 0.7742277595 | AD18: =Revenue!AH20 -> 0.7339778804 | AE18: =Revenue!AI20 -> 0.704694985 | AF18: =Revenue!AJ20 -> 0.6766875635 | AG18: =Revenue!AK20 -> 0.6503462636 | AH18: =Revenue!AL20 -> 0.8519484265 | AI18: 1 | AJ18: =Revenue!AN20 -> 0.93167861 | AK18: =Revenue!AO20 -> 0.8680250324 | AL18: =Revenue!AP20 -> 0.8087203556 | AM18: =Revenue!AQ20 -> 0.7534674568 | AN18: =Revenue!AR20 -> 0.7019895128
A19: ="Capital Base [m$ "&Input!$G$51&"] - CCA" -> Capital Base [m$ 31/12/2023] - CCA
A20: =ROW() -> 20 | C20: Asset Account
A21: =ROW() -> 21 | D21: Opening Value | O21: =Asset!O$15 -> 1109.45923 | P21: =Asset!P$15 -> 1097.780105 | Q21: =Asset!Q$15 -> 1101.648777 | R21: =Asset!R$15 -> 1105.526654 | S21: =Asset!S$15 -> 1108.365142 | T21: =Asset!T$15 -> 1128.028127 | U21: =Asset!U$15 -> 1152.086882 | V21: =Asset!V$15 -> 1171.089148 | W21: =Asset!W$15 -> 1183.533431 | X21: =Asset!X$15 -> 1245.094346 | Y21: =Asset!Y$15 -> 1292.118425 | Z21: =Asset!Z$15 -> 1320.816676 | AA21: =Asset!AA$15 -> 1360.793451 | AB21: =Asset!AB$15 -> 1407.874624 | AC21: =Asset!AC$15 -> 1451.385216 | AD21: =Asset!AD$15 -> 1492.783219 | AE21: =Asset!AE$15 -> 1509.731309 | AF21: =Asset!AF$15 -> 1526.534833 | AG21: =Asset!AG$15 -> 1544.773045 | AH21: =Asset!AH$15 -> 1561.91107 | AI21: =Asset!AI$15 -> 1575.055821 | AJ21: =Asset!AJ$15 -> 1583.79054 | AK21: =Asset!AK$15 -> 1598.619537 | AL21: =Asset!AL$15 -> 1622.42133 | AM21: =Asset!AM$15 -> 1623.473075 | AN21: =Asset!AN$15 -> 1621.307824
A22: =ROW() -> 22 | D22: Capex | O22: =Asset!O$17+Asset!O$18+Asset!O$19 -> 39.71646038 | P22: =Asset!P$17+Asset!P$18+Asset!P$19 -> 47.8526972 | Q22: =Asset!Q$17+Asset!Q$18+Asset!Q$19 -> 50.29250995 | R22: =Asset!R$17+Asset!R$18+Asset!R$19 -> 51.22887986 | S22: =Asset!S$17+Asset!S$18+Asset!S$19 -> 62.05772508 | T22: =Asset!T$17+Asset!T$18+Asset!T$19 -> 39.85352412 | U22: =Asset!U$17+Asset!U$18+Asset!U$19 -> 53.2284773 | V22: =Asset!V$17+Asset!V$18+Asset!V$19 -> 49.75479393 | W22: =Asset!W$17+Asset!W$18+Asset!W$19 -> 101.9043747 | X22: =Asset!X$17+Asset!X$18+Asset!X$19 -> 90.33615527 | Y22: =Asset!Y$17+Asset!Y$18+Asset!Y$19 -> 49.88696585 | Z22: =Asset!Z$17+Asset!Z$18+Asset!Z$19 -> 86.68368576 | AA22: =Asset!AA$17+Asset!AA$18+Asset!AA$19 -> 99.12988949 | AB22: =Asset!AB$17+Asset!AB$18+Asset!AB$19 -> 99.13449237 | AC22: =Asset!AC$17+Asset!AC$18+Asset!AC$19 -> 100.6839782 | AD22: =Asset!AD$17+Asset!AD$18+Asset!AD$19 -> 82.03803502 | AE22: =Asset!AE$17+Asset!AE$18+Asset!AE$19 -> 71.51223827 | AF22: =Asset!AF$17+Asset!AF$18+Asset!AF$19 -> 83.60511812 | AG22: =Asset!AG$17+Asset!AG$18+Asset!AG$19 -> 84.08920428 | AH22: =Asset!AH$17+Asset!AH$18+Asset!AH$19 -> 81.45704227 | AI22: =Asset!AI$17+Asset!AI$18+Asset!AI$19 -> 79.45359162 | AJ22: =Asset!AJ$17+Asset!AJ$18+Asset!AJ$19 -> 99.89834078 | AK22: =Asset!AK$17+Asset!AK$18+Asset!AK$19 -> 113.6992627 | AL22: =Asset!AL$17+Asset!AL$18+Asset!AL$19 -> 95.95880287 | AM22: =Asset!AM$17+Asset!AM$18+Asset!AM$19 -> 91.72805452 | AN22: =Asset!AN$17+Asset!AN$18+Asset!AN$19 -> 89.40458654
A23: =ROW() -> 23 | D23: Depreciation | O23: =Asset!O$21+Asset!O22 -> -41.35063613 | P23: =Asset!P$21+Asset!P22 -> -43.9840246 | Q23: =Asset!Q$21+Asset!Q22 -> -46.41463321 | R23: =Asset!R$21+Asset!R22 -> -48.39039238 | S23: =Asset!S$21+Asset!S22 -> -50.91571617 | T23: =Asset!T$21+Asset!T22 -> -15.79476906 | U23: =Asset!U$21+Asset!U22 -> -34.22621134 | V23: =Asset!V$21+Asset!V22 -> -37.31051072 | W23: =Asset!W$21+Asset!W22 -> -40.34345972 | X23: =Asset!X$21+Asset!X22 -> -43.3120766 | Y23: =Asset!Y$21+Asset!Y22 -> -21.13893455 | Z23: =Asset!Z$21+Asset!Z22 -> -46.68867912 | AA23: =Asset!AA$21+Asset!AA22 -> -51.80957427 | AB23: =Asset!AB$21+Asset!AB22 -> -55.37357597 | AC23: =Asset!AC$21+Asset!AC22 -> -58.67814504 | AD23: =Asset!AD$21+Asset!AD22 -> -64.05708461 | AE23: =Asset!AE$21+Asset!AE22 -> -54.02266823 | AF23: =Asset!AF$21+Asset!AF22 -> -64.80115823 | AG23: =Asset!AG$21+Asset!AG22 -> -66.52490904 | AH23: =Asset!AH$21+Asset!AH22 -> -67.98424035 | AI23: =Asset!AI$21+Asset!AI22 -> -70.71887207 | AJ23: =Asset!AJ$21+Asset!AJ22 -> -60.19934437 | AK23: =Asset!AK$21+Asset!AK22 -> -72.86746996 | AL23: =Asset!AL$21+Asset!AL22 -> -78.41705743 | AM23: =Asset!AM$21+Asset!AM22 -> -79.70330559 | AN23: =Asset!AN$21+Asset!AN22 -> -79.97754766
A24: =ROW() -> 24 | D24: Asset Adjustment, Redundant Assets & Asset Disposal | O24: =Asset!O$16+Asset!O$20+Asset!O$23 -> -10.04494987 | P24: =Asset!P$16+Asset!P$20+Asset!P$23 -> 0 | Q24: =Asset!Q$16+Asset!Q$20+Asset!Q$23 -> 0 | R24: =Asset!R$16+Asset!R$20+Asset!R$23 -> 0 | S24: =Asset!S$16+Asset!S$20+Asset!S$23 -> 8.520976129 | T24: =Asset!T$16+Asset!T$20+Asset!T$23 -> 0 | U24: =Asset!U$16+Asset!U$20+Asset!U$23 -> 0 | V24: =Asset!V$16+Asset!V$20+Asset!V$23 -> 0 | W24: =Asset!W$16+Asset!W$20+Asset!W$23 -> 0 | X24: =Asset!X$16+Asset!X$20+Asset!X$23 -> 0 | Y24: =Asset!Y$16+Asset!Y$20+Asset!Y$23 -> -0.04977944508 | Z24: =Asset!Z$16+Asset!Z$20+Asset!Z$23 -> -0.01823221537 | AA24: =Asset!AA$16+Asset!AA$20+Asset!AA$23 -> -0.2391422198 | AB24: =Asset!AB$16+Asset!AB$20+Asset!AB$23 -> -0.2503242379 | AC24: =Asset!AC$16+Asset!AC$20+Asset!AC$23 -> -0.6078304819 | AD24: =Asset!AD$16+Asset!AD$20+Asset!AD$23 -> -1.032859796 | AE24: =Asset!AE$16+Asset!AE$20+Asset!AE$23 -> -0.6860463073 | AF24: =Asset!AF$16+Asset!AF$20+Asset!AF$23 -> -0.5657485024 | AG24: =Asset!AG$16+Asset!AG$20+Asset!AG$23 -> -0.4262702257 | AH24: =Asset!AH$16+Asset!AH$20+Asset!AH$23 -> -0.32805066 | AI24: =Asset!AI$16+Asset!AI$20+Asset!AI$23 -> 0 | AJ24: =Asset!AJ$16+Asset!AJ$20+Asset!AJ$23 -> -24.87 | AK24: =Asset!AK$16+Asset!AK$20+Asset!AK$23 -> -17.03 | AL24: =Asset!AL$16+Asset!AL$20+Asset!AL$23 -> -16.49 | AM24: =Asset!AM$16+Asset!AM$20+Asset!AM$23 -> -14.19 | AN24: =Asset!AN$16+Asset!AN$20+Asset!AN$23 -> -14.65
A25: =ROW() -> 25 | D25: Closing Value | N25: =Asset!N$24 -> 1109.45923 | O25: =Asset!O$24 -> 1097.780105 | P25: =Asset!P$24 -> 1101.648777 | Q25: =Asset!Q$24 -> 1105.526654 | R25: =Asset!R$24 -> 1108.365142 | S25: =Asset!S$24 -> 1128.028127 | T25: =Asset!T$24 -> 1152.086882 | U25: =Asset!U$24 -> 1171.089148 | V25: =Asset!V$24 -> 1183.533431 | W25: =Asset!W$24 -> 1245.094346 | X25: =Asset!X$24 -> 1292.118425 | Y25: =Asset!Y$24 -> 1320.816676 | Z25: =Asset!Z$24 -> 1360.793451 | AA25: =Asset!AA$24 -> 1407.874624 | AB25: =Asset!AB$24 -> 1451.385216 | AC25: =Asset!AC$24 -> 1492.783219 | AD25: =Asset!AD$24 -> 1509.731309 | AE25: =Asset!AE$24 -> 1526.534833 | AF25: =Asset!AF$24 -> 1544.773045 | AG25: =Asset!AG$24 -> 1561.91107 | AH25: =Asset!AH$24 -> 1575.055821 | AI25: =Asset!AI$24 -> 1583.79054 | AJ25: =Asset!AJ$24 -> 1598.619537 | AK25: =Asset!AK$24 -> 1622.42133 | AL25: =Asset!AL$24 -> 1623.473075 | AM25: =Asset!AM$24 -> 1621.307824 | AN25: =Asset!AN$24 -> 1616.084863
A26: =ROW() -> 26 | D26: Check closing value (should be 0) | O26: =SUM(O21:O24)-O25 -> 0 | P26: =SUM(P21:P24)-P25 -> 0 | Q26: 0 | R26: 0 | S26: 0 | T26: 0 | U26: 0 | V26: 0 | W26: 0 | X26: 0 | Y26: 0 | Z26: 0 | AA26: 0 | AB26: 0 | AC26: 0 | AD26: 0 | AE26: 0 | AF26: 0 | AG26: 0 | AH26: 0 | AI26: 0 | AJ26: 0 | AK26: 0 | AL26: 0 | AM26: 0 | AN26: 0
A27: =ROW() -> 27
A28: =ROW() -> 28
A29: Capital Base [m$ nominal] - CCA
A30: =ROW() -> 30 | C30: Asset Account
A31: =ROW() -> 31 | D31: Opening Value (start period) | O31: =N37 -> 664.6423751 | P31: 676.0508794 | Q31: 700.5072018 | R31: 723.7683774 | S31: 752.367455 | T31: =S37 -> 781.8594427 | U31: 810.7839749 | V31: 853.8475843 | W31: 873.0841768 | X31: =W37 -> 940.453334 | Y31: =X37 -> 1005.402948 | Z31: =Y37 -> 1034.526508 | AA31: 1083.835489 | AB31: 1137.885442 | AC31: 1195.446603 | AD31: 1251.481009 | AE31: =AD37 -> 1288.98441 | AF31: 1314.547263 | AG31: =AF37 -> 1376.788907 | AH31: =AG37 -> 1501.0872 | AI31: =AH37 -> 1575.055821 | AJ31: =AI37 -> 1643.974581 | AK31: =AJ37 -> 1701.017193 | AL31: =AK37 -> 1769.674805 | AM31: =AL37 -> 1815.269641 | AN31: =AM37 -> 1858.351087
A32: =ROW() -> 32 | D32: Inflation on Opening Value (start period) | O32: =O31*O$11 -> 18.60091289 | P32: 21.99634335 | Q32: 20.72239954 | R32: 26.67228874 | S32: 15.86316923 | T32: 11.99312419 | U32: 29.20895203 | V32: 10.05653352 | W32: 20.87053809 | X32: 28.35997408 | Y32: 6.645722978 | Z32: 17.46855266 | AA32: 15.9975718 | AB32: 21.72326753 | AC32: 21.32821772 | AD32: 23.0333928 | AE32: =AE31*AE$11 -> 11.09280903 | AF32: 45.98672164 | AG32: 107.8276556 | AH32: 60.82386972 | AI32: 59.85212119 | AJ32: =AJ31*AJ$11 -> 41.26376198 | AK32: 42.69553154 | AL32: 44.4188376 | AM32: 45.56326798 | AN32: 46.64461229
A33: =ROW() -> 33 | D33: Opening Value (end period) | O33: =SUM(O31:O32) -> 683.243288 | P33: =SUM(P31:P32) -> 698.0472227 | Q33: =SUM(Q31:Q32) -> 721.2296014 | R33: =SUM(R31:R32) -> 750.4406661 | S33: =SUM(S31:S32) -> 768.2306242 | T33: =SUM(T31:T32) -> 793.8525669 | U33: =SUM(U31:U32) -> 839.9929269 | V33: =SUM(V31:V32) -> 863.9041178 | W33: =SUM(W31:W32) -> 893.9547149 | X33: =SUM(X31:X32) -> 968.8133081 | Y33: 1012.048671 | Z33: 1051.99506 | AA33: 1099.833061 | AB33: 1159.608709 | AC33: 1216.774821 | AD33: 1274.514401 | AE33: =SUM(AE31:AE32) -> 1300.077219 | AF33: 1360.533984 | AG33: 1484.616563 | AH33: 1561.91107 | AI33: 1634.907942 | AJ33: =SUM(AJ31:AJ32) -> 1685.238343 | AK33: 1743.712724 | AL33: 1814.093642 | AM33: 1860.832909 | AN33: 1904.995699
A34: =ROW() -> 34 | D34: Capex | O34: =O22*O$12 -> 24.45876715 | P34: 30.42817248 | Q34: 32.92559992 | R34: 34.77458873 | S34: 43.01348273 | T34: 28.04701556 | U34: 38.80917763 | V34: 36.70375687 | W34: 76.97112215 | X34: 70.29095403 | Y34: 39.07384688 | Z34: 69.04123098 | AA34: 80.11967557 | AB34: 81.65302421 | AC34: 84.40883113 | AD34: 70.04276024 | AE34: =AE22*AE$12 -> 61.58144251 | AF34: 74.51359903 | AG34: 80.81460632 | AH34: 81.45704227 | AI34: 82.4728281 | AJ34: =AJ22*AJ$12 -> 106.2972091 | AK34: 124.0187841 | AL34: 107.2953437 | AM34: 105.1391521 | AN34: 105.0481286
A35: =ROW() -> 35 | D35: Depreciation | O35: =O23*O$12 -> -25.46514898 | P35: -27.96819334 | Q35: -30.38682391 | R35: -32.84779987 | S35: -35.29072771 | T35: -11.11560755 | U35: -24.95452027 | V35: -27.52369784 | W35: -30.47250301 | X35: -33.70131456 | Y35: -16.55702001 | Z35: -37.1862808 | AA35: -41.87401301 | AB35: -45.60894832 | AC35: -49.19306649 | AD35: -54.6909128 | AE35: =AE23*AE$12 -> -46.52062246 | AF35: -57.75444888 | AG35: -63.93429906 | AH35: -67.98424035 | AI35: -73.40618921 | AJ35: =AJ23*AJ$12 -> -64.05534114 | AK35: -79.48103451 | AL35: -87.68122235 | AM35: -91.35632507 | AN35: -93.97159633
A36: =ROW() -> 36 | D36: Asset Adjustment, Redundant Assets & Asset Disposal | O36: =O24*O$12 -> -6.18602684 | P36: 0 | Q36: 0 | R36: 0 | S36: 5.906063413 | T36: 0 | U36: 0 | V36: 0 | W36: 0 | X36: 0 | Y36: -0.03898963149 | Z36: -0.01452147058 | AA36: -0.1932817354 | AB36: -0.20618183 | AC36: -0.5095772079 | AD36: -0.88183915 | AE36: =AE24*AE$12 -> -0.5907761 | AF36: -0.50422699 | AG36: -0.40967043 | AH36: -0.32805066 | AI36: 0 | AJ36: =AJ24*AJ$12 -> -26.46301801 | AK36: -18.5756692 | AL36: -18.43812308 | AM36: -16.26464854 | AN36: -17.21337958
A37: =ROW() -> 37 | D37: Closing Value | N37: =Asset!N24*N$12 -> 664.6423751 | O37: =Asset!O24*O$12 -> 676.0508794 | P37: =Asset!P24*P$12 -> 700.5072018 | Q37: =Asset!Q24*Q$12 -> 723.7683774 | R37: =Asset!R24*R$12 -> 752.367455 | S37: =Asset!S24*S$12 -> 781.8594427 | T37: =Asset!T24*T$12 -> 810.7839749 | U37: =Asset!U24*U$12 -> 853.8475843 | V37: =Asset!V24*V$12 -> 873.0841768 | W37: =Asset!W24*W$12 -> 940.453334 | X37: =Asset!X24*X$12 -> 1005.402948 | Y37: =Asset!Y24*Y$12 -> 1034.526508 | Z37: =Asset!Z24*Z$12 -> 1083.835489 | AA37: =Asset!AA24*AA$12 -> 1137.885442 | AB37: =Asset!AB24*AB$12 -> 1195.446603 | AC37: =Asset!AC24*AC$12 -> 1251.481009 | AD37: =Asset!AD24*AD$12 -> 1288.98441 | AE37: =Asset!AE24*AE$12 -> 1314.547263 | AF37: =Asset!AF24*AF$12 -> 1376.788907 | AG37: =Asset!AG24*AG$12 -> 1501.0872 | AH37: =Asset!AH24*AH$12 -> 1575.055821 | AI37: =Asset!AI24*AI$12 -> 1643.974581 | AJ37: =Asset!AJ24*AJ$12 -> 1701.017193 | AK37: =Asset!AK24*AK$12 -> 1769.674805 | AL37: =Asset!AL24*AL$12 -> 1815.269641 | AM37: =Asset!AM24*AM$12 -> 1858.351087 | AN37: =Asset!AN24*AN$12 -> 1898.858852
A38: =ROW() -> 38 | D38: Check closing value (should be 0) | O38: =SUM(O33:O36)-O37 -> 0 | P38: =SUM(P33:P36)-P37 -> 0 | Q38: 0 | R38: 0 | S38: 0 | T38: 0 | U38: 0 | V38: 0 | W38: 0 | X38: 0 | Y38: 0 | Z38: 0 | AA38: 0 | AB38: 0 | AC38: 0 | AD38: 0 | AE38: =SUM(AE33:AE36)-AE37 -> 0 | AF38: 0 | AG38: 0 | AH38: 0 | AI38: 0 | AJ38: =SUM(AJ33:AJ36)-AJ37 -> 0 | AK38: 0 | AL38: 0 | AM38: 0 | AN38: 0
A39: =ROW() -> 39
A40: =ROW() -> 40
A41: Cost of Service, Allowable Revenue [m$ nominal]
A42: =ROW() -> 42 | C42: Cost of Service | F42: PV | H42: Sum
A43: =ROW() -> 43 | D43: OPEX | F43: =SUMPRODUCT($AJ$18:$AN$18,AJ43:AN43) -> 398.871638 | H43: =SUM(AJ43:AN43) -> 494.8652601 | AJ43: =Input!AJ$1722*AJ$12 -> 87.41879589 | AK43: =Input!AK$1722*AK$12 -> 92.94060061 | AL43: =Input!AL$1722*AL$12 -> 97.85640568 | AM43: =Input!AM$1722*AM$12 -> 107.3573032 | AN43: =Input!AN$1722*AN$12 -> 109.2921547
A44: =ROW() -> 44 | D44: Depreciation | F44: =SUMPRODUCT($AJ$18:$AN$18,AJ44:AN44) -> 334.3812011 | H44: =SUM(AJ44:AN44) -> 416.5455194 | AJ44: =-AJ$35 -> 64.05534114 | AK44: 79.48103451 | AL44: 87.68122235 | AM44: 91.35632507 | AN44: 93.97159633
A45: =ROW() -> 45 | D45: Inflationary Gain in Return on Asset | F45: -178.502241 | H45: -220.5860114 | AJ45: =-AJ$32 -> -41.26376198 | AK45: -42.69553154 | AL45: -44.4188376 | AM45: -45.56326798 | AN45: -46.64461229
A46: =ROW() -> 46 | D46: Accelerated depreciation | F46: 80.02895446 | H46: 96.95483841 | AJ46: =-Asset!AJ$20*AJ$12 -> 26.46301801 | AK46: =-Asset!AK$20*AK$12 -> 18.5756692 | AL46: =-Asset!AL$20*AL$12 -> 18.43812308 | AM46: =-Asset!AM$20*AM$12 -> 16.26464854 | AN46: =-Asset!AN$20*AN$12 -> 17.21337958
A47: =ROW() -> 47 | D47: Return on Asset | F47: 521.5074536 | H47: 644.4582906 | AJ47: =AJ$17*AJ$31 -> 120.555122 | AK47: 124.7381423 | AL47: 129.7729079 | AM47: 133.1164457 | AN47: 136.2756727
A48: =ROW() -> 48 | D48: Return on Working Capital | F48: 10.97791914 | H48: 13.76104282 | AJ48: =Working_Capital!AJ$35 -> 1.685628962 | AK48: =Working_Capital!AK$35 -> 2.758653848 | AL48: =Working_Capital!AL$35 -> 2.914046093 | AM48: =Working_Capital!AM$35 -> 3.138969204 | AN48: =Working_Capital!AN$35 -> 3.263744714
A49: =ROW() -> 49 | D49: Tax | F49: 66.56964207 | H49: 82.13301815 | AJ49: =-Tax_CoRE!AJ$51 -> 15.58348231 | AK49: =-Tax_CoRE!AK$51 -> 16.30075153 | AL49: =-Tax_CoRE!AL$51 -> 16.73165926 | AM49: =-Tax_CoRE!AM$51 -> 16.34643458 | AN49: =-Tax_CoRE!AN$51 -> 17.17069047
A50: =ROW() -> 50 | D50: Imputation Credits | F50: -33.28482103 | H50: -41.06650908 | AJ50: =-AJ49*WACC!AF$30 -> -7.791741154 | AK50: =-AK49*WACC!AG$30 -> -8.150375766 | AL50: =-AL49*WACC!AH$30 -> -8.36582963 | AM50: =-AM49*WACC!AI$30 -> -8.17321729 | AN50: =-AN49*WACC!AJ$30 -> -8.585345235
A51: =ROW() -> 51 | D51: Net Cost of Service | F51: 1200.549746 | H51: 1487.065449 | AJ51: =SUM(AJ43:AJ50) -> 266.7058852 | AK51: 283.9489447 | AL51: 300.6096972 | AM51: 313.843641 | AN51: 321.957281
A52: =ROW() -> 52 | D52: Total Smoothed Revenue | F52: =Revenue!F$232 -> 1200.549692 | H52: 1489.040785 | AJ52: =Revenue!AN$232 -> 265.1599253 | AK52: =Revenue!AO$232 -> 280.248622 | AL52: =Revenue!AP$232 -> 296.5518636 | AM52: =Revenue!AQ$232 -> 314.1515637 | AN52: =Revenue!AR$232 -> 332.9288105
A53: =ROW() -> 53 | D53: Check Cos - Revenue (should be 0, rounded to 0 decimal place) | F53: =ROUND(F51-F52,3) -> 0
A54: =ROW() -> 54
A55: =ROW() -> 55 | C55: Cost of Service | F55: PV | AJ55: PV | AK55: PV | AL55: PV | AM55: PV | AN55: PV
A56: =ROW() -> 56 | D56: OPEX | F56: =SUM(AJ56:AN56) -> 398.871638 | AJ56: =AJ43*AJ$18 -> 81.44622225 | AK56: 80.67476785 | AL56: 79.1384672 | AM56: 80.89023425 | AN56: 76.72194641
A57: =ROW() -> 57 | D57: Depreciation | F57: =SUM(AJ57:AN57) -> 334.3812011 | AJ57: =AJ44*AJ$18 -> 59.6789912 | AK57: 68.99152755 | AL57: 70.90958932 | AM57: 68.83401791 | AN57: 65.96707512
A58: =ROW() -> 58 | D58: Inflationary Gain in Return on Asset | F58: -178.502241 | AJ58: =AJ45*AJ$18 -> -38.44456441 | AK58: -37.06079015 | AL58: -35.92241814 | AM58: -34.33043965 | AN58: -32.74402865
A59: =ROW() -> 59 | D59: Accelerated depreciation | F59: 80.02895446 | AJ59: =AJ46*AJ$18 -> 24.65502783 | AK59: 16.12414586 | AL59: 14.91128545 | AM59: 12.25488337 | AN59: 12.08361195
A60: =ROW() -> 60 | D60: Return on Asset | F60: 521.5074536 | AJ60: =AJ47*AJ$18 -> 112.3186285 | AK60: 108.27583 | AL60: 104.9499923 | AM60: 100.2989098 | AN60: 95.66409312
A61: =ROW() -> 61 | D61: Return on Working Capital | F61: 10.97791914 | AJ61: =AJ48*AJ$18 -> 1.570464448 | AK61: 2.394580595 | AL61: 2.356648393 | AM61: 2.365111143 | AN61: 2.291114562
A62: =ROW() -> 62 | D62: Tax | F62: 66.56964207 | AJ62: =AJ49*AJ$18 -> 14.51879714 | AK62: 14.14946038 | AL62: 13.53123343 | AM62: 12.31650649 | AN62: 12.05364464
A63: =ROW() -> 63 | D63: Imputation Credits | F63: -33.28482103 | AJ63: =AJ50*AJ$18 -> -7.259398568 | AK63: -7.074730188 | AL63: -6.765616714 | AM63: -6.158253245 | AN63: -6.026822319
A64: =ROW() -> 64 | D64: Net Cost of Service | F64: 1200.549746 | AJ64: =AJ51*AJ$18 -> 248.4841684 | AK64: 246.4747919 | AL64: 243.1091812 | AM64: 236.47097 | AN64: 226.0106348
A65: =ROW() -> 65 | D65: Total Smoothed Revenue | F65: 1200.549692 | AJ65: =AJ52*AJ$18 -> 247.0438306 | AK65: 243.2628192 | AL65: 239.8275286 | AM65: 236.7029797 | AN65: 233.7125335
A66: =ROW() -> 66 | D66: Check Cos - Revenue (should be 0, rounded to 0 decimal place) | F66: =ROUND(F64-F65,3) -> 0
A67: =ROW() -> 67
A68: ="CHECK -- Cost of Service, Allowable Revenue [m$ "&Input!$G$51&"]" -> CHECK -- Cost of Service, Allowable Revenue [m$ 31/12/2023]
A69: =ROW() -> 69 | C69: Cost of Service | F69: PV | H69: Sum
A70: =ROW() -> 70 | D70: OPEX | F70: =SUMPRODUCT($AJ$15:$AN$15,AJ70:AN70) -> 384.2694007 | H70: =SUM(AJ70:AN70) -> 441.5604699 | AJ70: =Input!AJ1722 -> 82.15636831 | AK70: =Input!AK1722 -> 85.20707443 | AL70: =Input!AL1722 -> 87.51715794 | AM70: =Input!AM1722 -> 93.66326789 | AN70: =Input!AN1722 -> 93.0166013
A71: =ROW() -> 71 | D71: Depreciation | F71: =SUMPRODUCT($AJ$15:$AN$15,AJ71:AN71) -> 322.1398854 | H71: 371.164725 | AJ71: =-AJ23 -> 60.19934437 | AK71: 72.86746996 | AL71: 78.41705743 | AM71: 79.70330559 | AN71: 79.97754766
A72: =ROW() -> 72 | D72: Accelerated depreciation | F72: 77.09918542 | H72: 87.23 | AJ72: =-Asset!AJ20 -> 24.87 | AK72: =-Asset!AK20 -> 17.03 | AL72: =-Asset!AL20 -> 16.49 | AM72: =-Asset!AM20 -> 14.19 | AN72: =-Asset!AN20 -> 14.65
A73: =ROW() -> 73 | D73: Return on Asset | F73: 330.4481817 | H73: 378.7385386 | AJ73: =AJ$14*AJ$21 -> 74.51818695 | AK73: 75.21589912 | AL73: 76.33578612 | AM73: 76.38527131 | AN73: 76.28339509
A74: =ROW() -> 74 | D74: Return on Working Capital | F74: 10.57603 | H74: 12.23571211 | AJ74: =AJ48/AJ$12 -> 1.584157645 | AK74: 2.529108078 | AL74: 2.606155728 | AM74: 2.738575808 | AN74: 2.777714848
A75: =ROW() -> 75 | D75: Tax | F75: 64.13260315 | H75: 73.42862463 | AJ75: =AJ49/AJ$12 -> 14.64538946 | AK75: 14.94437673 | AL75: 14.96383661 | AM75: 14.26135377 | AN75: 14.61366806
A76: =ROW() -> 76 | D76: Imputation Credits | F76: -32.06630157 | H76: -36.71431231 | AJ76: =-AJ75*WACC!AF$30 -> -7.322694731 | AK76: =-AK75*WACC!AF$30 -> -7.472188366 | AL76: =-AL75*WACC!AG$30 -> -7.481918306 | AM76: =-AM75*WACC!AH$30 -> -7.130676884 | AN76: =-AN75*WACC!AI$30 -> -7.306834029
A77: =ROW() -> 77 | D77: Net Cost of Service | F77: 1156.598985 | H77: 1327.643758 | AJ77: =SUM(AJ70:AJ76) -> 250.650752 | AK77: 260.3217399 | AL77: 268.8480755 | AM77: 273.8110975 | AN77: 274.0120929
A78: =ROW() -> 78 | D78: Total Smoothed Revenue | F78: =Revenue!F$141 -> 1156.598932 | H78: 1328.775665 | AJ78: =Revenue!AN$141 -> 249.1978557 | AK78: =Revenue!AO$141 -> 256.9293187 | AL78: =Revenue!AP$141 -> 265.2189818 | AM78: =Revenue!AQ$141 -> 274.0797428 | AN78: =Revenue!AR$141 -> 283.3497658
A79: =ROW() -> 79 | D79: Check Cos - Revenue (should be 0, rounded to 0 decimal place) | F79: =ROUND(F77-F78,3) -> 0 | AJ79: =AJ78-AJ77 -> -1.452896335 | AK79: -3.392421266 | AL79: -3.629093683 | AM79: 0.268645366 | AN79: 9.337672856
A80: =ROW() -> 80
A81: =ROW() -> 81 | C81: Cost of Service | F81: PV | AJ81: PV | AK81: PV | AL81: PV | AM81: PV | AN81: PV
A82: =ROW() -> 82 | D82: OPEX | F82: =SUM(AJ82:AN82) -> 384.2694007 | AJ82: =AJ70*AJ$15 -> 78.46456864 | AK82: 77.72135631 | AL82: 76.24129788 | AM82: 77.92893473 | AN82: 73.91324317
A83: =ROW() -> 83 | D83: Depreciation | F83: =SUM(AJ83:AN83) -> 322.1398854 | AJ83: =AJ71*AJ$15 -> 57.49421117 | AK83: 66.46582615 | AL83: 68.31366986 | AM83: 66.31408276 | AN83: 63.5520955
A84: =ROW() -> 84 | D84: Accelerated depreciation | F84: 77.09918542 | AJ84: =AJ72*AJ$15 -> 23.75243529 | AK84: 15.53385921 | AL84: 14.36540025 | AM84: 11.80624602 | AN84: 11.64124465
A85: =ROW() -> 85 | D85: Return on Asset | F85: 330.4481817 | AJ85: =AJ73*AJ$15 -> 71.16961856 | AK85: 68.60793819 | AL85: 66.5005531 | AM85: 63.55343942 | AN85: 60.61663243
A86: =ROW() -> 86 | D86: Return on Working Capital | F86: 10.57603 | AJ86: =AJ74*AJ$15 -> 1.51297153 | AK86: 2.306917722 | AL86: 2.270374174 | AM86: 2.278527113 | AN86: 2.207239462
A87: =ROW() -> 87 | D87: Tax | F87: 64.13260315 | AJ87: =AJ75*AJ$15 -> 13.98728048 | AK87: 13.63146472 | AL87: 13.03587035 | AM87: 11.86561319 | AN87: 11.61237441
A88: =ROW() -> 88 | D88: Imputation Credits | F88: -32.06630157 | AJ88: =AJ76*AJ$15 -> -6.993640239 | AK88: -6.815732359 | AL88: -6.517935177 | AM88: -5.932806595 | AN88: -5.806187205
A89: =ROW() -> 89 | D89: Net Cost of Service | F89: 1156.598985 | AJ89: =AJ77*AJ$15 -> 239.3874454 | AK89: 237.4516299 | AL89: 234.2092304 | AM89: 227.8140366 | AN89: 217.7366424
A90: =ROW() -> 90 | D90: Total Smoothed Revenue | F90: 1156.598932 | AJ90: =AJ78*AJ$15 -> 237.9998368 | AK90: 234.3572439 | AL90: 231.0477154 | AM90: 228.0375527 | AN90: 225.1565833
A91: =ROW() -> 91 | D91: Check Cos - Revenue (should be 0, rounded to 0 decimal place) | F91: =ROUND(F89-F90,3) -> 0 | AJ91: =AJ90-AJ89 -> -1.387608612 | AK91: -3.094386044 | AL91: -3.161515056 | AM91: 0.2235160876 | AN91: 7.419940901
A92: =ROW() -> 92
A93: Credit Fancier Check (m$ nominal)
A94: =ROW() -> 94 | C94: Net Cash Flow | F94: PV
A95: =ROW() -> 95 | D95: Total Smoothed Revenue | F95: =SUMPRODUCT($AI$18:$AN$18,AI95:AN95) -> 1200.549692 | AJ95: =AJ$52 -> 265.1599253 | AK95: =AK$52 -> 280.248622 | AL95: 296.5518636 | AM95: 314.1515637 | AN95: 332.9288105
A96: =ROW() -> 96 | D96: Opex | F96: -398.871638 | AJ96: =-AJ$43 -> -87.41879589 | AK96: =-AK$43 -> -92.94060061 | AL96: -97.85640568 | AM96: -107.3573032 | AN96: -109.2921547
A97: =ROW() -> 97 | D97: Tax | F97: -66.56964207 | AJ97: =-AJ$49 -> -15.58348231 | AK97: =-AK$49 -> -16.30075153 | AL97: -16.73165926 | AM97: -16.34643458 | AN97: -17.17069047
A98: =ROW() -> 98 | D98: Imputation Credits | F98: 33.28482103 | AJ98: =-AJ$50 -> 7.791741154 | AK98: =-AK$50 -> 8.150375766 | AL98: 8.36582963 | AM98: 8.17321729 | AN98: 8.585345235
A99: =ROW() -> 99 | D99: Asset Opening Value | F99: =SUMPRODUCT($AI$18:$AN$18,AI99:AN99) -> -1643.974581 | AI99: =-AI37 -> -1643.974581
A100: =ROW() -> 100 | D100: Capex | F100: =SUMPRODUCT($AI$18:$AN$18,AI100:AN100) -> -446.4197878 | AJ100: =-AJ$34 -> -106.2972091 | AK100: =-AK$34 -> -124.0187841 | AL100: -107.2953437 | AM100: -105.1391521 | AN100: -105.0481286
A101: =ROW() -> 101 | D101: Asset Residual Value | F101: 1332.979001 | AN101: =AN37 -> 1898.858852
A102: =ROW() -> 102 | D102: Working Capital Opening Value | F102: -22.98642414 | AI102: =-Working_Capital!AJ29 -> -22.98642414
A103: =ROW() -> 103 | D103: Working Capital Variation | F103: -20.21444886 | AJ103: =-Working_Capital!AJ30 -> -14.63252335 | AK103: =-Working_Capital!AK30 -> -2.11903814 | AL103: =-Working_Capital!AL30 -> -3.067210007 | AM103: =-Working_Capital!AM30 -> -1.701526768 | AN103: =-Working_Capital!AN30 -> -1.395607015
A104: =ROW() -> 104 | D104: Working Capital Residual Value | F104: 32.22295387 | AN104: =Working_Capital!AN31 -> 45.90232942
A105: =ROW() -> 105 | D105: Net Cash Flow (should be 0, rounded to 0 decimal place) | F105: -5.4727421e-05 | AI105: =SUM(AI95:AI104) -> -1666.961005 | AJ105: =SUM(AJ95:AJ104) -> 49.01965577 | AK105: 53.01982338 | AL105: 79.96707454 | AM105: 91.7803643 | AN105: 2053.368756

Sheet Price_path_AA6
A1: =Main!A1 -> ERA, GDS Tariff Model, Draft Decision, April 2024
A2: Price Path
A3: Ref | B3: =COLUMN() -> 2 | C3: =COLUMN() -> 3 | D3: =COLUMN() -> 4 | E3: =COLUMN() -> 5 | F3: =COLUMN() -> 6 | G3: =COLUMN() -> 7 | H3: =COLUMN() -> 8 | I3: =COLUMN() -> 9 | J3: =COLUMN() -> 10 | K3: =COLUMN() -> 11
A4: =ROW() -> 4
A5: =ROW() -> 5 | B5: Smoothing parameters | F5: Annual price movements (Real % change)
A6: =ROW() -> 6 | B6: Rounding decimal places A1 usage tariff (Year 2025 only) | C6: 5 | G6: X_Factor_2025 | H6: X_Factor_2026 | I6: X_Factor_2027 | J6: X_Factor_2028 | K6: X_Factor_2029
A7: =ROW() -> 7 | B7: Rounding decimal places all other tariffs | C7: 2 | G7: 0.42445 | H7: 0.03 | I7: 0.03 | J7: 0.03 | K7: 0.03
A8: =ROW() -> 8
A9: =ROW() -> 9 | B9: Conditional formatting key | C9: X
A10: =ROW() -> 10 | D10: AA5 | F10: 2024 | G10: 2025 | H10: 2026 | I10: 2027 | J10: 2028 | K10: 2029
A11: =ROW() -> 11 | B11: WACC | C11: Real post tax | G11: =CoS!AJ14 -> 0.04705053166 | H11: =CoS!AK14 -> 0.04705053166 | I11: =CoS!AL14 -> 0.04705053166 | J11: =CoS!AM14 -> 0.04705053166 | K11: =CoS!AN14 -> 0.04705053166
A12: =ROW() -> 12 | B12: Discount factor | C12: Real post tax | G12: =CoS!AJ15 -> 0.9550637431 | H12: =CoS!AK15 -> 0.9121467534 | I12: =CoS!AL15 -> 0.8711582926 | J12: =CoS!AM15 -> 0.8320116998 | K12: =CoS!AN15 -> 0.7946242083
A13: =ROW() -> 13 | B13: Price change | C13: % | G13: =IF(G$10=Recalc_From_Year,G$7,0) -> 0.42445 | H13: =H7 -> 0.03 | I13: 0.03 | J13: 0.03 | K13: 0.03
A14: =ROW() -> 14 | B14: CPI | C14: % | G14: =Input!AJ48 -> 0.0251 | H14: =Input!AK48 -> 0.0251 | I14: =Input!AL48 -> 0.0251 | J14: =Input!AM48 -> 0.0251 | K14: =Input!AN48 -> 0.0251
A15: =ROW() -> 15
A16: =ROW() -> 16 | B16: Cost of service | D16: PV | E16: Sum
A17: =ROW() -> 17 | B17: OPEX | C17: $ m real 2023 | D17: =SUMPRODUCT($G$12:$K$12,$G17:$K17) -> 384.2694007 | E17: =SUM(G17:K17) -> 441.5604699 | G17: =CoS!AJ70 -> 82.15636831 | H17: =CoS!AK70 -> 85.20707443 | I17: =CoS!AL70 -> 87.51715794 | J17: =CoS!AM70 -> 93.66326789 | K17: =CoS!AN70 -> 93.0166013 | L17: =SUM(G17:K17) -> 441.5604699 | M17: 441.5604699 | N17: =L17-M17 -> 0
A18: =ROW() -> 18 | B18: Depreciation | C18: $ m real 2023 | D18: 322.1398854 | E18: 371.164725 | G18: =CoS!AJ71 -> 60.19934437 | H18: =CoS!AK71 -> 72.86746996 | I18: =CoS!AL71 -> 78.41705743 | J18: =CoS!AM71 -> 79.70330559 | K18: =CoS!AN71 -> 79.97754766 | L18: 371.164725 | M18: 371.1648019 | N18: -7.688633912e-05
A19: =ROW() -> 19 | B19: Accelerated depreciaiton | C19: $ m real 2023 | D19: 77.09918542 | E19: 87.23 | G19: =CoS!AJ72 -> 24.87 | H19: =CoS!AK72 -> 17.03 | I19: =CoS!AL72 -> 16.49 | J19: =CoS!AM72 -> 14.19 | K19: =CoS!AN72 -> 14.65 | L19: 87.23 | M19: 87.23 | N19: 0
A20: =ROW() -> 20 | B20: Return on Asset | C20: $ m real 2023 | D20: 330.4481817 | E20: 378.7385386 | G20: =CoS!AJ73 -> 74.51818695 | H20: =CoS!AK73 -> 75.21589912 | I20: =CoS!AL73 -> 76.33578612 | J20: =CoS!AM73 -> 76.38527131 | K20: =CoS!AN73 -> 76.28339509 | L20: 378.7385386 | M20: 378.7385421 | N20: -3.542069578e-06
A21: =ROW() -> 21 | B21: Return on Working Capital | C21: $ m real 2023 | D21: 10.57603 | E21: 12.23571211 | G21: =CoS!AJ74 -> 1.584157645 | H21: =CoS!AK74 -> 2.529108078 | I21: =CoS!AL74 -> 2.606155728 | J21: =CoS!AM74 -> 2.738575808 | K21: =CoS!AN74 -> 2.777714848 | L21: 12.23571211 | M21: 12.23571157 | N21: 5.38741153e-07
A22: =ROW() -> 22 | B22: Tax | C22: $ m real 2023 | D22: 64.13260315 | E22: 73.42862463 | G22: =CoS!AJ75 -> 14.64538946 | H22: =CoS!AK75 -> 14.94437673 | I22: =CoS!AL75 -> 14.96383661 | J22: =CoS!AM75 -> 14.26135377 | K22: =CoS!AN75 -> 14.61366806 | L22: 73.42862463 | M22: 73.428684 | N22: -5.937357484e-05
A23: =ROW() -> 23 | B23: Imputation Credits | C23: $ m real 2023 | D23: -32.06630157 | E23: -36.71431231 | G23: =CoS!AJ76 -> -7.322694731 | H23: =CoS!AK76 -> -7.472188366 | I23: =CoS!AL76 -> -7.481918306 | J23: =CoS!AM76 -> -7.130676884 | K23: =CoS!AN76 -> -7.306834029 | L23: -36.71431231 | M23: -36.714342 | N23: 2.968678742e-05
A24: =ROW() -> 24 | B24: Net Cost of Service | C24: $ m real 2023 | D24: 1156.598985 | E24: 1327.643758 | G24: =SUM(G17:G23) -> 250.650752 | H24: =SUM(H17:H23) -> 260.3217399 | I24: =SUM(I17:I23) -> 268.8480755 | J24: =SUM(J17:J23) -> 273.8110975 | K24: =SUM(K17:K23) -> 274.0120929 | L24: 1327.643758 | M24: 1327.643867 | N24: -0.0001095764549
A25: =ROW() -> 25 | B25: Total Tariff Revenue | C25: $ m real 2023 | D25: =SUMPRODUCT($G$12:$K$12,$G25:$K25) -> 1156.598932 | E25: 1328.775665 | G25: =CoS!AJ78 -> 249.1978557 | H25: =CoS!AK78 -> 256.9293187 | I25: =CoS!AL78 -> 265.2189818 | J25: =CoS!AM78 -> 274.0797428 | K25: =CoS!AN78 -> 283.3497658 | L25: 1328.775665 | M25: 1328.775665 | N25: 0
A26: =ROW() -> 26 | B26: Check CoS - Revenue rounded to nearest $100k (should be 0) | C26: $ m real 2023 | D26: =ROUND(D24-D25,6) -> 5.3e-05
A27: =ROW() -> 27
A28: =ROW() -> 28
A29: =ROW() -> 29
A30: =ROW() -> 30
A31: =ROW() -> 31
A32: =ROW() -> 32 | F32: AA5 closing tariff $ 2023 | I32: Fixed $ Increments
A33: =ROW() -> 33 | B33: Charging parameter (Real at 31 December 2023 $) | C33: Units | F33: 2024 | G33: 2025 | H33: 2026 | I33: 2027 | J33: 2028 | K33: 2029
A34: =ROW() -> 34 | B34: Reference tariff A1
A35: =ROW() -> 35 | B35: Standing charge | C35: $/year | F35: =ROUND(Revenue!AM62,2) -> 38633.36
A36: =ROW() -> 36 | B36: Demand charge
A37: =ROW() -> 37 | B37: First 10 km | C37: $/GJ km | F37: =ROUND(Revenue!AM63,2) -> 162.83
A38: =ROW() -> 38 | B38: Distance > 10 km | C38: $/GJ km | F38: =ROUND(Revenue!AM64,2) -> 85.71
A39: =ROW() -> 39 | B39: Usage charge
A40: =ROW() -> 40 | B40: First 10 km | C40: $/GJ km | F40: =ROUND(Revenue!AM65,5) -> 0.03444
A41: =ROW() -> 41 | B41: Distance > 10 km | C41: $/GJ km | F41: =ROUND(Revenue!AM66,5) -> 0.01735
A42: =ROW() -> 42 | B42: Reference tariff A2
A43: =ROW() -> 43 | B43: Standing charge | C43: $/Year | F43: =ROUND(Revenue!AM68,2) -> 21365.68
A44: =ROW() -> 44 | B44: First 10 TJ | C44: $/GJ | F44: =ROUND(Revenue!AM72,2) -> 2.08
A45: =ROW() -> 45 | B45: Volume > 10 TJ | C45: $/GJ | F45: =ROUND(Revenue!AM73,2) -> 1.1
A46: =ROW() -> 46 | B46: Reference tariff B1
A47: =ROW() -> 47 | B47: Standing charge | C47: $/Year | F47: =ROUND(Revenue!AM75,2) -> 1080.77
A48: =ROW() -> 48 | B48: First 5 TJ | C48: $/GJ | F48: =ROUND(Revenue!AM76,2) -> 4.1
A49: =ROW() -> 49 | B49: Volume > 5 TJ | C49: $/GJ | F49: =ROUND(Revenue!AM78,2) -> 3.53
A50: =ROW() -> 50 | B50: Reference tariff B2
A51: =ROW() -> 51 | B51: Standing charge | C51: $/Year | F51: =ROUND(Revenue!AM80,2) -> 271.22
A52: =ROW() -> 52 | B52: First 100 GJ | C52: $/GJ | F52: =ROUND(Revenue!AM81,2) -> 6.87
A53: =ROW() -> 53 | B53: Volume > 100 GJ | C53: $/GJ | F53: =ROUND(Revenue!AM82,2) -> 4.09
A54: =ROW() -> 54 | B54: Reference tariff B3
A55: =ROW() -> 55 | B55: Standing charge | C55: $/Year | F55: =ROUND(Revenue!AM84,2) -> 134.18
A56: =ROW() -> 56
A57: =ROW() -> 57 | B57: First 9.855 GJ | C57: $/GJ | E57: Rebalanced tariff: | F57: =ROUND('B3 Tariff rebalance'!E16,2) -> 4.87
A58: =ROW() -> 58 | B58: Volume > 9.855 GJ | C58: $/GJ | F58: =ROUND(Revenue!AM90,2) -> 4.22
A59: =ROW() -> 59
A60: =ROW() -> 60 | F60: AA5 closing tariff | I60: Tariffs to which X factor applied (X Factor will be applied to any cell containing "X")
A61: =ROW() -> 61 | B61: Charging parameter (Real at 31 December 2023 $) | C61: Units real $ | F61: =F$33 -> 2024 | G61: 2025 | H61: 2026 | I61: 2027 | J61: 2028 | K61: 2029
A62: =ROW() -> 62 | B62: Reference tariff A1
A63: =ROW() -> 63 | B63: Standing charge | C63: $/year | F63: =F35 -> 38633.36 | G63: =IF(G35<>0,0,"x") -> x | H63: =IF(H35<>0,0,"x") -> x | I63: =IF(I35<>0,0,"x") -> x | J63: =IF(J35<>0,0,"x") -> x | K63: =IF(K35<>0,0,"x") -> x
A64: =ROW() -> 64 | B64: Demand charge
A65: =ROW() -> 65 | B65: First 10 km | C65: $/GJ km | F65: 162.83 | G65: =IF(G37<>0,0,"x") -> x | H65: x | I65: x | J65: x | K65: x
A66: =ROW() -> 66 | B66: Distance > 10 km | C66: $/GJ km | F66: 85.71 | G66: x | H66: x | I66: x | J66: x | K66: x
A67: =ROW() -> 67 | B67: Usage charge | F67: 0
A68: =ROW() -> 68 | B68: First 10 km | C68: $/GJ km | F68: 0.03444 | G68: =IF(G40<>0,0,"x") -> x | H68: x | I68: x | J68: x | K68: x
A69: =ROW() -> 69 | B69: Distance > 10 km | C69: $/GJ km | F69: 0.01735 | G69: x | H69: x | I69: x | J69: x | K69: x
A70: =ROW() -> 70 | B70: Reference tariff A2 | F70: 0
A71: =ROW() -> 71 | B71: Standing charge | C71: $/Year | F71: 21365.68 | G71: =IF(G43<>0,0,"x") -> x | H71: x | I71: x | J71: x | K71: x
A72: =ROW() -> 72 | B72: First 10 TJ | C72: $/GJ | F72: 2.08 | G72: x | H72: x | I72: x | J72: x | K72: x
A73: =ROW() -> 73 | B73: Volume > 10 TJ | C73: $/GJ | F73: 1.1 | G73: x | H73: x | I73: x | J73: x | K73: x
A74: =ROW() -> 74 | B74: Reference tariff B1 | F74: 0
A75: =ROW() -> 75 | B75: Standing charge | C75: $/Year | F75: 1080.77 | G75: =IF(G47<>0,0,"x") -> x | H75: x | I75: x | J75: x | K75: x
A76: =ROW() -> 76 | B76: First 5 TJ | C76: $/GJ | F76: 4.1 | G76: x | H76: x | I76: x | J76: x | K76: x
A77: =ROW() -> 77 | B77: Volume > 5 TJ | C77: $/GJ | F77: 3.53 | G77: x | H77: x | I77: x | J77: x | K77: x
A78: =ROW() -> 78 | B78: Reference tariff B2 | F78: 0
A79: =ROW() -> 79 | B79: Standing charge | C79: $/Year | F79: 271.22 | G79: =IF(G51<>0,0,"x") -> x | H79: x | I79: x | J79: x | K79: x
A80: =ROW() -> 80 | B80: First 100 GJ | C80: $/GJ | F80: 6.87 | G80: x | H80: x | I80: x | J80: x | K80: x
A81: =ROW() -> 81 | B81: Volume > 100 GJ | C81: $/GJ | F81: 4.09 | G81: x | H81: x | I81: x | J81: x | K81: x
A82: =ROW() -> 82 | B82: Reference tariff B3 | F82: 0
A83: =ROW() -> 83 | B83: Standing charge | C83: $/Year | F83: 134.18 | G83: =IF(G55<>0,0,"x") -> x | H83: x | I83: x | J83: x | K83: x
A84: =ROW() -> 84 | G84: x | H84: x | I84: x | J84: x | K84: x
A85: =ROW() -> 85 | B85: First 9.855 GJ | C85: $/GJ | F85: 4.87 | G85: x | H85: x | I85: x | J85: x | K85: x
A86: =ROW() -> 86 | B86: Volume > 9.855 GJ | C86: $/GJ | F86: 4.22 | G86: x | H86: x | I86: x | J86: x | K86: x
A87: =ROW() -> 87
A88: =ROW() -> 88 | B88: Manual tariff adjustment to balance NPV = 0 (necessary due to tariff rounding)
A89: =ROW() -> 89 | F89: AA5 closing tariff | I89: ="Forecast tariffs adjustment (Real $ at "&Input!$G$51&")" -> Forecast tariffs adjustment (Real $ at 31/12/2023)
A90: =ROW() -> 90 | B90: Charging parameter (Real at 31 December 2023 $) | C90: Units real $ | F90: =F$33 -> 2024 | G90: 2025 | H90: 2026 | I90: 2027 | J90: 2028 | K90: 2029
A91: =ROW() -> 91 | B91: Reference tariff A1
A92: =ROW() -> 92 | B92: Standing charge | C92: $/year
A93: =ROW() -> 93 | B93: Demand charge
A94: =ROW() -> 94 | B94: First 10 km | C94: $/GJ km
A95: =ROW() -> 95 | B95: Distance > 10 km | C95: $/GJ km
A96: =ROW() -> 96 | B96: Usage charge
A97: =ROW() -> 97 | B97: First 10 km | C97: $/GJ km
A98: =ROW() -> 98 | B98: Distance > 10 km | C98: $/GJ km
A99: =ROW() -> 99 | B99: Reference tariff A2
A100: =ROW() -> 100 | B100: Standing charge | C100: $/Year
A101: =ROW() -> 101 | B101: First 10 TJ | C101: $/GJ
A102: =ROW() -> 102 | B102: Volume > 10 TJ | C102: $/GJ
A103: =ROW() -> 103 | B103: Reference tariff B1
A104: =ROW() -> 104 | B104: Standing charge | C104: $/Year | G104: =-2.65 -> -2.65
A105: =ROW() -> 105 | B105: First 5 TJ | C105: $/GJ
A106: =ROW() -> 106 | B106: Volume > 5 TJ | C106: $/GJ
A107: =ROW() -> 107 | B107: Reference tariff B2
A108: =ROW() -> 108 | B108: Standing charge | C108: $/Year
A109: =ROW() -> 109 | B109: First 100 GJ | C109: $/GJ
A110: =ROW() -> 110 | B110: Volume > 100 GJ | C110: $/GJ
A111: =ROW() -> 111 | B111: Reference tariff B3
A112: =ROW() -> 112 | B112: Standing charge | C112: $/Year
A113: =ROW() -> 113
A114: =ROW() -> 114 | B114: First 9.855 GJ | C114: $/GJ
A115: =ROW() -> 115 | B115: Volume > 9.855 GJ | C115: $/GJ
A116: =ROW() -> 116
A117: =ROW() -> 117 | B117: Proposed Tariffs
A118: =ROW() -> 118 | F118: AA5 closing tariff | I118: ="Forecast tariffs (Real $ at "&Input!$G$51&")" -> Forecast tariffs (Real $ at 31/12/2023)
A119: =ROW() -> 119 | B119: Charging parameter (Real at 31 December 2023 $) | C119: Units real $ | F119: =F$33 -> 2024 | G119: 2025 | H119: 2026 | I119: 2027 | J119: 2028 | K119: 2029
A120: =ROW() -> 120 | B120: Reference tariff A1
A121: =ROW() -> 121 | B121: Standing charge | C121: $/year | F121: =F63 -> 38633.36 | G121: =ROUND(IF(G35<>0,F121+G35,F121*(1+G$13)),$C$7)+G92 -> 55031.29 | H121: =ROUND(IF(H35<>0,G121+H35,G121*(1+H$13)),$C$7)+H92 -> 56682.23 | I121: 58382.7 | J121: 60134.18 | K121: 61938.21
A122: =ROW() -> 122 | B122: Demand charge
A123: =ROW() -> 123 | B123: First 10 km | C123: $/GJ km | F123: =F65 -> 162.83 | G123: =ROUND(IF(G37<>0,F123+G37,F123*(1+G$13)),$C$7)+G94 -> 231.94 | H123: =ROUND(IF(H37<>0,G123+H37,G123*(1+H$13)),$C$7)+H94 -> 238.9 | I123: 246.07 | J123: 253.45 | K123: 261.05
A124: =ROW() -> 124 | B124: Distance > 10 km | C124: $/GJ km | F124: =F66 -> 85.71 | G124: =ROUND(IF(G38<>0,F124+G38,F124*(1+G$13)),$C$7)+G95 -> 122.09 | H124: =ROUND(IF(H38<>0,G124+H38,G124*(1+H$13)),$C$7)+H95 -> 125.75 | I124: 129.52 | J124: 133.41 | K124: 137.41
A125: =ROW() -> 125 | B125: Usage charge
A126: =ROW() -> 126 | B126: First 10 km | C126: $/GJ km | F126: =F68 -> 0.03444 | G126: =ROUND(IF(G40<>0,F126+G40,F126*(1+G$13)),$C$6)+G97 -> 0.04906 | H126: =ROUND(IF(H40<>0,G126+H40,G126*(1+H$13)),$C$6)+H97 -> 0.05053 | I126: 0.05205 | J126: 0.05361 | K126: 0.05522
A127: =ROW() -> 127 | B127: Distance > 10 km | C127: $/GJ km | F127: =F69 -> 0.01735 | G127: =ROUND(IF(G41<>0,F127+G41,F127*(1+G$13)),$C$6)+G98 -> 0.02471 | H127: =ROUND(IF(H41<>0,G127+H41,G127*(1+H$13)),$C$6)+H98 -> 0.02545 | I127: 0.02621 | J127: 0.027 | K127: 0.02781
A128: =ROW() -> 128 | B128: Reference tariff A2
A129: =ROW() -> 129 | B129: Standing charge | C129: $/Year | F129: =F71 -> 21365.68 | G129: =ROUND(IF(G43<>0,F129+G43,F129*(1+G$13)),$C$7)+G100 -> 30434.34 | H129: =ROUND(IF(H43<>0,G129+H43,G129*(1+H$13)),$C$7)+H100 -> 31347.37 | I129: 32287.79 | J129: 33256.42 | K129: 34254.11
A130: =ROW() -> 130 | B130: First 10 TJ | C130: $/GJ | F130: 2.08 | G130: =ROUND(IF(G44<>0,F130+G44,F130*(1+G$13)),$C$7)+G101 -> 2.96 | H130: =ROUND(IF(H44<>0,G130+H44,G130*(1+H$13)),$C$7)+H101 -> 3.05 | I130: 3.14 | J130: 3.23 | K130: 3.33
A131: =ROW() -> 131 | B131: Volume > 10 TJ | C131: $/GJ | F131: 1.1 | G131: =ROUND(IF(G45<>0,F131+G45,F131*(1+G$13)),$C$7)+G102 -> 1.57 | H131: =ROUND(IF(H45<>0,G131+H45,G131*(1+H$13)),$C$7)+H102 -> 1.62 | I131: 1.67 | J131: 1.72 | K131: 1.77
A132: =ROW() -> 132 | B132: Reference tariff B1 | F132: 0
A133: =ROW() -> 133 | B133: Standing charge | C133: $/Year | F133: 1080.77 | G133: =ROUND(IF(G47<>0,F133+G47,F133*(1+G$13)),$C$7)+G104 -> 1536.85 | H133: =ROUND(IF(H47<>0,G133+H47,G133*(1+H$13)),$C$7)+H104 -> 1582.96 | I133: 1630.45 | J133: 1679.36 | K133: 1729.74
A134: =ROW() -> 134 | B134: First 5 TJ | C134: $/GJ | F134: 4.1 | G134: =ROUND(IF(G48<>0,F134+G48,F134*(1+G$13)),$C$7)+G105 -> 5.84 | H134: =ROUND(IF(H48<>0,G134+H48,G134*(1+H$13)),$C$7)+H105 -> 6.02 | I134: 6.2 | J134: 6.39 | K134: 6.58
A135: =ROW() -> 135 | B135: Volume > 5 TJ | C135: $/GJ | F135: 3.53 | G135: =ROUND(IF(G49<>0,F135+G49,F135*(1+G$13)),$C$7)+G106 -> 5.03 | H135: =ROUND(IF(H49<>0,G135+H49,G135*(1+H$13)),$C$7)+H106 -> 5.18 | I135: 5.34 | J135: 5.5 | K135: 5.67
A136: =ROW() -> 136 | B136: Reference tariff B2 | F136: 0
A137: =ROW() -> 137 | B137: Standing charge | C137: $/Year | F137: 271.22 | G137: =ROUND(IF(G51<>0,F137+G51,F137*(1+G$13)),$C$7)+G108 -> 386.34 | H137: =ROUND(IF(H51<>0,G137+H51,G137*(1+H$13)),$C$7)+H108 -> 397.93 | I137: 409.87 | J137: 422.17 | K137: 434.84
A138: =ROW() -> 138 | B138: First 100 GJ | C138: $/GJ | F138: 6.87 | G138: =F138 -> 6.87 | H138: =ROUND(IF(H52<>0,G138+H52,G138*(1+H$13)),$C$7)+H109 -> 7.08 | I138: 7.29 | J138: 7.51 | K138: 7.74
A139: =ROW() -> 139 | B139: Volume > 100 GJ | C139: $/GJ | F139: 4.09 | G139: =ROUND(IF(G53<>0,F139+G53,F139*(1+G$13-0.1)),$C$7)+G110 -> 5.42 | H139: =ROUND(IF(H53<>0,G139+H53,G139*(1+H$13)),$C$7)+H110 -> 5.58 | I139: 5.75 | J139: 5.92 | K139: 6.1
A140: =ROW() -> 140 | B140: Reference tariff B3 | F140: 0
A141: =ROW() -> 141 | B141: Standing charge | C141: $/Year | F141: 134.18 | G141: =ROUND(IF(G55<>0,F141+G55,F141*(1+G$13-0.1)),$C$7)+G112 -> 177.71 | H141: =ROUND(IF(H55<>0,G141+H55,G141*(1+H$13)),$C$7)+H112 -> 183.04 | I141: =ROUND(IF(I55<>0,H141+I55,H141*(1+I$13)),$C$7)+I112 -> 188.53 | J141: =ROUND(IF(J55<>0,I141+J55,I141*(1+J$13)),$C$7)+J112 -> 194.19 | K141: =ROUND(IF(K55<>0,J141+K55,J141*(1+K$13)),$C$7)+K112 -> 200.02
A142: =ROW() -> 142 | F142: 0
A143: =ROW() -> 143 | B143: First 9.855 GJ | C143: $/GJ | F143: 4.87 | G143: =ROUND(IF(G57<>0,F143+G57,F143*(1+G$13-0.1)),$C$7)+G114 -> 6.45 | H143: =ROUND(IF(H57<>0,G143+H57,G143*(1+H$13)),$C$7)+H114 -> 6.64 | I143: =ROUND(IF(I57<>0,H143+I57,H143*(1+I$13)),$C$7)+I114 -> 6.84 | J143: =ROUND(IF(J57<>0,I143+J57,I143*(1+J$13)),$C$7)+J114 -> 7.05 | K143: =ROUND(IF(K57<>0,J143+K57,J143*(1+K$13)),$C$7)+K114 -> 7.26
A144: =ROW() -> 144 | B144: Volume > 9.855 GJ | C144: $/GJ | F144: 4.22 | G144: =ROUND(IF(G58<>0,F144+G58,F144*(1+G$13-0.1)),$C$7)+G115 -> 5.59 | H144: 5.76 | I144: 5.93 | J144: 6.11 | K144: 6.29

Sheet B3 Tariff rebalance
B3: Projected P0 for closing B3 tariff usage charge band 1 2025
B4: Actual B3 tariff band 2 2024 | C4: $/GJ | D4: 2023$ | E4: =6.56/Input!AI52 -> 6.319845857
B6: Actual B3 volumes 2021 used to calculate 2024 tariff
B7: First 1.818255 GJ | D7: GJ | E7: 1299113
B8: Volume > 1.825 <9.855 GJ | D8: GJ | E8: 4348445
B9: Volume > 9.855 GJ | D9: GJ
B10: First 9.855 GJ band volume | D10: GJ | E10: =SUM(E7:E9) -> 5647558
B11: Forecast revenue from Bands 1 and 2 B3 tariff | D11: 2023$ | E11: =E4*E8 -> 27481502.12
B12: Average tariff bands 1 and 2 $/GJ | D12: 2023$ | E12: =E11/E10 -> 4.866085859
B14: Apply forecast inflation for the 1 Jan 2024 tariff variation | D14: 2024$ | E14: =E12*(1+F28) -> 5.050997121
B16: Deflate to 2023$ | D16: 2023$ | E16: =ROUND(E14*Input!AI51,2) -> 4.87
B26: Actual December and Forecast Inflation | D26: 2022-12-31 | E26: 2023-12-31 | F26: 2024-12-31
B27: December CPI All Groups, 8 Capital Cities | D27: =Input!AG47 -> 130.8 | E27: =Input!AH47 -> 136.1 | F27: =E27*(1+F28) -> 141.2718
B28: December inflation All Groups , 8 Capital Cities - (Sep-2012 base index) | E28: =Input!AH48 -> 0.04051987768 | F28: =Input!AI43 -> 0.038

Sheet Load_Tariffs
A1: =Main!A1 -> ERA, GDS Tariff Model, Draft Decision, April 2024
A2: Demand Inputs and Tariffs
A3: Ref | C3: =COLUMN() -> 3 | D3: =COLUMN() -> 4 | E3: =COLUMN() -> 5 | F3: =COLUMN() -> 6 | G3: =COLUMN() -> 7 | H3: =COLUMN() -> 8 | I3: =COLUMN() -> 9 | J3: =COLUMN() -> 10 | K3: =COLUMN() -> 11 | L3: =COLUMN() -> 12 | M3: =COLUMN() -> 13 | N3: =COLUMN() -> 14 | O3: =COLUMN() -> 15 | P3: =COLUMN() -> 16 | Q3: =COLUMN() -> 17 | R3: =COLUMN() -> 18 | S3: =COLUMN() -> 19 | T3: =COLUMN() -> 20 | U3: =COLUMN() -> 21 | V3: =COLUMN() -> 22 | W3: =COLUMN() -> 23 | X3: =COLUMN() -> 24 | Y3: =COLUMN() -> 25 | Z3: =COLUMN() -> 26 | AA3: =COLUMN() -> 27 | AB3: =COLUMN() -> 28 | AC3: =COLUMN() -> 29 | AD3: =COLUMN() -> 30 | AE3: =COLUMN() -> 31 | AF3: =COLUMN() -> 32 | AG3: =COLUMN() -> 33 | AH3: =COLUMN() -> 34 | AI3: =COLUMN() -> 35 | AJ3: =COLUMN() -> 36 | AK3: =COLUMN() -> 37 | AL3: =COLUMN() -> 38 | AM3: =COLUMN() -> 39 | AN3: =COLUMN() -> 40 | AO3: =COLUMN() -> 41 | AP3: =COLUMN() -> 42 | AQ3: =COLUMN() -> 43 | AR3: =COLUMN() -> 44
A4: =ROW() -> 4 | J4: Year ending 31 December | O4: Year ending 31 December | W4: Year Ending 30 June | AD4: Year ending 31 December | AI4: Year ending 31 December | AN4: Year ending 31 December
A5: Regulatory Period | J5: 1 | K5: 1 | L5: 1 | M5: 1 | N5: 1 | O5: 2 | P5: 2 | Q5: 2 | R5: 2 | S5: 2 | T5: 3 | U5: 3 | V5: 3 | W5: 3 | X5: 3 | Y5: 3 | Z5: 3 | AA5: 4 | AB5: 4 | AC5: 4 | AD5: 4 | AE5: 4 | AF5: 4 | AG5: 4 | AH5: 4 | AI5: 4 | AJ5: 4 | AK5: 4 | AL5: 4 | AM5: 4 | AN5: 4 | AO5: 4 | AP5: 4 | AQ5: 4 | AR5: 4
A6: Year ending | I6: 1999 | J6: 2000 | K6: 2001 | L6: 2002 | M6: 2003 | N6: 2004 | O6: 2005 | P6: 2006 | Q6: 2007 | R6: 2008 | S6: =1+R6 -> 2009 | T6: =1+S6 -> 2010 | U6: 2010 | V6: =1+U6 -> 2011 | W6: =T6+1 -> 2011 | X6: =1+V6 -> 2012 | Y6: =1+X6 -> 2013 | Z6: =1+Y6 -> 2014 | AA6: 2014 | AB6: 2015 | AC6: 2015 | AD6: 2015 | AE6: =1+AD6 -> 2016 | AF6: 2017 | AG6: 2018 | AH6: 2019 | AI6: 2020 | AJ6: 2021 | AK6: 2022 | AL6: 2023 | AM6: 2024 | AN6: =1+AM6 -> 2025 | AO6: =1+AN6 -> 2026 | AP6: =1+AO6 -> 2027 | AQ6: =1+AP6 -> 2028 | AR6: =1+AQ6 -> 2029
A7: Months | I7: 1 to 12 | J7: 1 to 12 | K7: 1 to 12 | L7: 1 to 12 | M7: 1 to 12 | N7: 1 to 12 | O7: 1 to 12 | P7: 1 to 12 | Q7: 1 to 12 | R7: 1 to 12 | S7: 1 to 12 | T7: 1 to 6 | U7: 7 to 12 | V7: 1 to 6 | W7: 7 to 6 | X7: 7 to 6 | Y7: 7 to 6 | Z7: 7 to 6 | AA7: 7 to 12 | AB7: 1 to 9 | AC7: 10 to 12 | AD7: 1 to 12 | AE7: 1 to 12 | AF7: 1 to 12 | AG7: 1 to 12 | AH7: 1 to 12 | AI7: 1 to 12 | AJ7: 1 to 12 | AK7: 1 to 12 | AL7: 1 to 12 | AM7: 1 to 12 | AN7: 1 to 12 | AO7: 1 to 12 | AP7: 1 to 12 | AQ7: 1 to 12 | AR7: 1 to 12
A8: Days | I8: =Input!I8 -> 365 | J8: =Input!J8 -> 366 | K8: =Input!K8 -> 365 | L8: =Input!L8 -> 365 | M8: =Input!M8 -> 365 | N8: =Input!N8 -> 366 | O8: =Input!O8 -> 365 | P8: =Input!P8 -> 365 | Q8: =Input!Q8 -> 365 | R8: =Input!R8 -> 366 | S8: =Input!S8 -> 365 | T8: =Input!T8 -> 181 | U8: 184 | V8: 181 | W8: =Input!U8 -> 365 | X8: =Input!V8 -> 366 | Y8: =Input!W8 -> 365 | Z8: =Input!X8 -> 365 | AA8: =DATEVALUE("31/12/2014")-DATEVALUE("30/6/2014") -> 184 | AB8: =DATEVALUE("30/9/2015")-DATEVALUE("31/12/2014") -> 273 | AC8: =DATEVALUE("31/12/2015")-DATEVALUE("30/9/2015") -> 92 | AD8: =Input!Z8 -> 365 | AE8: =Input!AA8 -> 366 | AF8: =Input!AB8 -> 365 | AG8: =Input!AC8 -> 365 | AH8: =Input!AD8 -> 365 | AI8: =Input!AE8 -> 366 | AJ8: =Input!AF8 -> 365 | AK8: =Input!AG8 -> 365 | AL8: =Input!AH8 -> 365 | AM8: =Input!AI8 -> 366 | AN8: =Input!AJ8 -> 365 | AO8: =Input!AK8 -> 365 | AP8: =Input!AL8 -> 365 | AQ8: =Input!AM8 -> 366 | AR8: =Input!AN8 -> 365
A9: Year portion | I9: =Input!I9 -> 1 | J9: =Input!J9 -> 1 | K9: =Input!K9 -> 1 | L9: =Input!L9 -> 1 | M9: =Input!M9 -> 1 | N9: =Input!N9 -> 1 | O9: =Input!O9 -> 1 | P9: =Input!P9 -> 1 | Q9: =Input!Q9 -> 1 | R9: =Input!R9 -> 1 | S9: =Input!S9 -> 1 | T9: =Input!T9 -> 0.495890411 | U9: =U8/365 -> 0.504109589 | V9: =1-U9 -> 0.495890411 | W9: =Input!U9 -> 1 | X9: =Input!V9 -> 1 | Y9: =Input!W9 -> 1 | Z9: =Input!X9 -> 1 | AA9: =Input!Y9 -> 0.504109589 | AB9: =AB8/365 -> 0.7479452055 | AC9: =1-AB9 -> 0.2520547945 | AD9: =Input!Z9 -> 1 | AE9: =Input!AA9 -> 1 | AF9: =Input!AB9 -> 1 | AG9: =Input!AC9 -> 1 | AH9: =Input!AD9 -> 1 | AI9: =Input!AE9 -> 1 | AJ9: =Input!AF9 -> 1 | AK9: =Input!AG9 -> 1 | AL9: =Input!AH9 -> 1 | AM9: =Input!AI9 -> 1 | AN9: =Input!AJ9 -> 1 | AO9: =Input!AK9 -> 1 | AP9: =Input!AL9 -> 1 | AQ9: =Input!AM9 -> 1 | AR9: =Input!AN9 -> 1
A10: Financial Parameters
A11: =ROW() -> 11 | C11: Actual and Forecast Inflations used in calculation
A12: =ROW() -> 12 | D12: Selected CPI period | I12: =Input!I46 -> 1999-12-31 | J12: =Input!J46 -> 2000-12-31 | K12: =Input!K46 -> 2001-12-31 | L12: =Input!L46 -> 2002-12-31 | M12: =Input!M46 -> 2003-12-31 | N12: =Input!N46 -> 2004-12-31 | O12: =Input!O46 -> 2005-12-31 | P12: =Input!P46 -> 2006-12-31 | Q12: =Input!Q46 -> 2007-12-31 | R12: =Input!R46 -> 2008-12-31 | S12: =Input!S46 -> 2009-12-31 | T12: =Input!T46 -> 2010-06-30 | U12: 2010-12-31 | V12: 2011-06-06 | W12: =Input!U46 -> 2011-06-30 | X12: =Input!V46 -> 2012-06-30 | Y12: =Input!W46 -> 2013-06-30 | Z12: =Input!X46 -> 2014-06-30 | AA12: =Input!Y46 -> 2014-12-31 | AB12: =AD12 -> 2015-12-31 | AC12: 2015-12-31 | AD12: =Input!Z46 -> 2015-12-31 | AE12: =Input!AA46 -> 2016-12-31 | AF12: =Input!AB46 -> 2017-12-31 | AG12: =Input!AC46 -> 2018-12-31 | AH12: =Input!AD46 -> 2019-12-31 | AI12: =Input!AE46 -> 2020-12-31 | AJ12: =Input!AF46 -> 2021-12-31 | AK12: =Input!AG46 -> 2022-12-31 | AL12: =Input!AH46 -> 2023-12-31 | AM12: =Input!AI46 -> 2024-12-31 | AN12: =Input!AJ46 -> 2025-12-31 | AO12: =Input!AK46 -> 2026-12-31 | AP12: =Input!AL46 -> 2027-12-31 | AQ12: =Input!AM46 -> 2028-12-31 | AR12: =Input!AN46 -> 2029-12-31
A13: =ROW() -> 13 | D13: CPI | I13: =Input!I47 -> 69.06674058 | J13: =Input!J47 -> 73.07383592 | K13: =Input!K47 -> 75.3556541 | L13: =Input!L47 -> 77.63747228 | M13: =Input!M47 -> 79.47405765 | N13: =Input!N47 -> 81.53325942 | O13: =Input!O47 -> 83.81507761 | P13: =Input!P47 -> 86.5421286 | Q13: =Input!Q47 -> 89.10221729 | R13: =Input!R47 -> 92.38580931 | S13: =Input!S47 -> 94.33370288 | T13: =Input!T47 -> 95.78070953 | U13: =T13*(1+U14) -> 96.83813747 | V13: =U13*(1+V14) -> 99.23126386 | W13: =Input!U47 -> 99.23126386 | X13: =Input!V47 -> 100.4 | Y13: =Input!W47 -> 102.8 | Z13: =Input!X47 -> 105.9 | AA13: =Input!Y47 -> 106.6 | AB13: =AD13 -> 108.4 | AC13: =AD13 -> 108.4 | AD13: =Input!Z$47 -> 108.4 | AE13: =Input!AA$47 -> 110 | AF13: =Input!AB$47 -> 112.1 | AG13: =Input!AC$47 -> 114.1 | AH13: =Input!AD$47 -> 116.2 | AI13: =Input!AE$47 -> 117.2 | AJ13: =Input!AF$47 -> 121.3 | AK13: =Input!AG$47 -> 130.8 | AL13: =Input!AH$47 -> 136.1 | AM13: =Input!AI$47 -> 141.2718 | AN13: =Input!AJ$47 -> 144.8177222 | AO13: =Input!AK$47 -> 148.452647 | AP13: =Input!AL$47 -> 152.1788084 | AQ13: =Input!AM$47 -> 155.9984965 | AR13: =Input!AN$47 -> 159.9140588
A14: =ROW() -> 14 | D14: Inflation | J14: =J13/I13-1 -> 0.05801772764 | K14: 0.03122619954 | L14: 0.03028064993 | M14: 0.02365591398 | N14: 0.02591036415 | O14: 0.02798634812 | P14: 0.03253652058 | Q14: 0.02958199357 | R14: 0.03685196752 | S14: 0.02108433735 | T14: 0.01533923304 | U14: 0.01104009297 | V14: 0.02471264368 | W14: =W13/T13-1 -> 0.03602556653 | X14: =X13/W13-1 -> 0.01177790241 | Y14: 0.02390438247 | Z14: 0.03015564202 | AA14: 0.006610009443 | AB14: 0.01688555347 | AC14: =AD14 -> 0.01688555347 | AD14: =AD13/AA13-1 -> 0.01688555347 | AE14: 0.0147601476 | AF14: 0.01909090909 | AG14: 0.0178412132 | AH14: 0.01840490798 | AI14: =AI13/AH13-1 -> 0.008605851979 | AJ14: 0.03498293515 | AK14: =AK13/AJ13-1 -> 0.07831821929 | AL14: =AL13/AK13-1 -> 0.04051987768 | AM14: =AM13/AL13-1 -> 0.038 | AN14: =AN13/AM13-1 -> 0.0251 | AO14: =AO13/AN13-1 -> 0.0251 | AP14: =AP13/AO13-1 -> 0.0251 | AQ14: =AQ13/AP13-1 -> 0.0251 | AR14: =AR13/AQ13-1 -> 0.0251
A15: =ROW() -> 15 | C15: Inflation to Convert from the end of the period
A16: =ROW() -> 16 | D16: ="Inflation Factor (convert to real "&Input!$G$51&" $)" -> Inflation Factor (convert to real 31/12/2023 $) | G16: Base period | H16: =Input!G46 -> 2023-12-31 | I16: =Input!I51 -> 1.970557737 | J16: =Input!J51 -> 1.862499734 | K16: =Input!K51 -> 1.806102032 | L16: =Input!L51 -> 1.753019463 | M16: =Input!M51 -> 1.712508509 | N16: =Input!N51 -> 1.669257441 | O16: =Input!O51 -> 1.62381285 | P16: =Input!P51 -> 1.57264447 | Q16: =Input!Q51 -> 1.527459183 | R16: =Input!R51 -> 1.473169971 | S16: =Input!S51 -> 1.442750532 | T16: =HLOOKUP($H$16,$I$12:$AR$13,2,FALSE)/T$13 -> 1.420954184 | U16: =HLOOKUP($H$16,$I$12:$AR$13,2,FALSE)/U$13 -> 1.405438018 | V16: 1.371543551 | W16: =Input!U51 -> 1.371543551 | X16: =Input!V51 -> 1.355577689 | Y16: =Input!W51 -> 1.323929961 | Z16: =Input!X51 -> 1.285174693 | AA16: =Input!Y51 -> 1.27673546 | AB16: =AC16 -> 1.255535055 | AC16: =AD16 -> 1.255535055 | AD16: =Input!Z51 -> 1.255535055 | AE16: =Input!AA51 -> 1.237272727 | AF16: =Input!AB51 -> 1.214094558 | AG16: =Input!AC51 -> 1.192813322 | AH16: =Input!AD51 -> 1.171256454 | AI16: =Input!AE51 -> 1.161262799 | AJ16: =Input!AF51 -> 1.122011542 | AK16: =Input!AG51 -> 1.040519878 | AL16: =Input!AH51 -> 1 | AM16: =Input!AI51 -> 0.9633911368 | AN16: =Input!AJ51 -> 0.939802104 | AO16: =Input!AK51 -> 0.9167906585 | AP16: =Input!AL51 -> 0.8943426578 | AQ16: =Input!AM51 -> 0.8724443057 | AR16: =Input!AN51 -> 0.8510821439
A17: =ROW() -> 17 | D17: ="Inflation Factor (convert " &Input!$G$51& " $ to $ nominal)" -> Inflation Factor (convert 31/12/2023 $ to $ nominal) | I17: =1/I16 -> 0.5074705406 | J17: 0.5369128282 | K17: 0.5536785753 | L17: 0.5704443224 | M17: 0.5839387043 | N17: 0.5990687687 | O17: 0.6158345158 | P17: 0.6358716282 | Q17: 0.6546819787 | R17: 0.6788082977 | S17: 0.6931205208 | T17: =1/T16 -> 0.703752458 | U17: 0.7115219506 | V17: 0.729105539 | W17: 0.729105539 | X17: 0.7376928729 | Y17: 0.7553269655 | Z17: 0.778104335 | AA17: =1/AA16 -> 0.783247612 | AB17: =1/AB16 -> 0.7964731815 | AC17: 0.7964731815 | AD17: 0.7964731815 | AE17: 0.8082292432 | AF17: 0.8236590742 | AG17: 0.8383541514 | AH17: 0.8537839824 | AI17: =1/AI16 -> 0.8611315209 | AJ17: 0.8912564291 | AK17: 0.9610580456 | AL17: 1 | AM17: 1.038 | AN17: =1/AN16 -> 1.0640538 | AO17: 1.09076155 | AP17: 1.118139665 | AQ17: 1.146204971 | AR17: 1.174974716
A18: =ROW() -> 18
A19: Volume & Customer Num by Tariff Class
A20: =ROW() -> 20 | O20: Actual 2 | T20: Actual 3 and est for 2013/14 | AD20: Actual | AJ20: Actual | AL20: Forecast | AP20: Forecast
A21: =ROW() -> 21 | C21: Customers Including Prudent Discounts
A22: =ROW() -> 22 | D22: Tariff class A1 | O22: =O29+O36 -> 70.5 | P22: =P29+P36 -> 72.5 | Q22: 72 | R22: 73 | S22: 75.5 | T22: 75.33333333 | U22: 75 | V22: 75.16666667 | W22: 75.16666667 | X22: 72.91666667 | Y22: 75.66666667 | Z22: 74.5 | AA22: 72.5 | AD22: =AD29+AD36 -> 73.5 | AE22: 76 | AF22: 75.5 | AG22: 74.5 | AH22: 74.5 | AI22: =AI29+AI36 -> 74 | AJ22: 73.5 | AK22: 73 | AL22: 71 | AM22: 67.5 | AN22: =AN29+AN36 -> 66 | AO22: 65.5 | AP22: 64.5 | AQ22: 63.5 | AR22: 62.5
A23: =ROW() -> 23 | D23: Tariff class A2 | O23: =O30+O37 -> 93 | P23: 96 | Q23: 97 | R23: 98 | S23: 99 | T23: =T30+T37 -> 102.1666667 | U23: 100.5 | V23: 105 | W23: 105 | X23: 112.5 | Y23: 109.0833333 | Z23: 107.5 | AA23: 107 | AD23: =AD30+AD37 -> 106.5 | AE23: 102 | AF23: 99 | AG23: 102 | AH23: 106.5 | AI23: =AI30+AI37 -> 105.5 | AJ23: 104 | AK23: 104 | AL23: 104 | AM23: 104.5 | AN23: =AN30+AN37 -> 104 | AO23: 104 | AP23: 104 | AQ23: 104 | AR23: 104
A24: =ROW() -> 24 | D24: Tariff class B1 | O24: =O31+O38 -> 1074 | P24: 1084.5 | Q24: 1106.5 | R24: 1136.5 | S24: 1184.5 | T24: 1225.166667 | U24: 1244.5 | V24: 1258.833333 | W24: 1258.833333 | X24: 1298.916667 | Y24: 1335.416667 | Z24: 1365 | AA24: 1400 | AD24: =AD31+AD38 -> 1445 | AE24: 1519.5 | AF24: 1600 | AG24: 1670.5 | AH24: 1739 | AI24: =AI31+AI38 -> 1807.5 | AJ24: 1876.5 | AK24: 1940 | AL24: 1994.5 | AM24: 2045.5 | AN24: =AN31+AN38 -> 2094.768476 | AO24: 2144.898159 | AP24: 2196.22749 | AQ24: 2248.785178 | AR24: 2302.600618
A25: =ROW() -> 25 | D25: Tariff class B2 | O25: =O32+O39 -> 5988 | P25: 5810 | Q25: 6218 | R25: 6677 | S25: 7248.505679 | T25: 7702.5 | U25: 7898 | V25: 8110.083333 | W25: 8110.083333 | X25: 8713.75 | Y25: 9267.25 | Z25: 9801.5 | AA25: 10224.5 | AD25: =AD32+AD39 -> 10624.5 | AE25: 11114.5 | AF25: 11496.5 | AG25: 11738.5 | AH25: 11974 | AI25: =AI32+AI39 -> 12129.5 | AJ25: 12228.5 | AK25: 12429 | AL25: 12632.5 | AM25: 12819.1 | AN25: =AN32+AN39 -> 13008.8056 | AO25: 13201.54649 | AP25: 13397.37123 | AQ25: 13631.10071 | AR25: 13903.26139
A26: =ROW() -> 26 | D26: Tariff class B3 | O26: =O33+O40 -> 515677.5 | P26: 536107.5 | Q26: 556115.5 | R26: 573808.5 | S26: 589563.5 | T26: 601247 | U26: 609163.8988 | V26: 614525 | W26: 614525 | X26: 629900.5833 | Y26: 642710.8333 | Z26: 657672.5 | AA26: 671182 | AD26: =AD33+AD40 -> 686910.5 | AE26: 705512.5 | AF26: 718910.5 | AG26: 728627 | AH26: 737032 | AI26: =AI33+AI40 -> 744038 | AJ26: 751396.5 | AK26: 761657.5 | AL26: 772818.5 | AM26: 781627.944 | AN26: =AN33+AN40 -> 788369.4404 | AO26: 796364.114 | AP26: 805626.5431 | AQ26: 815553.0212 | AR26: 825813.2387
A27: =ROW() -> 27 | D27: Total | O27: =SUM(O22:O26) -> 522903 | P27: 543170.5 | Q27: 563609 | R27: 581793 | S27: 598171.0057 | T27: =SUM(T22:T26) -> 610352.1667 | U27: 618481.8988 | V27: 624074.0833 | W27: 624074.0833 | X27: 640098.6667 | Y27: 653498.25 | Z27: 669021 | AA27: 682986 | AD27: =SUM(AD22:AD26) -> 699160 | AE27: 718324.5 | AF27: 732181.5 | AG27: 742212.5 | AH27: 750926 | AI27: =SUM(AI22:AI26) -> 758154.5 | AJ27: 765679 | AK27: 776203.5 | AL27: 787620.5 | AM27: 796664.544 | AN27: =SUM(AN22:AN26) -> 803643.0145 | AO27: 811880.0587 | AP27: 821388.6418 | AQ27: 831600.4071 | AR27: 842185.6007
A28: =ROW() -> 28 | C28: Customers Receiving Prudent Discounts
A29: =ROW() -> 29 | D29: Tariff class A1 | O29: 29 | P29: 30.5 | Q29: 29.5 | R29: 28 | S29: 27 | T29: 25 | U29: =W29 -> 22 | V29: =W29 -> 22 | W29: 22 | X29: 17 | Y29: 13 | Z29: 10 | AA29: 8 | AD29: 7 | AE29: 4 | AF29: 3 | AG29: 2 | AH29: 4 | AI29: 4 | AJ29: 3.5 | AK29: 1 | AM29: 0 | AN29: 0 | AO29: 0 | AP29: 0 | AQ29: 0 | AR29: 0
A30: =ROW() -> 30 | D30: Tariff class A2 | O30: 12 | P30: 11.5 | Q30: 10 | R30: 7.5 | S30: 5 | T30: 5 | U30: =W30 -> 4 | V30: =W30 -> 4 | W30: 4 | X30: 3 | Y30: 2.5 | Z30: 3 | AA30: 4 | AD30: 4 | AE30: 3.5 | AF30: 2 | AG30: 1 | AH30: 1 | AI30: 1 | AJ30: 1 | AK30: 0 | AM30: 0 | AN30: 0 | AO30: 0 | AP30: 0 | AQ30: 0 | AR30: 0
A31: =ROW() -> 31 | D31: Tariff class B1 | O31: 4 | P31: 4 | Q31: 4 | R31: 4 | S31: 3.5 | T31: 3 | U31: 2.5 | V31: 2.5 | W31: 2.5 | X31: 1.5 | Y31: 1 | Z31: 1 | AA31: 1 | AD31: 1 | AE31: 1 | AF31: 0.5 | AG31: 0 | AH31: 0 | AI31: 0 | AJ31: 0 | AK31: 0 | AM31: 0 | AN31: 0 | AO31: 0 | AP31: 0 | AQ31: 0 | AR31: 0
A32: =ROW() -> 32 | D32: Tariff class B2 | O32: 5 | P32: 5 | Q32: 5 | R32: 5 | S32: 5.005679466 | T32: 5 | U32: 5 | V32: 5 | W32: 5 | X32: 5 | Y32: 5 | Z32: 4.5 | AA32: 3 | AD32: 2 | AE32: 2 | AF32: 2 | AG32: 1.5 | AH32: 1 | AI32: 1 | AJ32: 1 | AK32: 1 | AM32: 0 | AN32: 0 | AO32: 0 | AP32: 0 | AQ32: 0 | AR32: 0
A33: =ROW() -> 33 | D33: Tariff class B3 | O33: 1 | P33: 1 | Q33: 1 | R33: 1 | S33: 1 | T33: 1 | U33: 1 | V33: 1 | W33: 1 | X33: 1 | Y33: 1 | Z33: 1 | AA33: 1 | AD33: 1 | AE33: 0.5 | AF33: 0 | AG33: 0 | AH33: 0 | AI33: 0 | AJ33: 0 | AK33: 0 | AM33: 0 | AN33: 0 | AO33: 0 | AP33: 0 | AQ33: 0 | AR33: 0
A34: =ROW() -> 34 | D34: Total | O34: =SUM(O29:O33) -> 51 | P34: =SUM(P29:P33) -> 52 | Q34: =SUM(Q29:Q33) -> 49.5 | R34: =SUM(R29:R33) -> 45.5 | S34: =SUM(S29:S33) -> 41.50567947 | T34: =SUM(T29:T33) -> 39 | U34: 34.5 | V34: 34.5 | W34: 34.5 | X34: 27.5 | Y34: 22.5 | Z34: 19.5 | AA34: 17 | AD34: 15 | AE34: 11 | AF34: 7.5 | AG34: 4.5 | AH34: 6 | AI34: 6 | AJ34: 5.5 | AK34: 2 | AL34: 0 | AM34: 0 | AN34: 0 | AO34: 0 | AP34: 0 | AQ34: 0 | AR34: 0
A35: =ROW() -> 35 | C35: Customers (Excluding Prudent Discounts)
A36: =ROW() -> 36 | D36: Tariff class A1 | O36: 41.5 | P36: 42 | Q36: 42.5 | R36: 45 | S36: 48.5 | T36: 50.33333333 | U36: 53 | V36: =W36 -> 53.16666667 | W36: 53.16666667 | X36: 55.91666667 | Y36: 62.66666667 | Z36: 64.5 | AA36: 64.5 | AD36: 66.5 | AE36: 72 | AF36: 72.5 | AG36: 72.5 | AH36: 70.5 | AI36: 70 | AJ36: 70 | AK36: 72 | AL36: 71 | AM36: 67.5 | AN36: 66 | AO36: 65.5 | AP36: 64.5 | AQ36: 63.5 | AR36: 62.5
A37: =ROW() -> 37 | D37: Tariff class A2 | O37: 81 | P37: 84.5 | Q37: 87 | R37: 90.5 | S37: 94 | T37: 97.16666667 | U37: 96.5 | V37: =W37 -> 101 | W37: 101 | X37: 109.5 | Y37: 106.5833333 | Z37: 104.5 | AA37: 103 | AD37: 102.5 | AE37: 98.5 | AF37: 97 | AG37: 101 | AH37: 105.5 | AI37: 104.5 | AJ37: 103 | AK37: 104 | AL37: 104 | AM37: 104.5 | AN37: 104 | AO37: 104 | AP37: 104 | AQ37: 104 | AR37: 104
A38: =ROW() -> 38 | D38: Tariff class B1 | O38: 1070 | P38: 1080.5 | Q38: 1102.5 | R38: 1132.5 | S38: 1181 | T38: 1222.166667 | U38: 1242 | V38: 1256.333333 | W38: 1256.333333 | X38: 1297.416667 | Y38: 1334.416667 | Z38: 1364 | AA38: 1399 | AD38: 1444 | AE38: 1518.5 | AF38: 1599.5 | AG38: 1670.5 | AH38: 1739 | AI38: 1807.5 | AJ38: 1876.5 | AK38: 1940 | AL38: 1994.5 | AM38: 2045.5 | AN38: 2094.768476 | AO38: 2144.898159 | AP38: 2196.22749 | AQ38: 2248.785178 | AR38: 2302.600618
A39: =ROW() -> 39 | D39: Tariff class B2 | O39: 5983 | P39: 5805 | Q39: 6213 | R39: 6672 | S39: 7243.5 | T39: 7697.5 | U39: 7893 | V39: 8105.083333 | W39: 8105.083333 | X39: 8708.75 | Y39: 9262.25 | Z39: 9797 | AA39: 10221.5 | AD39: 10622.5 | AE39: 11112.5 | AF39: 11494.5 | AG39: 11737 | AH39: 11973 | AI39: 12128.5 | AJ39: 12227.5 | AK39: 12428 | AL39: 12632.5 | AM39: 12819.1 | AN39: 13008.8056 | AO39: 13201.54649 | AP39: 13397.37123 | AQ39: 13631.10071 | AR39: 13903.26139
A40: =ROW() -> 40 | D40: Tariff class B3 | O40: 515676.5 | P40: 536106.5 | Q40: 556114.5 | R40: 573807.5 | S40: 589562.5 | T40: 601246 | U40: 609162.8988 | V40: 614524 | W40: 614524 | X40: 629899.5833 | Y40: 642709.8333 | Z40: 657671.5 | AA40: 671181 | AD40: 686909.5 | AE40: 705512 | AF40: 718910.5 | AG40: 728627 | AH40: 737032 | AI40: 744038 | AJ40: 751396.5 | AK40: 761657.5 | AL40: 772818.5 | AM40: 781627.944 | AN40: 788369.4404 | AO40: 796364.114 | AP40: 805626.5431 | AQ40: 815553.0212 | AR40: 825813.2387
A41: =ROW() -> 41 | D41: Total | O41: =SUM(O36:O40) -> 522852 | P41: =SUM(P36:P40) -> 543118.5 | Q41: =SUM(Q36:Q40) -> 563559.5 | R41: =SUM(R36:R40) -> 581747.5 | S41: =SUM(S36:S40) -> 598129.5 | T41: 610313.1667 | U41: 618447.3988 | V41: 624039.5833 | W41: 624039.5833 | X41: 640071.1667 | Y41: 653475.75 | Z41: 669001.5 | AA41: =SUM(AA36:AA40) -> 682969 | AD41: =SUM(AD36:AD40) -> 699145 | AE41: 718313.5 | AF41: 732174 | AG41: 742208 | AH41: 750920 | AI41: 758148.5 | AJ41: 765673.5 | AK41: 776201.5 | AL41: 787620.5 | AM41: 796664.544 | AN41: 803643.0145 | AO41: 811880.0587 | AP41: 821388.6418 | AQ41: 831600.4071 | AR41: 842185.6007
A42: =ROW() -> 42 | C42: Volume (Including Prudent Discounts) [TJ]
A43: =ROW() -> 43 | D43: Tariff class A1 | O43: 16191.68504 | P43: 15869.0038 | Q43: 15601.67466 | R43: 12400.4278 | S43: 12209.3604 | T43: 6031.337349 | U43: 6214.313395 | V43: =W43-U43 -> 6292.668281 | W43: 12506.98168 | X43: 12071.65486 | Y43: 11296.60722 | Z43: 11362.13068 | AA43: 6025.896565 | AD43: 11398.21581 | AE43: 10777.96142 | AF43: 10338.17915 | AG43: 11225.07152 | AH43: 10821.47884 | AI43: 11753.92605 | AJ43: 12346.51513 | AK43: 11830.26724 | AL43: 11503.74915 | AM43: 12150.33117 | AN43: 13178.43132 | AO43: 13378.6592 | AP43: 13876.85065 | AQ43: 13854.51134 | AR43: 13821.12832
A44: =ROW() -> 44 | D44: Tariff class A2 | O44: 2239.295585 | P44: 2067.887482 | Q44: 2111.61597 | R44: 1945.340459 | S44: 1956.817742 | T44: 936.9033746 | U44: 1052.735121 | V44: =W44-U44 -> 870.5179483 | W44: 1923.253069 | X44: 2092.299763 | Y44: 2040.058109 | Z44: 1927.568029 | AA44: 971.99815 | AD44: 1854.028603 | AE44: 1819.923627 | AF44: 1814.45347 | AG44: 1787.967278 | AH44: 1842.34484 | AI44: 1711.437586 | AJ44: 1829.924647 | AK44: 1918.28728 | AL44: 1879.40309 | AM44: 1897.993261 | AN44: 1899.848298 | AO44: 1886.418189 | AP44: 1882.250462 | AQ44: 1877.35066 | AR44: 1872.523343
A45: =ROW() -> 45 | D45: Tariff class B1 | O45: 1890.602 | P45: 1703.088083 | Q45: 1717.715314 | R45: 1649.406131 | S45: 1636.164865 | T45: 745.5632319 | U45: 910.7456253 | V45: 683.8857193 | W45: 1594.631345 | X45: 1553.663922 | Y45: 1640.269951 | Z45: 1629.429407 | AA45: 889.2586427 | AD45: 1720.802873 | AE45: 1930.425315 | AF45: 1874.796319 | AG45: 2004.555894 | AH45: 1952.663457 | AI45: 1840.144876 | AJ45: 2076.475007 | AK45: 2136.322785 | AL45: 2174.770122 | AM45: 2164.480426 | AN45: 2153.961654 | AO45: 2143.169005 | AP45: 2132.430465 | AQ45: 2121.745765 | AR45: 2111.114634
A46: =ROW() -> 46 | D46: Tariff class B2 | O46: 1068.909 | P46: 1109.032828 | Q46: 1134.902225 | R46: 1196.891861 | S46: 1158.582311 | T46: 552.7825543 | U46: 646.6664185 | V46: 522.0128637 | W46: 1168.679282 | X46: 1189.664699 | Y46: 1232.063588 | Z46: 1255.113315 | AA46: 663.227406 | AD46: 1292.02506 | AE46: 1368.908476 | AF46: 1343.140615 | AG46: 1353.511453 | AH46: 1338.511679 | AI46: 1238.352725 | AJ46: 1328.286771 | AK46: 1310.949248 | AL46: 1318.038021 | AM46: 1310.197884 | AN46: 1300.823108 | AO46: 1291.537707 | AP46: 1282.340425 | AQ46: 1276.486216 | AR46: 1273.806181
A47: =ROW() -> 47 | D47: Tariff class B3 | O47: 10302.854 | P47: 9974.977966 | Q47: 10147.42947 | R47: 10602.50509 | S47: 10434.25466 | T47: 4589.274683 | U47: 6078.261289 | V47: 3691.503785 | W47: 9769.765074 | X47: 9645.962254 | Y47: 9905.950696 | Z47: 9840.84139 | AA47: 5226.947008 | AD47: 9796.899664 | AE47: 10874.77906 | AF47: 9932.181873 | AG47: 10077.69828 | AH47: 9934.135443 | AI47: 10113.39119 | AJ47: 10511.75965 | AK47: 10318.24765 | AL47: 10136.25629 | AM47: 10068.96802 | AN47: 9806.466293 | AO47: 9598.915543 | AP47: 9419.878709 | AQ47: 9261.973567 | AR47: 9120.188063
A48: =ROW() -> 48 | D48: Total | O48: =SUM(O43:O47) -> 31693.34562 | P48: =SUM(P43:P47) -> 30723.99016 | Q48: =SUM(Q43:Q47) -> 30713.33764 | R48: =SUM(R43:R47) -> 27794.57134 | S48: =SUM(S43:S47) -> 27395.17998 | T48: 12855.86119 | U48: 14902.72185 | V48: 12060.5886 | W48: 26963.31045 | X48: 26553.2455 | Y48: 26114.94957 | Z48: 26015.08283 | AA48: 13777.32777 | AD48: 26061.97201 | AE48: 26771.99789 | AF48: 25302.75142 | AG48: 26448.80442 | AH48: 25889.13426 | AI48: 26657.25242 | AJ48: 28092.9612 | AK48: 27514.07421 | AL48: 27012.21667 | AM48: 27591.97076 | AN48: 28339.53067 | AO48: 28298.69965 | AP48: 28593.75071 | AQ48: 28392.06755 | AR48: 28198.76055
A49: =ROW() -> 49 | C49: Authority adjustments to volume (Including Prudent Discounts) [TJ] | O49: Actual 2 | T49: Estimate | AD49: Actual | AJ49: Actual | AL49: Forecast | AP49: Forecast
A50: =ROW() -> 50 | D50: Tariff class A1
A51: =ROW() -> 51 | D51: Tariff class A2
A52: =ROW() -> 52 | D52: Tariff class B1
A53: =ROW() -> 53 | D53: Tariff class B2
A54: =ROW() -> 54 | D54: Tariff class B3 | N54: WAGN submission 24/12/2010 | T54: =4589.27118678824-T47 -> -0.003496266674 | U54: =5806-U47 -> -272.2612895 | V54: =W54-U54 -> 272.2612895
A55: =ROW() -> 55 | D55: Total | O55: =SUM(O50:O54) -> 0 | P55: 0 | Q55: 0 | R55: 0 | S55: 0 | T55: -0.003496266674 | U55: -272.2612895 | V55: 272.2612895 | W55: 0 | X55: 0 | Y55: 0 | Z55: 0 | AD55: =SUM(AD50:AD54) -> 0 | AE55: 0 | AF55: 0 | AG55: 0 | AH55: 0 | AI55: =SUM(AI50:AI54) -> 0 | AJ55: 0 | AK55: 0 | AL55: 0 | AM55: 0 | AN55: =SUM(AN50:AN54) -> 0 | AO55: 0 | AP55: 0 | AQ55: 0 | AR55: 0
A56: =ROW() -> 56 | C56: Modelled Volume (Including Prudent Discounts) [TJ] | O56: Actual 2 | T56: Actual 3 and est for 2013/14 | AD56: Actual | AJ56: Actual | AL56: Forecast | AP56: Forecast
A57: =ROW() -> 57 | D57: Tariff class A1 | O57: =O43+O50 -> 16191.68504 | P57: =P43+P50 -> 15869.0038 | Q57: =Q43+Q50 -> 15601.67466 | R57: =R43+R50 -> 12400.4278 | S57: =S43+S50 -> 12209.3604 | T57: =T43+T50 -> 6031.337349 | U57: 6214.313395 | V57: 6292.668281 | W57: 12506.98168 | X57: 12071.65486 | Y57: 11296.60722 | Z57: 11362.13068 | AA57: 6025.896565 | AD57: =AD43+AD50 -> 11398.21581 | AE57: 10777.96142 | AF57: 10338.17915 | AG57: 11225.07152 | AH57: 10821.47884 | AI57: =AI43+AI50 -> 11753.92605 | AJ57: 12346.51513 | AK57: 11830.26724 | AL57: 11503.74915 | AM57: 12150.33117 | AN57: =AN43+AN50 -> 13178.43132 | AO57: 13378.6592 | AP57: 13876.85065 | AQ57: 13854.51134 | AR57: 13821.12832
A58: =ROW() -> 58 | D58: Tariff class A2 | O58: =O44+O51 -> 2239.295585 | P58: 2067.887482 | Q58: 2111.61597 | R58: 1945.340459 | S58: 1956.817742 | T58: 936.9033746 | U58: 1052.735121 | V58: 870.5179483 | W58: 1923.253069 | X58: 2092.299763 | Y58: 2040.058109 | Z58: 1927.568029 | AA58: 971.99815 | AD58: =AD44+AD51 -> 1854.028603 | AE58: 1819.923627 | AF58: 1814.45347 | AG58: 1787.967278 | AH58: 1842.34484 | AI58: =AI44+AI51 -> 1711.437586 | AJ58: 1829.924647 | AK58: 1918.28728 | AL58: 1879.40309 | AM58: 1897.993261 | AN58: =AN44+AN51 -> 1899.848298 | AO58: 1886.418189 | AP58: 1882.250462 | AQ58: 1877.35066 | AR58: 1872.523343
A59: =ROW() -> 59 | D59: Tariff class B1 | O59: 1890.602 | P59: 1703.088083 | Q59: 1717.715314 | R59: 1649.406131 | S59: 1636.164865 | T59: 745.5632319 | U59: 910.7456253 | V59: 683.8857193 | W59: 1594.631345 | X59: 1553.663922 | Y59: 1640.269951 | Z59: 1629.429407 | AA59: 889.2586427 | AD59: =AD45+AD52 -> 1720.802873 | AE59: 1930.425315 | AF59: 1874.796319 | AG59: 2004.555894 | AH59: 1952.663457 | AI59: =AI45+AI52 -> 1840.144876 | AJ59: 2076.475007 | AK59: 2136.322785 | AL59: 2174.770122 | AM59: 2164.480426 | AN59: =AN45+AN52 -> 2153.961654 | AO59: 2143.169005 | AP59: 2132.430465 | AQ59: 2121.745765 | AR59: 2111.114634
A60: =ROW() -> 60 | D60: Tariff class B2 | O60: 1068.909 | P60: 1109.032828 | Q60: 1134.902225 | R60: 1196.891861 | S60: 1158.582311 | T60: 552.7825543 | U60: 646.6664185 | V60: 522.0128637 | W60: 1168.679282 | X60: 1189.664699 | Y60: 1232.063588 | Z60: 1255.113315 | AA60: 663.227406 | AD60: =AD46+AD53 -> 1292.02506 | AE60: 1368.908476 | AF60: 1343.140615 | AG60: 1353.511453 | AH60: 1338.511679 | AI60: =AI46+AI53 -> 1238.352725 | AJ60: 1328.286771 | AK60: 1310.949248 | AL60: 1318.038021 | AM60: 1310.197884 | AN60: =AN46+AN53 -> 1300.823108 | AO60: 1291.537707 | AP60: 1282.340425 | AQ60: 1276.486216 | AR60: 1273.806181
A61: =ROW() -> 61 | D61: Tariff class B3 | O61: 10302.854 | P61: 9974.977966 | Q61: 10147.42947 | R61: 10602.50509 | S61: 10434.25466 | T61: 4589.271187 | U61: 5806 | V61: 3963.765074 | W61: 9769.765074 | X61: 9645.962254 | Y61: 9905.950696 | Z61: 9840.84139 | AA61: 5226.947008 | AD61: =AD47+AD54 -> 9796.899664 | AE61: 10874.77906 | AF61: 9932.181873 | AG61: 10077.69828 | AH61: 9934.135443 | AI61: =AI47+AI54 -> 10113.39119 | AJ61: 10511.75965 | AK61: 10318.24765 | AL61: 10136.25629 | AM61: 10068.96802 | AN61: =AN47+AN54 -> 9806.466293 | AO61: 9598.915543 | AP61: 9419.878709 | AQ61: 9261.973567 | AR61: 9120.188063
A62: =ROW() -> 62 | D62: Total | O62: =SUM(O57:O61) -> 31693.34562 | P62: 30723.99016 | Q62: 30713.33764 | R62: 27794.57134 | S62: 27395.17998 | T62: 12855.8577 | U62: 14630.46056 | V62: 12332.84989 | W62: 26963.31045 | X62: 26553.2455 | Y62: 26114.94957 | Z62: 26015.08283 | AA62: =SUM(AA57:AA61) -> 13777.32777 | AD62: =SUM(AD57:AD61) -> 26061.97201 | AE62: 26771.99789 | AF62: 25302.75142 | AG62: 26448.80442 | AH62: 25889.13426 | AI62: =SUM(AI57:AI61) -> 26657.25242 | AJ62: 28092.9612 | AK62: 27514.07421 | AL62: 27012.21667 | AM62: 27591.97076 | AN62: =SUM(AN57:AN61) -> 28339.53067 | AO62: 28298.69965 | AP62: 28593.75071 | AQ62: 28392.06755 | AR62: 28198.76055
A63: =ROW() -> 63 | C63: Volume of Prudent Discounts [TJ]
A64: =ROW() -> 64 | D64: Tariff class A1 | O64: 11296.79104 | P64: 10770.79694 | Q64: 10049.11316 | R64: 6739.789882 | S64: 6558.942626 | T64: 3042.31029 | U64: 2828.607685 | V64: =W64-U64 -> 2616.601033 | W64: 5445.208718 | X64: 3509.122373 | Y64: 2818.078397 | Z64: 2692.272436 | AA64: 1365.485083 | AD64: 2555.292333 | AE64: 1303.226657 | AF64: 1045.562486 | AG64: 1300.164276 | AH64: 1955.472897 | AI64: 3175.140246 | AJ64: 4.517679 | AK64: 0 | AL64: 0 | AM64: 0 | AN64: 0 | AO64: 0 | AP64: 0 | AQ64: 0 | AR64: 0
A65: =ROW() -> 65 | D65: Tariff class A2 | O65: 365.01537 | P65: 329.50928 | Q65: 350.493518 | R65: 243.118371 | S65: 175.3598537 | T65: 49.906037 | U65: 60.16105509 | V65: =W65-U65 -> 46.87684991 | W65: 107.037905 | X65: 72.247343 | Y65: 56.564383 | Z65: 43.053627 | AA65: 23.578265 | AD65: 49.569611 | AE65: 49.199402 | AF65: 20.702943 | AG65: 0 | AH65: 0.439734 | AI65: 0.022242 | AJ65: 1.038718 | AK65: 0 | AL65: 0 | AM65: 0 | AN65: 0 | AO65: 0 | AP65: 0 | AQ65: 0 | AR65: 0
A66: =ROW() -> 66 | D66: Tariff class B1 | O66: 10.517 | P66: 10.376937 | Q66: 10.00596632 | R66: 8.315351313 | S66: 9.59728022 | T66: 1.809206 | U66: 1.970497382 | V66: 0.4672086183 | W66: 2.437706 | X66: 7.6e-05 | Y66: 0 | Z66: 0 | AA66: 0 | AD66: 0 | AE66: 0 | AF66: 0 | AG66: 0 | AH66: 0 | AI66: 0 | AJ66: 0 | AK66: 0 | AL66: 0 | AM66: 0 | AN66: 0 | AO66: 0 | AP66: 0 | AQ66: 0 | AR66: 0
A67: =ROW() -> 67 | D67: Tariff class B2 | O67: =5.169-0.86 -> 4.309 | P67: =3.131383-0.95 -> 2.181383 | Q67: =1.74440634963386-0.02 -> 1.72440635 | R67: 1.797894512 | S67: 1.741422764 | T67: 0.6762485319 | U67: 1.19580294 | V67: 0.3562082316 | W67: 1.552011171 | X67: 1.196401906 | Y67: 0.4597468801 | Z67: 0.4452877621 | AA67: 0.2171567033 | AD67: 0.3885947692 | AE67: 0.3911495833 | AF67: 0.3908289794 | AG67: 0 | AH67: 0.381661 | AI67: 0.370296 | AJ67: 0.248984 | AK67: 0.165 | AL67: 0 | AM67: 0 | AN67: 0 | AO67: 0 | AP67: 0 | AQ67: 0 | AR67: 0
A68: =ROW() -> 68 | D68: Tariff class B3 | O68: 0.5 | P68: 0 | Q68: 0.0066 | R68: 0.0047 | S68: 0.007345700984 | T68: 0 | U68: 0 | V68: 0 | W68: 0 | X68: 0.001401 | Y68: 0.000307 | Z68: 0.000113 | AA68: 0 | AD68: 0 | AE68: 0 | AF68: 0 | AG68: 0 | AH68: 0 | AI68: 0 | AJ68: 0 | AK68: 0 | AL68: 0 | AM68: 0 | AN68: 0 | AO68: 0 | AP68: 0 | AQ68: 0 | AR68: 0
A69: =ROW() -> 69 | D69: Total | O69: =SUM(O64:O68) -> 11677.13241 | P69: =SUM(P64:P68) -> 11112.86454 | Q69: =SUM(Q64:Q68) -> 10411.34365 | R69: =SUM(R64:R68) -> 6993.026199 | S69: =SUM(S64:S68) -> 6745.648528 | T69: =SUM(T64:T68) -> 3094.701782 | U69: 2891.935041 | V69: 2664.301299 | W69: 5556.23634 | X69: 3582.567595 | Y69: 2875.102834 | Z69: 2735.771464 | AA69: =SUM(AA64:AA68) -> 1389.280505 | AD69: 2605.250539 | AE69: 1352.817209 | AF69: 1066.656258 | AG69: 1300.164276 | AH69: 1956.294292 | AI69: =SUM(AI64:AI68) -> 3175.532784 | AJ69: 5.805381 | AK69: 0.165 | AL69: 0 | AM69: 0 | AN69: =SUM(AN64:AN68) -> 0 | AO69: 0 | AP69: 0 | AQ69: 0 | AR69: 0
A70: =ROW() -> 70 | C70: Volume Excluding Prudent Discounts [TJ]
A71: =ROW() -> 71 | D71: Tariff class A1 | O71: =O57-O64 -> 4894.893999 | P71: 5098.206856 | Q71: 5552.561498 | R71: 5660.63792 | S71: 5650.417774 | T71: 2989.027059 | U71: 3385.705709 | V71: 3676.067249 | W71: 7061.772958 | X71: 8562.532485 | Y71: 8478.528824 | Z71: 8669.858249 | AA71: 4660.411482 | AD71: =AD57-AD64 -> 8842.923473 | AE71: 9474.73476 | AF71: 9292.61666 | AG71: 9924.907241 | AH71: 8866.005944 | AI71: =AI57-AI64 -> 8578.7858 | AJ71: 12341.99745 | AK71: 11830.26724 | AL71: 11503.74915 | AM71: 12150.33117 | AN71: =AN57-AN64 -> 13178.43132 | AO71: 13378.6592 | AP71: 13876.85065 | AQ71: 13854.51134 | AR71: 13821.12832
A72: =ROW() -> 72 | D72: Tariff class A2 | O72: 1874.280215 | P72: 1738.378202 | Q72: 1761.122452 | R72: 1702.222088 | S72: 1781.457888 | T72: 886.9973376 | U72: 992.574066 | V72: 823.6410984 | W72: 1816.215164 | X72: 2020.05242 | Y72: 1983.493726 | Z72: 1884.514402 | AA72: 948.419885 | AD72: =AD58-AD65 -> 1804.458992 | AE72: 1770.724225 | AF72: 1793.750527 | AG72: 1787.967278 | AH72: 1841.905106 | AI72: =AI58-AI65 -> 1711.415344 | AJ72: 1828.885929 | AK72: 1918.28728 | AL72: 1879.40309 | AM72: 1897.993261 | AN72: =AN58-AN65 -> 1899.848298 | AO72: 1886.418189 | AP72: 1882.250462 | AQ72: 1877.35066 | AR72: 1872.523343
A73: =ROW() -> 73 | D73: Tariff class B1 | O73: 1880.085 | P73: 1692.711146 | Q73: 1707.709348 | R73: 1641.09078 | S73: 1626.567585 | T73: 743.7540259 | U73: 908.7751279 | V73: 683.4185106 | W73: 1592.193639 | X73: 1553.663846 | Y73: 1640.269951 | Z73: 1629.429407 | AA73: 889.2586427 | AD73: =AD59-AD66 -> 1720.802873 | AE73: 1930.425315 | AF73: 1874.796319 | AG73: 2004.555894 | AH73: 1952.663457 | AI73: =AI59-AI66 -> 1840.144876 | AJ73: 2076.475007 | AK73: 2136.322785 | AL73: 2174.770122 | AM73: 2164.480426 | AN73: =AN59-AN66 -> 2153.961654 | AO73: 2143.169005 | AP73: 2132.430465 | AQ73: 2121.745765 | AR73: 2111.114634
A74: =ROW() -> 74 | D74: Tariff class B2 | O74: 1064.6 | P74: 1106.851445 | Q74: 1133.177818 | R74: 1195.093966 | S74: 1156.840888 | T74: 552.1063057 | U74: 645.4706156 | V74: 521.6566555 | W74: 1167.127271 | X74: 1188.468297 | Y74: 1231.603841 | Z74: 1254.668028 | AA74: 663.0102493 | AD74: =AD60-AD67 -> 1291.636465 | AE74: 1368.517326 | AF74: 1342.749786 | AG74: 1353.511453 | AH74: 1338.130018 | AI74: =AI60-AI67 -> 1237.982429 | AJ74: 1328.037787 | AK74: 1310.784248 | AL74: 1318.038021 | AM74: 1310.197884 | AN74: =AN60-AN67 -> 1300.823108 | AO74: 1291.537707 | AP74: 1282.340425 | AQ74: 1276.486216 | AR74: 1273.806181
A75: =ROW() -> 75 | D75: Tariff class B3 | O75: 10302.354 | P75: 9974.977966 | Q75: 10147.42287 | R75: 10602.50039 | S75: 10434.24731 | T75: 4589.271187 | U75: 5806 | V75: 3963.765074 | W75: =W61-W68 -> 9769.765074 | X75: 9645.960853 | Y75: 9905.950389 | Z75: 9840.841277 | AA75: 5226.947008 | AD75: =AD61-AD68 -> 9796.899664 | AE75: 10874.77906 | AF75: 9932.181873 | AG75: 10077.69828 | AH75: 9934.135443 | AI75: =AI61-AI68 -> 10113.39119 | AJ75: 10511.75965 | AK75: 10318.24765 | AL75: 10136.25629 | AM75: 10068.96802 | AN75: =AN61-AN68 -> 9806.466293 | AO75: 9598.915543 | AP75: 9419.878709 | AQ75: 9261.973567 | AR75: 9120.188063
A76: =ROW() -> 76 | D76: Total | O76: =SUM(O71:O75) -> 20016.21321 | P76: =SUM(P71:P75) -> 19611.12562 | Q76: =SUM(Q71:Q75) -> 20301.99398 | R76: =SUM(R71:R75) -> 20801.54514 | S76: =SUM(S71:S75) -> 20649.53145 | T76: =SUM(T71:T75) -> 9761.155915 | U76: 11738.52552 | V76: 9668.548587 | W76: 21407.07411 | X76: 22970.6779 | Y76: 23239.84673 | Z76: 23279.31136 | AA76: 12388.04727 | AD76: =SUM(AD71:AD75) -> 23456.72147 | AE76: 25419.18069 | AF76: 24236.09517 | AG76: 25148.64015 | AH76: 23932.83997 | AI76: =SUM(AI71:AI75) -> 23481.71963 | AJ76: 28087.15582 | AK76: 27513.90921 | AL76: 27012.21667 | AM76: 27591.97076 | AN76: =SUM(AN71:AN75) -> 28339.53067 | AO76: 28298.69965 | AP76: 28593.75071 | AQ76: 28392.06755 | AR76: 28198.76055
A77: Volume Excluding Prudent Discount & Customer Num by Bands
A78: =ROW() -> 78 | T78: Actual 3 and est for 2013/14 | AD78: Actual | AK78: Forecast | AP78: Forecast
A79: =ROW() -> 79 | C79: A1
A80: =ROW() -> 80 | D80: Customers | T80: =T36 -> 50.33333333 | U80: =U36 -> 53 | V80: 53.16666667 | W80: 53.16666667 | X80: 55.91666667 | Y80: 62.66666667 | Z80: 64.5 | AA80: 64.5 | AD80: =AD36 -> 66.5 | AE80: 72 | AF80: 72.5 | AG80: 72.5 | AH80: 70.5 | AI80: 70 | AJ80: 70 | AK80: 72 | AL80: 71 | AM80: 67.5 | AN80: 66 | AO80: 65.5 | AP80: 64.5 | AQ80: 63.5 | AR80: 62.5
A81: =ROW() -> 81 | D81: Demand 1 [GJ km Year] | T81: 4810.674978 | W81: 9941.092845 | X81: 11680.59719 | Y81: 12196.77594 | Z81: 12836.93546 | AA81: 6908.508355 | AD81: 13355.22104 | AE81: 15366.25762 | AF81: 15901.48185 | AG81: 16933.5405 | AH81: 17024.75091 | AI81: 16896.72608 | AJ81: 17662.97163 | AK81: 17576.273 | AL81: 17059.37656 | AM81: 14722.62034 | AN81: 11950.68597 | AO81: 12285.39394 | AP81: 12224.39394 | AQ81: 12202.59394 | AR81: 12026.59394
A82: =ROW() -> 82 | D82: Demand 2 [GJ km Year] | T82: 1022.982247 | W82: 2395.216712 | X82: 6559.023452 | Y82: 5974.018389 | Z82: 6077.220082 | AA82: 3742.059419 | AD82: 7362.087342 | AE82: 7594.702027 | AF82: 6938.869589 | AG82: 6587.707562 | AH82: 6529.567178 | AI82: 6527.880548 | AJ82: 6479.893425 | AK82: 6450.14 | AL82: 6237.217808 | AM82: 5799.96 | AN82: 5799.96 | AO82: 5799.96 | AP82: 5799.96 | AQ82: 5799.96 | AR82: 5799.96
A83: =ROW() -> 83 | D83: Usage 1 [TJ km] | T83: 10466.01377 | W83: 23453.57172 | X83: 30807.77556 | Y83: 28099.35376 | Z83: 29939.8747 | AA83: 16267.79064 | AD83: 31828.34975 | AE83: 37584.49962 | AF83: 37057.85173 | AG83: 42709.11395 | AH83: 37509.94087 | AI83: 33716.244 | AJ83: 41797.03556 | AK83: 39754.90292 | AL83: 36358.58696 | AM83: 33517.63462 | AN83: 32813.84392 | AO83: 33901.20676 | AP83: 34965.47709 | AQ83: 34892.0268 | AR83: 34721.83796
A84: =ROW() -> 84 | D84: Usage 2 [TJ km] | T84: 1432.245102 | W84: 2792.582836 | X84: 22417.44889 | Y84: 10456.27511 | Z84: 9608.150919 | AA84: 5860.346571 | AD84: 14173.39355 | AE84: 17215.38124 | AF84: 18631.62799 | AG84: 24799.91344 | AH84: 22350.33747 | AI84: 19516.98113 | AJ84: 25527.48918 | AK84: 26913.82663 | AL84: 24812.55414 | AM84: 28905.85127 | AN84: 28974.04023 | AO84: 28952.62875 | AP84: 28931.41023 | AQ84: 28911.03289 | AR84: 28890.84494
A85: =ROW() -> 85 | D85: Modelled [GJ per Annum] | T85: =T71*1000 -> 2989027.059 | U85: 3385705.709 | V85: 3676067.249 | W85: 7061772.958 | X85: 8562532.485 | Y85: 8478528.824 | Z85: 8669858.249 | AA85: 4660411.482 | AD85: =AD71*1000 -> 8842923.473 | AE85: 9474734.76 | AF85: 9292616.66 | AG85: 9924907.241 | AH85: 8866005.944 | AI85: 8578785.8 | AJ85: 12341997.45 | AK85: 11830267.24 | AL85: 11503749.15 | AM85: 12150331.17 | AN85: =AN71*1000 -> 13178431.32 | AO85: 13378659.2 | AP85: 13876850.65 | AQ85: 13854511.34 | AR85: 13821128.32
A86: =ROW() -> 86 | D86: Adjustment [GJ per Annum] | T86: 0 | U86: 0 | V86: 0 | W86: 0 | X86: 0 | Y86: 0 | Z86: 0 | AA86: 0 | AD86: 0 | AE86: 0 | AF86: 0 | AG86: 0 | AH86: 0 | AI86: 0 | AJ86: 0 | AK86: 0 | AL86: 0 | AM86: 0 | AN86: 0 | AO86: 0 | AP86: 0 | AQ86: 0 | AR86: 0
A87: =ROW() -> 87 | D87: Total [GJ per Annum] | T87: =T85+T86 -> 2989027.059 | U87: 3385705.709 | V87: 3676067.249 | W87: 7061772.958 | X87: 8562532.485 | Y87: 8478528.824 | Z87: 8669858.249 | AA87: 4660411.482 | AD87: =AD85+AD86 -> 8842923.473 | AE87: 9474734.76 | AF87: 9292616.66 | AG87: 9924907.241 | AH87: 8866005.944 | AI87: =AI85+AI86 -> 8578785.8 | AJ87: 12341997.45 | AK87: 11830267.24 | AL87: 11503749.15 | AM87: 12150331.17 | AN87: =AN85+AN86 -> 13178431.32 | AO87: 13378659.2 | AP87: 13876850.65 | AQ87: 13854511.34 | AR87: 13821128.32
A88: =ROW() -> 88 | D88: Volume per Customer [GJ per customer] | T88: =T87/T80 -> 59384.64356 | U88: 63881.2398 | V88: 69142.3307 | W88: 132823.3158 | X88: 153130.2382 | Y88: 135295.6727 | Z88: 134416.407 | AA88: 72254.44158 | AD88: =AD87/AD80 -> 132976.2928 | AE88: 131593.5383 | AF88: 128174.0229 | AG88: 136895.2723 | AH88: 125758.9496 | AI88: 122554.0829 | AJ88: 176314.2493 | AK88: 164309.2672 | AL88: 162024.6359 | AM88: 180004.9062 | AN88: =AN87/AN80 -> 199673.2018 | AO88: 204254.3389 | AP88: 215144.9713 | AQ88: 218181.281 | AR88: 221138.0532
A89: =ROW() -> 89 | C89: A2
A90: =ROW() -> 90 | D90: A2 Customers | T90: =T37 -> 97.16666667 | U90: 96.5 | V90: 101 | W90: 101 | X90: 109.5 | Y90: 106.5833333 | Z90: 104.5 | AA90: 103 | AD90: =AD37 -> 102.5 | AE90: 98.5 | AF90: 97 | AG90: 101 | AH90: 105.5 | AI90: 104.5 | AJ90: 103 | AK90: 104 | AL90: 104 | AM90: 104.5 | AN90: 104 | AO90: 104 | AP90: 104 | AQ90: 104 | AR90: 104
A91: =ROW() -> 91 | D91: Band 1 | T91: 228196.5464 | W91: 439801.477 | X91: 851175.004 | Y91: 838543.447 | Z91: 815846.866
A92: =ROW() -> 92 | D92: Band 2 | T92: 203649.7527 | W92: 383576.215 | X92: 1168877.416 | Y92: 1144950.279 | Z92: 1068670.536
A93: =ROW() -> 93 | D93: Band 3 | T93: 455151.0385 | W93: 992837.4724
A94: =ROW() -> 94 | D94: Band 1* | AA94: 405625.606 | AD94: 785654.977 | AE94: 762671.7419 | AF94: 768684.569 | AG94: 777864.024 | AH94: 796479.232 | AI94: 761528.096 | AJ94: 794158.328 | AK94: 838985.7832 | AL94: 824989.5037 | AM94: 833149.9116 | AN94: 833964.2055 | AO94: 828068.8768 | AP94: 826239.3963 | AQ94: 824088.5616 | AR94: 821969.5455
A95: =ROW() -> 95 | D95: Band 2* | AA95: 542794.279 | AD95: 1018804.015 | AE95: 1008052.483 | AF95: 1025065.958 | AG95: 1010103.254 | AH95: 1045425.874 | AI95: 949887.248 | AJ95: 1034727.601 | AK95: 1079301.497 | AL95: 1054413.586 | AM95: 1064843.349 | AN95: 1065884.093 | AO95: 1058349.313 | AP95: 1056011.066 | AQ95: 1053262.098 | AR95: 1050553.798
A96: =ROW() -> 96 | D96: Total [GJ per Annum] | T96: =SUM(T91:T93) -> 886997.3376 | U96: 0 | V96: 0 | W96: 1816215.164 | X96: 2020052.42 | Y96: 1983493.726 | Z96: 1884517.402 | AA96: =SUM(AA91:AA95) -> 948419.885 | AD96: =SUM(AD91:AD95) -> 1804458.992 | AE96: 1770724.225 | AF96: 1793750.527 | AG96: 1787967.278 | AH96: 1841905.106 | AI96: =SUM(AI91:AI95) -> 1711415.344 | AJ96: 1828885.929 | AK96: 1918287.28 | AL96: 1879403.09 | AM96: 1897993.261 | AN96: =SUM(AN91:AN95) -> 1899848.298 | AO96: 1886418.189 | AP96: 1882250.462 | AQ96: 1877350.66 | AR96: 1872523.343
A97: =ROW() -> 97 | D97: Adjustment [GJ per Annum] | T97: 0 | U97: 0 | V97: 0 | W97: 0 | X97: 0 | Y97: 0 | Z97: 0 | AA97: 0 | AD97: 0 | AE97: 0 | AF97: 0 | AG97: 0 | AH97: 0 | AI97: 0 | AJ97: 0 | AK97: 0 | AL97: 0 | AM97: 0 | AN97: 0 | AO97: 0 | AP97: 0 | AQ97: 0 | AR97: 0
A98: =ROW() -> 98 | D98: Modelled [GJ per Annum] | T98: =T96+T97 -> 886997.3376 | U98: 0 | V98: 0 | W98: 1816215.164 | X98: 2020052.42 | Y98: 1983493.726 | Z98: 1884517.402 | AA98: 948419.885 | AD98: =AD96+AD97 -> 1804458.992 | AE98: 1770724.225 | AF98: 1793750.527 | AG98: 1787967.278 | AH98: 1841905.106 | AI98: =AI96+AI97 -> 1711415.344 | AJ98: 1828885.929 | AK98: 1918287.28 | AL98: 1879403.09 | AM98: 1897993.261 | AN98: =AN96+AN97 -> 1899848.298 | AO98: 1886418.189 | AP98: 1882250.462 | AQ98: 1877350.66 | AR98: 1872523.343
A99: =ROW() -> 99 | D99: Volume per Customer [GJ per customer] | T99: =T98/T90 -> 9128.61754 | U99: 0 | V99: 0 | W99: 17982.32836 | X99: 18447.96731 | Y99: 18609.79258 | Z99: 18033.65935 | AA99: 9207.960049 | AD99: =AD98/AD90 -> 17604.47797 | AE99: 17976.89569 | AF99: 18492.27347 | AG99: 17702.64632 | AH99: 17458.81617 | AI99: =AI98/AI90 -> 16377.18033 | AJ99: 17756.17407 | AK99: 18445.07 | AL99: 18071.18356 | AM99: 18162.61494 | AN99: =AN98/AN90 -> 18267.7721 | AO99: 18138.63644 | AP99: 18098.56213 | AQ99: 18051.44865 | AR99: 18005.03215
A100: =ROW() -> 100 | C100: B1
A101: =ROW() -> 101 | D101: Customers | T101: =T38 -> 1222.166667 | U101: 1242 | V101: 1256.333333 | W101: 1256.333333 | X101: 1297.416667 | Y101: 1334.416667 | Z101: 1364 | AA101: 1399 | AD101: =AD38 -> 1444 | AE101: 1518.5 | AF101: 1599.5 | AG101: 1670.5 | AH101: 1739 | AI101: 1807.5 | AJ101: 1876.5 | AK101: 1940 | AL101: 1994.5 | AM101: 2045.5 | AN101: 2094.768476 | AO101: 2144.898159 | AP101: 2196.22749 | AQ101: 2248.785178 | AR101: 2302.600618
A102: =ROW() -> 102 | D102: Band 1 | T102: 649493.4631 | W102: 1389540.322 | X102: 1385587.464 | Y102: 1463332.441 | Z102: 1472170.211 | AA102: 791288.4815 | AD102: 1523036.72 | AE102: 1664051.405 | AF102: 1632990.466 | AG102: 1714526.397 | AH102: 1716864.059 | AI102: 1628082.863 | AJ102: 1801812.429 | AK102: 1857482.05 | AL102: 1925710.343 | AM102: 1926878.139 | AN102: 1921091.363 | AO102: 1915407.19 | AP102: 1911455.265 | AQ102: 1904195.418 | AR102: 1896012.657
A103: =ROW() -> 103 | D103: Band 2 | T103: 94260.5628 | W103: 202653.3169 | X103: 168076.3819 | Y103: 176654.1947 | Z103: 175019.4857
A104: =ROW() -> 104 | D104: Band 2* | AA104: 97970.16121 | AD104: 197766.1523 | AE104: 266373.9094 | AF104: 241805.8528 | AG104: 290029.4973 | AH104: 235799.3977 | AI104: 212062.0134 | AJ104: 274662.5779 | AK104: 278840.7353 | AL104: 249059.7783 | AM104: 237602.2866 | AN104: 232870.2909 | AO104: 227761.8142 | AP104: 220975.2 | AQ104: 217550.3469 | AR104: 215101.9773
A105: =ROW() -> 105 | D105: Total [GJ per Annum] | T105: =SUM(T102:T103) -> 743754.0259 | U105: 0 | V105: 0 | W105: 1592193.639 | X105: 1553663.846 | Y105: 1639986.635 | Z105: 1647189.697 | AA105: =SUM(AA102:AA104) -> 889258.6427 | AD105: =SUM(AD102:AD104) -> 1720802.873 | AE105: 1930425.315 | AF105: 1874796.319 | AG105: 2004555.894 | AH105: 1952663.457 | AI105: =SUM(AI102:AI104) -> 1840144.876 | AJ105: 2076475.007 | AK105: 2136322.785 | AL105: 2174770.122 | AM105: 2164480.426 | AN105: =SUM(AN102:AN104) -> 2153961.654 | AO105: 2143169.005 | AP105: 2132430.465 | AQ105: 2121745.765 | AR105: 2111114.634
A106: =ROW() -> 106 | D106: Adjustment [GJ per Annum] | T106: 0 | U106: =W106*J106 -> 0 | V106: =W106*L106 -> 0 | W106: 0 | X106: 0 | Y106: 0 | Z106: 0 | AA106: 0 | AD106: 0 | AE106: 0 | AF106: 0 | AG106: 0 | AH106: 0 | AI106: 0 | AJ106: 0 | AK106: 0 | AL106: 0 | AM106: 0 | AN106: 0 | AO106: 0 | AP106: 0 | AQ106: 0 | AR106: 0
A107: =ROW() -> 107 | D107: Modelled [GJ per Annum] | T107: =T105+T106 -> 743754.0259 | U107: 0 | V107: 0 | W107: 1592193.639 | X107: 1553663.846 | Y107: 1639986.635 | Z107: 1647189.697 | AA107: 889258.6427 | AD107: =AD105+AD106 -> 1720802.873 | AE107: 1930425.315 | AF107: 1874796.319 | AG107: 2004555.894 | AH107: 1952663.457 | AI107: =AI105+AI106 -> 1840144.876 | AJ107: 2076475.007 | AK107: 2136322.785 | AL107: 2174770.122 | AM107: 2164480.426 | AN107: =AN105+AN106 -> 2153961.654 | AO107: 2143169.005 | AP107: 2132430.465 | AQ107: 2121745.765 | AR107: 2111114.634
A108: =ROW() -> 108 | D108: Volume per Customer [GJ per customer] | T108: =T107/T101 -> 608.5536827 | U108: 0 | V108: 0 | W108: 1267.333753 | X108: 1197.505694 | Y108: 1228.991421 | Z108: 1207.61708 | AA108: 635.6387725 | AD108: =AD107/AD101 -> 1191.69174 | AE108: 1271.271198 | AF108: 1172.113985 | AG108: 1199.973597 | AH108: 1122.865703 | AI108: =AI107/AI101 -> 1018.060789 | AJ108: 1106.568083 | AK108: 1101.197312 | AL108: 1090.383616 | AM108: 1058.166916 | AN108: =AN107/AN101 -> 1028.257623 | AO108: 999.1938294 | AP108: 970.951541 | AQ108: 943.5075375 | AR108: 916.8392546
A109: =ROW() -> 109 | C109: B2
A110: =ROW() -> 110 | D110: B2 Customers | T110: =T39 -> 7697.5 | U110: 7893 | V110: 8105.083333 | W110: 8105.083333 | X110: 8708.75 | Y110: 9262.25 | Z110: 9797 | AA110: 10221.5 | AD110: =AD39 -> 10622.5 | AE110: 11112.5 | AF110: 11494.5 | AG110: 11737 | AH110: 11973 | AI110: 12128.5 | AJ110: 12227.5 | AK110: 12428 | AL110: 12632.5 | AM110: 12819.1 | AN110: 13008.8056 | AO110: 13201.54649 | AP110: 13397.37123 | AQ110: 13631.10071 | AR110: 13903.26139
A111: =ROW() -> 111 | D111: Band 1 | T111: 185987.7142 | W111: 389585.8249 | X111: 403522.1127 | Y111: 418531.9016 | Z111: 430255.2483 | AA111: 228811.0652 | AD111: 454358.7074 | AE111: 481672.4814 | AF111: 480578.9736 | AG111: 490010.7087 | AH111: 490288.3704 | AI111: 489070.4026 | AJ111: 504024.2042 | AK111: 498090.0168 | AL111: 506443.8425 | AM111: 517288.4231 | AN111: 516259.7732 | AO111: 515435.1865 | AP111: 514301.5622 | AQ111: 514808.2395 | AR111: 516106.4246
A112: =ROW() -> 112 | D112: Band 2 | T112: 366118.5915 | W112: 777541.4461 | X112: 784946.1842 | Y112: 812884.7301 | Z112: 825273.9552 | AA112: 434199.1841 | AD112: 837277.7577 | AE112: 886844.8449 | AF112: 862170.8128 | AG112: 863500.7444 | AH112: 847841.6481 | AI112: 748912.0259 | AJ112: 824013.5825 | AK112: 812694.231 | AL112: 811594.1788 | AM112: 792909.4613 | AN112: 784563.3351 | AO112: 776102.5205 | AP112: 768038.8628 | AQ112: 761677.9761 | AR112: 757699.7563
A113: =ROW() -> 113 | D113: Total [GJ per Annum] | T113: =SUM(T111:T112) -> 552106.3057 | U113: 0 | V113: 0 | W113: 1167127.271 | X113: 1188468.297 | Y113: 1231416.632 | Z113: 1255529.203 | AA113: 663010.2493 | AD113: =SUM(AD111:AD112) -> 1291636.465 | AE113: 1368517.326 | AF113: 1342749.786 | AG113: 1353511.453 | AH113: 1338130.018 | AI113: =SUM(AI111:AI112) -> 1237982.429 | AJ113: 1328037.787 | AK113: 1310784.248 | AL113: 1318038.021 | AM113: 1310197.884 | AN113: =SUM(AN111:AN112) -> 1300823.108 | AO113: 1291537.707 | AP113: 1282340.425 | AQ113: 1276486.216 | AR113: 1273806.181
A114: =ROW() -> 114 | D114: Adjustment [GJ per Annum] | T114: 0 | U114: =W114*J114 -> 0 | V114: =W114*L114 -> 0 | W114: 0 | X114: 0 | Y114: 0 | Z114: 0 | AA114: 0 | AD114: 0 | AE114: 0 | AF114: 0 | AG114: 0 | AH114: 0 | AI114: 0 | AJ114: 0 | AK114: 0 | AL114: 0 | AM114: 0 | AN114: 0 | AO114: 0 | AP114: 0 | AQ114: 0 | AR114: 0
A115: =ROW() -> 115 | D115: Modelled [GJ per Annum] | T115: =T113+T114 -> 552106.3057 | U115: 0 | V115: 0 | W115: 1167127.271 | X115: 1188468.297 | Y115: 1231416.632 | Z115: 1255529.203 | AA115: 663010.2493 | AD115: =AD113+AD114 -> 1291636.465 | AE115: 1368517.326 | AF115: 1342749.786 | AG115: 1353511.453 | AH115: 1338130.018 | AI115: =AI113+AI114 -> 1237982.429 | AJ115: 1328037.787 | AK115: 1310784.248 | AL115: 1318038.021 | AM115: 1310197.884 | AN115: =AN113+AN114 -> 1300823.108 | AO115: 1291537.707 | AP115: 1282340.425 | AQ115: 1276486.216 | AR115: 1273806.181
A116: =ROW() -> 116 | D116: Volume per Customer [GJ per customer] | T116: =T115/T110 -> 71.7254051 | U116: 0 | V116: 0 | W116: 143.9994165 | X116: 136.4682988 | Y116: 132.9500534 | Z116: 128.1544558 | AA116: 64.86428111 | AD116: =AD115/AD110 -> 121.5943954 | AE116: 123.1511655 | AF116: 116.8167199 | AG116: 115.3200522 | AH116: 111.7623 | AI116: =AI115/AI110 -> 102.0721795 | AJ116: 108.610737 | AK116: 105.4702485 | AL116: 104.3370688 | AM116: 102.2066982 | AN116: =AN115/AN110 -> 99.99558363 | AO116: 97.83230381 | AP116: 95.71582385 | AQ116: 93.6451313 | AR116: 91.6192356
A117: =ROW() -> 117
A118: =ROW() -> 118 | D118: Modelled Band 1 | T118: =T111 -> 185987.7142 | W118: =W111 -> 389585.8249 | X118: 403522.1127 | Y118: 418531.9016 | Z118: 430255.2483 | AA118: 228811.0652 | AD118: =AD111 -> 454358.7074 | AE118: 481672.4814 | AF118: 480578.9736 | AG118: 490010.7087 | AH118: 490288.3704 | AI118: =AI$115*AI122 -> 489070.4026 | AJ118: =AJ$115*AJ122 -> 504024.2042 | AK118: 498090.0168 | AL118: 506443.8425 | AM118: 517288.4231 | AN118: =AN$115*AN122 -> 516259.7732 | AO118: =AO$115*AO122 -> 515435.1865 | AP118: 514301.5622 | AQ118: 514808.2395 | AR118: 516106.4246
A119: =ROW() -> 119 | D119: Modelled Band 2 | T119: =T112 -> 366118.5915 | W119: =W112 -> 777541.4461 | X119: 784946.1842 | Y119: 812884.7301 | Z119: 825273.9552 | AA119: 434199.1841 | AD119: =AD112 -> 837277.7577 | AE119: 886844.8449 | AF119: 862170.8128 | AG119: 863500.7444 | AH119: 847841.6481 | AI119: =AI$115*AI123 -> 748912.0259 | AJ119: 824013.5825 | AK119: 812694.231 | AL119: 811594.1788 | AM119: 792909.4613 | AN119: =AN$115*AN123 -> 784563.3351 | AO119: 776102.5205 | AP119: 768038.8628 | AQ119: 761677.9761 | AR119: 757699.7563
A120: =ROW() -> 120 | D120: Total [GJ per Annum] | T120: =SUM(T118:T119) -> 552106.3057 | U120: 0 | V120: 0 | W120: 1167127.271 | X120: 1188468.297 | Y120: 1231416.632 | Z120: 1255529.203 | AA120: 663010.2493 | AD120: =SUM(AD118:AD119) -> 1291636.465 | AE120: 1368517.326 | AF120: 1342749.786 | AG120: 1353511.453 | AH120: 1338130.018 | AI120: 1237982.429 | AJ120: 1328037.787 | AK120: 1310784.248 | AL120: 1318038.021 | AM120: 1310197.884 | AN120: =SUM(AN118:AN119) -> 1300823.108 | AO120: 1291537.707 | AP120: 1282340.425 | AQ120: 1276486.216 | AR120: 1273806.181
A121: =ROW() -> 121
A122: =ROW() -> 122 | D122: Modelled Band 1 | AI122: =AI111/AI$113 -> 0.3950543976 | AJ122: 0.3795254994 | AK122: 0.3799938988 | AL122: 0.3842406928 | AM122: 0.394817019 | AN122: =AN111/AN$113 -> 0.3968716192 | AO122: 0.3990864407 | AP122: 0.4010647658 | AQ122: 0.4033010566 | AR122: 0.4051687237
A123: =ROW() -> 123 | D123: Modelled Band 2 | AI123: 0.6049456024 | AJ123: 0.6204745006 | AK123: 0.6200061012 | AL123: 0.6157593072 | AM123: 0.605182981 | AN123: =AN112/AN$113 -> 0.6031283808 | AO123: 0.6009135593 | AP123: 0.5989352342 | AQ123: 0.5966989434 | AR123: 0.5948312763
A124: =ROW() -> 124 | D124: Total [GJ per Annum] | AI124: 1 | AJ124: 1 | AK124: 1 | AL124: 1 | AM124: 1 | AN124: =AN113/AN$113 -> 1 | AO124: 1 | AP124: 1 | AQ124: 1 | AR124: 1
A125: =ROW() -> 125
A126: =ROW() -> 126 | C126: B3
A127: =ROW() -> 127 | D127: Modelled B3 Customers | O127: 517005 | P127: 536255 | Q127: 553005 | R127: 568255 | S127: 583955 | T127: =T40 -> 601246 | U127: =U40 -> 609162.8988 | V127: 614524 | W127: 614524 | X127: 629899.5833 | Y127: 642709.8333 | Z127: 657671.5 | AA127: 671181 | AD127: =AD40 -> 686909.5 | AE127: 705512 | AF127: 718910.5 | AG127: 728627 | AH127: 737032 | AI127: 744038 | AJ127: 751396.5 | AK127: 761657.5 | AL127: 772818.5 | AM127: 781627.944 | AN127: 788369.4404 | AO127: 796364.114 | AP127: 805626.5431 | AQ127: 815553.0212 | AR127: 825813.2387
A128: =ROW() -> 128 | D128: Band 1 | O128: 5612594.867 | P128: 5804269.831 | Q128: 5947535.191 | R128: 6153433.466 | S128: 6175963.154 | T128: 3008688.118 | W128: 6231553.639 | X128: 4913980.424 | Y128: 5015651.234 | Z128: 5094684.331
A129: =ROW() -> 129 | D129: Band 2 | O129: 3447512.497 | P129: 3565248.028 | Q129: 3653248.165 | R129: 3601834.077 | S129: 3793559.069 | T129: 1249333.842 | W129: 2807463.61 | X129: 4731980.429 | Y129: 4888608.743 | Z129: 4772554.581
A130: =ROW() -> 130 | D130: Band 3 | O130: 1086632.898 | P130: 1123742.351 | Q130: 1151479.406 | R130: 1191342.579 | S130: 1195704.465 | T130: 331249.2265 | W130: 730749.4901
A131: =ROW() -> 131 | D131: Band 1* | AA131: 0 | AD131: 288522.8556 | AE131: 1180420.566 | AF131: 1198474.251 | AG131: 1219086.447 | AH131: 1236348.624 | AI131: 1259936.396 | AJ131: 1273263.126 | AK131: 1280066.816 | AL131: 1279444.847 | AM131: 1290816.861
A132: =ROW() -> 132 | D132: Band 2* | AA132: 2658352.316 | AD132: 4884879.333 | AE132: 4166565.797 | AF132: 4166780.088 | AG132: 4215164.047 | AH132: 4241292.033 | AI132: 4312169.307 | AJ132: 4361073.337 | AK132: 4322337.418 | AL132: 4300758.16 | AM132: 4318025.066 | AN132: 5527142.988 | AO132: 5473873.718 | AP132: 5434846.683 | AQ132: 5406301.433 | AR132: 5385685.641
A133: =ROW() -> 133 | D133: Band 3* | AA133: 2568594.692 | AD133: 4623497.475 | AE133: 5527792.696 | AF133: 4566927.535 | AG133: 4643447.786 | AH133: 4456494.786 | AI133: 4541285.483 | AJ133: 4877423.186 | AK133: 4715843.417 | AL133: 4556053.286 | AM133: 4460126.097 | AN133: 4279323.305 | AO133: 4125041.826 | AP133: 3985032.026 | AQ133: 3855672.135 | AR133: 3734502.422
A134: =ROW() -> 134 | D134: Total [GJ per Annum] | O134: =SUM(O128:O130) -> 10146740.26 | P134: 10493260.21 | Q134: 10752262.76 | R134: 10946610.12 | S134: 11165226.69 | T134: 4589271.187 | U134: 0 | V134: 0 | W134: 9769766.739 | X134: 9645960.853 | Y134: 9904259.977 | Z134: 9867238.912 | AA134: =SUM(AA128:AA133) -> 5226947.008 | AD134: =SUM(AD128:AD133) -> 9796899.664 | AE134: 10874779.06 | AF134: 9932181.873 | AG134: 10077698.28 | AH134: 9934135.443 | AI134: =SUM(AI128:AI133) -> 10113391.19 | AJ134: 10511759.65 | AK134: 10318247.65 | AL134: 10136256.29 | AM134: 10068968.02 | AN134: =SUM(AN128:AN133) -> 9806466.293 | AO134: 9598915.543 | AP134: 9419878.709 | AQ134: 9261973.567 | AR134: 9120188.063
A135: =ROW() -> 135 | D135: ERA adjustment [GJ per Annum] | T135: 0 | U135: 0 | V135: 0 | W135: 0 | X135: 0 | Y135: 0 | Z135: 0 | AA135: 0 | AD135: 0 | AE135: 0 | AF135: 0 | AG135: 0 | AH135: 0 | AI135: 0 | AJ135: 0 | AK135: 0 | AL135: 0 | AM135: 0
A136: =ROW() -> 136 | D136: Total [GJ per Annum] Adjusted | T136: =T75*1000 -> 4589271.187 | U136: 5806000 | V136: 3963765.074 | W136: 9769765.074 | X136: 9645960.853 | Y136: 9905950.389 | Z136: 9840841.277 | AA136: 5226947.008 | AD136: =SUM(AD134:AD135) -> 9796899.664 | AE136: 10874779.06 | AF136: 9932181.873 | AG136: 10077698.28 | AH136: 9934135.443 | AI136: 10113391.19 | AJ136: 10511759.65 | AK136: 10318247.65 | AL136: 10136256.29 | AM136: 10068968.02 | AN136: 9806466.293 | AO136: 9598915.543 | AP136: 9419878.709 | AQ136: 9261973.567 | AR136: =SUM(AR134:AR135) -> 9120188.063
A137: =ROW() -> 137 | D137: Volume per Customer [GJ per customer] | T137: =T136/T127 -> 7.632934251 | U137: =U136/U127 -> 9.531112305 | V137: 6.450138764 | W137: 15.89810174 | X137: 15.31348981 | Y137: 15.41278797 | Z137: 14.96315604 | AA137: 7.787686195 | AD137: 14.26228588 | AE137: 15.41402423 | AF137: 13.81560274 | AG137: 13.83107993 | AH137: 13.47856734 | AI137: =AI136/AI127 -> 13.59257348 | AJ137: 13.98963084 | AK137: 13.5470965 | AL137: 13.11595969 | AM137: 12.88204714 | AN137: =AN136/AN127 -> 12.4389224 | AO137: 12.05342553 | AP137: 11.69261215 | AQ137: 11.35667863 | AR137: 11.04388697
A138: =ROW() -> 138 | D138: Check Total [GJ per Annum] Adjusted | T138: =IF(ROUND(T75*1000,1)=ROUND(T136,1),"OK","Check") -> OK | U138: OK | V138: OK | W138: OK | X138: OK | Y138: OK | Z138: OK | AA138: OK | AD138: =IF(ROUND(AD75*1000,1)=ROUND(AD136,1),"OK","Check") -> OK | AE138: OK | AF138: OK | AG138: OK | AH138: OK | AI138: OK | AJ138: OK | AK138: OK | AL138: OK | AM138: =IF(ROUND(AM75*1000,1)=ROUND(AM136,1),"OK","Check") -> OK | AN138: OK | AO138: OK | AP138: OK | AQ138: OK | AR138: OK
A139: =ROW() -> 139 | T139: Modelled - Estimate | AD139: Actual | AG139: Forecast | AK139: Forecast | AP139: Forecast
A140: =ROW() -> 140 | D140: Modelled Band 1 | T140: =T$136*T149 -> 3008688.118 | W140: =W$136*W149 -> 6231552.577 | X140: 4913980.424 | Y140: 5016507.282 | Z140: 5081054.62 | AA140: 0 | AD140: =AD$136*AD149 -> 0 | AE140: 0 | AF140: 0 | AG140: 0 | AH140: 0 | AI140: 0 | AJ140: 0 | AK140: 0 | AL140: 0 | AM140: 0 | AN140: 0 | AO140: 0 | AP140: 0 | AQ140: 0 | AR140: 0
A141: =ROW() -> 141 | D141: Modelled Band 2 | T141: =T$136*T150 -> 1249333.842 | W141: 2807463.131 | X141: 4731980.429 | Y141: 4889443.108 | Z141: 4759786.657 | AA141: 0 | AD141: =AD$136*AD150 -> 0 | AE141: 0 | AF141: 0 | AG141: 0 | AH141: 0 | AI141: 0 | AJ141: 0 | AK141: 0 | AL141: 0 | AM141: 0 | AN141: 0 | AO141: 0 | AP141: 0 | AQ141: 0 | AR141: 0
A142: =ROW() -> 142 | D142: Modelled Band 3 | T142: =T$136*T151 -> 331249.2265 | W142: 730749.3655 | X142: 0 | Y142: 0 | Z142: 0 | AA142: 0 | AD142: =AD$136*AD151 -> 0 | AE142: 0 | AF142: 0 | AG142: 0 | AH142: 0 | AI142: 0 | AJ142: 0 | AK142: 0 | AL142: 0 | AM142: 0 | AN142: 0 | AO142: 0 | AP142: 0 | AQ142: 0 | AR142: 0
A143: =ROW() -> 143 | D143: Modelled Band 1* | AA143: =AA$136*AA152 -> 0 | AD143: =AD$136*AD152 -> 288522.8556 | AE143: 1180420.566 | AF143: 1198474.251 | AG143: 1219086.447 | AH143: 1236348.624 | AI143: 1259936.396 | AJ143: 1273263.126 | AK143: 1280066.816 | AL143: 1279444.847 | AM143: 1290816.861 | AN143: 0 | AO143: 0 | AP143: 0 | AQ143: 0 | AR143: 0
A144: =ROW() -> 144 | D144: Modelled Band 2* | AA144: =AA$136*AA153 -> 2658352.316 | AD144: =AD$136*AD153 -> 4884879.333 | AE144: 4166565.797 | AF144: 4166780.088 | AG144: 4215164.047 | AH144: 4241292.033 | AI144: 4312169.307 | AJ144: 4361073.337 | AK144: 4322337.418 | AL144: 4300758.16 | AM144: 4318025.066 | AN144: 5527142.988 | AO144: 5473873.718 | AP144: 5434846.683 | AQ144: 5406301.433 | AR144: 5385685.641
A145: =ROW() -> 145 | D145: Modelled Band 3* | AA145: =AA$136*AA154 -> 2568594.692 | AD145: =AD$136*AD154 -> 4623497.475 | AE145: 5527792.696 | AF145: 4566927.535 | AG145: 4643447.786 | AH145: 4456494.786 | AI145: 4541285.483 | AJ145: 4877423.186 | AK145: 4715843.417 | AL145: 4556053.286 | AM145: 4460126.097 | AN145: 4279323.305 | AO145: 4125041.826 | AP145: 3985032.026 | AQ145: 3855672.135 | AR145: 3734502.422
A146: =ROW() -> 146 | D146: Modelled Total [GJ per Annum] Adjusted | O146: =O134 -> 10146740.26 | P146: =P134 -> 10493260.21 | Q146: 10752262.76 | R146: 10946610.12 | S146: 11165226.69 | T146: =SUM(T140:T145) -> 4589271.187 | W146: =SUM(W140:W145) -> 9769765.074 | X146: =SUM(X140:X145) -> 9645960.853 | Y146: =SUM(Y140:Y145) -> 9905950.389 | Z146: =SUM(Z140:Z145) -> 9840841.277 | AA146: =SUM(AA140:AA145) -> 5226947.008 | AD146: =SUM(AD140:AD145) -> 9796899.664 | AE146: 10874779.06 | AF146: 9932181.873 | AG146: 10077698.28 | AH146: 9934135.443 | AI146: 10113391.19 | AJ146: 10511759.65 | AK146: 10318247.65 | AL146: 10136256.29 | AM146: 10068968.02 | AN146: 9806466.293 | AO146: 9598915.543 | AP146: 9419878.709 | AQ146: 9261973.567 | AR146: 9120188.063
A147: =ROW() -> 147 | D147: Volume per Customer | O147: =O146/O127 -> 19.62600026 | P147: 19.56766876 | Q147: 19.44333733 | R147: 19.26355267 | S147: 19.12001214 | T147: 7.632934251 | W147: =W146/W127 -> 15.89810174 | X147: =X146/X127 -> 15.31348981 | Y147: =Y146/Y127 -> 15.41278797 | Z147: =Z146/Z127 -> 14.96315604 | AA147: =AA146/AA127 -> 7.787686195 | AD147: =AD146/AD127 -> 14.26228588 | AE147: 15.41402423 | AF147: 13.81560274 | AG147: 13.83107993 | AH147: 13.47856734 | AI147: 13.59257348 | AJ147: 13.98963084 | AK147: 13.5470965 | AL147: 13.11595969 | AM147: 12.88204714 | AN147: 12.4389224 | AO147: 12.05342553 | AP147: 11.69261215 | AQ147: 11.35667863 | AR147: 11.04388697
A148: =ROW() -> 148 | T148: =T139 -> Modelled - Estimate | AD148: Actual | AG148: Forecast | AK148: Forecast | AP148: Forecast
A149: =ROW() -> 149 | D149: Modelled Band 1 | T149: =T128/T$134 -> 0.6555917041 | W149: =W128/W$134 -> 0.6378405755 | X149: 0.5094340003 | Y149: 0.5064135277 | Z149: 0.5163231961
A150: =ROW() -> 150 | D150: Modelled Band 2 | T150: =T129/T$134 -> 0.2722292477 | W150: 0.2873623992 | X150: 0.4905659997 | Y150: 0.4935864723 | Z150: 0.4836768039
A151: =ROW() -> 151 | D151: Modelled Band 3 | T151: =T130/T$134 -> 0.07217904827 | W151: 0.07479702531 | X151: 0 | Y151: 0 | Z151: 0
A152: =ROW() -> 152 | D152: Modelled Band 1* | AA152: =AA131/AA$134 -> 0 | AD152: =AD131/AD$134 -> 0.02945042467 | AE152: 0.1085466251 | AF152: 0.1206657577 | AG152: 0.1209687384 | AH152: 0.124454577 | AI152: 0.1245810009 | AJ152: 0.1211274961 | AK152: 0.1240585474 | AL152: 0.1262245952 | AM152: 0.128197533 | AN152: 0 | AO152: 0 | AP152: 0 | AQ152: 0 | AR152: 0
A153: =ROW() -> 153 | D153: Modelled Band 2* | AA153: =AA132/AA$134 -> 0.5085860469 | AD153: =AD132/AD$134 -> 0.498614817 | AE153: 0.3831402711 | AF153: 0.4195231361 | AG153: 0.4182665455 | AH153: 0.4269412328 | AI153: 0.4263821331 | AJ153: 0.4148756709 | AK153: 0.4189022753 | AL153: 0.4242945359 | AM153: 0.4288448484 | AN153: 0.5636222899 | AO153: 0.5702595979 | AP153: 0.5769550597 | AQ153: 0.5837094431 | AR153: 0.5905235291
A154: =ROW() -> 154 | D154: Modelled Band 3* | AA154: =AA133/AA$134 -> 0.4914139531 | AD154: =AD133/AD$134 -> 0.4719347583 | AE154: 0.5083131038 | AF154: 0.4598111063 | AG154: 0.460764716 | AH154: 0.4486041902 | AI154: 0.449036866 | AJ154: 0.4639968329 | AK154: 0.4570391772 | AL154: 0.4494808689 | AM154: 0.4429576185 | AN154: 0.4363777101 | AO154: 0.4297404021 | AP154: 0.4230449403 | AQ154: 0.4162905569 | AR154: 0.4094764709
A155: =ROW() -> 155 | T155: =SUM(T149:T154) -> 1 | U155: =SUM(U149:U154) -> 0 | V155: 0 | W155: 1 | X155: 1 | Y155: 1 | Z155: 1 | AA155: 1 | AD155: 1 | AE155: 1 | AF155: 1 | AG155: 1 | AH155: 1 | AI155: =SUM(AI149:AI154) -> 1 | AJ155: 1 | AK155: 1 | AL155: 1 | AM155: 1 | AN155: =SUM(AN149:AN154) -> 1 | AO155: 1 | AP155: 1 | AQ155: 1 | AR155: 1
A156: Prudent Discounts
A157: =ROW() -> 157 | C157: Prudent Discounts | O157: Approved 2
A158: =ROW() -> 158 | D158: Discounted Revenue [m$ 31/12/2004] | O158: 3372.350687 | P158: 3367.643259 | Q158: 3361.38203 | R158: 3355.815836 | S158: 3367.626992
A159: =ROW() -> 159 | D159: ="Discounted Revenue [m$ "&Input!$G$51&"]" -> Discounted Revenue [m$ 31/12/2023] | O159: =O158*$N$16/1000 -> 5.629321479 | P159: =P158*$N$16/1000 -> 5.62146357 | Q159: =Q158*$N$16/1000 -> 5.611011966 | R159: =R158*$N$16/1000 -> 5.601720555 | S159: =S158*$N$16/1000 -> 5.621436416
A160: =ROW() -> 160 | C160: Prudent Discounts | O160: Actual 2 [m$ nominal] | T160: ="Approved 3 [m$ 31/12/2009]" -> Approved 3 [m$ 31/12/2009] | AE160: Actual 4 [m$ nominal] | AJ160: Actual 5 [m$ nominal] | AL160: Forecast 5 [m$ nominal] | AP160: Forecast [m$ nominal]
A161: =ROW() -> 161 | D161: Discounted Revenue | O161: 4231.59836 | P161: 4558.284913 | Q161: 4561.407993 | R161: 3850.048486 | S161: 4029.130035 | T161: 1.61324818 | U161: 1.702819142 | V161: 1.56952495 | W161: 3.272344092 | X161: 3.28607519 | Y161: 3.250368184 | Z161: 3.160529652 | AA161: 0.9597968866 | AD161: 2.022598293 | AE161: 0.78735303 | AF161: 0.31370567 | AG161: 0.2477026774 | AH161: 0.2539211 | AI161: 0.39570686 | AJ161: 0.396 | AK161: 0.03270692 | AL161: 0 | AM161: 0 | AN161: 0 | AO161: 0 | AP161: 0 | AQ161: 0 | AR161: 0
A162: =ROW() -> 162 | O162: ="Actual 2 [m$ "&Input!$G$51&"]" -> Actual 2 [m$ 31/12/2023] | T162: ="Approved 3 [m$ "&Input!$G$51&"]" -> Approved 3 [m$ 31/12/2023] | AE162: ="Actual 4 [m$ "&Input!$G$51&"]" -> Actual 4 [m$ 31/12/2023] | AJ162: ="Actual 5 [m$ "&Input!$G$51&"]" -> Actual 5 [m$ 31/12/2023] | AL162: ="Forecast 5 [m$ "&Input!$G$51&"]" -> Forecast 5 [m$ 31/12/2023] | AP162: ="Forecast [m$ "&Input!$G$51&"]" -> Forecast [m$ 31/12/2023]
A163: =ROW() -> 163 | D163: ="Discounted Revenue [m$ "&Input!$G$51&"]" -> Discounted Revenue [m$ 31/12/2023] | O163: =O161*O$16/1000 -> 6.871323791 | P163: =P161*P$16/1000 -> 7.168561563 | Q163: 6.967364524 | R163: 5.671775815 | S163: 5.813029501 | T163: =T161*$S$16 -> 2.32751467 | U163: =U161*$S$16 -> 2.456743222 | V163: 2.264432956 | W163: 4.721176179 | X163: 4.740986728 | Y163: 4.689470426 | Z163: 4.559855836 | AA163: =AA161*AA$16 -> 1.225406719 | AD163: =AD161*AD$16 -> 2.53944306 | AE163: 0.9741704308 | AF163: 0.3808683469 | AG163: 0.2954630534 | AH163: 0.2974067273 | AI163: =AI161*AI$16 -> 0.4595196557 | AJ163: =AJ161*AJ$16 -> 0.4443165705 | AK163: 0.0340322004 | AL163: 0 | AM163: 0 | AN163: =AN161*AN$16 -> 0 | AO163: =AO161*AO$16 -> 0 | AP163: 0 | AQ163: 0 | AR163: 0
A164: =ROW() -> 164 | C164: Volume | O164: Actual 2 | T164: Actual 3 and est for 2013/14 | AE164: Actual | AJ164: Actual | AL164: Forecast | AP164: Forecast
A165: =ROW() -> 165 | D165: Volume [TJ] | O165: =O69 -> 11677.13241 | P165: 11112.86454 | Q165: 10411.34365 | R165: 6993.026199 | S165: 6745.648528 | T165: 3094.701782 | U165: 2891.935041 | V165: 2664.301299 | W165: 5556.23634 | X165: 3582.567595 | Y165: 2875.102834 | Z165: 2735.771464 | AA165: 1389.280505 | AD165: =AD69 -> 2605.250539 | AE165: 1352.817209 | AF165: 1066.656258 | AG165: 1300.164276 | AH165: 1956.294292 | AI165: 3175.532784 | AJ165: 5.805381 | AK165: 0.165 | AL165: 0 | AM165: 0 | AN165: 0 | AO165: 0 | AP165: 0 | AQ165: 0 | AR165: 0
A166: =ROW() -> 166 | D166: ="Discounted Notional Tariff [$ per GJ, "&Input!$G$51&"]" -> Discounted Notional Tariff [$ per GJ, 31/12/2023] | O166: =1000*O163/O165 -> 0.5884427402 | P166: 0.6450687431 | Q166: 0.6692089663 | R166: 0.811061714 | S166: 0.8617450903 | T166: 0.7520965942 | U166: 0.8495153549 | V166: 0.8499162451 | W166: 0.8497075879 | X166: 1.323348856 | Y166: 1.631061808 | Z166: 1.666753198 | AA166: 0.8820441336 | AD166: =1000*AD163/AD165 -> 0.9747404414 | AE166: =1000*AE163/AE165 -> 0.7201049961 | AF166: 0.3570675595 | AG166: 0.2272505551 | AH166: 0.1520255559 | AI166: =IF(AI165=0,"",1000*AI163/AI165) -> 0.1447063176 | AJ166: =IF(AJ165=0,"",1000*AJ163/AJ165) -> 76.53529897 | AK166: 206.25576
A167: =ROW() -> 167 | O167: Actual 2 [m$ nominal] | T167: =T164&" [m$ nominal]" -> Actual 3 and est for 2013/14 [m$ nominal] | AE167: Actual 4 [m$ nominal] | AJ167: Actual 5 [m$ nominal] | AL167: Forecast 5 [m$ nominal] | AP167: Forecast [m$ nominal]
A168: =ROW() -> 168 | D168: Discounted Notional Tariff [$ per GJ, Nominal] | O168: =O166*O$17 -> 0.36238335 | P168: 0.410180912 | Q168: 0.4381190502 | R168: 0.5505554214 | S168: 0.5972932058 | T168: 0.5292898269 | U168: 0.6044488223 | V168: 0.619678642 | W168: 0.6195265089 | X168: 0.9762250194 | Y168: 1.231984966 | Z168: 1.296907889 | AA168: =AA166*AA$17 -> 0.6908589614 | AB168: 0 | AC168: 0 | AD168: 0.7763546204 | AE168: 0.5820099161 | AF168: 0.2941019355 | AG168: 0.1905164463 | AH168: 0.1297969846 | AI168: =IF(AI166="",0,AI166*AI$17) -> 0.1246111714 | AJ168: =IF(AJ166="",0,AJ166*AJ$17) -> 68.21257726 | AK168: 198.2237576 | AL168: 0 | AM168: 0 | AN168: 0 | AO168: 0 | AP168: 0 | AQ168: 0 | AR168: 0
A169: Tariff Revenue
A170: =ROW() -> 170 | C170: Proposed Tariff Revenue [Real] | O170: Actual 2 [m$ 31/12/2009] | T170: Approved 3 [m$ 31/12/2009] | AA170: Approved [m$ 30/6/2014] | AJ170: Actiual 5 [m$ 31/12/2019] | AL170: Forecast 5 [m$ 31/12/2019] | AP170: Forecast [m$ 31/12/2023]
A171: =ROW() -> 171 | D171: A1 | O171: 4.80139987 | P171: 4.2922495 | Q171: 4.3136383 | R171: 4.545798883 | S171: 4.826820838 | T171: 2.768748194 | U171: 3.182541018 | V171: 3.179597933 | W171: 6.362138951 | X171: 7.008674989 | Y171: 7.512294084 | Z171: 7.924159466 | AA171: 4.094850881 | AB171: 4.815685591 | AC171: 3.180525157 | AE171: 7.878421387 | AF171: 7.226269581 | AG171: 6.577223067 | AH171: 5.988655881 | AI171: =AI178*AI$16/$AH$16 -> 6.998160775 | AJ171: =AJ178*AJ$16/$AH$16 -> 6.936862237 | AK171: 6.572287246 | AL171: 6.974257448 | AM171: 6.961693336 | AN171: =Revenue!AN$103 -> 9.437820077 | AO171: =Revenue!AO$103 -> 9.826884027 | AP171: =Revenue!AP$103 -> 10.10319693 | AQ171: =Revenue!AQ$103 -> 10.33619997 | AR171: =Revenue!AR$103 -> 10.52844727
A172: =ROW() -> 172 | D172: A2 | O172: 4.41869984 | P172: 4.72661995 | Q172: 4.93738968 | R172: 4.918677475 | S172: 5.203813145 | T172: 2.607760183 | U172: 2.759398225 | V172: 3.57409815 | W172: 6.333496375 | X172: 7.817500234 | Y172: 8.45458036 | Z172: 9.10643868 | AA172: 3.125233004 | AB172: 4.595120053 | AC172: 1.454069924 | AE172: 5.608288214 | AF172: 5.315696163 | AG172: 5.040065608 | AH172: 4.671191358 | AI172: =AI179*AI$16/$AH$16 -> 4.271588759 | AJ172: 4.31419111 | AK172: 4.211036252 | AL172: 4.71584384 | AM172: 4.70158363 | AN172: =Revenue!AN$111 -> 7.307143434 | AO172: =Revenue!AO$111 -> 7.500262441 | AP172: =Revenue!AP$111 -> 7.715860344 | AQ172: =Revenue!AQ$111 -> 7.932084543 | AR172: =Revenue!AR$111 -> 8.159066249
A173: =ROW() -> 173 | D173: B1 | O173: 8.59801223 | P173: 8.413272871 | Q173: 8.711606538 | R173: 7.658183152 | S173: 8.299208156 | T173: 4.017820159 | U173: 4.721702136 | V173: 4.861209307 | W173: 9.582911443 | X173: 11.04703331 | Y173: 12.10981779 | Z173: 13.23535228 | AA173: 5.276063572 | AB173: 7.544028389 | AC173: 2.192048269 | AE173: 8.828295417 | AF173: 8.243961957 | AG173: 7.717327216 | AH173: 7.228097872 | AI173: =AI180*AI$16/$AH$16 -> 8.36277284 | AJ173: 8.972161632 | AK173: 8.794289576 | AL173: 10.50184382 | AM173: 10.64541321 | AN173: =Revenue!AN$117 -> 15.60985606 | AO173: =Revenue!AO$117 -> 16.10584547 | AP173: =Revenue!AP$117 -> 16.61186932 | AQ173: =Revenue!AQ$117 -> 17.14085551 | AR173: =Revenue!AR$117 -> 17.67829189
A174: =ROW() -> 174 | D174: B2 | O174: 6.26021071 | P174: 6.501671833 | Q174: 6.979974896 | R174: 7.371811049 | S174: 7.523205351 | T174: 3.66696144 | U174: 4.031464526 | V174: 4.941080427 | W174: 8.972544953 | X174: 10.83174427 | Y174: 11.7801164 | Z174: 12.85390142 | AA174: 5.733021665 | AB174: 7.926108625 | AC174: 2.466590787 | AE174: 9.143368074 | AF174: 8.320907832 | AG174: 7.566229981 | AH174: 6.734082658 | AI174: =AI181*AI$16/$AH$16 -> 8.355499343 | AJ174: 8.610059847 | AK174: 8.240099787 | AL174: 10.30587298 | AM174: 10.43414078 | AN174: =Revenue!AN$122 -> 12.82485987 | AO174: =Revenue!AO$122 -> 13.23322458 | AP174: =Revenue!AP$122 -> 13.6566624 | AQ174: =Revenue!AQ$122 -> 14.12998528 | AR174: =Revenue!AR$122 -> 14.66232642
A175: =ROW() -> 175 | D175: B3 | O175: 87.52746275 | P175: 87.12634889 | Q175: 90.54797867 | R175: 94.38861393 | S175: 97.8627623 | T175: 45.89263033 | U175: 56.02774359 | V175: 63.86178671 | W175: 119.8895303 | X175: 151.5492519 | Y175: 166.3879097 | Z175: 183.0571263 | AA175: 79.58052432 | AB175: 108.3592022 | AC175: 31.93360483 | AE175: 127.4029613 | AF175: 118.679674 | AG175: 112.0611405 | AH175: 106.2312504 | AI175: =AI182*AI$16/$AH$16 -> 128.0377827 | AJ175: 127.0410631 | AK175: 121.8867196 | AL175: 145.4424466 | AM175: 146.8777804 | AN175: =Revenue!AN$131 -> 199.6726228 | AO175: =Revenue!AO$131 -> 205.8732498 | AP175: =Revenue!AP$131 -> 212.6903634 | AQ175: =Revenue!AQ$131 -> 220.044823 | AR175: =Revenue!AR$131 -> 227.769262
A176: =ROW() -> 176 | D176: Total | O176: =SUM(O171:O175) -> 111.6057854 | P176: 111.060163 | Q176: 115.4905881 | R176: 118.8830845 | S176: 123.7158098 | T176: 58.9539203 | U176: 70.72284949 | V176: 80.41777252 | W176: 151.140622 | X176: 188.2542047 | Y176: 206.2447183 | Z176: 226.1769781 | AA176: =SUM(AA171:AA175) -> 97.80969344 | AB176: =SUM(AB171:AB175) -> 133.2401449 | AC176: 41.22683897 | AE176: 158.8613343 | AF176: 147.7865096 | AG176: 138.9619864 | AH176: 130.8532781 | AI176: =SUM(AI171:AI175) -> 156.0258044 | AJ176: 155.8743379 | AK176: 149.7044324 | AL176: 177.9402647 | AM176: 179.6206113 | AN176: =SUM(AN171:AN175) -> 244.8523022 | AO176: 252.5394664 | AP176: 260.7779524 | AQ176: 269.5839483 | AR176: 278.7973938
A177: =ROW() -> 177 | C177: Proposed Tariff Revenue [Nominal] | O177: Actual 2 [m$ nominal] | T177: Approved 3 [m$ nominal] | AA177: Approved [m$ nominal] | AJ177: Actual 5 [m$ nominal] | AL177: Forecast 5 [m$ nominal] | AP177: Forecast [m$ nominal]
A178: =ROW() -> 178 | D178: A1 | O178: =O171*O$17/$S$17 -> 4.266022539 | P178: =P171*P$17/$S$17 -> 3.937727417 | Q178: 4.074415881 | R178: 4.45193283 | S178: 4.826820838 | T178: =T171*T$17/$S$17 -> 2.811218667 | U178: =U171*U$17/$S$17 -> 3.267033257 | V178: 3.344674404 | W178: 6.69244469 | X178: 7.459380342 | Y178: 8.186510316 | Z178: 8.89574417 | AA178: =AA171*AA$17/$Z$17 -> 4.121917884 | AB178: =AB171*AB$17/$Z$17 -> 4.929370331 | AC178: 3.255608376 | AE178: =AE171*AE$17/$Z$17 -> 8.183440534 | AF178: 7.649337299 | AG178: 7.086507572 | AH178: 6.571121939 | AI178: 7.058385911 | AJ178: 7.241320046 | AK178: 7.398065162 | AL178: =AL171*$AH$16*AL$17 -> 8.16864405 | AM178: =AM171*$AH$16*AM$17 -> 8.463777527 | AN178: =AN171*AN$17 -> 10.04234832 | AO178: =AO171*AO$17 -> 10.71878726 | AP178: 11.29678524 | AQ178: 11.84740379 | AR178: 12.37065933
A179: =ROW() -> 179 | D179: A2 | O179: =O172*O$17/$S$17 -> 3.925995256 | P179: 4.336220662 | Q179: 4.663575739 | R179: 4.817111863 | S179: 5.203813145 | T179: =T172*T$17/$S$17 -> 2.647761224 | U179: 2.832656585 | V179: 3.759656048 | W179: 6.662315065 | X179: 8.320218538 | Y179: 9.21336526 | Z179: 10.22298316 | AA179: =AA172*AA$17/$Z$17 -> 3.145890823 | AB179: 4.703597863 | AC179: 1.48839641 | AE179: =AE172*AE$17/$Z$17 -> 5.825417408 | AF179: 5.626907837 | AG179: 5.430325645 | AH179: 5.125518752 | AI179: 4.30834942 | AJ179: 4.50354029 | AK179: 4.74013375 | AL179: =AL172*$AH$16*AL$17 -> 5.523462535 | AM179: 5.71601706 | AN179: 7.775193738 | AO179: 8.180997888 | AP179: 8.627409503 | AQ179: 9.091794733 | AR179: 9.586696546
A180: =ROW() -> 180 | D180: B1 | O180: =O173*O$17/$S$17 -> 7.639295822 | P180: 7.718371277 | Q180: 8.228484996 | R180: 7.500049577 | S180: 8.299208156 | T180: =T173*T$17/$S$17 -> 4.079450438 | U180: 4.84705706 | V180: 5.113590675 | W180: 10.08043133 | X180: 11.75743251 | Y180: 13.19665433 | Z180: 14.85814469 | AA180: =AA173*AA$17/$Z$17 -> 5.310938402 | AB180: 7.722121599 | AC180: 2.243796339 | AE180: =AE173*AE$17/$Z$17 -> 9.170089668 | AF180: 8.726611288 | AG180: 8.314891741 | AH180: 7.931114001 | AI180: 8.434741625 | AJ180: 9.365948417 | AK180: 9.899251949 | AL180: =AL173*$AH$16*AL$17 -> 12.30035236 | AM180: 12.94231227 | AN180: 16.60972665 | AO180: 17.56763698 | AP180: 18.57439001 | AQ180: 19.64693379 | AR180: 20.77154598
A181: =ROW() -> 181 | D181: B2 | O181: =O174*O$17/$S$17 -> 5.562169516 | P181: 5.96466059 | Q181: 6.592884843 | R181: 7.219590762 | S181: 7.523205351 | T181: =T174*T$17/$S$17 -> 3.723209816 | U181: 4.138494557 | V181: 5.197608496 | W181: 9.438376195 | X181: 11.52829892 | Y181: 12.83736277 | Z181: 14.42992396 | AA181: =AA174*AA$17/$Z$17 -> 5.770916993 | AB181: 8.113221671 | AC181: 2.524820031 | AE181: =AE174*AE$17/$Z$17 -> 9.497360605 | AF181: 8.808062021 | AG181: 8.152094814 | AH181: 7.389050093 | AI181: 8.427405533 | AJ181: 8.98795404 | AK181: 9.275430741 | AL181: =AL174*$AH$16*AL$17 -> 12.07082025 | AM181: 12.68545482 | AN181: 13.64634088 | AO181: 14.43429256 | AP181: 15.27005592 | AQ181: 16.19585937 | AR181: 17.22786282
A182: =ROW() -> 182 | D182: B3 | O182: =O175*O$17/$S$17 -> 77.76776336 | P182: 79.93007228 | Q182: 85.52643885 | R182: 92.4395865 | S182: 97.8627623 | T182: =T175*T$17/$S$17 -> 46.59658808 | U182: 57.51520581 | V182: 67.17732489 | W182: 126.1138835 | X182: 161.294897 | Y182: 181.3209552 | Z182: 205.5018417 | AA182: =AA175*AA$17/$Z$17 -> 80.10655234 | AB182: 110.9172571 | AC182: 32.68746708 | AE182: =AE175*AE$17/$Z$17 -> 132.335465 | AF182: 125.6278702 | AG182: 120.7382071 | AH182: 116.5634683 | AI182: 129.1396569 | AJ182: 132.6168756 | AK182: 137.20123 | AL182: =AL175*$AH$16*AL$17 -> 170.3504043 | AM182: 178.5687471 | AN182: 212.462413 | AO182: 224.5586252 | AP182: 237.8175317 | AQ182: 252.21647 | AR182: 267.6231238
A183: =ROW() -> 183 | D183: Total | O183: =SUM(O178:O182) -> 99.1612465 | P183: 101.8870522 | Q183: 109.0858003 | R183: 116.4282715 | S183: 123.7158098 | T183: 59.85822822 | U183: 72.60044727 | V183: 84.59285452 | W183: 158.9874508 | X183: 200.3602274 | Y183: 224.7548479 | Z183: 253.9086377 | AA183: 98.45621644 | AB183: 136.3855685 | AC183: 42.20008824 | AE183: =SUM(AE178:AE182) -> 165.0117732 | AF183: 156.4387887 | AG183: 149.7220269 | AH183: 143.5802731 | AI183: 157.3685394 | AJ183: 162.7156384 | AK183: 168.5141116 | AL183: 208.4136835 | AM183: 218.3763088 | AN183: =SUM(AN178:AN182) -> 260.5360226 | AO183: 275.4603399 | AP183: 291.5861724 | AQ183: 308.9984617 | AR183: 327.5798885
A184: Ancillary Services
A185: =ROW() -> 185 | C185: Revenue | O185: Actual 22 [m$ nominal] | T185: Approved 3 [m$ 31/12/2009] | AD185: Actual 4 [$ nominal] | AH185: Forecast [$ nominal) | AK185: Forecast 5 [m$ nominal] | AP185: Forecast [m$ nominal]
A186: =ROW() -> 186 | D186: Revenue proposed | O186: 0.53 | P186: 0.525 | Q186: 0.548 | R186: 0.709 | S186: 0.706 | T186: =0.77/2 -> 0.385 | U186: =T186 -> 0.385 | V186: =T186 -> 0.385 | W186: =U186+V186 -> 0.77 | X186: =$T$186*2 -> 0.77 | Y186: =$T$186*2 -> 0.77 | Z186: =$T$186*2 -> 0.77 | AA186: =AA188*AA$17 -> 0.6743353085 | AB186: =AB188*AB$17 -> 0 | AC186: 0 | AD186: 1.662852624 | AE186: 2.262037162 | AF186: 3.288900906 | AG186: 3.39714259 | AH186: 3.437707994 | AI186: =AI322/1000000 -> 0 | AJ186: 0 | AK186: 0 | AL186: 0 | AM186: 0 | AN186: =AN322/1000000 -> 4.623902647 | AO186: 4.788282134 | AP186: 4.965691179 | AQ186: 5.153102015 | AR186: 5.348921959
A187: =ROW() -> 187 | T187: ="Approved 3 [m$ "&Input!$G$51&"]" -> Approved 3 [m$ 31/12/2023] | AD187: ="Actual 4 [m$ "&Input!$G$51&"]" -> Actual 4 [m$ 31/12/2023] | AH187: ="Forecast [m$ "&Input!$G$51&"]" -> Forecast [m$ 31/12/2023]
A188: =ROW() -> 188 | T188: =T288/1000000 -> 0.5308179299 | W188: =W288/1000000 -> 1.088692047 | X188: 1.066665356 | Y188: 1.066665356 | Z188: 1.066665356 | AA188: 0.8609478001 | AB188: 0 | AC188: =AC288/1000000 -> 0 | AD188: 2.087769762 | AE188: 2.798756888 | AF188: 3.993036693 | AG188: 4.052156937 | AH188: 4.026437676 | AI188: =AI288/1000000 -> 0 | AJ188: 0 | AK188: 0 | AL188: 0 | AM188: 0 | AN188: =AN288/1000000 -> 4.345553437 | AO188: 4.38985233 | AP188: 4.441029447 | AQ188: 4.49579451 | AR188: 4.552371968
A189: =ROW() -> 189 | D189: ERA Adjustment | O189: 0 | P189: 0 | Q189: 0 | R189: 0 | S189: 0 | T189: 0 | U189: 0 | V189: 0 | W189: 0 | X189: 0 | Y189: 0 | Z189: 0 | AA189: 0 | AB189: 0 | AC189: 0 | AD189: 0 | AE189: 0 | AF189: 0 | AG189: 0 | AH189: 0 | AI189: 0 | AJ189: 0 | AK189: 0 | AL189: 0 | AM189: 0 | AN189: 0 | AO189: 0 | AP189: 0 | AQ189: 0 | AR189: 0
A190: =ROW() -> 190 | D190: ="Revenue [m$ "&Input!$G$51&"]" -> Revenue [m$ 31/12/2023] | O190: =O186*O$16+O189 -> 0.8606208103 | P190: =P186*P$16+P189 -> 0.8256383469 | Q190: =Q186*Q$16+Q189 -> 0.8370476321 | R190: =R186*R$16+R189 -> 1.044477509 | S190: =S186*S$16+S189 -> 1.018581875 | T190: =T188+T189 -> 0.5308179299 | W190: =W188+W189 -> 1.088692047 | X190: =X188+X189 -> 1.066665356 | Y190: =Y188+Y189 -> 1.066665356 | Z190: =Z188+Z189 -> 1.066665356 | AA190: =AA188+AA189 -> 0.8609478001 | AB190: =AB188+AB189 -> 0 | AC190: 0 | AD190: =AD188+AD189 -> 2.087769762 | AE190: 2.798756888 | AF190: 3.993036693 | AG190: 4.052156937 | AH190: 4.026437676 | AI190: 0 | AJ190: 0 | AK190: 0 | AL190: 0 | AM190: 0 | AN190: =AN188+AN189 -> 4.345553437 | AO190: 4.38985233 | AP190: 4.441029447 | AQ190: 4.49579451 | AR190: 4.552371968
A191: =ROW() -> 191 | O191: Actual 2 [m$ nominal] | T191: Approved 3 [m$ nominal] | AA191: Forecast [m$ nominal]
A192: =ROW() -> 192 | D192: Adjusted Revenue [m$ nominal] | O192: =O190*O$17 -> 0.53 | P192: 0.525 | Q192: 0.548 | R192: 0.709 | S192: 0.706 | T192: 0.3735644229 | W192: =W190*W$17 -> 0.793771402 | X192: =X190*X$17 -> 0.786871431 | Y192: =Y190*Y$17 -> 0.8056811066 | Z192: =Z190*Z$17 -> 0.8299769377 | AA192: =AA190*AA$17 -> 0.6743353085 | AB192: =AB190*AB$17 -> 0 | AC192: 0 | AD192: =AD190*AD$17 -> 1.662852624 | AE192: 2.262037162 | AF192: 3.288900906 | AG192: 3.39714259 | AH192: 3.437707994 | AI192: 0 | AJ192: 0 | AK192: 0 | AL192: 0 | AM192: 0 | AN192: =AN190*AN$17 -> 4.623902647 | AO192: 4.788282134 | AP192: 4.965691179 | AQ192: 5.153102015 | AR192: 5.348921959
A193: Tariffs Excluding GST
A194: =ROW() -> 194 | C194: A1 | J194: Actual 1 (FA1) [$ nominal] | O194: Actual 2 [$ nominal] | T194: Actual 3 [$ nominal] | AE194: Actual 4 [$ nominal] | AK194: Actual 5 [$ nominal] | AP194: Forecast 6 [$ nominal)
A195: =ROW() -> 195 | D195: Fixed [$/year] | J195: 43720 | K195: 44069.76364 | L195: 44056.54545 | M195: 44342.90909 | N195: 44365.08182 | O195: 44263.04545 | P195: 44734.3 | Q195: 44286.96 | R195: 44286.96 | S195: 44286.96 | T195: 44286.96 | W195: 44286.96 | X195: 41283.45 | Y195: 45308.99444 | Z195: 46738.99 | AA195: 46742.47 | AB195: 46742.47 | AC195: 46027.88148 | AE195: 42220.77 | AF195: 38925.9 | AG195: 35827.4 | AH195: 32444.85 | AI195: 33482.8 | AJ195: 34153.64 | AK195: 35342.19 | AL195: 37912.49 | AM195: 40101.43 | AN195: =Revenue!AN62*AN$17 -> 58556.25324 | AO195: =Revenue!AO62*AO$17 -> 61826.79707 | AP195: =Revenue!AP62*AP$17 -> 65280.01264 | AQ195: =Revenue!AQ62*AQ$17 -> 68926.09604 | AR195: =Revenue!AR62*AR$17 -> 72775.83068
A196: =ROW() -> 196 | D196: Demand 1 (<=10km) [$/GJ*km] | J196: 180.4818182 | K196: 181.9272727 | L196: 181.8727273 | M196: 183.0545455 | N196: 183.1454545 | O196: 182.7272727 | P196: 184.71 | Q196: 182.86 | R196: 182.86 | S196: 182.86 | T196: 182.86 | W196: 182.86 | X196: 174.02 | Y196: 190.9826186 | Z196: 197.0028843 | AA196: 197.0028843 | AB196: 197.0028843 | AC196: 193.9929687 | AE196: 177.94 | AF196: 164.05 | AG196: 151.04 | AH196: 136.75 | AI196: 141.12 | AJ196: 143.95 | AK196: 148.96 | AL196: 159.79 | AM196: 169.02 | AN196: =Revenue!AN63*AN$17 -> 246.7966384 | AO196: =Revenue!AO63*AO$17 -> 260.5829344 | AP196: =Revenue!AP63*AP$17 -> 275.1406274 | AQ196: =Revenue!AQ63*AQ$17 -> 290.5056499 | AR196: =Revenue!AR63*AR$17 -> 306.7271495
A197: =ROW() -> 197 | D197: Demand 2 (>10km) [$/GJ*km] | J197: 90.24545455 | K197: 90.96363636 | L197: 90.93636364 | M197: 91.52727273 | N197: 91.57272727 | O197: 91.36363636 | P197: 92.35 | Q197: 91.43 | R197: 91.43 | S197: 91.43 | T197: 91.43 | W197: 91.43 | X197: 91.59 | Y197: 100.5221915 | Z197: 103.6909149 | AA197: 103.6909149 | AB197: 103.6909149 | AC197: 102.1086719 | AE197: 93.66 | AF197: 86.35 | AG197: 79.5 | AH197: 71.98 | AI197: 74.28 | AJ197: 75.77 | AK197: 78.41 | AL197: 84.11 | AM197: 88.97 | AN197: =Revenue!AN64*AN$17 -> 129.9103284 | AO197: =Revenue!AO64*AO$17 -> 137.163265 | AP197: =Revenue!AP64*AP$17 -> 144.8214494 | AQ197: =Revenue!AQ64*AQ$17 -> 152.9152052 | AR197: =Revenue!AR64*AR$17 -> 161.4532757
A198: =ROW() -> 198 | D198: Usage 1 (<=10km) [$/GJ*km] | J198: 0.04398181818 | K198: 0.04433636364 | L198: 0.04432727273 | M198: 0.04461818182 | N198: 0.04463636364 | O198: 0.04453636364 | P198: 0.04502 | Q198: 0.0446 | R198: 0.0446 | S198: 0.0446 | T198: 0.0446 | W198: 0.0446 | X198: 0.03691 | Y198: 0.04051864027 | Z198: 0.0417958996 | AA198: 0.0417958996 | AB198: 0.0417958996 | AC198: 0.04115726563 | AE198: 0.03776 | AF198: 0.0347 | AG198: 0.03195 | AH198: 0.02893 | AI198: 0.02985 | AJ198: 0.03045 | AK198: 0.03151 | AL198: 0.0338 | AM198: 0.03575 | AN198: =Revenue!AN65*AN$17 -> 0.05220247943 | AO198: =Revenue!AO65*AO$17 -> 0.05511618114 | AP198: =Revenue!AP65*AP$17 -> 0.05819916958 | AQ198: =Revenue!AQ65*AQ$17 -> 0.06144804849 | AR198: =Revenue!AR65*AR$17 -> 0.0648821038
A199: =ROW() -> 199 | D199: Usage 2 (>10km) [$/GJ*km] | J199: 0.02199090909 | K199: 0.02216363636 | L199: 0.02215454545 | M199: 0.0223 | N199: 0.02230909091 | O199: 0.02225454545 | P199: 0.02249 | Q199: 0.0223 | R199: 0.0223 | S199: 0.0223 | T199: 0.0223 | W199: 0.0223 | X199: 0.01845 | Y199: 0.02024331861 | Z199: 0.02088143965 | AA199: 0.02088143965 | AB199: 0.02088143965 | AC199: 0.02056304687 | AE199: 0.01896 | AF199: 0.01749 | AG199: 0.0161 | AH199: 0.01458 | AI199: 0.01505 | AJ199: 0.01535 | AK199: 0.01588 | AL199: 0.01703 | AM199: 0.01801 | AN199: =Revenue!AN66*AN$17 -> 0.0262927694 | AO199: =Revenue!AO66*AO$17 -> 0.02775988146 | AP199: =Revenue!AP66*AP$17 -> 0.02930644063 | AQ199: =Revenue!AQ66*AQ$17 -> 0.03094753421 | AR199: =Revenue!AR66*AR$17 -> 0.03267604684
A200: =ROW() -> 200 | C200: A2
... 123 more rows

Sheet Revenue
A1: =Main!A1 -> ERA, GDS Tariff Model, Draft Decision, April 2024
A2: Revenue
A3: Ref | C3: =COLUMN() -> 3 | D3: =COLUMN() -> 4 | E3: =COLUMN() -> 5 | F3: =COLUMN() -> 6 | G3: =COLUMN() -> 7 | H3: =COLUMN() -> 8 | I3: =COLUMN() -> 9 | J3: =COLUMN() -> 10 | K3: =COLUMN() -> 11 | L3: =COLUMN() -> 12 | M3: =COLUMN() -> 13 | N3: =COLUMN() -> 14 | O3: =COLUMN() -> 15 | P3: =COLUMN() -> 16 | Q3: =COLUMN() -> 17 | R3: =COLUMN() -> 18 | S3: =COLUMN() -> 19 | T3: =COLUMN() -> 20 | U3: =COLUMN() -> 21 | V3: =COLUMN() -> 22 | W3: =COLUMN() -> 23 | X3: =COLUMN() -> 24 | Y3: =COLUMN() -> 25 | Z3: =COLUMN() -> 26 | AA3: =COLUMN() -> 27 | AD3: =COLUMN() -> 30 | AE3: =COLUMN() -> 31 | AF3: =COLUMN() -> 32 | AG3: =COLUMN() -> 33 | AH3: =COLUMN() -> 34 | AI3: =COLUMN() -> 35 | AJ3: =COLUMN() -> 36 | AK3: =COLUMN() -> 37 | AL3: =COLUMN() -> 38 | AM3: =COLUMN() -> 39 | AN3: =COLUMN() -> 40 | AO3: =COLUMN() -> 41 | AP3: =COLUMN() -> 42 | AQ3: =COLUMN() -> 43 | AR3: =COLUMN() -> 44
A4: =ROW() -> 4 | J4: Year ending 31 December | O4: Year ending 31 December | W4: Year Ending 30 June | AD4: Year Ending 31 December | AI4: Year Ending 31 December | AN4: Year Ending 31 December
A5: Regulatory Period | J5: 1 | K5: 1 | L5: 1 | M5: 1 | N5: 1 | O5: 2 | P5: 2 | Q5: 2 | R5: 2 | S5: 2 | T5: 3 | U5: 3 | V5: 3 | W5: 3 | X5: 3 | Y5: 3 | Z5: 3 | AA5: 4 | AB5: 4 | AC5: 4 | AD5: 4 | AE5: 4 | AF5: 4 | AG5: 4 | AH5: 4 | AI5: 4 | AJ5: 4 | AK5: 4 | AL5: 4 | AM5: 4 | AN5: 4 | AO5: 4 | AP5: 4 | AQ5: 4 | AR5: 4
A6: Year ending | J6: =Load_Tariffs!J6 -> 2000 | K6: =Load_Tariffs!K6 -> 2001 | L6: =Load_Tariffs!L6 -> 2002 | M6: =Load_Tariffs!M6 -> 2003 | N6: =Load_Tariffs!N6 -> 2004 | O6: =Load_Tariffs!O6 -> 2005 | P6: =Load_Tariffs!P6 -> 2006 | Q6: =Load_Tariffs!Q6 -> 2007 | R6: =Load_Tariffs!R6 -> 2008 | S6: =Load_Tariffs!S6 -> 2009 | T6: =Load_Tariffs!T6 -> 2010 | U6: =Load_Tariffs!U6 -> 2010 | V6: =Load_Tariffs!V6 -> 2011 | W6: =Load_Tariffs!W6 -> 2011 | X6: =Load_Tariffs!X6 -> 2012 | Y6: =Load_Tariffs!Y6 -> 2013 | Z6: =Load_Tariffs!Z6 -> 2014 | AA6: =Load_Tariffs!AA6 -> 2014 | AB6: =Load_Tariffs!AB6 -> 2015 | AC6: =Load_Tariffs!AC6 -> 2015 | AD6: =Load_Tariffs!AD6 -> 2015 | AE6: =Load_Tariffs!AE6 -> 2016 | AF6: =Load_Tariffs!AF6 -> 2017 | AG6: =Load_Tariffs!AG6 -> 2018 | AH6: =Load_Tariffs!AH6 -> 2019 | AI6: =Load_Tariffs!AI6 -> 2020 | AJ6: =Load_Tariffs!AJ6 -> 2021 | AK6: =Load_Tariffs!AK6 -> 2022 | AL6: =Load_Tariffs!AL6 -> 2023 | AM6: =Load_Tariffs!AM6 -> 2024 | AN6: =Load_Tariffs!AN6 -> 2025 | AO6: =Load_Tariffs!AO6 -> 2026 | AP6: =Load_Tariffs!AP6 -> 2027 | AQ6: =Load_Tariffs!AQ6 -> 2028 | AR6: =Load_Tariffs!AR6 -> 2029
A7: Months | J7: =Load_Tariffs!J7 -> 1 to 12 | K7: =Load_Tariffs!K7 -> 1 to 12 | L7: =Load_Tariffs!L7 -> 1 to 12 | M7: =Load_Tariffs!M7 -> 1 to 12 | N7: =Load_Tariffs!N7 -> 1 to 12 | O7: =Load_Tariffs!O7 -> 1 to 12 | P7: =Load_Tariffs!P7 -> 1 to 12 | Q7: =Load_Tariffs!Q7 -> 1 to 12 | R7: =Load_Tariffs!R7 -> 1 to 12 | S7: =Load_Tariffs!S7 -> 1 to 12 | T7: =Load_Tariffs!T7 -> 1 to 6 | U7: =Load_Tariffs!U7 -> 7 to 12 | V7: =Load_Tariffs!V7 -> 1 to 6 | W7: =Load_Tariffs!W7 -> 7 to 6 | X7: =Load_Tariffs!X7 -> 7 to 6 | Y7: =Load_Tariffs!Y7 -> 7 to 6 | Z7: =Load_Tariffs!Z7 -> 7 to 6 | AA7: =Load_Tariffs!AA7 -> 7 to 12 | AB7: =Load_Tariffs!AB7 -> 1 to 9 | AC7: =Load_Tariffs!AC7 -> 10 to 12 | AD7: =Load_Tariffs!AD7 -> 1 to 12 | AE7: =Load_Tariffs!AE7 -> 1 to 12 | AF7: =Load_Tariffs!AF7 -> 1 to 12 | AG7: =Load_Tariffs!AG7 -> 1 to 12 | AH7: =Load_Tariffs!AH7 -> 1 to 12 | AI7: =Load_Tariffs!AI7 -> 1 to 12 | AJ7: =Load_Tariffs!AJ7 -> 1 to 12 | AK7: =Load_Tariffs!AK7 -> 1 to 12 | AL7: =Load_Tariffs!AL7 -> 1 to 12 | AM7: =Load_Tariffs!AM7 -> 1 to 12 | AN7: =Load_Tariffs!AN7 -> 1 to 12 | AO7: =Load_Tariffs!AO7 -> 1 to 12 | AP7: =Load_Tariffs!AP7 -> 1 to 12 | AQ7: =Load_Tariffs!AQ7 -> 1 to 12 | AR7: =Load_Tariffs!AR7 -> 1 to 12
A8: Days | J8: =Load_Tariffs!J8 -> 366 | K8: =Load_Tariffs!K8 -> 365 | L8: =Load_Tariffs!L8 -> 365 | M8: =Load_Tariffs!M8 -> 365 | N8: =Load_Tariffs!N8 -> 366 | O8: =Load_Tariffs!O8 -> 365 | P8: =Load_Tariffs!P8 -> 365 | Q8: =Load_Tariffs!Q8 -> 365 | R8: =Load_Tariffs!R8 -> 366 | S8: =Load_Tariffs!S8 -> 365 | T8: =Load_Tariffs!T8 -> 181 | U8: =Load_Tariffs!U8 -> 184 | V8: =Load_Tariffs!V8 -> 181 | W8: =Load_Tariffs!W8 -> 365 | X8: =Load_Tariffs!X8 -> 366 | Y8: =Load_Tariffs!Y8 -> 365 | Z8: =Load_Tariffs!Z8 -> 365 | AA8: =Load_Tariffs!AA8 -> 184 | AB8: =Load_Tariffs!AB8 -> 273 | AC8: =Load_Tariffs!AC8 -> 92 | AD8: =Load_Tariffs!AD8 -> 365 | AE8: =Load_Tariffs!AE8 -> 366 | AF8: =Load_Tariffs!AF8 -> 365 | AG8: =Load_Tariffs!AG8 -> 365 | AH8: =Load_Tariffs!AH8 -> 365 | AI8: =Load_Tariffs!AI8 -> 366 | AJ8: =Load_Tariffs!AJ8 -> 365 | AK8: =Load_Tariffs!AK8 -> 365 | AL8: =Load_Tariffs!AL8 -> 365 | AM8: =Load_Tariffs!AM8 -> 366 | AN8: =Load_Tariffs!AN8 -> 365 | AO8: =Load_Tariffs!AO8 -> 365 | AP8: =Load_Tariffs!AP8 -> 365 | AQ8: =Load_Tariffs!AQ8 -> 366 | AR8: =Load_Tariffs!AR8 -> 365
A9: Year portion | J9: =Load_Tariffs!J9 -> 1 | K9: =Load_Tariffs!K9 -> 1 | L9: =Load_Tariffs!L9 -> 1 | M9: =Load_Tariffs!M9 -> 1 | N9: =Load_Tariffs!N9 -> 1 | O9: =Load_Tariffs!O9 -> 1 | P9: =Load_Tariffs!P9 -> 1 | Q9: =Load_Tariffs!Q9 -> 1 | R9: =Load_Tariffs!R9 -> 1 | S9: =Load_Tariffs!S9 -> 1 | T9: =Load_Tariffs!T9 -> 0.495890411 | U9: =Load_Tariffs!U9 -> 0.504109589 | V9: =Load_Tariffs!V9 -> 0.495890411 | W9: =Load_Tariffs!W9 -> 1 | X9: =Load_Tariffs!X9 -> 1 | Y9: =Load_Tariffs!Y9 -> 1 | Z9: =Load_Tariffs!Z9 -> 1 | AA9: =Load_Tariffs!AA9 -> 0.504109589 | AB9: =Load_Tariffs!AB9 -> 0.7479452055 | AC9: =Load_Tariffs!AC9 -> 0.2520547945 | AD9: =Load_Tariffs!AD9 -> 1 | AE9: =Load_Tariffs!AE9 -> 1 | AF9: =Load_Tariffs!AF9 -> 1 | AG9: =Load_Tariffs!AG9 -> 1 | AH9: =Load_Tariffs!AH9 -> 1 | AI9: =Load_Tariffs!AI9 -> 1 | AJ9: =Load_Tariffs!AJ9 -> 1 | AK9: =Load_Tariffs!AK9 -> 1 | AL9: =Load_Tariffs!AL9 -> 1 | AM9: =Load_Tariffs!AM9 -> 1 | AN9: =Load_Tariffs!AN9 -> 1 | AO9: =Load_Tariffs!AO9 -> 1 | AP9: =Load_Tariffs!AP9 -> 1 | AQ9: =Load_Tariffs!AQ9 -> 1 | AR9: =Load_Tariffs!AR9 -> 1
A10: Financial Parameters
A11: =ROW() -> 11 | C11: Inflation factor | J11: Actual 1 | O11: Actual 2 | T11: Actual 3 | Y11: FORECAST | AD11: Actual 4 up to Dec 2017 | AG11: Forecast | AK11: Forecast | AP11: Forecast
A12: =ROW() -> 12 | D12: ="Inflation Factor (convert to real "&Input!$G$51&" $)" -> Inflation Factor (convert to real 31/12/2023 $) | T12: =Load_Tariffs!T16 -> 1.420954184 | U12: =Load_Tariffs!U16 -> 1.405438018 | V12: =Load_Tariffs!V16 -> 1.371543551 | W12: =Load_Tariffs!W16 -> 1.371543551 | X12: =Load_Tariffs!X16 -> 1.355577689 | Y12: =Load_Tariffs!Y16 -> 1.323929961 | Z12: =Load_Tariffs!Z16 -> 1.285174693 | AA12: =Load_Tariffs!AA16 -> 1.27673546 | AB12: =Load_Tariffs!AB16 -> 1.255535055 | AC12: =Load_Tariffs!AC16 -> 1.255535055 | AD12: =Load_Tariffs!AD16 -> 1.255535055 | AE12: =Load_Tariffs!AE16 -> 1.237272727 | AF12: =Load_Tariffs!AF16 -> 1.214094558 | AG12: =Load_Tariffs!AG16 -> 1.192813322 | AH12: =Load_Tariffs!AH16 -> 1.171256454 | AI12: =Load_Tariffs!AI16 -> 1.161262799 | AJ12: =Load_Tariffs!AJ16 -> 1.122011542 | AK12: =Load_Tariffs!AK16 -> 1.040519878 | AL12: =Load_Tariffs!AL16 -> 1 | AM12: =Load_Tariffs!AM16 -> 0.9633911368 | AN12: =Load_Tariffs!AN16 -> 0.939802104 | AO12: =Load_Tariffs!AO16 -> 0.9167906585 | AP12: =Load_Tariffs!AP16 -> 0.8943426578 | AQ12: =Load_Tariffs!AQ16 -> 0.8724443057 | AR12: =Load_Tariffs!AR16 -> 0.8510821439
A13: =ROW() -> 13 | D13: ="Inflation Factor (convert " &Input!$G$51& " $ to nominal $)" -> Inflation Factor (convert 31/12/2023 $ to nominal $) | T13: =Load_Tariffs!T17 -> 0.703752458 | U13: =Load_Tariffs!U17 -> 0.7115219506 | V13: =Load_Tariffs!V17 -> 0.729105539 | W13: =Load_Tariffs!W17 -> 0.729105539 | X13: =Load_Tariffs!X17 -> 0.7376928729 | Y13: =Load_Tariffs!Y17 -> 0.7553269655 | Z13: =Load_Tariffs!Z17 -> 0.778104335 | AA13: =Load_Tariffs!AA17 -> 0.783247612 | AB13: =Load_Tariffs!AB17 -> 0.7964731815 | AC13: =Load_Tariffs!AC17 -> 0.7964731815 | AD13: =Load_Tariffs!AD17 -> 0.7964731815 | AE13: =Load_Tariffs!AE17 -> 0.8082292432 | AF13: =Load_Tariffs!AF17 -> 0.8236590742 | AG13: =Load_Tariffs!AG17 -> 0.8383541514 | AH13: =Load_Tariffs!AH17 -> 0.8537839824 | AI13: =Load_Tariffs!AI17 -> 0.8611315209 | AJ13: =Load_Tariffs!AJ17 -> 0.8912564291 | AK13: =Load_Tariffs!AK17 -> 0.9610580456 | AL13: =Load_Tariffs!AL17 -> 1 | AM13: =Load_Tariffs!AM17 -> 1.038 | AN13: =Load_Tariffs!AN17 -> 1.0640538 | AO13: =Load_Tariffs!AO17 -> 1.09076155 | AP13: =Load_Tariffs!AP17 -> 1.118139665 | AQ13: =Load_Tariffs!AQ17 -> 1.146204971 | AR13: =Load_Tariffs!AR17 -> 1.174974716
A14: =ROW() -> 14 | J14: Approved 1 | O14: Approved 2 | T14: Approved 3 | AD14: Actual 4 up to Dec 2017 | AG14: Forecast | AK14: Forecast | AP14: Forecast
A15: =ROW() -> 15 | C15: Real Post-tax WACC
A16: =ROW() -> 16 | D16: WACC | T16: =(1+$W$19)^(T$8/365)-1 -> 0.04527784254 | U16: =(1+$W$19)^(U$8/365)-1 -> 0.04604532451 | V16: =(1+$W$19)^(V$8/365)-1 -> 0.04527784254 | W16: =WACC!$S$38 -> 0.06569980507 | X16: =W16 -> 0.06569980507 | Y16: =X16 -> 0.06569980507 | Z16: =Y16 -> 0.06569980507 | AA16: =(1+WACC!$U$38)^AA$9-1 -> 0.0198101078 | AB16: =AD16 -> 0.04010991168 | AC16: =AD16 -> 0.04010991168 | AD16: =Input!Z57 -> 0.04010991168 | AE16: =Input!AA57 -> 0.03990382728 | AF16: =Input!AB57 -> 0.03907360157 | AG16: =Input!AC57 -> 0.03532286555 | AH16: =Input!AD57 -> 0.03577466265 | AI16: =Input!AE57 -> 0.02981411904 | AJ16: =Input!AF57 -> 0.02965097884 | AK16: =Input!AG57 -> 0.02877545976 | AL16: =Input!AH57 -> 0.02831322919 | AM16: =Input!AI57 -> 0.02813377497 | AN16: =Input!AJ57 -> 0.04705053166 | AO16: =Input!AK57 -> 0.04705053166 | AP16: =Input!AL57 -> 0.04705053166 | AQ16: =Input!AM57 -> 0.04705053166 | AR16: =Input!AN57 -> 0.04705053166
A17: =ROW() -> 17 | D17: Discounting Factor | T17: =1/(1+T16) -> 0.9566834379 | U17: =T17/(1+U16) -> 0.9145716878 | V17: =U17/(1+V16) -> 0.8749555865 | W17: =T17/(1+W16) -> 0.8977044318 | X17: =W17/(1+X16) -> 0.8423614488 | Y17: =X17/(1+Y16) -> 0.7904303302 | Z17: =Y17/(1+Z16) -> 0.7417007364 | AA17: =1/(1+AA16) -> 0.9805747093 | AB17: =AD17 -> 0.9427606624 | AC17: =AD17 -> 0.9427606624 | AD17: =AA17/(1+AD16) -> 0.9427606624 | AE17: =AD17/(1+AE16) -> 0.9065844722 | AF17: 0.8724930273 | AG17: 0.8427255461 | AH17: 0.8136186147 | AI17: 0.7900635655 | AJ17: 0.7673120132 | AK17: 0.7458498411 | AL17: =Input!AH58 -> 0.8914666533 | AM17: =Input!AI58 -> 0.8670726271 | AN17: =Input!AJ58 -> 0.9550637431 | AO17: =Input!AK58 -> 0.9121467534 | AP17: =Input!AL58 -> 0.8711582926 | AQ17: =Input!AM58 -> 0.8320116998 | AR17: =Input!AN58 -> 0.7946242083
A18: =ROW() -> 18 | C18: Nominal Post Tax WACC
A19: =ROW() -> 19 | D19: WACC | T19: =(1+$W$19)^(T$8/365)-1 -> 0.04527784254 | U19: =(1+$W$19)^(U$8/365)-1 -> 0.04604532451 | V19: =(1+$W$19)^(V$8/365)-1 -> 0.04527784254 | W19: =WACC!$S$37 -> 0.093408 | X19: =W19 -> 0.093408 | Y19: =X19 -> 0.093408 | Z19: =Y19 -> 0.093408 | AA19: =(1+WACC!$U$37)^AA$9-1 -> 0.02953234787 | AB19: =AD19 -> 0.059872 | AC19: =AD19 -> 0.059872 | AD19: =Input!Z60 -> 0.059872 | AE19: =Input!AA60 -> 0.059662 | AF19: =Input!AB60 -> 0.058816 | AG19: =Input!AC60 -> 0.054994 | AH19: =Input!AD60 -> 0.054838 | AI19: =Input!AE60 -> 0.041554 | AJ19: =Input!AF60 -> 0.041389 | AK19: =Input!AG60 -> 0.0405035 | AL19: =Input!AH60 -> 0.040036 | AM19: =Input!AI60 -> 0.0398545 | AN19: =Input!AJ60 -> 0.0733315 | AO19: =Input!AK60 -> 0.0733315 | AP19: =Input!AL60 -> 0.0733315 | AQ19: =Input!AM60 -> 0.0733315 | AR19: =Input!AN60 -> 0.0733315
A20: =ROW() -> 20 | D20: Discounting Factor | T20: =1/(1+T19) -> 0.9566834379 | U20: =T20/(1+U19) -> 0.9145716878 | V20: =U20/(1+V19) -> 0.8749555865 | W20: =T20/(1+W19) -> 0.8749555865 | X20: =W20/(1+X19) -> 0.8002096075 | Y20: =X20/(1+Y19) -> 0.7318490513 | Z20: =Y20/(1+Z19) -> 0.6693284221 | AA20: =1/(1+AA19) -> 0.9713147936 | AB20: 0.9164453761 | AC20: 0.9164453761 | AD20: =AA20/(1+AD19) -> 0.9164453761 | AE20: =AD20/(1+AE19) -> 0.8648468814 | AF20: 0.8168056409 | AG20: 0.7742277595 | AH20: 0.7339778804 | AI20: 0.704694985 | AJ20: 0.6766875635 | AK20: 0.6503462636 | AL20: =Input!AH61 -> 0.8519484265 | AM20: =Input!AI61 -> 0.819295802 | AN20: =Input!AJ61 -> 0.93167861 | AO20: =Input!AK61 -> 0.8680250324 | AP20: =Input!AL61 -> 0.8087203556 | AQ20: =Input!AM61 -> 0.7534674568 | AR20: =Input!AN61 -> 0.7019895128
A21: Modelled Volume & Customer # (excluding prudent discount)
A22: =ROW() -> 22 | AD22: Actual 4 up to Dec 2017 | AG22: Forecast | AK22: Forecast | AP22: Forecast
A23: =ROW() -> 23 | C23: A1
A24: =ROW() -> 24 | D24: Customers | T24: =Load_Tariffs!T80 -> 50.33333333 | U24: =Load_Tariffs!U80 -> 53 | V24: =Load_Tariffs!V80 -> 53.16666667 | W24: =Load_Tariffs!W80 -> 53.16666667 | X24: =Load_Tariffs!X80 -> 55.91666667 | Y24: =Load_Tariffs!Y80 -> 62.66666667 | Z24: =Load_Tariffs!Z80 -> 64.5 | AA24: =Load_Tariffs!AA80 -> 64.5 | AD24: =Load_Tariffs!AD80 -> 66.5 | AE24: =Load_Tariffs!AE80 -> 72 | AF24: =Load_Tariffs!AF80 -> 72.5 | AG24: =Load_Tariffs!AG80 -> 72.5 | AH24: =Load_Tariffs!AH80 -> 70.5 | AI24: =Load_Tariffs!AI80 -> 70 | AJ24: =Load_Tariffs!AJ80 -> 70 | AK24: =Load_Tariffs!AK80 -> 72 | AL24: =Load_Tariffs!AL80 -> 71 | AM24: =Load_Tariffs!AM80 -> 67.5 | AN24: =Load_Tariffs!AN80 -> 66 | AO24: =Load_Tariffs!AO80 -> 65.5 | AP24: =Load_Tariffs!AP80 -> 64.5 | AQ24: =Load_Tariffs!AQ80 -> 63.5 | AR24: =Load_Tariffs!AR80 -> 62.5
A25: =ROW() -> 25 | D25: Demand 1 [GJ km] | T25: =Load_Tariffs!T81 -> 4810.674978 | U25: =Load_Tariffs!U81 -> 0 | V25: =Load_Tariffs!V81 -> 0 | W25: =Load_Tariffs!W81 -> 9941.092845 | X25: =Load_Tariffs!X81 -> 11680.59719 | Y25: =Load_Tariffs!Y81 -> 12196.77594 | Z25: =Load_Tariffs!Z81 -> 12836.93546 | AA25: =Load_Tariffs!AA81 -> 6908.508355 | AD25: =Load_Tariffs!AD81 -> 13355.22104 | AE25: =Load_Tariffs!AE81 -> 15366.25762 | AF25: =Load_Tariffs!AF81 -> 15901.48185 | AG25: =Load_Tariffs!AG81 -> 16933.5405 | AH25: =Load_Tariffs!AH81 -> 17024.75091 | AI25: =Load_Tariffs!AI81 -> 16896.72608 | AJ25: =Load_Tariffs!AJ81 -> 17662.97163 | AK25: =Load_Tariffs!AK81 -> 17576.273 | AL25: =Load_Tariffs!AL81 -> 17059.37656 | AM25: =Load_Tariffs!AM81 -> 14722.62034 | AN25: =Load_Tariffs!AN81 -> 11950.68597 | AO25: =Load_Tariffs!AO81 -> 12285.39394 | AP25: =Load_Tariffs!AP81 -> 12224.39394 | AQ25: =Load_Tariffs!AQ81 -> 12202.59394 | AR25: =Load_Tariffs!AR81 -> 12026.59394
A26: =ROW() -> 26 | D26: Demand 2 [GJ km] | T26: =Load_Tariffs!T82 -> 1022.982247 | U26: =Load_Tariffs!U82 -> 0 | V26: =Load_Tariffs!V82 -> 0 | W26: =Load_Tariffs!W82 -> 2395.216712 | X26: =Load_Tariffs!X82 -> 6559.023452 | Y26: =Load_Tariffs!Y82 -> 5974.018389 | Z26: =Load_Tariffs!Z82 -> 6077.220082 | AA26: =Load_Tariffs!AA82 -> 3742.059419 | AD26: =Load_Tariffs!AD82 -> 7362.087342 | AE26: =Load_Tariffs!AE82 -> 7594.702027 | AF26: =Load_Tariffs!AF82 -> 6938.869589 | AG26: =Load_Tariffs!AG82 -> 6587.707562 | AH26: =Load_Tariffs!AH82 -> 6529.567178 | AI26: =Load_Tariffs!AI82 -> 6527.880548 | AJ26: =Load_Tariffs!AJ82 -> 6479.893425 | AK26: =Load_Tariffs!AK82 -> 6450.14 | AL26: =Load_Tariffs!AL82 -> 6237.217808 | AM26: =Load_Tariffs!AM82 -> 5799.96 | AN26: =Load_Tariffs!AN82 -> 5799.96 | AO26: =Load_Tariffs!AO82 -> 5799.96 | AP26: =Load_Tariffs!AP82 -> 5799.96 | AQ26: =Load_Tariffs!AQ82 -> 5799.96 | AR26: =Load_Tariffs!AR82 -> 5799.96
A27: =ROW() -> 27 | D27: Usage 1 [TJ km] | T27: =Load_Tariffs!T83 -> 10466.01377 | U27: =Load_Tariffs!U83 -> 0 | V27: =Load_Tariffs!V83 -> 0 | W27: =Load_Tariffs!W83 -> 23453.57172 | X27: =Load_Tariffs!X83 -> 30807.77556 | Y27: =Load_Tariffs!Y83 -> 28099.35376 | Z27: =Load_Tariffs!Z83 -> 29939.8747 | AA27: =Load_Tariffs!AA83 -> 16267.79064 | AD27: =Load_Tariffs!AD83 -> 31828.34975 | AE27: =Load_Tariffs!AE83 -> 37584.49962 | AF27: =Load_Tariffs!AF83 -> 37057.85173 | AG27: =Load_Tariffs!AG83 -> 42709.11395 | AH27: =Load_Tariffs!AH83 -> 37509.94087 | AI27: =Load_Tariffs!AI83 -> 33716.244 | AJ27: =Load_Tariffs!AJ83 -> 41797.03556 | AK27: =Load_Tariffs!AK83 -> 39754.90292 | AL27: =Load_Tariffs!AL83 -> 36358.58696 | AM27: =Load_Tariffs!AM83 -> 33517.63462 | AN27: =Load_Tariffs!AN83 -> 32813.84392 | AO27: =Load_Tariffs!AO83 -> 33901.20676 | AP27: =Load_Tariffs!AP83 -> 34965.47709 | AQ27: =Load_Tariffs!AQ83 -> 34892.0268 | AR27: =Load_Tariffs!AR83 -> 34721.83796
A28: =ROW() -> 28 | D28: Usage 2 [TJ km] | T28: =Load_Tariffs!T84 -> 1432.245102 | U28: =Load_Tariffs!U84 -> 0 | V28: =Load_Tariffs!V84 -> 0 | W28: =Load_Tariffs!W84 -> 2792.582836 | X28: =Load_Tariffs!X84 -> 22417.44889 | Y28: =Load_Tariffs!Y84 -> 10456.27511 | Z28: =Load_Tariffs!Z84 -> 9608.150919 | AA28: =Load_Tariffs!AA84 -> 5860.346571 | AD28: =Load_Tariffs!AD84 -> 14173.39355 | AE28: =Load_Tariffs!AE84 -> 17215.38124 | AF28: =Load_Tariffs!AF84 -> 18631.62799 | AG28: =Load_Tariffs!AG84 -> 24799.91344 | AH28: =Load_Tariffs!AH84 -> 22350.33747 | AI28: =Load_Tariffs!AI84 -> 19516.98113 | AJ28: =Load_Tariffs!AJ84 -> 25527.48918 | AK28: =Load_Tariffs!AK84 -> 26913.82663 | AL28: =Load_Tariffs!AL84 -> 24812.55414 | AM28: =Load_Tariffs!AM84 -> 28905.85127 | AN28: =Load_Tariffs!AN84 -> 28974.04023 | AO28: =Load_Tariffs!AO84 -> 28952.62875 | AP28: =Load_Tariffs!AP84 -> 28931.41023 | AQ28: =Load_Tariffs!AQ84 -> 28911.03289 | AR28: =Load_Tariffs!AR84 -> 28890.84494
A29: =ROW() -> 29 | D29: Total Volume [GJ per Annum] | T29: =Load_Tariffs!T71*1000 -> 2989027.059 | U29: =Load_Tariffs!U71*1000 -> 3385705.709 | V29: =Load_Tariffs!V71*1000 -> 3676067.249 | W29: =Load_Tariffs!W71*1000 -> 7061772.958 | X29: =Load_Tariffs!X71*1000 -> 8562532.485 | Y29: =Load_Tariffs!Y71*1000 -> 8478528.824 | Z29: =Load_Tariffs!Z71*1000 -> 8669858.249 | AA29: =Load_Tariffs!AA71*1000 -> 4660411.482 | AD29: =Load_Tariffs!AD71*1000 -> 8842923.473 | AE29: =Load_Tariffs!AE71*1000 -> 9474734.76 | AF29: =Load_Tariffs!AF71*1000 -> 9292616.66 | AG29: =Load_Tariffs!AG71*1000 -> 9924907.241 | AH29: =Load_Tariffs!AH71*1000 -> 8866005.944 | AI29: =Load_Tariffs!AI71*1000 -> 8578785.8 | AJ29: =Load_Tariffs!AJ71*1000 -> 12341997.45 | AK29: =Load_Tariffs!AK71*1000 -> 11830267.24 | AL29: =Load_Tariffs!AL71*1000 -> 11503749.15 | AM29: =Load_Tariffs!AM71*1000 -> 12150331.17 | AN29: =Load_Tariffs!AN71*1000 -> 13178431.32 | AO29: =Load_Tariffs!AO71*1000 -> 13378659.2 | AP29: =Load_Tariffs!AP71*1000 -> 13876850.65 | AQ29: =Load_Tariffs!AQ71*1000 -> 13854511.34 | AR29: =Load_Tariffs!AR71*1000 -> 13821128.32
A30: =ROW() -> 30 | C30: A2
A31: =ROW() -> 31 | D31: A2 Customers | T31: =Load_Tariffs!T37 -> 97.16666667 | U31: =Load_Tariffs!U37 -> 96.5 | V31: =Load_Tariffs!V37 -> 101 | W31: =Load_Tariffs!W37 -> 101 | X31: =Load_Tariffs!X37 -> 109.5 | Y31: =Load_Tariffs!Y37 -> 106.5833333 | Z31: =Load_Tariffs!Z37 -> 104.5 | AA31: =Load_Tariffs!AA37 -> 103 | AD31: =Load_Tariffs!AD37 -> 102.5 | AE31: =Load_Tariffs!AE37 -> 98.5 | AF31: =Load_Tariffs!AF37 -> 97 | AG31: =Load_Tariffs!AG37 -> 101 | AH31: =Load_Tariffs!AH37 -> 105.5 | AI31: =Load_Tariffs!AI37 -> 104.5 | AJ31: =Load_Tariffs!AJ37 -> 103 | AK31: =Load_Tariffs!AK37 -> 104 | AL31: =Load_Tariffs!AL37 -> 104 | AM31: =Load_Tariffs!AM37 -> 104.5 | AN31: =Load_Tariffs!AN37 -> 104 | AO31: =Load_Tariffs!AO37 -> 104 | AP31: =Load_Tariffs!AP37 -> 104 | AQ31: =Load_Tariffs!AQ37 -> 104 | AR31: =Load_Tariffs!AR37 -> 104
A32: =ROW() -> 32 | D32: GJ Band 1 | T32: =Load_Tariffs!T91 -> 228196.5464 | U32: =Load_Tariffs!U91 -> 0 | V32: =Load_Tariffs!V91 -> 0 | W32: =Load_Tariffs!W91 -> 439801.477 | X32: =Load_Tariffs!X91 -> 851175.004 | Y32: =Load_Tariffs!Y91 -> 838543.447 | Z32: =Load_Tariffs!Z91 -> 815846.866 | AA32: =Load_Tariffs!AA91 -> 0 | AD32: =Load_Tariffs!AD91 -> 0 | AE32: =Load_Tariffs!AE91 -> 0 | AF32: =Load_Tariffs!AF91 -> 0 | AG32: =Load_Tariffs!AG91 -> 0 | AH32: =Load_Tariffs!AH91 -> 0 | AI32: =Load_Tariffs!AI91 -> 0 | AJ32: =Load_Tariffs!AJ91 -> 0 | AK32: =Load_Tariffs!AK91 -> 0 | AL32: =Load_Tariffs!AL91 -> 0 | AM32: =Load_Tariffs!AM91 -> 0 | AN32: =Load_Tariffs!AN91 -> 0 | AO32: =Load_Tariffs!AO91 -> 0 | AP32: =Load_Tariffs!AP91 -> 0 | AQ32: =Load_Tariffs!AQ91 -> 0 | AR32: =Load_Tariffs!AR91 -> 0
A33: =ROW() -> 33 | D33: GJ Band 2 | T33: =Load_Tariffs!T92 -> 203649.7527 | U33: =Load_Tariffs!U92 -> 0 | V33: =Load_Tariffs!V92 -> 0 | W33: =Load_Tariffs!W92 -> 383576.215 | X33: =Load_Tariffs!X92 -> 1168877.416 | Y33: =Load_Tariffs!Y92 -> 1144950.279 | Z33: =Load_Tariffs!Z92 -> 1068670.536 | AA33: =Load_Tariffs!AA92 -> 0 | AD33: =Load_Tariffs!AD92 -> 0 | AE33: =Load_Tariffs!AE92 -> 0 | AF33: =Load_Tariffs!AF92 -> 0 | AG33: =Load_Tariffs!AG92 -> 0 | AH33: =Load_Tariffs!AH92 -> 0 | AI33: =Load_Tariffs!AI92 -> 0 | AJ33: =Load_Tariffs!AJ92 -> 0 | AK33: =Load_Tariffs!AK92 -> 0 | AL33: =Load_Tariffs!AL92 -> 0 | AM33: =Load_Tariffs!AM92 -> 0 | AN33: =Load_Tariffs!AN92 -> 0 | AO33: =Load_Tariffs!AO92 -> 0 | AP33: =Load_Tariffs!AP92 -> 0 | AQ33: =Load_Tariffs!AQ92 -> 0 | AR33: =Load_Tariffs!AR92 -> 0
A34: =ROW() -> 34 | D34: GJ Band 3 | T34: =Load_Tariffs!T93 -> 455151.0385 | U34: =Load_Tariffs!U93 -> 0 | V34: =Load_Tariffs!V93 -> 0 | W34: =Load_Tariffs!W93 -> 992837.4724 | X34: =Load_Tariffs!X93 -> 0 | Y34: =Load_Tariffs!Y93 -> 0 | Z34: =Load_Tariffs!Z93 -> 0 | AA34: =Load_Tariffs!AA93 -> 0 | AD34: =Load_Tariffs!AD93 -> 0 | AE34: =Load_Tariffs!AE93 -> 0 | AF34: =Load_Tariffs!AF93 -> 0 | AG34: =Load_Tariffs!AG93 -> 0 | AH34: =Load_Tariffs!AH93 -> 0 | AI34: =Load_Tariffs!AI93 -> 0 | AJ34: =Load_Tariffs!AJ93 -> 0 | AK34: =Load_Tariffs!AK93 -> 0 | AL34: =Load_Tariffs!AL93 -> 0 | AM34: =Load_Tariffs!AM93 -> 0 | AN34: =Load_Tariffs!AN93 -> 0 | AO34: =Load_Tariffs!AO93 -> 0 | AP34: =Load_Tariffs!AP93 -> 0 | AQ34: =Load_Tariffs!AQ93 -> 0 | AR34: =Load_Tariffs!AR93 -> 0
A35: =ROW() -> 35 | D35: GJ Band 1* | AA35: =Load_Tariffs!AA94 -> 405625.606 | AD35: =Load_Tariffs!AD94 -> 785654.977 | AE35: =Load_Tariffs!AE94 -> 762671.7419 | AF35: =Load_Tariffs!AF94 -> 768684.569 | AG35: =Load_Tariffs!AG94 -> 777864.024 | AH35: =Load_Tariffs!AH94 -> 796479.232 | AI35: =Load_Tariffs!AI94 -> 761528.096 | AJ35: =Load_Tariffs!AJ94 -> 794158.328 | AK35: =Load_Tariffs!AK94 -> 838985.7832 | AL35: =Load_Tariffs!AL94 -> 824989.5037 | AM35: =Load_Tariffs!AM94 -> 833149.9116 | AN35: =Load_Tariffs!AN94 -> 833964.2055 | AO35: =Load_Tariffs!AO94 -> 828068.8768 | AP35: =Load_Tariffs!AP94 -> 826239.3963 | AQ35: =Load_Tariffs!AQ94 -> 824088.5616 | AR35: =Load_Tariffs!AR94 -> 821969.5455
A36: =ROW() -> 36 | D36: GJ Band 2* | AA36: =Load_Tariffs!AA95 -> 542794.279 | AD36: =Load_Tariffs!AD95 -> 1018804.015 | AE36: =Load_Tariffs!AE95 -> 1008052.483 | AF36: =Load_Tariffs!AF95 -> 1025065.958 | AG36: =Load_Tariffs!AG95 -> 1010103.254 | AH36: =Load_Tariffs!AH95 -> 1045425.874 | AI36: =Load_Tariffs!AI95 -> 949887.248 | AJ36: =Load_Tariffs!AJ95 -> 1034727.601 | AK36: =Load_Tariffs!AK95 -> 1079301.497 | AL36: =Load_Tariffs!AL95 -> 1054413.586 | AM36: =Load_Tariffs!AM95 -> 1064843.349 | AN36: =Load_Tariffs!AN95 -> 1065884.093 | AO36: =Load_Tariffs!AO95 -> 1058349.313 | AP36: =Load_Tariffs!AP95 -> 1056011.066 | AQ36: =Load_Tariffs!AQ95 -> 1053262.098 | AR36: =Load_Tariffs!AR95 -> 1050553.798
A37: =ROW() -> 37 | D37: Total Volume [GJ per Annum] | T37: =SUM(T32:T36) -> 886997.3376 | U37: 0 | V37: 0 | W37: 1816215.164 | X37: 2020052.42 | Y37: 1983493.726 | Z37: 1884517.402 | AA37: =SUM(AA32:AA36) -> 948419.885 | AD37: =SUM(AD32:AD36) -> 1804458.992 | AE37: 1770724.225 | AF37: 1793750.527 | AG37: 1787967.278 | AH37: 1841905.106 | AI37: =SUM(AI32:AI36) -> 1711415.344 | AJ37: 1828885.929 | AK37: 1918287.28 | AL37: 1879403.09 | AM37: 1897993.261 | AN37: =SUM(AN32:AN36) -> 1899848.298 | AO37: 1886418.189 | AP37: 1882250.462 | AQ37: 1877350.66 | AR37: 1872523.343
A38: =ROW() -> 38 | C38: B1
A39: =ROW() -> 39 | D39: Customers | T39: =Load_Tariffs!T38 -> 1222.166667 | U39: =Load_Tariffs!U38 -> 1242 | V39: =Load_Tariffs!V38 -> 1256.333333 | W39: =Load_Tariffs!W38 -> 1256.333333 | X39: =Load_Tariffs!X38 -> 1297.416667 | Y39: =Load_Tariffs!Y38 -> 1334.416667 | Z39: =Load_Tariffs!Z38 -> 1364 | AA39: =Load_Tariffs!AA38 -> 1399 | AD39: =Load_Tariffs!AD38 -> 1444 | AE39: =Load_Tariffs!AE38 -> 1518.5 | AF39: =Load_Tariffs!AF38 -> 1599.5 | AG39: =Load_Tariffs!AG38 -> 1670.5 | AH39: =Load_Tariffs!AH38 -> 1739 | AI39: =Load_Tariffs!AI38 -> 1807.5 | AJ39: =Load_Tariffs!AJ38 -> 1876.5 | AK39: =Load_Tariffs!AK38 -> 1940 | AL39: =Load_Tariffs!AL38 -> 1994.5 | AM39: =Load_Tariffs!AM38 -> 2045.5 | AN39: =Load_Tariffs!AN38 -> 2094.768476 | AO39: =Load_Tariffs!AO38 -> 2144.898159 | AP39: =Load_Tariffs!AP38 -> 2196.22749 | AQ39: =Load_Tariffs!AQ38 -> 2248.785178 | AR39: =Load_Tariffs!AR38 -> 2302.600618 | AS39: 0 | AT39: 0 | AU39: 0 | AV39: 0 | AW39: 0
A40: =ROW() -> 40 | D40: GJ Band 1 | T40: =Load_Tariffs!T102 -> 649493.4631 | U40: =Load_Tariffs!U102 -> 0 | V40: =Load_Tariffs!V102 -> 0 | W40: =Load_Tariffs!W102 -> 1389540.322 | X40: =Load_Tariffs!X102 -> 1385587.464 | Y40: =Load_Tariffs!Y102 -> 1463332.441 | Z40: =Load_Tariffs!Z102 -> 1472170.211 | AA40: =Load_Tariffs!AA102 -> 791288.4815 | AD40: =Load_Tariffs!AD102 -> 1523036.72 | AE40: =Load_Tariffs!AE102 -> 1664051.405 | AF40: =Load_Tariffs!AF102 -> 1632990.466 | AG40: =Load_Tariffs!AG102 -> 1714526.397 | AH40: =Load_Tariffs!AH102 -> 1716864.059 | AI40: =Load_Tariffs!AI102 -> 1628082.863 | AJ40: =Load_Tariffs!AJ102 -> 1801812.429 | AK40: =Load_Tariffs!AK102 -> 1857482.05 | AL40: =Load_Tariffs!AL102 -> 1925710.343 | AM40: =Load_Tariffs!AM102 -> 1926878.139 | AN40: =Load_Tariffs!AN102 -> 1921091.363 | AO40: =Load_Tariffs!AO102 -> 1915407.19 | AP40: =Load_Tariffs!AP102 -> 1911455.265 | AQ40: =Load_Tariffs!AQ102 -> 1904195.418 | AR40: =Load_Tariffs!AR102 -> 1896012.657 | AS40: 0 | AT40: 0 | AU40: 0 | AV40: 0 | AW40: 0
A41: =ROW() -> 41 | D41: GJ Band 2 | T41: =Load_Tariffs!T103 -> 94260.5628 | U41: =Load_Tariffs!U103 -> 0 | V41: =Load_Tariffs!V103 -> 0 | W41: =Load_Tariffs!W103 -> 202653.3169 | X41: =Load_Tariffs!X103 -> 168076.3819 | Y41: =Load_Tariffs!Y103 -> 176654.1947 | Z41: =Load_Tariffs!Z103 -> 175019.4857 | AA41: =Load_Tariffs!AA103 -> 0 | AD41: =Load_Tariffs!AD103 -> 0 | AE41: =Load_Tariffs!AE103 -> 0 | AF41: =Load_Tariffs!AF103 -> 0 | AG41: =Load_Tariffs!AG103 -> 0 | AH41: =Load_Tariffs!AH103 -> 0 | AI41: =Load_Tariffs!AI103 -> 0 | AJ41: =Load_Tariffs!AJ103 -> 0 | AK41: =Load_Tariffs!AK103 -> 0 | AL41: =Load_Tariffs!AL103 -> 0 | AM41: =Load_Tariffs!AM103 -> 0 | AN41: =Load_Tariffs!AN103 -> 0 | AO41: =Load_Tariffs!AO103 -> 0 | AP41: =Load_Tariffs!AP103 -> 0 | AQ41: =Load_Tariffs!AQ103 -> 0 | AR41: =Load_Tariffs!AR103 -> 0
A42: =ROW() -> 42 | D42: GJ Band 2* | AA42: =Load_Tariffs!AA104 -> 97970.16121 | AD42: =Load_Tariffs!AD104 -> 197766.1523 | AE42: =Load_Tariffs!AE104 -> 266373.9094 | AF42: =Load_Tariffs!AF104 -> 241805.8528 | AG42: =Load_Tariffs!AG104 -> 290029.4973 | AH42: =Load_Tariffs!AH104 -> 235799.3977 | AI42: =Load_Tariffs!AI104 -> 212062.0134 | AJ42: =Load_Tariffs!AJ104 -> 274662.5779 | AK42: =Load_Tariffs!AK104 -> 278840.7353 | AL42: =Load_Tariffs!AL104 -> 249059.7783 | AM42: =Load_Tariffs!AM104 -> 237602.2866 | AN42: =Load_Tariffs!AN104 -> 232870.2909 | AO42: =Load_Tariffs!AO104 -> 227761.8142 | AP42: =Load_Tariffs!AP104 -> 220975.2 | AQ42: =Load_Tariffs!AQ104 -> 217550.3469 | AR42: =Load_Tariffs!AR104 -> 215101.9773
A43: =ROW() -> 43 | D43: Total Volume [GJ per Annum] | T43: =SUM(T40:T42) -> 743754.0259 | U43: =SUM(U40:U42) -> 0 | V43: 0 | W43: 1592193.639 | X43: 1553663.846 | Y43: 1639986.635 | Z43: 1647189.697 | AA43: 889258.6427 | AD43: 1720802.873 | AE43: 1930425.315 | AF43: 1874796.319 | AG43: 2004555.894 | AH43: 1952663.457 | AI43: =SUM(AI40:AI42) -> 1840144.876 | AJ43: 2076475.007 | AK43: 2136322.785 | AL43: 2174770.122 | AM43: 2164480.426 | AN43: =SUM(AN40:AN42) -> 2153961.654 | AO43: 2143169.005 | AP43: 2132430.465 | AQ43: 2121745.765 | AR43: 2111114.634
A44: =ROW() -> 44 | C44: B2
A45: =ROW() -> 45 | D45: Modelled B2 Customers | T45: =Load_Tariffs!T39 -> 7697.5 | U45: =Load_Tariffs!U39 -> 7893 | V45: =Load_Tariffs!V39 -> 8105.083333 | W45: =Load_Tariffs!W39 -> 8105.083333 | X45: =Load_Tariffs!X39 -> 8708.75 | Y45: =Load_Tariffs!Y39 -> 9262.25 | Z45: =Load_Tariffs!Z39 -> 9797 | AA45: =Load_Tariffs!AA39 -> 10221.5 | AD45: =Load_Tariffs!AD39 -> 10622.5 | AE45: =Load_Tariffs!AE39 -> 11112.5 | AF45: =Load_Tariffs!AF39 -> 11494.5 | AG45: =Load_Tariffs!AG39 -> 11737 | AH45: =Load_Tariffs!AH39 -> 11973 | AI45: =Load_Tariffs!AI39 -> 12128.5 | AJ45: =Load_Tariffs!AJ39 -> 12227.5 | AK45: =Load_Tariffs!AK39 -> 12428 | AL45: =Load_Tariffs!AL39 -> 12632.5 | AM45: =Load_Tariffs!AM39 -> 12819.1 | AN45: =Load_Tariffs!AN39 -> 13008.8056 | AO45: =Load_Tariffs!AO39 -> 13201.54649 | AP45: =Load_Tariffs!AP39 -> 13397.37123 | AQ45: =Load_Tariffs!AQ39 -> 13631.10071 | AR45: =Load_Tariffs!AR39 -> 13903.26139
A46: =ROW() -> 46 | D46: GJ Band 1 | T46: =Load_Tariffs!T118 -> 185987.7142 | U46: =Load_Tariffs!U118 -> 0 | V46: =Load_Tariffs!V118 -> 0 | W46: =Load_Tariffs!W118 -> 389585.8249 | X46: =Load_Tariffs!X118 -> 403522.1127 | Y46: =Load_Tariffs!Y118 -> 418531.9016 | Z46: =Load_Tariffs!Z118 -> 430255.2483 | AA46: =Load_Tariffs!AA118 -> 228811.0652 | AD46: =Load_Tariffs!AD118 -> 454358.7074 | AE46: =Load_Tariffs!AE118 -> 481672.4814 | AF46: =Load_Tariffs!AF118 -> 480578.9736 | AG46: =Load_Tariffs!AG118 -> 490010.7087 | AH46: =Load_Tariffs!AH118 -> 490288.3704 | AI46: =Load_Tariffs!AI118 -> 489070.4026 | AJ46: =Load_Tariffs!AJ118 -> 504024.2042 | AK46: =Load_Tariffs!AK118 -> 498090.0168 | AL46: =Load_Tariffs!AL118 -> 506443.8425 | AM46: =Load_Tariffs!AM118 -> 517288.4231 | AN46: =Load_Tariffs!AN118 -> 516259.7732 | AO46: =Load_Tariffs!AO118 -> 515435.1865 | AP46: =Load_Tariffs!AP118 -> 514301.5622 | AQ46: =Load_Tariffs!AQ118 -> 514808.2395 | AR46: =Load_Tariffs!AR118 -> 516106.4246
A47: =ROW() -> 47 | D47: GJ Band 2 | T47: =Load_Tariffs!T119 -> 366118.5915 | U47: =Load_Tariffs!U119 -> 0 | V47: =Load_Tariffs!V119 -> 0 | W47: =Load_Tariffs!W119 -> 777541.4461 | X47: =Load_Tariffs!X119 -> 784946.1842 | Y47: =Load_Tariffs!Y119 -> 812884.7301 | Z47: =Load_Tariffs!Z119 -> 825273.9552 | AA47: =Load_Tariffs!AA119 -> 434199.1841 | AD47: =Load_Tariffs!AD119 -> 837277.7577 | AE47: =Load_Tariffs!AE119 -> 886844.8449 | AF47: =Load_Tariffs!AF119 -> 862170.8128 | AG47: =Load_Tariffs!AG119 -> 863500.7444 | AH47: =Load_Tariffs!AH119 -> 847841.6481 | AI47: =Load_Tariffs!AI119 -> 748912.0259 | AJ47: =Load_Tariffs!AJ119 -> 824013.5825 | AK47: =Load_Tariffs!AK119 -> 812694.231 | AL47: =Load_Tariffs!AL119 -> 811594.1788 | AM47: =Load_Tariffs!AM119 -> 792909.4613 | AN47: =Load_Tariffs!AN119 -> 784563.3351 | AO47: =Load_Tariffs!AO119 -> 776102.5205 | AP47: =Load_Tariffs!AP119 -> 768038.8628 | AQ47: =Load_Tariffs!AQ119 -> 761677.9761 | AR47: =Load_Tariffs!AR119 -> 757699.7563
A48: =ROW() -> 48 | D48: Total Volume [GJ per Annum] | T48: =SUM(T46:T47) -> 552106.3057 | U48: =SUM(U46:U47) -> 0 | V48: 0 | W48: 1167127.271 | X48: 1188468.297 | Y48: 1231416.632 | Z48: 1255529.203 | AA48: =SUM(AA46:AA47) -> 663010.2493 | AD48: 1291636.465 | AE48: 1368517.326 | AF48: 1342749.786 | AG48: =SUM(AG46:AG47) -> 1353511.453 | AH48: =SUM(AH46:AH47) -> 1338130.018 | AI48: =SUM(AI46:AI47) -> 1237982.429 | AJ48: 1328037.787 | AK48: 1310784.248 | AL48: =SUM(AL46:AL47) -> 1318038.021 | AM48: =SUM(AM46:AM47) -> 1310197.884 | AN48: =SUM(AN46:AN47) -> 1300823.108 | AO48: 1291537.707 | AP48: 1282340.425 | AQ48: =SUM(AQ46:AQ47) -> 1276486.216 | AR48: =SUM(AR46:AR47) -> 1273806.181
A49: =ROW() -> 49 | C49: B3
A50: =ROW() -> 50 | D50: Modelled B3 Customers | T50: =Load_Tariffs!T40 -> 601246 | U50: =Load_Tariffs!U40 -> 609162.8988 | V50: =Load_Tariffs!V40 -> 614524 | W50: =Load_Tariffs!W40 -> 614524 | X50: =Load_Tariffs!X40 -> 629899.5833 | Y50: =Load_Tariffs!Y40 -> 642709.8333 | Z50: =Load_Tariffs!Z40 -> 657671.5 | AA50: =Load_Tariffs!AA40 -> 671181 | AD50: =Load_Tariffs!AD40 -> 686909.5 | AE50: =Load_Tariffs!AE40 -> 705512 | AF50: =Load_Tariffs!AF40 -> 718910.5 | AG50: =Load_Tariffs!AG40 -> 728627 | AH50: =Load_Tariffs!AH40 -> 737032 | AI50: =Load_Tariffs!AI40 -> 744038 | AJ50: =Load_Tariffs!AJ40 -> 751396.5 | AK50: =Load_Tariffs!AK40 -> 761657.5 | AL50: =Load_Tariffs!AL40 -> 772818.5 | AM50: =Load_Tariffs!AM40 -> 781627.944 | AN50: =Load_Tariffs!AN40 -> 788369.4404 | AO50: =Load_Tariffs!AO40 -> 796364.114 | AP50: =Load_Tariffs!AP40 -> 805626.5431 | AQ50: =Load_Tariffs!AQ40 -> 815553.0212 | AR50: =Load_Tariffs!AR40 -> 825813.2387
A51: =ROW() -> 51 | D51: GJ Band 1 | T51: =Load_Tariffs!T140 -> 3008688.118 | U51: =Load_Tariffs!U140 -> 0 | V51: =Load_Tariffs!V140 -> 0 | W51: =Load_Tariffs!W140 -> 6231552.577 | X51: =Load_Tariffs!X140 -> 4913980.424 | Y51: =Load_Tariffs!Y140 -> 5016507.282 | Z51: =Load_Tariffs!Z140 -> 5081054.62 | AA51: =Load_Tariffs!AA140 -> 0 | AD51: =Load_Tariffs!AD140 -> 0 | AE51: =Load_Tariffs!AE140 -> 0 | AF51: =Load_Tariffs!AF140 -> 0 | AG51: =Load_Tariffs!AG140 -> 0 | AH51: =Load_Tariffs!AH140 -> 0 | AI51: =Load_Tariffs!AI140 -> 0 | AJ51: =Load_Tariffs!AJ140 -> 0 | AK51: =Load_Tariffs!AK140 -> 0 | AL51: =Load_Tariffs!AL140 -> 0 | AM51: =Load_Tariffs!AM140 -> 0 | AN51: =Load_Tariffs!AN140 -> 0 | AO51: =Load_Tariffs!AO140 -> 0 | AP51: =Load_Tariffs!AP140 -> 0 | AQ51: =Load_Tariffs!AQ140 -> 0 | AR51: =Load_Tariffs!AR140 -> 0
A52: =ROW() -> 52 | D52: GJ Band 2 | T52: =Load_Tariffs!T141 -> 1249333.842 | U52: =Load_Tariffs!U141 -> 0 | V52: =Load_Tariffs!V141 -> 0 | W52: =Load_Tariffs!W141 -> 2807463.131 | X52: =Load_Tariffs!X141 -> 4731980.429 | Y52: =Load_Tariffs!Y141 -> 4889443.108 | Z52: =Load_Tariffs!Z141 -> 4759786.657 | AA52: =Load_Tariffs!AA141 -> 0 | AD52: =Load_Tariffs!AD141 -> 0 | AE52: =Load_Tariffs!AE141 -> 0 | AF52: =Load_Tariffs!AF141 -> 0 | AG52: =Load_Tariffs!AG141 -> 0 | AH52: =Load_Tariffs!AH141 -> 0 | AI52: =Load_Tariffs!AI141 -> 0 | AJ52: =Load_Tariffs!AJ141 -> 0 | AK52: =Load_Tariffs!AK141 -> 0 | AL52: =Load_Tariffs!AL141 -> 0 | AM52: =Load_Tariffs!AM141 -> 0 | AN52: =Load_Tariffs!AN141 -> 0 | AO52: =Load_Tariffs!AO141 -> 0 | AP52: =Load_Tariffs!AP141 -> 0 | AQ52: =Load_Tariffs!AQ141 -> 0 | AR52: =Load_Tariffs!AR141 -> 0
A53: =ROW() -> 53 | D53: GJ Band 3 | T53: =Load_Tariffs!T142 -> 331249.2265 | U53: =Load_Tariffs!U142 -> 0 | V53: =Load_Tariffs!V142 -> 0 | W53: =Load_Tariffs!W142 -> 730749.3655 | X53: =Load_Tariffs!X142 -> 0 | Y53: =Load_Tariffs!Y142 -> 0 | Z53: =Load_Tariffs!Z142 -> 0 | AA53: =Load_Tariffs!AA142 -> 0 | AD53: =Load_Tariffs!AD142 -> 0 | AE53: =Load_Tariffs!AE142 -> 0 | AF53: =Load_Tariffs!AF142 -> 0 | AG53: =Load_Tariffs!AG142 -> 0 | AH53: =Load_Tariffs!AH142 -> 0 | AI53: =Load_Tariffs!AI142 -> 0 | AJ53: =Load_Tariffs!AJ142 -> 0 | AK53: =Load_Tariffs!AK142 -> 0 | AL53: =Load_Tariffs!AL142 -> 0 | AM53: =Load_Tariffs!AM142 -> 0 | AN53: =Load_Tariffs!AN142 -> 0 | AO53: =Load_Tariffs!AO142 -> 0 | AP53: =Load_Tariffs!AP142 -> 0 | AQ53: =Load_Tariffs!AQ142 -> 0 | AR53: =Load_Tariffs!AR142 -> 0
A54: =ROW() -> 54 | D54: GJ Band 1* | AA54: =Load_Tariffs!AA143 -> 0 | AD54: =Load_Tariffs!AD143 -> 288522.8556 | AE54: =Load_Tariffs!AE143 -> 1180420.566 | AF54: =Load_Tariffs!AF143 -> 1198474.251 | AG54: =Load_Tariffs!AG143 -> 1219086.447 | AH54: =Load_Tariffs!AH143 -> 1236348.624 | AI54: =Load_Tariffs!AI143 -> 1259936.396 | AJ54: =Load_Tariffs!AJ143 -> 1273263.126 | AK54: =Load_Tariffs!AK143 -> 1280066.816 | AL54: =Load_Tariffs!AL143 -> 1279444.847 | AM54: =Load_Tariffs!AM143 -> 1290816.861 | AN54: =Load_Tariffs!AN143 -> 0 | AO54: =Load_Tariffs!AO143 -> 0 | AP54: =Load_Tariffs!AP143 -> 0 | AQ54: =Load_Tariffs!AQ143 -> 0 | AR54: =Load_Tariffs!AR143 -> 0
A55: =ROW() -> 55 | D55: GJ Band 2* | AA55: =Load_Tariffs!AA144 -> 2658352.316 | AD55: =Load_Tariffs!AD144 -> 4884879.333 | AE55: =Load_Tariffs!AE144 -> 4166565.797 | AF55: =Load_Tariffs!AF144 -> 4166780.088 | AG55: =Load_Tariffs!AG144 -> 4215164.047 | AH55: =Load_Tariffs!AH144 -> 4241292.033 | AI55: =Load_Tariffs!AI144 -> 4312169.307 | AJ55: =Load_Tariffs!AJ144 -> 4361073.337 | AK55: =Load_Tariffs!AK144 -> 4322337.418 | AL55: =Load_Tariffs!AL144 -> 4300758.16 | AM55: =Load_Tariffs!AM144 -> 4318025.066 | AN55: =Load_Tariffs!AN144 -> 5527142.988 | AO55: =Load_Tariffs!AO144 -> 5473873.718 | AP55: =Load_Tariffs!AP144 -> 5434846.683 | AQ55: =Load_Tariffs!AQ144 -> 5406301.433 | AR55: =Load_Tariffs!AR144 -> 5385685.641
A56: =ROW() -> 56 | D56: GJ Band 3* | AA56: =Load_Tariffs!AA145 -> 2568594.692 | AD56: =Load_Tariffs!AD145 -> 4623497.475 | AE56: =Load_Tariffs!AE145 -> 5527792.696 | AF56: =Load_Tariffs!AF145 -> 4566927.535 | AG56: =Load_Tariffs!AG145 -> 4643447.786 | AH56: =Load_Tariffs!AH145 -> 4456494.786 | AI56: =Load_Tariffs!AI145 -> 4541285.483 | AJ56: =Load_Tariffs!AJ145 -> 4877423.186 | AK56: =Load_Tariffs!AK145 -> 4715843.417 | AL56: =Load_Tariffs!AL145 -> 4556053.286 | AM56: =Load_Tariffs!AM145 -> 4460126.097 | AN56: =Load_Tariffs!AN145 -> 4279323.305 | AO56: =Load_Tariffs!AO145 -> 4125041.826 | AP56: =Load_Tariffs!AP145 -> 3985032.026 | AQ56: =Load_Tariffs!AQ145 -> 3855672.135 | AR56: =Load_Tariffs!AR145 -> 3734502.422
A57: =ROW() -> 57 | D57: Total Volume [GJ per Annum] | T57: =SUM(T51:T56) -> 4589271.187 | U57: 0 | V57: 0 | W57: 9769765.074 | X57: 9645960.853 | Y57: 9905950.389 | Z57: 9840841.277 | AA57: =SUM(AA51:AA56) -> 5226947.008 | AD57: =SUM(AD51:AD56) -> 9796899.664 | AE57: 10874779.06 | AF57: 9932181.873 | AG57: 10077698.28 | AH57: 9934135.443 | AI57: =SUM(AI51:AI56) -> 10113391.19 | AJ57: 10511759.65 | AK57: 10318247.65 | AL57: 10136256.29 | AM57: 10068968.02 | AN57: =SUM(AN51:AN56) -> 9806466.293 | AO57: 9598915.543 | AP57: 9419878.709 | AQ57: 9261973.567 | AR57: 9120188.063
A58: =ROW() -> 58 | F58: =Revenue!AM90 -> 4.219653179
A59: ="Tariffs Excluding GST [$ "&Input!$G$51&"]" -> Tariffs Excluding GST [$ 31/12/2023] | E59: Calculation uses factor from first year of tariff change
A60: =ROW() -> 60 | AH60: ="Forecast [$ "&Input!$G$51&"]" -> Forecast [$ 31/12/2023] | AK60: ="Forecast [$ "&Input!$G$51&"]" -> Forecast [$ 31/12/2023] | AP60: ="Forecast [$ "&Input!$G$51&"]" -> Forecast [$ 31/12/2023]
A61: =ROW() -> 61 | C61: A1
A62: =ROW() -> 62 | D62: Fixed [$/year] | AM62: =Load_Tariffs!AM226 -> 38633.36224 | AN62: =Price_path_AA6!G121 -> 55031.29 | AO62: =Price_path_AA6!H121 -> 56682.23 | AP62: =Price_path_AA6!I121 -> 58382.7 | AQ62: =Price_path_AA6!J121 -> 60134.18 | AR62: =Price_path_AA6!K121 -> 61938.21
A63: =ROW() -> 63 | D63: Demand 1 (<=10km) [$/GJ*km*year] | AM63: =Load_Tariffs!AM227 -> 162.8323699 | AN63: =Price_path_AA6!G123 -> 231.94 | AO63: =Price_path_AA6!H123 -> 238.9 | AP63: =Price_path_AA6!I123 -> 246.07 | AQ63: =Price_path_AA6!J123 -> 253.45 | AR63: =Price_path_AA6!K123 -> 261.05
A64: =ROW() -> 64 | D64: Demand 2 (>10km) [$/GJ*km*year] | AM64: =Load_Tariffs!AM228 -> 85.71290944 | AN64: =Price_path_AA6!G124 -> 122.09 | AO64: =Price_path_AA6!H124 -> 125.75 | AP64: =Price_path_AA6!I124 -> 129.52 | AQ64: =Price_path_AA6!J124 -> 133.41 | AR64: =Price_path_AA6!K124 -> 137.41
A65: =ROW() -> 65 | D65: Usage 1 (<=10km) [$/GJ*km] | AM65: =Load_Tariffs!AM229 -> 0.03444123314 | AN65: =Price_path_AA6!G126 -> 0.04906 | AO65: =Price_path_AA6!H126 -> 0.05053 | AP65: =Price_path_AA6!I126 -> 0.05205 | AQ65: =Price_path_AA6!J126 -> 0.05361 | AR65: =Price_path_AA6!K126 -> 0.05522
A66: =ROW() -> 66 | D66: Usage 2 (>10km) [$/GJ*km] | AM66: =Load_Tariffs!AM230 -> 0.01735067437 | AN66: =Price_path_AA6!G127 -> 0.02471 | AO66: =Price_path_AA6!H127 -> 0.02545 | AP66: =Price_path_AA6!I127 -> 0.02621 | AQ66: =Price_path_AA6!J127 -> 0.027 | AR66: =Price_path_AA6!K127 -> 0.02781
A67: =ROW() -> 67 | C67: A2
A68: =ROW() -> 68 | D68: Fixed [$/year] | AM68: =Load_Tariffs!AM232 -> 21365.68401 | AN68: =Price_path_AA6!G129 -> 30434.34 | AO68: =Price_path_AA6!H129 -> 31347.37 | AP68: =Price_path_AA6!I129 -> 32287.79 | AQ68: =Price_path_AA6!J129 -> 33256.42 | AR68: =Price_path_AA6!K129 -> 34254.11
A69: =ROW() -> 69 | D69: Usage 1 (Q<=5TJ/year) [$/GJ] | AM69: =Load_Tariffs!AM233 -> 0
A70: =ROW() -> 70 | D70: Usage 2 (5<Q<=10TJ/year) [$/GJ] | AM70: =Load_Tariffs!AM234 -> 0
A71: =ROW() -> 71 | D71: Usage 3 (Q>10TJ/year) [$/GJ] | AM71: =Load_Tariffs!AM235 -> 0
A72: =ROW() -> 72 | D72: Usage 1* (Q<=10TJ/year) [$/GJ] | AM72: =Load_Tariffs!AM236 -> 2.080924855 | AN72: =Price_path_AA6!G130 -> 2.96 | AO72: =Price_path_AA6!H130 -> 3.05 | AP72: =Price_path_AA6!I130 -> 3.14 | AQ72: =Price_path_AA6!J130 -> 3.23 | AR72: =Price_path_AA6!K130 -> 3.33
A73: =ROW() -> 73 | D73: Usage 2* (Q>10TJ/year) [$/GJ] | AM73: =Load_Tariffs!AM237 -> 1.098265896 | AN73: =Price_path_AA6!G131 -> 1.57 | AO73: =Price_path_AA6!H131 -> 1.62 | AP73: =Price_path_AA6!I131 -> 1.67 | AQ73: =Price_path_AA6!J131 -> 1.72 | AR73: =Price_path_AA6!K131 -> 1.77
A74: =ROW() -> 74 | C74: B1
A75: =ROW() -> 75 | D75: Fixed [$/year] | AM75: =Load_Tariffs!AM239 -> 1080.770713 | AN75: =Price_path_AA6!G133 -> 1536.85 | AO75: =Price_path_AA6!H133 -> 1582.96 | AP75: =Price_path_AA6!I133 -> 1630.45 | AQ75: =Price_path_AA6!J133 -> 1679.36 | AR75: =Price_path_AA6!K133 -> 1729.74
A76: =ROW() -> 76 | D76: Usage 1 (Q<=5TJ/year) [$/GJ], | AM76: =Load_Tariffs!AM240 -> 4.104046243 | AN76: =Price_path_AA6!G134 -> 5.84 | AO76: =Price_path_AA6!H134 -> 6.02 | AP76: =Price_path_AA6!I134 -> 6.2 | AQ76: =Price_path_AA6!J134 -> 6.39 | AR76: =Price_path_AA6!K134 -> 6.58
A77: =ROW() -> 77 | D77: Usage 2 (Q>5TJ/year) [$/GJ] | AM77: =Load_Tariffs!AM241 -> 0
A78: =ROW() -> 78 | D78: Usage 2* (Q>5TJ/year) [$/GJ] | AM78: =Load_Tariffs!AM242 -> 3.526011561 | AN78: =Price_path_AA6!G135 -> 5.03 | AO78: =Price_path_AA6!H135 -> 5.18 | AP78: =Price_path_AA6!I135 -> 5.34 | AQ78: =Price_path_AA6!J135 -> 5.5 | AR78: =Price_path_AA6!K135 -> 5.67
A79: =ROW() -> 79 | C79: B2
A80: =ROW() -> 80 | D80: Fixed [$/year] | AM80: =Load_Tariffs!AM244 -> 271.2235067 | AN80: =Price_path_AA6!G137 -> 386.34 | AO80: =Price_path_AA6!H137 -> 397.93 | AP80: =Price_path_AA6!I137 -> 409.87 | AQ80: =Price_path_AA6!J137 -> 422.17 | AR80: =Price_path_AA6!K137 -> 434.84
A81: =ROW() -> 81 | D81: Usage 1 (Q<=100GJ/year) [$/GJ] | AM81: =Load_Tariffs!AM245 -> 6.868978805 | AN81: =Price_path_AA6!G138 -> 6.87 | AO81: =Price_path_AA6!H138 -> 7.08 | AP81: =Price_path_AA6!I138 -> 7.29 | AQ81: =Price_path_AA6!J138 -> 7.51 | AR81: =Price_path_AA6!K138 -> 7.74
A82: =ROW() -> 82 | D82: Usage 2 (Q>100GJ/year) [$/GJ] | AM82: =Load_Tariffs!AM246 -> 4.094412331 | AN82: =Price_path_AA6!G139 -> 5.42 | AO82: =Price_path_AA6!H139 -> 5.58 | AP82: =Price_path_AA6!I139 -> 5.75 | AQ82: =Price_path_AA6!J139 -> 5.92 | AR82: =Price_path_AA6!K139 -> 6.1
A83: =ROW() -> 83 | C83: B3
A84: =ROW() -> 84 | D84: Fixed [$/year] | AM84: =Load_Tariffs!AM248 -> 134.1811175 | AN84: =Price_path_AA6!G141 -> 177.71 | AO84: =Price_path_AA6!H141 -> 183.04 | AP84: =Price_path_AA6!I141 -> 188.53 | AQ84: =Price_path_AA6!J141 -> 194.19 | AR84: =Price_path_AA6!K141 -> 200.02
A85: =ROW() -> 85 | D85: Usage 1 (Q<=10GJ/year) [$/GJ] | AM85: =Load_Tariffs!AM249 -> 0
A86: =ROW() -> 86 | D86: Usage 2 (10<Q<=15GJ/year) [$/GJ] | AM86: =Load_Tariffs!AM250 -> 0
A87: =ROW() -> 87 | D87: Usage 3 (Q>15GJ/year) [$/GJ] | AM87: =Load_Tariffs!AM251 -> 0
A88: =ROW() -> 88 | D88: Usage 1* (Q<=2GJ/year to 2016); (Q<=1.825GJ/year, 2017 onwards) [$/GJ] | AM88: =Load_Tariffs!AM252 -> 0
A89: =ROW() -> 89 | D89: Usage 2* (Q<=10GJ/year to 2016) [$/GJ] -- from 2025 | AM89: =Load_Tariffs!AM253 -> 6.319845857 | AN89: =Price_path_AA6!G143 -> 6.45 | AO89: =Price_path_AA6!H143 -> 6.64 | AP89: =Price_path_AA6!I143 -> 6.84 | AQ89: =Price_path_AA6!J143 -> 7.05 | AR89: =Price_path_AA6!K143 -> 7.26
A90: =ROW() -> 90 | D90: Usage 3* (Q>10GJ/year to 2016); (Q>9.855GJ/year, 2017 onwards) [$/GJ] | AM90: =Load_Tariffs!AM254 -> 4.219653179 | AN90: =Price_path_AA6!G144 -> 5.59 | AO90: =Price_path_AA6!H144 -> 5.76 | AP90: =Price_path_AA6!I144 -> 5.93 | AQ90: =Price_path_AA6!J144 -> 6.11 | AR90: =Price_path_AA6!K144 -> 6.29
A91: =ROW() -> 91
A92: =ROW() -> 92
A93: ="Revenue [m$ "&Input!$G$51&"]" -> Revenue [m$ 31/12/2023]
A94: =ROW() -> 94
A95: =ROW() -> 95 | C95: PV of Tariff Revenue
A96: =ROW() -> 96 | D96: Discounting Factor Real Post-tax | AN96: =AN17 -> 0.9550637431 | AO96: 0.9121467534 | AP96: 0.8711582926 | AQ96: 0.8320116998 | AR96: 0.7946242083
A97: =ROW() -> 97 | C97: A1 | F97: PV | G97: Sum
A98: =ROW() -> 98 | D98: Fixed | E98: =F98/$F$103 -> 0.3746512296 | F98: =SUMPRODUCT($AN$96:$AR$96,AN98:AR98) -> 16.38902898 | G98: =SUM(AN98:AR98) -> 18.80009391 | AN98: =AN24*AN62/1000000 -> 3.63206514 | AO98: 3.712686065 | AP98: 3.76568415 | AQ98: 3.81852043 | AR98: 3.871138125
A99: =ROW() -> 99 | D99: Demand 1 (<=10km) | E99: 0.29747266 | F99: =SUMPRODUCT($AN$96:$AR$96,AN99:AR99) -> 13.0128708 | G99: =SUM(AN99:AR99) -> 14.94716912 | AN99: =AN25*AN63/1000000 -> 2.771842104 | AO99: 2.934980613 | AP99: 3.008056618 | AQ99: 3.092747435 | AR99: 3.139542349
A100: =ROW() -> 100 | D100: Demand 2 (>10km) | E100: 0.07482202546 | F100: 3.273071719 | G100: 3.759418073 | AN100: =AN26*AN64/1000000 -> 0.7081171164 | AO100: 0.72934497 | AP100: 0.7512108192 | AQ100: 0.7737726636 | AR100: 0.7969725036
A101: =ROW() -> 101 | D101: Usage 1 (<=10km) | E101: 0.1775161228 | F101: 7.765400599 | G101: 8.930729692 | AN101: =AN27*AN65/1000 -> 1.609847183 | AO101: 1.713027978 | AP101: 1.819953083 | AQ101: 1.870561557 | AR101: 1.917339892
A102: =ROW() -> 102 | D102: Usage 2 (>10km) | E102: 0.07553796213 | F102: 3.304390198 | G102: 3.795137484 | AN102: =AN28*AN66/1000 -> 0.7159485341 | AO102: 0.7368444016 | AP102: 0.7582922621 | AQ102: 0.780597888 | AR102: 0.8034543979
A103: =ROW() -> 103 | D103: Total | E103: 1 | F103: 43.7447623 | G103: 50.23254828 | AN103: =SUM(AN98:AN102) -> 9.437820077 | AO103: =SUM(AO98:AO102) -> 9.826884027 | AP103: 10.10319693 | AQ103: 10.33619997 | AR103: 10.52844727
A104: =ROW() -> 104 | C104: A2
A105: =ROW() -> 105 | D105: Fixed | E105: =F105/$F$111 -> 0.4351064567 | F105: =SUMPRODUCT($AN$96:$AR$96,AN105:AR105) -> 14.63038596 | G105: 16.80432312 | AN105: =AN31*AN68/1000000 -> 3.16517136 | AO105: 3.26012648 | AP105: 3.35793016 | AQ105: 3.45866768 | AR105: 3.56242744
A106: =ROW() -> 106 | D106: Usage 1 (Q<=5TJ/year) | E106: =F106/$F$111 -> 0 | F106: 0 | G106: 0 | AN106: =AN32*AN69/1000000 -> 0 | AO106: 0 | AP106: 0 | AQ106: 0 | AR106: 0
A107: =ROW() -> 107 | D107: Usage 2 (5<Q<=10TJ/year) | E107: =F107/$F$111 -> 0 | F107: 0 | G107: 0 | AN107: =AN33*AN70/1000000 -> 0 | AO107: 0 | AP107: 0 | AQ107: 0 | AR107: 0
A108: =ROW() -> 108 | D108: Usage 3 (Q>10TJ/year) | E108: =F108/$F$111 -> 0 | F108: 0 | G108: 0 | AN108: =AN34*AN71/1000000 -> 0 | AO108: 0 | AP108: 0 | AQ108: 0 | AR108: 0
A109: =ROW() -> 109 | D109: Usage 1* (Q<=10TJ/year) | E109: =F109/$F$111 -> 0.3363919576 | F109: 11.3111265 | G109: 12.98750047 | AN109: =AN35*AN72/1000000 -> 2.468534048 | AO109: 2.525610074 | AP109: 2.594391704 | AQ109: 2.661806054 | AR109: 2.737158587
A110: =ROW() -> 110 | D110: Usage 2* (Q>10TJ/year) | E110: 0.2285015856 | F110: 7.683329764 | G110: 8.822593423 | AN110: =AN36*AN73/1000000 -> 1.673438026 | AO110: 1.714525886 | AP110: 1.76353848 | AQ110: 1.811610809 | AR110: 1.859480222
A111: =ROW() -> 111 | D111: Total | E111: =F111/$F$111 -> 1 | F111: 33.62484222 | G111: 38.61441701 | AN111: =SUM(AN105:AN110) -> 7.307143434 | AO111: =SUM(AO105:AO110) -> 7.500262441 | AP111: 7.715860344 | AQ111: 7.932084543 | AR111: 8.159066249
A112: =ROW() -> 112 | C112: B1
A113: =ROW() -> 113 | D113: Fixed | E113: =F113/$F$117 -> 0.2155043656 | F113: =SUMPRODUCT($AN$96:$AR$96,AN113:AR113) -> 15.59817602 | G113: 17.9548923 | AN113: =AN39*AN75/1000000 -> 3.219344932 | AO113: 3.395287989 | AP113: 3.580839111 | AQ113: 3.776519876 | AR113: 3.982900393
A114: =ROW() -> 114 | D114: Usage 1 (Q<=5TJ/year) | E114: =F114/$F$117 -> 0.7128251141 | F114: 51.59418264 | G114: 59.2445195 | AN114: =AN40*AN76/1000000 -> 11.21917356 | AO114: 11.53075129 | AP114: 11.85102265 | AQ114: 12.16780872 | AR114: 12.47576328
A115: =ROW() -> 115 | D115: Usage 2 (5<Q<=10TJ/year) | E115: =F115/$F$117 -> 0 | F115: 0 | G115: 0 | AN115: =AN41*AN77/1000000 -> 0 | AO115: 0 | AP115: 0 | AQ115: 0 | AR115: 0
A116: =ROW() -> 116 | D116: Usage 2* (Q>5TJ/year) | E116: =F116/$F$117 -> 0.07167052034 | F116: 5.187502297 | G116: 5.947306448 | AN116: =AN42*AN78/1000000 -> 1.171337563 | AO116: 1.179806198 | AP116: 1.180007568 | AQ116: 1.196526908 | AR116: 1.219628211
A117: =ROW() -> 117 | D117: Total | E117: =F117/$F$117 -> 1 | F117: 72.37986095 | G117: 83.14671825 | AN117: =SUM(AN113:AN116) -> 15.60985606 | AO117: =SUM(AO113:AO116) -> 16.10584547 | AP117: 16.61186932 | AQ117: 17.14085551 | AR117: 17.67829189
A118: =ROW() -> 118 | C118: B2
A119: =ROW() -> 119 | D119: Fixed | E119: =F119/$F$122 -> 0.4019783622 | F119: =SUMPRODUCT($AN$96:$AR$96,AN119:AR119) -> 23.96742474 | G119: 27.57062987 | AN119: =AN45*AN80/1000000 -> 5.025821956 | AO119: 5.253291395 | AP119: 5.491180547 | AQ119: 5.754641786 | AR119: 6.045694183
A120: =ROW() -> 120 | D120: Usage 1 (Q<=100GJ/year) | E120: =F120/$F$122 -> 0.2746089792 | F120: 16.37319483 | G120: 18.80611776 | AN120: =AN46*AN81/1000000 -> 3.546704642 | AO120: 3.64928112 | AP120: 3.749258389 | AQ120: 3.866209879 | AR120: 3.994663727
A121: =ROW() -> 121 | D121: Usage 2 (Q>100GJ/year) | E121: =F121/$F$122 -> 0.3234126586 | F121: 19.28304924 | G121: 22.13031093 | AN121: =AN47*AN82/1000000 -> 4.252333276 | AO121: 4.330652064 | AP121: 4.416223461 | AQ121: 4.509133618 | AR121: 4.621968514
A122: =ROW() -> 122 | D122: Total | E122: =F122/$F$122 -> 1 | F122: 59.62366881 | G122: 68.50705856 | AN122: =SUM(AN119:AN121) -> 12.82485987 | AO122: =SUM(AO119:AO121) -> 13.23322458 | AP122: 13.6566624 | AQ122: 14.12998528 | AR122: 14.66232642
A123: =ROW() -> 123 | C123: B3
A124: =ROW() -> 124 | D124: Fixed | E124: =F124/$F$131 -> 0.7135942855 | F124: =SUMPRODUCT($AN$96:$AR$96,AN124:AR124) -> 662.1045398 | G124: 761.303798 | AN124: =AN50*AN84/1000000 -> 140.1011333 | AO124: 145.7664874 | AP124: 151.8847722 | AQ124: 158.3722412 | AR124: 165.179164
A125: =ROW() -> 125 | D125: Usage 1 (Q<=15GJ/year) | E125: =F125/$F$131 -> 0 | F125: 0 | G125: 0 | AN125: =AN51*AN85/1000000 -> 0 | AO125: 0 | AP125: 0 | AQ125: 0 | AR125: 0
A126: =ROW() -> 126 | D126: Usage 2 (15<Q<=45GJ/year) | E126: =F126/$F$131 -> 0 | F126: 0 | G126: 0 | AN126: =AN52*AN86/1000000 -> 0 | AO126: 0 | AP126: 0 | AQ126: 0 | AR126: 0
A127: =ROW() -> 127 | D127: Usage 3 (Q>45GJ/year) | E127: =F127/$F$131 -> 0 | F127: 0 | G127: 0 | AN127: =AN53*AN87/1000000 -> 0 | AO127: 0 | AP127: 0 | AQ127: 0 | AR127: 0
A128: =ROW() -> 128 | D128: Usage 1* (Q<=2GJ/year to 2016); (Q<=1.825GJ/year, 2017 onwards) | E128: =F128/$F$131 -> 0 | F128: 0 | G128: 0 | AN128: =AN54*AN88/1000000 -> 0 | AO128: 0 | AP128: 0 | AQ128: 0 | AR128: 0
A129: =ROW() -> 129 | D129: Usage 2* (Q<=10GJ/year to 2016) [$/GJ] -- from 2025 | E129: 0.1749945295 | F129: 162.3677134 | G129: 186.3854479 | AN129: =AN55*AN89/1000000 -> 35.65007227 | AO129: 36.34652149 | AP129: 37.17435131 | AQ129: 38.1144251 | AR129: 39.10007776
A130: =ROW() -> 130 | D130: Usage 3* (Q>10GJ/year to 2016); (Q>9.855GJ/year, 2017 onwards) | E130: 0.111411185 | F130: 103.3722563 | G130: 118.3610751 | AN130: =AN56*AN90/1000000 -> 23.92141727 | AO130: 23.76024091 | AP130: 23.63123991 | AQ130: 23.55815674 | AR130: 23.49002023
A131: =ROW() -> 131 | D131: Total | E131: =F131/$F$131 -> 1 | F131: 927.8445095 | G131: 1066.050321 | AN131: =SUM(AN124:AN130) -> 199.6726228 | AO131: =SUM(AO124:AO130) -> 205.8732498 | AP131: 212.6903634 | AQ131: 220.044823 | AR131: 227.769262
A132: =ROW() -> 132 | C132: Calculated Tariff Revenue | F132: PV | G132: Sum | I132: Lower Bound Check per Rule 94 (3)(b) | N132: Upper Bound Check per Rule 94 (3)(a)
A133: =ROW() -> 133 | D133: A1 | E133: =F133/$F$141 -> 0.03782189408 | F133: =SUMPRODUCT($AN$96:$AR$96,AN133:AR133) -> 43.7447623 | G133: 50.23254828 | I133: =IF(F161<F133,"Complies","Breach - Reset Tariffs") -> Complies | N133: =IF(F168>F133,"Complies","Breach - Reset Tariffs") -> Complies | AN133: =AN103 -> 9.437820077 | AO133: 9.826884027 | AP133: 10.10319693 | AQ133: =AQ103 -> 10.33619997 | AR133: =AR103 -> 10.52844727
A134: =ROW() -> 134 | D134: A2 | E134: 0.02907217125 | F134: =SUMPRODUCT($AN$96:$AR$96,AN134:AR134) -> 33.62484222 | G134: 38.61441701 | I134: =IF(F162<F134,"Complies","Breach - Reset Tariffs") -> Complies | N134: =IF(F169>F134,"Complies","Breach - Reset Tariffs") -> Complies | AN134: =AN111 -> 7.307143434 | AO134: 7.500262441 | AP134: 7.715860344 | AQ134: =AQ111 -> 7.932084543 | AR134: =AR111 -> 8.159066249
A135: =ROW() -> 135 | D135: B1 | E135: 0.06257991335 | F135: 72.37986095 | G135: 83.14671825 | I135: =IF(F163<F135,"Complies","Breach - Reset Tariffs") -> Complies | N135: =IF(F170>F135,"Complies","Breach - Reset Tariffs") -> Complies | AN135: =AN117 -> 15.60985606 | AO135: 16.10584547 | AP135: 16.61186932 | AQ135: =AQ117 -> 17.14085551 | AR135: =AR117 -> 17.67829189
A136: =ROW() -> 136 | D136: B2 | E136: 0.05155085929 | F136: 59.62366881 | G136: 68.50705856 | I136: =IF(F164<F136,"Complies","Breach - Reset Tariffs") -> Complies | N136: =IF(F171>F136,"Complies","Breach - Reset Tariffs") -> Complies | AN136: =AN122 -> 12.82485987 | AO136: 13.23322458 | AP136: 13.6566624 | AQ136: =AQ122 -> 14.12998528 | AR136: =AR122 -> 14.66232642
A137: =ROW() -> 137 | D137: B3 | E137: 0.8022180237 | F137: 927.8445095 | G137: 1066.050321 | I137: =IF(F165<F137,"Complies","Breach - Reset Tariffs") -> Complies | N137: =IF(F172>F137,"Complies","Breach - Reset Tariffs") -> Complies | AN137: =AN131 -> 199.6726228 | AO137: 205.8732498 | AP137: 212.6903634 | AQ137: =AQ131 -> 220.044823 | AR137: =AR131 -> 227.769262
A138: =ROW() -> 138 | D138: Total Tariff Revenue | E138: 0.9832428617 | F138: 1137.217644 | G138: 1306.551063 | AN138: =SUM(AN133:AN137) -> 244.8523022 | AO138: =SUM(AO133:AO137) -> 252.5394664 | AP138: 260.7779524 | AQ138: 269.5839483 | AR138: 278.7973938
A139: =ROW() -> 139 | D139: Revenue from Prudent Discounts | E139: 0 | F139: 0 | G139: 0 | AN139: =Load_Tariffs!AN163 -> 0 | AO139: =Load_Tariffs!AO163 -> 0 | AP139: =Load_Tariffs!AP163 -> 0 | AQ139: =Load_Tariffs!AQ163 -> 0 | AR139: =Load_Tariffs!AR163 -> 0
A140: =ROW() -> 140 | D140: Revenue from Ancillary Services | E140: 0.01675713835 | F140: 19.38128832 | G140: 22.22460169 | AN140: =Load_Tariffs!AN190 -> 4.345553437 | AO140: =Load_Tariffs!AO190 -> 4.38985233 | AP140: =Load_Tariffs!AP190 -> 4.441029447 | AQ140: =Load_Tariffs!AQ190 -> 4.49579451 | AR140: =Load_Tariffs!AR190 -> 4.552371968
A141: =ROW() -> 141 | D141: Total Smoothed Revenue | E141: 1 | F141: 1156.598932 | G141: 1328.775665 | AN141: =SUM(AN138:AN140) -> 249.1978557 | AO141: 256.9293187 | AP141: 265.2189818 | AQ141: =SUM(AQ138:AQ140) -> 274.0797428 | AR141: =SUM(AR138:AR140) -> 283.3497658
A142: =ROW() -> 142
A143: =ROW() -> 143 | C143: Calculated Tariff Revenue | F143: PV | G143: Sum | I143: Lower Bound Check per Rule 94 (3)(b) | N143: Upper Bound Check per Rule 94 (3)(a) | AN143: PV | AO143: PV | AP143: PV | AQ143: PV | AR143: PV
A144: =ROW() -> 144 | D144: A1 | E144: =F144/$F$141 -> 0.03782189408 | F144: =SUM(AN144:AR144) -> 43.7447623 | G144: =SUM(AN144:AR144) -> 43.7447623 | I144: =IF(F161<F144,"Complies","Breach - Reset Tariffs") -> Complies | N144: =IF(F168>F144,"Complies","Breach - Reset Tariffs") -> Complies | AN144: =AN$96*AN133 -> 9.01371977 | AO144: 8.963560362 | AP144: 8.801483789 | AQ144: 8.599839309 | AR144: 8.366159075
A145: =ROW() -> 145 | D145: A2 | E145: =F145/$F$141 -> 0.02907217125 | F145: =SUM(AN145:AR145) -> 33.62484222 | G145: 33.62484222 | I145: =IF(F162<F145,"Complies","Breach - Reset Tariffs") -> Complies | N145: =IF(F169>F145,"Complies","Breach - Reset Tariffs") -> Complies | AN145: =AN$96*AN134 -> 6.978787759 | AO145: 6.841340035 | AP145: 6.721735723 | AQ145: 6.599587144 | AR145: 6.483391559
A146: =ROW() -> 146 | D146: B1 | E146: 0.06257991335 | F146: 72.37986095 | G146: 72.37986095 | I146: =IF(F163<F146,"Complies","Breach - Reset Tariffs") -> Complies | N146: =IF(F170>F146,"Complies","Breach - Reset Tariffs") -> Complies | AN146: =AN$96*AN135 -> 14.90840756 | AO146: 14.69089466 | AP146: 14.47156772 | AQ146: 14.26139233 | AR146: 14.0475987
A147: =ROW() -> 147 | D147: B2 | E147: 0.05155085929 | F147: 59.62366881 | G147: 59.62366881 | I147: =IF(F164<F147,"Complies","Breach - Reset Tariffs") -> Complies | N147: =IF(F171>F147,"Complies","Breach - Reset Tariffs") -> Complies | AN147: =AN$96*AN136 -> 12.24855868 | AO147: 12.07064284 | AP147: 11.8971147 | AQ147: 11.75631307 | AR147: 11.65103953
A148: =ROW() -> 148 | D148: B3 | E148: 0.8022180237 | F148: 927.8445095 | G148: 927.8445095 | I148: =IF(F165<F148,"Complies","Breach - Reset Tariffs") -> Complies | N148: =IF(F172>F148,"Complies","Breach - Reset Tariffs") -> Complies | AN148: =AN$96*AN137 -> 190.7000825 | AO148: 187.7866165 | AP148: 185.2869738 | AQ148: 183.0798672 | AR148: 180.9909695
A149: =ROW() -> 149 | D149: Total Tariff Revenue | E149: =F149/$F$141 -> 0.9832428617 | F149: 1137.217644 | G149: 1137.217644 | AN149: =SUM(AN144:AN148) -> 233.8495563 | AO149: 230.3530543 | AP149: 227.1788758 | AQ149: 224.2969991 | AR149: 221.5391583
A150: =ROW() -> 150 | D150: Revenue from Prudent Discounts | E150: =F150/$F$141 -> 0 | F150: 0 | G150: 0 | AN150: =AN$96*AN139 -> 0 | AO150: 0 | AP150: 0 | AQ150: 0 | AR150: 0
A151: =ROW() -> 151 | D151: Revenue from Ancillary Services | E151: 0.01675713835 | F151: 19.38128832 | G151: 19.38128832 | AN151: =AN$96*AN140 -> 4.150280531 | AO151: 4.004189551 | AP151: 3.86883963 | AQ151: 3.740553632 | AR151: 3.617424971
A152: =ROW() -> 152 | D152: Total Smoothed Revenue | E152: 1 | F152: 1156.598932 | G152: 1156.598932 | AN152: =SUM(AN149:AN151) -> 237.9998368 | AO152: 234.3572439 | AP152: 231.0477154 | AQ152: =SUM(AQ149:AQ151) -> 228.0375527 | AR152: =SUM(AR149:AR151) -> 225.1565833
A153: =ROW() -> 153 | C153: Avoidable OPEX plus UAFG Cost
A154: =ROW() -> 154 | D154: A1 | AN154: 0.5101612503 | AO154: 0.5279840853 | AP154: 0.5448646767 | AQ154: 0.5749648708 | AR154: 0.5708824768
A155: =ROW() -> 155 | D155: A2 | AN155: 0.03851777575 | AO155: 0.03909133384 | AP155: 0.03956741142 | AQ155: 0.04093160505 | AR155: 0.04070333547
A156: =ROW() -> 156 | D156: B1 | AN156: 1.214336913 | AO156: 1.221497069 | AP156: 1.22536277 | AQ156: 1.243888944 | AR156: 1.236424356
A157: =ROW() -> 157 | D157: B2 | AN157: 0.9796883524 | AO157: 0.9934447403 | AP157: 1.002261142 | AQ157: 1.034497188 | AR157: 1.029086152
A158: =ROW() -> 158 | D158: B3 | AN158: 17.27873769 | AO158: 17.74975542 | AP158: 18.07621161 | AQ158: 19.10445898 | AR158: 18.90883611
A159: =ROW() -> 159 | D159: Total | AN159: =SUM(AN154:AN158) -> 20.02144198 | AO159: 20.53177264 | AP159: 20.88826761 | AQ159: 21.99874159 | AR159: =SUM(AR154:AR158) -> 21.78593243
A160: =ROW() -> 160 | C160: Total Avoidable costs including Return and Depreciation | F160: PV | G160: Sum
A161: =ROW() -> 161 | D161: A1 | E161: =F161/$F$166 -> 0.01657965859 | F161: =SUMPRODUCT($AN$96:$AR$96,AN161:AR161) -> 2.68695146 | G161: =SUM(AN161:AR161) -> 3.107306934 | AN161: =AN154+Input!AJ1771 -> 0.5101612503 | AO161: =AO154+Input!AK1771 -> 0.5500283094 | AP161: =AP154+Input!AL1771 -> 0.5992524683 | AQ161: =AQ154+Input!AM1771 -> 0.6808733996 | AR161: =AR154+Input!AN1771 -> 0.7669915061
A162: =ROW() -> 162 | D162: A2 | E162: 0.003423063864 | F162: 0.5547524635 | G162: 0.6594548467 | AN162: =AN155+Input!AJ1772 -> 0.03851777575 | AO162: =AO155+Input!AK1772 -> 0.08053102009 | AP162: =AP155+Input!AL1772 -> 0.1149907666 | AQ162: =AQ155+Input!AM1772 -> 0.1682108192 | AR162: =AR155+Input!AN1772 -> 0.257204465
A163: =ROW() -> 163 | D163: B1 | E163: 0.05344977856 | F163: 8.662238717 | G163: 10.10396031 | AN163: =AN156+Input!AJ1773 -> 1.214336913 | AO163: =AO156+Input!AK1773 -> 1.641738046 | AP163: =AP156+Input!AL1773 -> 2.02954254 | AQ163: =AQ156+Input!AM1773 -> 2.41495726 | AR163: =AR156+Input!AN1773 -> 2.803385547
A164: =ROW() -> 164 | D164: B2 | E164: 0.04715762249 | F164: 7.642512174 | G164: 8.941714643 | AN164: =AN157+Input!AJ1774 -> 0.9796883524 | AO164: =AO157+Input!AK1774 -> 1.375607442 | AP164: =AP157+Input!AL1774 -> 1.778651224 | AQ164: =AQ157+Input!AM1774 -> 2.19956402 | AR164: =AR157+Input!AN1774 -> 2.608203605
A165: =ROW() -> 165 | D165: B3 | E165: 0.8793898765 | F165: 142.5166809 | G165: 166.8126514 | AN165: =AN158+Input!AJ1775 -> 17.27873769 | AO165: =AO158+Input!AK1775 -> 24.583734 | AP165: =AP158+Input!AL1775 -> 35.33267934 | AQ165: =AQ158+Input!AM1775 -> 42.73675178 | AR165: =AR158+Input!AN1775 -> 46.88074862
A166: =ROW() -> 166 | D166: Total | E166: 1 | F166: 162.0631357 | G166: 189.6250882 | AN166: =SUM(AN161:AN165) -> 20.02144198 | AO166: 28.23163882 | AP166: 39.85511634 | AQ166: 48.20035728 | AR166: =SUM(AR161:AR165) -> 53.31653374
A167: =ROW() -> 167 | C167: Stand Alone Costs | F167: PV | G167: Sum
A168: =ROW() -> 168 | D168: A1 | E168: =F168/$F$173 -> 0.09157392206 | F168: =SUMPRODUCT($AN$96:$AR$96,AN168:AR168) -> 255.4669026 | G168: 294.090116 | AN168: 51.2809742 | AO168: 56.15949943 | AP168: 59.79189842 | AQ168: 63.44784662 | AR168: 63.40989738
A169: =ROW() -> 169 | D169: A2 | E169: 0.1345834682 | F169: 375.4521045 | G169: 431.5857153 | AN169: 78.41489439 | AO169: 83.88261685 | AP169: 86.94776539 | AQ169: 91.21317484 | AR169: 91.12726378
A170: =ROW() -> 170 | D170: B1 | E170: 0.1982979531 | F170: 553.1985826 | G170: 635.8994798 | AN170: 116.0976124 | AO170: 123.1554054 | AP170: 128.139864 | AQ170: 133.4727447 | AR170: 135.0338532
A171: =ROW() -> 171 | D171: B2 | E171: 0.2007490717 | F171: 560.0365519 | G171: 644.0047477 | AN171: 116.3821633 | AO171: 123.9889397 | AP171: 130.2482168 | AQ171: 135.9429306 | AR171: 137.4424973
A172: =ROW() -> 172 | D172: B3 | E172: 0.3747955849 | F172: 1045.580063 | G172: 1204.922177 | AN172: 204.0240515 | AO172: 227.3365479 | AP172: 247.11298 | AQ172: 260.9555428 | AR172: 265.4930543
A173: =ROW() -> 173 | D173: Total | E173: 1 | F173: 2789.734205 | G173: 3210.502235 | AN173: =SUM(AN168:AN172) -> 566.1996958 | AO173: =SUM(AO168:AO172) -> 614.5230093 | AP173: 652.2407246 | AQ173: 685.0322396 | AR173: =SUM(AR168:AR172) -> 692.506566
A174: =ROW() -> 174 | C174: PV of Volume [TJ] | F174: PV
A175: =ROW() -> 175 | D175: A1 | E175: =F175/$F$182 -> 0.4796400421 | F175: =SUMPRODUCT($AN$96:$AR$96,AN$29:AR$29)/1000 -> 59388.1947
A176: =ROW() -> 176 | D176: A2 | E176: 0.06642667042 | F176: =SUMPRODUCT($AN$96:$AR$96,AN$37:AR$37)/1000 -> 8224.834646
A177: =ROW() -> 177 | D177: B1 | E177: 0.07521184698 | F177: =SUMPRODUCT($AN$96:$AR$96,AN$43:AR$43)/1000 -> 9312.599909
A178: =ROW() -> 178 | D178: B2 | E178: 0.04532296911 | F178: =SUMPRODUCT($AN$96:$AR$96,AN$48:AR$48)/1000 -> 5611.811103
A179: =ROW() -> 179 | D179: B3 | E179: 0.3333984714 | F179: =SUMPRODUCT($AN$96:$AR$96,AN$57:AR$57)/1000 -> 41280.8181
A180: =ROW() -> 180 | D180: Total | E180: 1 | F180: =SUM(F175:F179) -> 123818.2585
A181: =ROW() -> 181 | D181: Prudent Discount Volume | E181: 0 | F181: =SUMPRODUCT($AN$96:$AR$96,Load_Tariffs!AN69:AR69) -> 0
A182: =ROW() -> 182 | D182: Total Volume | E182: 1 | F182: =SUM(F180:F181) -> 123818.2585
A183: =ROW() -> 183
A184: Revenue [m$ nominal]
A185: =ROW() -> 185
A186: =ROW() -> 186 | C186: PV of Tariff Revenue
A187: =ROW() -> 187 | D187: Discounting Factor Nominal Post-tax | AN187: =AN$20 -> 0.93167861 | AO187: 0.8680250324 | AP187: 0.8087203556 | AQ187: 0.7534674568 | AR187: 0.7019895128
A188: =ROW() -> 188 | C188: A1 | F188: PV | G188: Sum
A189: =ROW() -> 189 | D189: Fixed [$/year] | E189: =F189/$F$194 -> 0.3746512296 | F189: =SUMPRODUCT($AN$187:$AR$187,AN189:AR189) -> 17.01181209 | G189: =SUM(AN189:AR189) -> 21.05022525 | AN189: =AN98*AN$13 -> 3.864712714 | AO189: =AO98*AO$13 -> 4.049655208 | AP189: =AP98*AP$13 -> 4.210560815 | AQ189: =AQ98*AQ$13 -> 4.376807098 | AR189: =AR98*AR$13 -> 4.548489418
A190: =ROW() -> 190 | D190: Demand 1 (<=10km) [$/GJ*km*year], | E190: 0.29747266 | F190: 13.50735989 | G190: =SUM(AN190:AR190) -> 16.74798591 | AN190: =AN99*AN$13 -> 2.949389123 | AO190: =AO99*AO$13 -> 3.201364004 | AP190: =AP99*AP$13 -> 3.36342742 | AQ190: =AQ99*AQ$13 -> 3.544922484 | AR190: =AR99*AR$13 -> 3.688882879
A191: =ROW() -> 191 | D191: Demand 2 (>10km) [$/GJ*km*year], | E191: 0.07482202546 | F191: 3.397448444 | G191: 4.212299387 | AN191: =AN100*AN$13 -> 0.7534747086 | AO191: =AO100*AO$13 -> 0.7955414502 | AP191: =AP100*AP$13 -> 0.8399586139 | AQ191: =AQ100*AQ$13 -> 0.8869020734 | AR191: =AR100*AR$13 -> 0.9364225408
A192: =ROW() -> 192 | D192: Usage 1 (<=10km) [$/GJ*km] | E192: 0.1775161228 | F192: 8.060485822 | G192: 10.01330365 | AN192: =AN101*AN$13 -> 1.712964012 | AO192: =AO101*AO$13 -> 1.868505053 | AP192: =AP101*AP$13 -> 2.034961731 | AQ192: =AQ101*AQ$13 -> 2.144046955 | AR192: =AR101*AR$13 -> 2.252825895
A193: =ROW() -> 193 | D193: Usage 2 (>10km) [$/GJ*km] | E193: 0.07553796213 | F193: 3.429957026 | G193: 4.252169738 | AN193: =AN102*AN$13 -> 0.7618077583 | AO193: =AO102*AO$13 -> 0.8037215419 | AP193: =AP102*AP$13 -> 0.8478766562 | AQ193: =AQ102*AQ$13 -> 0.8947251795 | AR193: =AR102*AR$13 -> 0.9440386027
A194: =ROW() -> 194 | D194: Total | E194: 1 | F194: 45.40706327 | G194: 56.27598393 | AN194: =SUM(AN189:AN193) -> 10.04234832 | AO194: =SUM(AO189:AO193) -> 10.71878726 | AP194: 11.29678524 | AQ194: 11.84740379 | AR194: 12.37065933
A195: =ROW() -> 195 | C195: A2
A196: =ROW() -> 196 | D196: Fixed [$/year] | E196: =F196/$F$202 -> 0.4351064567 | F196: =SUMPRODUCT($AN$187:$AR$187,AN196:AR196) -> 15.18634062 | G196: 18.82867239 | AN196: =AN105*AN$13 -> 3.367912613 | AO196: =AO105*AO$13 -> 3.556020614 | AP196: =AP105*AP$13 -> 3.754634905 | AQ196: =AQ105*AQ$13 -> 3.964342087 | AR196: =AR105*AR$13 -> 4.185762168
A197: =ROW() -> 197 | D197: Usage 1 (Q<=5TJ/year) [$/GJ], | E197: =F197/$F$202 -> 0 | F197: 0 | G197: 0 | AN197: =AN106*AN$13 -> 0 | AO197: =AO106*AO$13 -> 0 | AP197: =AP106*AP$13 -> 0 | AQ197: =AQ106*AQ$13 -> 0 | AR197: =AR106*AR$13 -> 0
A198: =ROW() -> 198 | D198: Usage 2 (5<Q<=10TJ/year) [$/GJ], | E198: =F198/$F$202 -> 0 | F198: 0 | G198: 0 | AN198: =AN107*AN$13 -> 0 | AO198: =AO107*AO$13 -> 0 | AP198: =AP107*AP$13 -> 0 | AQ198: =AQ107*AQ$13 -> 0 | AR198: =AR107*AR$13 -> 0
A199: =ROW() -> 199 | D199: Usage 3 (Q>10TJ/year) [$/GJ], | E199: =F199/$F$202 -> 0 | F199: 0 | G199: 0 | AN199: =AN108*AN$13 -> 0 | AO199: =AO108*AO$13 -> 0 | AP199: =AP108*AP$13 -> 0 | AQ199: =AQ108*AQ$13 -> 0 | AR199: =AR108*AR$13 -> 0
A200: =ROW() -> 200 | D200: Usage 1* (Q<=10TJ/year) [$/GJ], | E200: =F200/$F$111 -> 0.349174852 | F200: 11.74094931 | G200: 14.54945113 | AN200: =AN109*AN$13 -> 2.626653034 | AO200: =AO109*AO$13 -> 2.75483836 | AP200: =AP109*AP$13 -> 2.900892272 | AQ200: =AQ109*AQ$13 -> 3.050975331 | AR200: =AR109*AR$13 -> 3.216092132
... 74 more rows

Sheet Working_Capital
A1: =Main!A1 -> ERA, GDS Tariff Model, Draft Decision, April 2024
A2: Working Capital [m$ nominal]
A3: Ref | C3: =COLUMN() -> 3 | D3: =COLUMN() -> 4 | E3: =COLUMN() -> 5 | F3: =COLUMN() -> 6 | G3: =COLUMN() -> 7 | H3: =COLUMN() -> 8 | I3: =COLUMN() -> 9 | J3: =COLUMN() -> 10 | K3: =COLUMN() -> 11 | L3: =COLUMN() -> 12 | M3: =COLUMN() -> 13 | N3: =COLUMN() -> 14 | O3: =COLUMN() -> 15 | P3: =COLUMN() -> 16 | Q3: =COLUMN() -> 17 | R3: =COLUMN() -> 18 | S3: =COLUMN() -> 19 | T3: =COLUMN() -> 20 | U3: =COLUMN() -> 21 | V3: =COLUMN() -> 22 | W3: =COLUMN() -> 23 | X3: =COLUMN() -> 24 | Y3: =COLUMN() -> 25 | Z3: =COLUMN() -> 26 | AA3: =COLUMN() -> 27 | AB3: =COLUMN() -> 28 | AC3: =COLUMN() -> 29 | AD3: =COLUMN() -> 30 | AE3: =COLUMN() -> 31 | AF3: =COLUMN() -> 32 | AG3: =COLUMN() -> 33 | AH3: =COLUMN() -> 34 | AI3: =COLUMN() -> 35 | AJ3: =COLUMN() -> 36 | AK3: =COLUMN() -> 37 | AL3: =COLUMN() -> 38 | AM3: =COLUMN() -> 39 | AN3: =COLUMN() -> 40
A4: Regulatory Period | J4: 1 | K4: 1 | L4: 1 | M4: 1 | N4: 1 | O4: 2 | P4: 2 | Q4: 2 | R4: 2 | S4: 2 | T4: 3 | U4: 3 | V4: 3 | W4: 3 | X4: 3 | Y4: 3 | Z4: 3 | AA4: 3 | AB4: 3 | AC4: 3 | AD4: 3 | AE4: 3 | AF4: 3 | AG4: 3 | AH4: 3 | AI4: 3 | AJ4: 3 | AK4: 3 | AL4: 3 | AM4: 3 | AN4: 3
A5: Year ending | I5: 1999 | J5: 2000 | K5: 2001 | L5: 2002 | M5: 2003 | N5: 2004 | O5: 2005 | P5: 2006 | Q5: 2007 | R5: 2008 | S5: =1+R5 -> 2009 | T5: =1+S5 -> 2010 | U5: =T5+1 -> 2011 | V5: =U5+1 -> 2012 | W5: =V5+1 -> 2013 | X5: =W5+1 -> 2014 | Y5: 2014 | Z5: =Y5+1 -> 2015 | AA5: 2016 | AB5: 2017 | AC5: 2018 | AD5: 2019 | AE5: 2020 | AF5: 2021 | AG5: 2022 | AH5: 2023 | AI5: 2024 | AJ5: =AI5+1 -> 2025 | AK5: =AJ5+1 -> 2026 | AL5: =AK5+1 -> 2027 | AM5: =AL5+1 -> 2028 | AN5: =AM5+1 -> 2029
A6: Months | I6: 1 to 12 | J6: 1 to 12 | K6: 1 to 12 | L6: 1 to 12 | M6: 1 to 12 | N6: 1 to 12 | O6: 1 to 12 | P6: 1 to 12 | Q6: 1 to 12 | R6: 1 to 12 | S6: 1 to 12 | T6: 1 to 6 | U6: 7 to 6 | V6: 7 to 6 | W6: 7 to 6 | X6: 7 to 6 | Y6: 7 to 12 | Z6: 1 to 12 | AA6: 1 to 12 | AB6: 1 to 12 | AC6: 1 to 12 | AD6: 1 to 12 | AE6: 1 to 12 | AF6: 1 to 12 | AG6: 1 to 12 | AH6: 1 to 12 | AI6: 1 to 12 | AJ6: 1 to 12 | AK6: 1 to 12 | AL6: 1 to 12 | AM6: 1 to 12 | AN6: 1 to 12
A7: Days | I7: =Input!I$8 -> 365 | J7: =Input!J$8 -> 366 | K7: =Input!K$8 -> 365 | L7: =Input!L$8 -> 365 | M7: =Input!M$8 -> 365 | N7: =Input!N$8 -> 366 | O7: =Input!O$8 -> 365 | P7: =Input!P$8 -> 365 | Q7: =Input!Q$8 -> 365 | R7: =Input!R$8 -> 366 | S7: =Input!S$8 -> 365 | T7: =Input!T$8 -> 181 | U7: =Input!U$8 -> 365 | V7: =Input!V$8 -> 366 | W7: =Input!W$8 -> 365 | X7: =Input!X$8 -> 365 | Y7: =Input!Y$8 -> 184 | Z7: =Input!Z$8 -> 365 | AA7: =Input!AA$8 -> 366 | AB7: =Input!AB$8 -> 365 | AC7: =Input!AC$8 -> 365 | AD7: =Input!AD$8 -> 365 | AE7: =Input!AE$8 -> 366 | AF7: =Input!AF$8 -> 365 | AG7: =Input!AG$8 -> 365 | AH7: =Input!AH$8 -> 365 | AI7: =Input!AI$8 -> 366 | AJ7: =Input!AJ$8 -> 365 | AK7: =Input!AK$8 -> 365 | AL7: =Input!AL$8 -> 365 | AM7: =Input!AM$8 -> 366 | AN7: =Input!AN$8 -> 365
A8: Year portion | I8: =Input!I$9 -> 1 | J8: =Input!J$9 -> 1 | K8: =Input!K$9 -> 1 | L8: =Input!L$9 -> 1 | M8: =Input!M$9 -> 1 | N8: =Input!N$9 -> 1 | O8: =Input!O$9 -> 1 | P8: =Input!P$9 -> 1 | Q8: =Input!Q$9 -> 1 | R8: =Input!R$9 -> 1 | S8: =Input!S$9 -> 1 | T8: =Input!T$9 -> 0.495890411 | U8: =Input!U$9 -> 1 | V8: =Input!V$9 -> 1 | W8: =Input!W$9 -> 1 | X8: =Input!X$9 -> 1 | Y8: =Input!Y$9 -> 0.504109589 | Z8: =Input!Z$9 -> 1 | AA8: =Input!AA$9 -> 1 | AB8: =Input!AB$9 -> 1 | AC8: =Input!AC$9 -> 1 | AD8: =Input!AD$9 -> 1 | AE8: =Input!AE$9 -> 1 | AF8: =Input!AF$9 -> 1 | AG8: =Input!AG$9 -> 1 | AH8: =Input!AH$9 -> 1 | AI8: =Input!AI$9 -> 1 | AJ8: =Input!AJ$9 -> 1 | AK8: =Input!AK$9 -> 1 | AL8: =Input!AL$9 -> 1 | AM8: =Input!AM$9 -> 1 | AN8: =Input!AN$9 -> 1
A9: Financial Parameters
A10: =ROW() -> 10 | C10: Modelled Inflation
A11: =ROW() -> 11 | D11: Inflation | J11: =Input!J$48 -> 0.05801772764 | K11: =Input!K$48 -> 0.03122619954 | L11: =Input!L$48 -> 0.03028064993 | M11: =Input!M$48 -> 0.02365591398 | N11: =Input!N$48 -> 0.02591036415 | O11: =Input!O$48 -> 0.02798634812 | P11: =Input!P$48 -> 0.03253652058 | Q11: =Input!Q$48 -> 0.02958199357 | R11: =Input!R$48 -> 0.03685196752 | S11: =Input!S$48 -> 0.02108433735 | T11: =Input!T$48 -> 0.01533923304 | U11: =Input!U$48 -> 0.03602556653 | V11: =Input!V$48 -> 0.01177790241 | W11: =Input!W$48 -> 0.02390438247 | X11: =Input!X$48 -> 0.03015564202 | Y11: =Input!Y$48 -> 0.006610009443 | Z11: =Input!Z$48 -> 0.01688555347 | AA11: =Input!AA$48 -> 0.0147601476 | AB11: =Input!AB$48 -> 0.01909090909 | AC11: =Input!AC$48 -> 0.0178412132 | AD11: =Input!AD$48 -> 0.01840490798 | AE11: =Input!AE$48 -> 0.008605851979 | AF11: =Input!AF$48 -> 0.03498293515 | AG11: =Input!AG$48 -> 0.07831821929 | AH11: =Input!AH$48 -> 0.04051987768 | AI11: =Input!AI$48 -> 0.038 | AJ11: =Input!AJ$48 -> 0.0251 | AK11: =Input!AK$48 -> 0.0251 | AL11: =Input!AL$48 -> 0.0251 | AM11: =Input!AM$48 -> 0.0251 | AN11: =Input!AN$48 -> 0.0251
A12: =ROW() -> 12 | D12: Inflation Factor (convert to nominal $) | J12: =Input!J$52 -> 0.5369128282 | K12: =Input!K$52 -> 0.5536785753 | L12: =Input!L$52 -> 0.5704443224 | M12: =Input!M$52 -> 0.5839387043 | N12: =Input!N$52 -> 0.5990687687 | O12: =Input!O$52 -> 0.6158345158 | P12: =Input!P$52 -> 0.6358716282 | Q12: =Input!Q$52 -> 0.6546819787 | R12: =Input!R$52 -> 0.6788082977 | S12: =Input!S$52 -> 0.6931205208 | T12: =Input!T$52 -> 0.703752458 | U12: =Input!U$52 -> 0.729105539 | V12: =Input!V$52 -> 0.7376928729 | W12: =Input!W$52 -> 0.7553269655 | X12: =Input!X$52 -> 0.778104335 | Y12: =Input!Y$52 -> 0.783247612 | Z12: =Input!Z$52 -> 0.7964731815 | AA12: =Input!AA$52 -> 0.8082292432 | AB12: =Input!AB$52 -> 0.8236590742 | AC12: =Input!AC$52 -> 0.8383541514 | AD12: =Input!AD$52 -> 0.8537839824 | AE12: =Input!AE$52 -> 0.8611315209 | AF12: =Input!AF$52 -> 0.8912564291 | AG12: =Input!AG$52 -> 0.9610580456 | AH12: =Input!AH$52 -> 1 | AI12: =Input!AI$52 -> 1.038 | AJ12: =Input!AJ$52 -> 1.0640538 | AK12: =Input!AK$52 -> 1.09076155 | AL12: =Input!AL$52 -> 1.118139665 | AM12: =Input!AM$52 -> 1.146204971 | AN12: =Input!AN$52 -> 1.174974716
A13: =ROW() -> 13 | C13: Nominal Post Tax WACC
A14: =ROW() -> 14 | D14: WACC | T14: =Input!T$60 -> 0.04527784254 | U14: =Input!U$60 -> 0.093408 | V14: =Input!V$60 -> 0.093408 | W14: =Input!W$60 -> 0.093408 | X14: =Input!X$60 -> 0.093408 | Y14: =Input!Y$60 -> 0.02953234787 | Z14: =Input!Z$60 -> 0.059872 | AA14: =Input!AA$60 -> 0.059662 | AB14: =Input!AB$60 -> 0.058816 | AC14: =Input!AC$60 -> 0.054994 | AD14: =Input!AD$60 -> 0.054838 | AE14: =Input!AE$60 -> 0.041554 | AF14: =Input!AF$60 -> 0.041389 | AG14: =Input!AG$60 -> 0.0405035 | AH14: =Input!AH$60 -> 0.040036 | AI14: =Input!AI$60 -> 0.0398545 | AJ14: =Input!AJ$60 -> 0.0733315 | AK14: =Input!AK$60 -> 0.0733315 | AL14: =Input!AL$60 -> 0.0733315 | AM14: =Input!AM$60 -> 0.0733315 | AN14: =Input!AN$60 -> 0.0733315
A15: =ROW() -> 15 | D15: Discounting Factor | T15: =Input!T$61 -> 0.9566834379 | U15: =Input!U$61 -> 0.8749555865 | V15: =Input!V$61 -> 0.8002096075 | W15: =Input!W$61 -> 0.7318490513 | X15: =Input!X$61 -> 0.6693284221 | Y15: =Input!Y$61 -> 0.9713147936 | Z15: =Input!Z$61 -> 0.9164453761 | AA15: =Input!AA$61 -> 0.8648468814 | AB15: =Input!AB$61 -> 0.8168056409 | AC15: =Input!AC$61 -> 0.7742277595 | AD15: =Input!AD$61 -> 0.7339778804 | AE15: =Input!AE$61 -> 0.9601038448 | AF15: =Input!AF$61 -> 0.9219454448 | AG15: =Input!AG$61 -> 0.8860570337 | AH15: =Input!AH$61 -> 0.8519484265 | AI15: =Input!AI$61 -> 0.819295802 | AJ15: =Input!AJ$61 -> 0.93167861 | AK15: =Input!AK$61 -> 0.8680250324 | AL15: =Input!AL$61 -> 0.8087203556 | AM15: =Input!AM$61 -> 0.7534674568 | AN15: =Input!AN$61 -> 0.7019895128
A16: Working Capital [m$ nominal]
A17: =ROW() -> 17 | C17: Revenue
A18: =ROW() -> 18 | D18: Total Unsmooth Revenue | AJ18: =Tax_CoRE!AJ41 -> 266.7058852 | AK18: =Tax_CoRE!AK41 -> 283.9489447 | AL18: =Tax_CoRE!AL41 -> 300.6096972 | AM18: =Tax_CoRE!AM41 -> 313.843641 | AN18: =Tax_CoRE!AN41 -> 321.957281
A19: =ROW() -> 19 | C19: Expenses
A20: =ROW() -> 20 | D20: Opex | AJ20: =Input!AJ$1733 -> 87.41879589 | AK20: =Input!AK$1733 -> 92.94060061 | AL20: =Input!AL$1733 -> 97.85640568 | AM20: =Input!AM$1733 -> 107.3573032 | AN20: =Input!AN$1733 -> 109.2921547
A21: =ROW() -> 21 | D21: Capex | AJ21: =CoS!AJ34 -> 106.2972091 | AK21: =CoS!AK34 -> 124.0187841 | AL21: =CoS!AL34 -> 107.2953437 | AM21: =CoS!AM34 -> 105.1391521 | AN21: =CoS!AN34 -> 105.0481286
A22: =ROW() -> 22 | D22: Total Expenses | AJ22: =SUM(AJ20:AJ21) -> 193.716005 | AK22: 216.9593847 | AL22: 205.1517494 | AM22: 212.4964553 | AN22: 214.3402833
A23: =ROW() -> 23 | C23: Working Capital | E23: Base for Calculation
A24: =ROW() -> 24 | D24: Receivables | E24: =Input!$AJ1817 -> 62 | F24: Days outstanding on receipts (billing plus credit) | AJ24: =AJ18/AJ$7*$E24 -> 45.30346542 | AK24: 48.23242348 | AL24: 51.06246911 | AM24: 53.16476979 | AN24: 54.68863403
A25: =ROW() -> 25 | D25: Inventory | E25: =Input!$AJ1818 -> 0.02257188991 | F25: (materials consumed / asset turnover) + insurance spares (ratio) | AJ25: =AJ21*$E25 -> 2.399328902 | AK25: 2.799338342 | AL25: 2.421858687 | AM25: 2.373189366 | AN25: 2.371134795
A26: =ROW() -> 26 | D26: Creditors | E26: =-Input!$AJ1819 -> -19 | F26: Days outstanding on expenditure | AJ26: =AJ22/AJ$7*$E26 -> -10.08384684 | AK26: -11.29377619 | AL26: -10.67913216 | AM26: -11.03123675 | AN26: -11.15743941
A27: =ROW() -> 27 | D27: End of the Year Working Capital | AJ27: =SUM(AJ24:AJ26) -> 37.61894749 | AK27: 39.73798563 | AL27: 42.80519564 | AM27: 44.5067224 | AN27: 45.90232942
A28: =ROW() -> 28 | C28: Working Capital | F28: PV
A29: =ROW() -> 29 | D29: Opening Value | F29: =SUMPRODUCT(AJ29,AJ$15) -> 21.4159597 | AJ29: =Input!AJ1820 -> 22.98642414 | AK29: =AJ31 -> 37.61894749 | AL29: =AK31 -> 39.73798563 | AM29: =AL31 -> 42.80519564 | AN29: =AM31 -> 44.5067224
A30: =ROW() -> 30 | D30: Variation | F30: =SUMPRODUCT(AJ30:AN30,AJ$15:AN$15) -> 20.21444886 | AJ30: =AJ27-AJ29 -> 14.63252335 | AK30: =AK27-AK29 -> 2.11903814 | AL30: =AL27-AL29 -> 3.067210007 | AM30: 1.701526768 | AN30: 1.395607015
A31: =ROW() -> 31 | D31: Closing Value | F31: =SUMPRODUCT(AJ31:AN31,AJ$15:AN$15) -> 169.9170888 | AJ31: =SUM(AJ29:AJ30) -> 37.61894749 | AK31: =SUM(AK29:AK30) -> 39.73798563 | AL31: 42.80519564 | AM31: 44.5067224 | AN31: 45.90232942
A32: =ROW() -> 32
A33: =ROW() -> 33 | D33: WACC applied (Nominal after tax) | AJ33: =AJ$14 -> 0.0733315 | AK33: 0.0733315 | AL33: 0.0733315 | AM33: 0.0733315 | AN33: =AN$14 -> 0.0733315
